Workbook

Sheet Suivi par Appartement
S1: ILOT A | AK1: ILOT B | BL1: ILOT C | CD1: ILOT D | DE1: ILOT E | DW1: ILOT F | EI1: ILOT G | FA1: ILOT H | FM1: ILOT I | GB1: ILOT J | GT1: ILOT K | HI1: ILOT L | HX1: ILOT M | IP1: ILOT N | JN1: ILOT O | KF1: ILOT P | KX1: ILOT Q | LP1: ILOT R | MH1: ILOT S
A2: STATUS : EN COURS = Si GAZ réalisé + éventuel sanitaire en cours EN COURS SAUF GAZ : Si GAZ pas encore réalisé + prestations sanitaire en cours | F2: AVANCEMENT | J2: Temps unitaire Théorique | K2: BASE TD-201008.1 | M2: COMPLEMENT DK-210704.1 | O2: AUTRE DEVIS | Q2: GLOBAL | S2: 1 MOLIÈRE | V2: 3 MOLIÈRE | Y2: 5 MOLIÈRE | AB2: 7 MOLIÈRE | AE2: 9 MOLIÈRE | AH2: 11 MOLIÈRE | AK2: 162 NEUFCHATEL | AN2: 160 NEUFCHATEL | AQ2: 158 NEUFCHATEL | AT2: 156 NEUFCHATEL | AW2: 154 NEUFCHATEL | AZ2: 152 NEUFCHATEL | BC2: 150 NEUFCHATEL | BF2: 148 NEUFCHATEL | BI2: 146 NEUFCHATEL | BL2: 2 JEAN XXIII | BO2: 4 JEAN XXIII | BR2: 6 JEAN XXIII | BU2: 8 JEAN XXIII | BX2: 10 JEAN XXIII | CA2: 12 JEAN XXIII | CD2: 2 EDOUARD HERRIOT | CG2: 4 EDOUARD HERRIOT | CJ2: 6 EDOUARD HERRIOT | CM2: 8 EDOUARD HERRIOT | CP2: 10 EDOUARD HERRIOT | CS2: 12 EDOUARD HERRIOT | CV2: 14 EDOUARD HERRIOT | CY2: 16 EDOUARD HERRIOT | DB2: 18 EDOUARD HERRIOT | DE2: 09 EDOUARD HERRIOT | DH2: 11 EDOUARD HERRIOT | DK2: 13 EDOUARD HERRIOT | DN2: 15 EDOUARD HERRIOT | DQ2: 17 EDOUARD HERRIOT | DT2: 19 EDOUARD HERRIOT | DW2: 1 ABBE MIROY | DZ2: 3 ABBE MIROY | EC2: 5 ABBE MIROY | EF2: 7 ABBE MIROY | EI2: 26 JEAN XXIII | EL2: 28 JEAN XXIII | EO2: 30 JEAN XXIII | ER2: 32 JEAN XXIII | EU2: 34 JEAN XXIII | EX2: 36 JEAN XXIII | FA2: 38 JEAN XXIII | FD2: 40 JEAN XXIII | FG2: 42 JEAN XXIII | FJ2: 44 JEAN XXIII | FM2: 58 JEAN XXIII | FP2: 56 JEAN XXIII | FS2: 54 Jean XXIII (Témoin) | FV2: 52 JEAN XXIII | FY2: 50 JEAN XXIII | GB2: 60 JEAN XXIII | GE2: 62 JEAN XXIII | GH2: 64 JEAN XXIII | GK2: 66 JEAN XXIII | GN2: 68 JEAN XXIII | GQ2: 70 JEAN XXIII | GT2: 72 JEAN XXIII | GW2: 74 JEAN XXIII | GZ2: 76 JEAN XXIII | HC2: 78 JEAN XXIII | HF2: 80 JEAN XXIII | HI2: 94 JEAN XXIII | HL2: 92 JEAN XXIII | HO2: 90 JEAN XXIII | HR2: 88 JEAN XXIII | HU2: 86 JEAN XXIII | HX2: 96 JEAN XXIII | IA2: 98 JEAN XXIII | ID2: 100 JEAN XXIII | IG2: 102 JEAN XXIII | IJ2: 104 JEAN XXIII | IM2: 106 JEAN XXIII | IP2: 108 JEAN XXIII | IS2: 110 JEAN XXIII | IV2: 112 JEAN XXIII | IY2: 114 JEAN XXIII | JB2: 116 JEAN XXIII | JE2: 118 JEAN XXIII | JH2: 120 JEAN XXIII | JK2: 122 JEAN XXIII | JN2: 140 JEAN XXIII | JQ2: 138 JEAN XXIII | JT2: 136 JEAN XXIII | JW2: 134 JEAN XXIII | JZ2: 132 JEAN XXIII | KC2: 130 JEAN XXIII | KF2: 142 JEAN XXIII | KI2: 144 JEAN XXIII | KL2: 146 JEAN XXIII | KO2: 148 JEAN XXIII | KR2: 150 JEAN XXIII | KU2: 152 JEAN XXIII | KX2: 67 - 12E ESCADRE D'AVIATION | LA2: 65 - 12E ESCADRE D'AVIATION | LD2: 63 - 12E ESCADRE D'AVIATION | LG2: 61 - 12E ESCADRE D'AVIATION | LJ2: 59 - 12E ESCADRE D'AVIATION | LM2: 57 - 12E ESCADRE D'AVIATION | LP2: 67 JACQUES CELLIER | LS2: 69 JACQUES CELLIER | LV2: 71 JACQUES CELLIER | LY2: 73 JACQUES CELLIER | MB2: 75 JACQUES CELLIER | ME2: 77 JACQUES CELLIER | MH2: 124 JEAN XXIII | MK2: 126 JEAN XXIII | MN2: 128 JEAN XXIII
S5: =IF(S7="TERMINÉ",1,0) -> 1 | V5: =IF(V7="TERMINÉ",1,0) -> 1 | Y5: =IF(Y7="TERMINÉ",1,0) -> 1 | AB5: =IF(AB7="TERMINÉ",1,0) -> 1 | AE5: =IF(AE7="TERMINÉ",1,0) -> 1 | AH5: =IF(AH7="TERMINÉ",1,0) -> 1 | AK5: =IF(AK7="TERMINÉ",1,0) -> 1 | AN5: =IF(AN7="TERMINÉ",1,0) -> 1 | AQ5: =IF(AQ7="TERMINÉ",1,0) -> 1 | AT5: =IF(AT7="TERMINÉ",1,0) -> 1 | AW5: =IF(AW7="TERMINÉ",1,0) -> 1 | AZ5: =IF(AZ7="TERMINÉ",1,0) -> 1 | BC5: =IF(BC7="TERMINÉ",1,0) -> 1 | BF5: =IF(BF7="TERMINÉ",1,0) -> 1 | BI5: =IF(BI7="TERMINÉ",1,0) -> 1 | BL5: =IF(BL7="TERMINÉ",1,0) -> 1 | BO5: =IF(BO7="TERMINÉ",1,0) -> 1 | BR5: =IF(BR7="TERMINÉ",1,0) -> 1 | BU5: =IF(BU7="TERMINÉ",1,0) -> 1 | BX5: =IF(BX7="TERMINÉ",1,0) -> 1 | CA5: =IF(CA7="TERMINÉ",1,0) -> 1 | CD5: =IF(CD7="TERMINÉ",1,0) -> 1 | CG5: =IF(CG7="TERMINÉ",1,0) -> 1 | CJ5: =IF(CJ7="TERMINÉ",1,0) -> 1 | CM5: =IF(CM7="TERMINÉ",1,0) -> 1 | CP5: =IF(CP7="TERMINÉ",1,0) -> 1 | CS5: =IF(CS7="TERMINÉ",1,0) -> 1 | CV5: =IF(CV7="TERMINÉ",1,0) -> 1 | CY5: =IF(CY7="TERMINÉ",1,0) -> 1 | DB5: =IF(DB7="TERMINÉ",1,0) -> 0 | DE5: =IF(DE7="TERMINÉ",1,0) -> 1 | DH5: =IF(DH7="TERMINÉ",1,0) -> 1 | DK5: =IF(DK7="TERMINÉ",1,0) -> 1 | DN5: =IF(DN7="TERMINÉ",1,0) -> 1 | DQ5: =IF(DQ7="TERMINÉ",1,0) -> 0 | DT5: =IF(DT7="TERMINÉ",1,0) -> 0 | DW5: =IF(DW7="TERMINÉ",1,0) -> 1 | DZ5: =IF(DZ7="TERMINÉ",1,0) -> 1 | EC5: =IF(EC7="TERMINÉ",1,0) -> 0 | EF5: =IF(EF7="TERMINÉ",1,0) -> 0 | EI5: =IF(EI7="TERMINÉ",1,0) -> 0 | EL5: =IF(EL7="TERMINÉ",1,0) -> 0 | EO5: =IF(EO7="TERMINÉ",1,0) -> 0 | ER5: =IF(ER7="TERMINÉ",1,0) -> 1 | EU5: =IF(EU7="TERMINÉ",1,0) -> 0 | EX5: =IF(EX7="TERMINÉ",1,0) -> 0 | FA5: =IF(FA7="TERMINÉ",1,0) -> 0 | FD5: =IF(FD7="TERMINÉ",1,0) -> 0 | FG5: =IF(FG7="TERMINÉ",1,0) -> 0 | FJ5: =IF(FJ7="TERMINÉ",1,0) -> 0 | FM5: =IF(FM7="TERMINÉ",1,0) -> 0 | FP5: =IF(FP7="TERMINÉ",1,0) -> 0 | FS5: =IF(FS7="TERMINÉ",1,0) -> 0 | FV5: =IF(FV7="TERMINÉ",1,0) -> 0 | FY5: =IF(FY7="TERMINÉ",1,0) -> 0 | GB5: =IF(GB7="TERMINÉ",1,0) -> 0 | GE5: =IF(GE7="TERMINÉ",1,0) -> 0 | GH5: =IF(GH7="TERMINÉ",1,0) -> 0 | GK5: =IF(GK7="TERMINÉ",1,0) -> 0 | GN5: =IF(GN7="TERMINÉ",1,0) -> 0 | GQ5: =IF(GQ7="TERMINÉ",1,0) -> 0 | GT5: =IF(GT7="TERMINÉ",1,0) -> 0 | GW5: =IF(GW7="TERMINÉ",1,0) -> 0 | GZ5: =IF(GZ7="TERMINÉ",1,0) -> 0 | HC5: =IF(HC7="TERMINÉ",1,0) -> 0 | HF5: =IF(HF7="TERMINÉ",1,0) -> 0 | HI5: =IF(HI7="TERMINÉ",1,0) -> 0 | HL5: =IF(HL7="TERMINÉ",1,0) -> 0 | HO5: =IF(HO7="TERMINÉ",1,0) -> 0 | HR5: =IF(HR7="TERMINÉ",1,0) -> 0 | HU5: =IF(HU7="TERMINÉ",1,0) -> 0 | HX5: =IF(HX7="TERMINÉ",1,0) -> 0 | IA5: =IF(IA7="TERMINÉ",1,0) -> 0 | ID5: =IF(ID7="TERMINÉ",1,0) -> 0 | IG5: =IF(IG7="TERMINÉ",1,0) -> 0 | IJ5: =IF(IJ7="TERMINÉ",1,0) -> 0 | IM5: =IF(IM7="TERMINÉ",1,0) -> 0 | IP5: =IF(IP7="TERMINÉ",1,0) -> 0 | IS5: =IF(IS7="TERMINÉ",1,0) -> 0 | IV5: =IF(IV7="TERMINÉ",1,0) -> 0 | IY5: =IF(IY7="TERMINÉ",1,0) -> 0 | JB5: =IF(JB7="TERMINÉ",1,0) -> 0 | JE5: =IF(JE7="TERMINÉ",1,0) -> 0 | JH5: =IF(JH7="TERMINÉ",1,0) -> 0 | JK5: =IF(JK7="TERMINÉ",1,0) -> 0 | JN5: =IF(JN7="TERMINÉ",1,0) -> 0 | JQ5: =IF(JQ7="TERMINÉ",1,0) -> 0 | JT5: =IF(JT7="TERMINÉ",1,0) -> 0 | JW5: =IF(JW7="TERMINÉ",1,0) -> 0 | JZ5: =IF(JZ7="TERMINÉ",1,0) -> 0 | KC5: =IF(KC7="TERMINÉ",1,0) -> 0 | KF5: =IF(KF7="TERMINÉ",1,0) -> 0 | KI5: =IF(KI7="TERMINÉ",1,0) -> 0 | KL5: =IF(KL7="TERMINÉ",1,0) -> 0 | KO5: =IF(KO7="TERMINÉ",1,0) -> 0 | KR5: =IF(KR7="TERMINÉ",1,0) -> 0 | KU5: =IF(KU7="TERMINÉ",1,0) -> 0 | KX5: =IF(KX7="TERMINÉ",1,0) -> 0 | LA5: =IF(LA7="TERMINÉ",1,0) -> 0 | LD5: =IF(LD7="TERMINÉ",1,0) -> 0 | LG5: =IF(LG7="TERMINÉ",1,0) -> 0 | LJ5: =IF(LJ7="TERMINÉ",1,0) -> 0 | LM5: =IF(LM7="TERMINÉ",1,0) -> 0 | LP5: =IF(LP7="TERMINÉ",1,0) -> 0 | LS5: =IF(LS7="TERMINÉ",1,0) -> 0 | LV5: =IF(LV7="TERMINÉ",1,0) -> 0 | LY5: =IF(LY7="TERMINÉ",1,0) -> 0 | MB5: =IF(MB7="TERMINÉ",1,0) -> 0 | ME5: =IF(ME7="TERMINÉ",1,0) -> 0 | MH5: =IF(MH7="TERMINÉ",1,0) -> 0 | MK5: =IF(MK7="TERMINÉ",1,0) -> 0 | MN5: =IF(MN7="TERMINÉ",1,0) -> 0
S6: =IF(S7="EN COURS SAUF GAZ",1,IF(S7="EN COURS",1,0)) -> 0 | V6: =IF(V7="EN COURS SAUF GAZ",1,IF(V7="EN COURS",1,0)) -> 0 | Y6: =IF(Y7="EN COURS SAUF GAZ",1,IF(Y7="EN COURS",1,0)) -> 0 | AB6: =IF(AB7="EN COURS SAUF GAZ",1,IF(AB7="EN COURS",1,0)) -> 0 | AE6: =IF(AE7="EN COURS SAUF GAZ",1,IF(AE7="EN COURS",1,0)) -> 0 | AH6: =IF(AH7="EN COURS SAUF GAZ",1,IF(AH7="EN COURS",1,0)) -> 0 | AK6: =IF(AK7="EN COURS SAUF GAZ",1,IF(AK7="EN COURS",1,0)) -> 0 | AN6: =IF(AN7="EN COURS SAUF GAZ",1,IF(AN7="EN COURS",1,0)) -> 0 | AQ6: =IF(AQ7="EN COURS SAUF GAZ",1,IF(AQ7="EN COURS",1,0)) -> 0 | AT6: =IF(AT7="EN COURS SAUF GAZ",1,IF(AT7="EN COURS",1,0)) -> 0 | AW6: =IF(AW7="EN COURS SAUF GAZ",1,IF(AW7="EN COURS",1,0)) -> 0 | AZ6: =IF(AZ7="EN COURS SAUF GAZ",1,IF(AZ7="EN COURS",1,0)) -> 0 | BC6: =IF(BC7="EN COURS SAUF GAZ",1,IF(BC7="EN COURS",1,0)) -> 0 | BF6: =IF(BF7="EN COURS SAUF GAZ",1,IF(BF7="EN COURS",1,0)) -> 0 | BI6: =IF(BI7="EN COURS SAUF GAZ",1,IF(BI7="EN COURS",1,0)) -> 0 | BL6: =IF(BL7="EN COURS SAUF GAZ",1,IF(BL7="EN COURS",1,0)) -> 0 | BO6: =IF(BO7="EN COURS SAUF GAZ",1,IF(BO7="EN COURS",1,0)) -> 0 | BR6: =IF(BR7="EN COURS SAUF GAZ",1,IF(BR7="EN COURS",1,0)) -> 0 | BU6: =IF(BU7="EN COURS SAUF GAZ",1,IF(BU7="EN COURS",1,0)) -> 0 | BX6: =IF(BX7="EN COURS SAUF GAZ",1,IF(BX7="EN COURS",1,0)) -> 0 | CA6: =IF(CA7="EN COURS SAUF GAZ",1,IF(CA7="EN COURS",1,0)) -> 0 | CD6: =IF(CD7="EN COURS SAUF GAZ",1,IF(CD7="EN COURS",1,0)) -> 0 | CG6: =IF(CG7="EN COURS SAUF GAZ",1,IF(CG7="EN COURS",1,0)) -> 0 | CJ6: =IF(CJ7="EN COURS SAUF GAZ",1,IF(CJ7="EN COURS",1,0)) -> 0 | CM6: =IF(CM7="EN COURS SAUF GAZ",1,IF(CM7="EN COURS",1,0)) -> 0 | CP6: =IF(CP7="EN COURS SAUF GAZ",1,IF(CP7="EN COURS",1,0)) -> 0 | CS6: =IF(CS7="EN COURS SAUF GAZ",1,IF(CS7="EN COURS",1,0)) -> 0 | CV6: =IF(CV7="EN COURS SAUF GAZ",1,IF(CV7="EN COURS",1,0)) -> 0 | CY6: =IF(CY7="EN COURS SAUF GAZ",1,IF(CY7="EN COURS",1,0)) -> 0 | DB6: =IF(DB7="EN COURS SAUF GAZ",1,IF(DB7="EN COURS",1,0)) -> 0 | DE6: =IF(DE7="EN COURS SAUF GAZ",1,IF(DE7="EN COURS",1,0)) -> 0 | DH6: =IF(DH7="EN COURS SAUF GAZ",1,IF(DH7="EN COURS",1,0)) -> 0 | DK6: =IF(DK7="EN COURS SAUF GAZ",1,IF(DK7="EN COURS",1,0)) -> 0 | DN6: =IF(DN7="EN COURS SAUF GAZ",1,IF(DN7="EN COURS",1,0)) -> 0 | DQ6: =IF(DQ7="EN COURS SAUF GAZ",1,IF(DQ7="EN COURS",1,0)) -> 1 | DT6: =IF(DT7="EN COURS SAUF GAZ",1,IF(DT7="EN COURS",1,0)) -> 1 | DW6: =IF(DW7="EN COURS SAUF GAZ",1,IF(DW7="EN COURS",1,0)) -> 0 | DZ6: =IF(DZ7="EN COURS SAUF GAZ",1,IF(DZ7="EN COURS",1,0)) -> 0 | EC6: =IF(EC7="EN COURS SAUF GAZ",1,IF(EC7="EN COURS",1,0)) -> 1 | EF6: =IF(EF7="EN COURS SAUF GAZ",1,IF(EF7="EN COURS",1,0)) -> 0 | EI6: =IF(EI7="EN COURS SAUF GAZ",1,IF(EI7="EN COURS",1,0)) -> 1 | EL6: =IF(EL7="EN COURS SAUF GAZ",1,IF(EL7="EN COURS",1,0)) -> 1 | EO6: =IF(EO7="EN COURS SAUF GAZ",1,IF(EO7="EN COURS",1,0)) -> 1 | ER6: =IF(ER7="EN COURS SAUF GAZ",1,IF(ER7="EN COURS",1,0)) -> 0 | EU6: =IF(EU7="EN COURS SAUF GAZ",1,IF(EU7="EN COURS",1,0)) -> 0 | EX6: =IF(EX7="EN COURS SAUF GAZ",1,IF(EX7="EN COURS",1,0)) -> 1 | FA6: =IF(FA7="EN COURS SAUF GAZ",1,IF(FA7="EN COURS",1,0)) -> 1 | FD6: =IF(FD7="EN COURS SAUF GAZ",1,IF(FD7="EN COURS",1,0)) -> 0 | FG6: =IF(FG7="EN COURS SAUF GAZ",1,IF(FG7="EN COURS",1,0)) -> 0 | FJ6: =IF(FJ7="EN COURS SAUF GAZ",1,IF(FJ7="EN COURS",1,0)) -> 1 | FM6: =IF(FM7="EN COURS SAUF GAZ",1,IF(FM7="EN COURS",1,0)) -> 1 | FP6: =IF(FP7="EN COURS SAUF GAZ",1,IF(FP7="EN COURS",1,0)) -> 0 | FS6: =IF(FS7="EN COURS SAUF GAZ",1,IF(FS7="EN COURS",1,0)) -> 1 | FV6: =IF(FV7="EN COURS SAUF GAZ",1,IF(FV7="EN COURS",1,0)) -> 1 | FY6: =IF(FY7="EN COURS SAUF GAZ",1,IF(FY7="EN COURS",1,0)) -> 0 | GB6: =IF(GB7="EN COURS SAUF GAZ",1,IF(GB7="EN COURS",1,0)) -> 1 | GE6: =IF(GE7="EN COURS SAUF GAZ",1,IF(GE7="EN COURS",1,0)) -> 0 | GH6: =IF(GH7="EN COURS SAUF GAZ",1,IF(GH7="EN COURS",1,0)) -> 1 | GK6: =IF(GK7="EN COURS SAUF GAZ",1,IF(GK7="EN COURS",1,0)) -> 0 | GN6: =IF(GN7="EN COURS SAUF GAZ",1,IF(GN7="EN COURS",1,0)) -> 0 | GQ6: =IF(GQ7="EN COURS SAUF GAZ",1,IF(GQ7="EN COURS",1,0)) -> 1 | GT6: =IF(GT7="EN COURS SAUF GAZ",1,IF(GT7="EN COURS",1,0)) -> 0 | GW6: =IF(GW7="EN COURS SAUF GAZ",1,IF(GW7="EN COURS",1,0)) -> 0 | GZ6: =IF(GZ7="EN COURS SAUF GAZ",1,IF(GZ7="EN COURS",1,0)) -> 0 | HC6: =IF(HC7="EN COURS SAUF GAZ",1,IF(HC7="EN COURS",1,0)) -> 0 | HF6: =IF(HF7="EN COURS SAUF GAZ",1,IF(HF7="EN COURS",1,0)) -> 0 | HI6: =IF(HI7="EN COURS SAUF GAZ",1,IF(HI7="EN COURS",1,0)) -> 0 | HL6: =IF(HL7="EN COURS SAUF GAZ",1,IF(HL7="EN COURS",1,0)) -> 0 | HO6: =IF(HO7="EN COURS SAUF GAZ",1,IF(HO7="EN COURS",1,0)) -> 0 | HR6: =IF(HR7="EN COURS SAUF GAZ",1,IF(HR7="EN COURS",1,0)) -> 0 | HU6: =IF(HU7="EN COURS SAUF GAZ",1,IF(HU7="EN COURS",1,0)) -> 0 | HX6: =IF(HX7="EN COURS SAUF GAZ",1,IF(HX7="EN COURS",1,0)) -> 0 | IA6: =IF(IA7="EN COURS SAUF GAZ",1,IF(IA7="EN COURS",1,0)) -> 0 | ID6: =IF(ID7="EN COURS SAUF GAZ",1,IF(ID7="EN COURS",1,0)) -> 0 | IG6: =IF(IG7="EN COURS SAUF GAZ",1,IF(IG7="EN COURS",1,0)) -> 0 | IJ6: =IF(IJ7="EN COURS SAUF GAZ",1,IF(IJ7="EN COURS",1,0)) -> 0 | IM6: =IF(IM7="EN COURS SAUF GAZ",1,IF(IM7="EN COURS",1,0)) -> 0 | IP6: =IF(IP7="EN COURS SAUF GAZ",1,IF(IP7="EN COURS",1,0)) -> 0 | IS6: =IF(IS7="EN COURS SAUF GAZ",1,IF(IS7="EN COURS",1,0)) -> 0 | IV6: =IF(IV7="EN COURS SAUF GAZ",1,IF(IV7="EN COURS",1,0)) -> 0 | IY6: =IF(IY7="EN COURS SAUF GAZ",1,IF(IY7="EN COURS",1,0)) -> 0 | JB6: =IF(JB7="EN COURS SAUF GAZ",1,IF(JB7="EN COURS",1,0)) -> 0 | JE6: =IF(JE7="EN COURS SAUF GAZ",1,IF(JE7="EN COURS",1,0)) -> 0 | JH6: =IF(JH7="EN COURS SAUF GAZ",1,IF(JH7="EN COURS",1,0)) -> 0 | JK6: =IF(JK7="EN COURS SAUF GAZ",1,IF(JK7="EN COURS",1,0)) -> 0 | JN6: =IF(JN7="EN COURS SAUF GAZ",1,IF(JN7="EN COURS",1,0)) -> 0 | JQ6: =IF(JQ7="EN COURS SAUF GAZ",1,IF(JQ7="EN COURS",1,0)) -> 0 | JT6: =IF(JT7="EN COURS SAUF GAZ",1,IF(JT7="EN COURS",1,0)) -> 0 | JW6: =IF(JW7="EN COURS SAUF GAZ",1,IF(JW7="EN COURS",1,0)) -> 0 | JZ6: =IF(JZ7="EN COURS SAUF GAZ",1,IF(JZ7="EN COURS",1,0)) -> 0 | KC6: =IF(KC7="EN COURS SAUF GAZ",1,IF(KC7="EN COURS",1,0)) -> 0 | KF6: =IF(KF7="EN COURS SAUF GAZ",1,IF(KF7="EN COURS",1,0)) -> 0 | KI6: =IF(KI7="EN COURS SAUF GAZ",1,IF(KI7="EN COURS",1,0)) -> 0 | KL6: =IF(KL7="EN COURS SAUF GAZ",1,IF(KL7="EN COURS",1,0)) -> 0 | KO6: =IF(KO7="EN COURS SAUF GAZ",1,IF(KO7="EN COURS",1,0)) -> 0 | KR6: =IF(KR7="EN COURS SAUF GAZ",1,IF(KR7="EN COURS",1,0)) -> 0 | KU6: =IF(KU7="EN COURS SAUF GAZ",1,IF(KU7="EN COURS",1,0)) -> 0 | KX6: =IF(KX7="EN COURS SAUF GAZ",1,IF(KX7="EN COURS",1,0)) -> 0 | LA6: =IF(LA7="EN COURS SAUF GAZ",1,IF(LA7="EN COURS",1,0)) -> 0 | LD6: =IF(LD7="EN COURS SAUF GAZ",1,IF(LD7="EN COURS",1,0)) -> 0 | LG6: =IF(LG7="EN COURS SAUF GAZ",1,IF(LG7="EN COURS",1,0)) -> 0 | LJ6: =IF(LJ7="EN COURS SAUF GAZ",1,IF(LJ7="EN COURS",1,0)) -> 0 | LM6: =IF(LM7="EN COURS SAUF GAZ",1,IF(LM7="EN COURS",1,0)) -> 0 | LP6: =IF(LP7="EN COURS SAUF GAZ",1,IF(LP7="EN COURS",1,0)) -> 0 | LS6: =IF(LS7="EN COURS SAUF GAZ",1,IF(LS7="EN COURS",1,0)) -> 0 | LV6: =IF(LV7="EN COURS SAUF GAZ",1,IF(LV7="EN COURS",1,0)) -> 0 | LY6: =IF(LY7="EN COURS SAUF GAZ",1,IF(LY7="EN COURS",1,0)) -> 0 | MB6: =IF(MB7="EN COURS SAUF GAZ",1,IF(MB7="EN COURS",1,0)) -> 0 | ME6: =IF(ME7="EN COURS SAUF GAZ",1,IF(ME7="EN COURS",1,0)) -> 0 | MH6: =IF(MH7="EN COURS SAUF GAZ",1,IF(MH7="EN COURS",1,0)) -> 0 | MK6: =IF(MK7="EN COURS SAUF GAZ",1,IF(MK7="EN COURS",1,0)) -> 0 | MN6: =IF(MN7="EN COURS SAUF GAZ",1,IF(MN7="EN COURS",1,0)) -> 0
A7: Nombre de logement entièrement réalisés = | F7: =SUM(S5:MP5) -> 36 | S7: TERMINÉ | V7: TERMINÉ | Y7: TERMINÉ | AB7: TERMINÉ | AE7: TERMINÉ | AH7: TERMINÉ | AK7: TERMINÉ | AN7: TERMINÉ | AQ7: TERMINÉ | AT7: TERMINÉ | AW7: TERMINÉ | AZ7: TERMINÉ | BC7: TERMINÉ | BF7: TERMINÉ | BI7: TERMINÉ | BL7: TERMINÉ | BO7: TERMINÉ | BR7: TERMINÉ | BU7: TERMINÉ | BX7: TERMINÉ | CA7: TERMINÉ | CD7: TERMINÉ | CG7: TERMINÉ | CJ7: TERMINÉ | CM7: TERMINÉ | CP7: TERMINÉ | CS7: TERMINÉ | CV7: TERMINÉ | CY7: TERMINÉ | DB7: NON RÉALISÉ | DE7: TERMINÉ | DH7: TERMINÉ | DK7: TERMINÉ | DN7: TERMINÉ | DQ7: EN COURS | DT7: EN COURS | DW7: TERMINÉ | DZ7: TERMINÉ | EC7: EN COURS | EF7: NON RÉALISÉ | EI7: EN COURS | EL7: EN COURS | EO7: EN COURS | ER7: TERMINÉ | EU7: NON RÉALISÉ | EX7: EN COURS | FA7: EN COURS | FD7: NON RÉALISÉ | FG7: NON RÉALISÉ | FJ7: EN COURS | FM7: EN COURS | FP7: NON RÉALISÉ | FS7: EN COURS | FV7: EN COURS | FY7: NON RÉALISÉ | GB7: EN COURS | GE7: NON RÉALISÉ | GH7: EN COURS | GK7: NON RÉALISÉ | GN7: NON RÉALISÉ | GQ7: EN COURS | GT7: NON RÉALISÉ | GW7: NON RÉALISÉ | GZ7: NON RÉALISÉ | HC7: NON RÉALISÉ | HF7: NON RÉALISÉ | HI7: NON RÉALISÉ | HL7: NON RÉALISÉ | HO7: NON RÉALISÉ | HR7: NON RÉALISÉ | HU7: NON RÉALISÉ | HX7: NON RÉALISÉ | IA7: NON RÉALISÉ | ID7: NON RÉALISÉ | IG7: NON RÉALISÉ | IJ7: NON RÉALISÉ | IM7: NON RÉALISÉ | IP7: NON RÉALISÉ | IS7: NON RÉALISÉ | IV7: NON RÉALISÉ | IY7: NON RÉALISÉ | JB7: NON RÉALISÉ | JE7: NON RÉALISÉ | JH7: NON RÉALISÉ | JK7: NON RÉALISÉ | JN7: NON RÉALISÉ | JQ7: NON RÉALISÉ | JT7: NON RÉALISÉ | JW7: NON RÉALISÉ | JZ7: NON RÉALISÉ | KC7: NON RÉALISÉ | KF7: NON RÉALISÉ | KI7: NON RÉALISÉ | KL7: NON RÉALISÉ | KO7: NON RÉALISÉ | KR7: NON RÉALISÉ | KU7: NON RÉALISÉ | KX7: NON RÉALISÉ | LA7: NON RÉALISÉ | LD7: NON RÉALISÉ | LG7: NON RÉALISÉ | LJ7: NON RÉALISÉ | LM7: NON RÉALISÉ | LP7: NON RÉALISÉ | LS7: NON RÉALISÉ | LV7: NON RÉALISÉ | LY7: NON RÉALISÉ | MB7: NON RÉALISÉ | ME7: NON RÉALISÉ | MH7: NON RÉALISÉ | MK7: NON RÉALISÉ | MN7: NON RÉALISÉ
A8: Nombre de logement démarrés (en cours) = | F8: =SUM(S6:MP6) -> 15
A9: Tableau de Suivi de la Main d'Œuvre 112 LOGEMENTS PLURIAL | B9: Quantité suivant EDL du 21/07/2021 | C9: Quantité commandée | D9: Quantité livrée | E9: Quantité réalisée en temps réel | F9: BASE TD-201008.1 | H9: COMPLEMENT DK-210704.1 | K9: Temps Forfaitaire unitaire | L9: Temps Forfaitaire Global | M9: Temps Forfaitaire unitaire | N9: Temps Forfaitaire Global | O9: Temps Forfaitaire unitaire | P9: Temps Forfaitaire Global | Q9: Temps Forfaitaire Heure Equipe | S9: Quantité | T9: Théorique Heq | U9: Forfaitaire Heq | V9: Quantité | W9: Théorique Heq | X9: Forfaitaire Heq | Y9: Quantité | Z9: Théorique Heq | AA9: Forfaitaire Heq | AB9: Quantité | AC9: Théorique Heq | AD9: Forfaitaire Heq | AE9: Quantité | AF9: Théorique Heq | AG9: Forfaitaire Heq | AH9: Quantité | AI9: Théorique Heq | AJ9: Forfaitaire Heq | AK9: Quantité | AL9: Théorique Heq | AM9: Forfaitaire Heq | AN9: Quantité | AO9: Théorique Heq | AP9: Forfaitaire Heq | AQ9: Quantité | AR9: Théorique Heq | AS9: Forfaitaire Heq | AT9: Quantité | AU9: Théorique Heq | AV9: Forfaitaire Heq | AW9: Quantité | AX9: Théorique Heq | AY9: Forfaitaire Heq | AZ9: Quantité | BA9: Théorique Heq | BB9: Forfaitaire Heq | BC9: Quantité | BD9: Théorique Heq | BE9: Forfaitaire Heq | BF9: Quantité | BG9: Théorique Heq | BH9: Forfaitaire Heq | BI9: Quantité | BJ9: Théorique Heq | BK9: Forfaitaire Heq | BL9: Quantité | BM9: Théorique Heq | BN9: Forfaitaire Heq | BO9: Quantité | BP9: Théorique Heq | BQ9: Forfaitaire Heq | BR9: Quantité | BS9: Théorique Heq | BT9: Forfaitaire Heq | BU9: Quantité | BV9: Théorique Heq | BW9: Forfaitaire Heq | BX9: Quantité | BY9: Théorique Heq | BZ9: Forfaitaire Heq | CA9: Quantité | CB9: Théorique Heq | CC9: Forfaitaire Heq | CD9: Quantité | CE9: Théorique Heq | CF9: Forfaitaire Heq | CG9: Quantité | CH9: Théorique Heq | CI9: Forfaitaire Heq | CJ9: Quantité | CK9: Théorique Heq | CL9: Forfaitaire Heq | CM9: Quantité | CN9: Théorique Heq | CO9: Forfaitaire Heq | CP9: Quantité | CQ9: Théorique Heq | CR9: Forfaitaire Heq | CS9: Quantité | CT9: Théorique Heq | CU9: Forfaitaire Heq | CV9: Quantité | CW9: Théorique Heq | CX9: Forfaitaire Heq | CY9: Quantité | CZ9: Théorique Heq | DA9: Forfaitaire Heq | DB9: Quantité | DC9: Théorique Heq | DD9: Forfaitaire Heq | DE9: Quantité | DF9: Théorique Heq | DG9: Forfaitaire Heq | DH9: Quantité | DI9: Théorique Heq | DJ9: Forfaitaire Heq | DK9: Quantité | DL9: Théorique Heq | DM9: Forfaitaire Heq | DN9: Quantité | DO9: Théorique Heq | DP9: Forfaitaire Heq | DQ9: Quantité | DR9: Théorique Heq | DS9: Forfaitaire Heq | DT9: Quantité | DU9: Théorique Heq | DV9: Forfaitaire Heq | DW9: Quantité | DX9: Théorique Heq | DY9: Forfaitaire Heq | DZ9: Quantité | EA9: Théorique Heq | EB9: Forfaitaire Heq | EC9: Quantité | ED9: Théorique Heq | EE9: Forfaitaire Heq | EF9: Quantité | EG9: Théorique Heq | EH9: Forfaitaire Heq | EI9: Quantité | EJ9: Théorique Heq | EK9: Forfaitaire Heq | EL9: Quantité | EM9: Théorique Heq | EN9: Forfaitaire Heq | EO9: Quantité | EP9: Théorique Heq | EQ9: Forfaitaire Heq | ER9: Quantité | ES9: Théorique Heq | ET9: Forfaitaire Heq | EU9: Quantité | EV9: Théorique Heq | EW9: Forfaitaire Heq | EX9: Quantité | EY9: Théorique Heq | EZ9: Forfaitaire Heq | FA9: Quantité | FB9: Théorique Heq | FC9: Forfaitaire Heq | FD9: Quantité | FE9: Théorique Heq | FF9: Forfaitaire Heq | FG9: Quantité | FH9: Théorique Heq | FI9: Forfaitaire Heq | FJ9: Quantité | FK9: Théorique Heq | FL9: Forfaitaire Heq | FM9: Quantité | FN9: Théorique Heq | FO9: Forfaitaire Heq | FP9: Quantité | FQ9: Théorique Heq | FR9: Forfaitaire Heq | FS9: Quantité | FT9: Théorique Heq | FU9: Forfaitaire Heq | FV9: Quantité | FW9: Théorique Heq | FX9: Forfaitaire Heq | FY9: Quantité | FZ9: Théorique Heq | GA9: Forfaitaire Heq | GB9: Quantité | GC9: Théorique Heq | GD9: Forfaitaire Heq | GE9: Quantité | GF9: Théorique Heq | GG9: Forfaitaire Heq | GH9: Quantité | GI9: Théorique Heq | GJ9: Forfaitaire Heq | GK9: Quantité | GL9: Théorique Heq | GM9: Forfaitaire Heq | GN9: Quantité | GO9: Théorique Heq | GP9: Forfaitaire Heq | GQ9: Quantité | GR9: Théorique Heq | GS9: Forfaitaire Heq | GT9: Quantité | GU9: Théorique Heq | GV9: Forfaitaire Heq | GW9: Quantité | GX9: Théorique Heq | GY9: Forfaitaire Heq | GZ9: Quantité | HA9: Théorique Heq | HB9: Forfaitaire Heq | HC9: Quantité | HD9: Théorique Heq | HE9: Forfaitaire Heq | HF9: Quantité | HG9: Théorique Heq | HH9: Forfaitaire Heq | HI9: Quantité | HJ9: Théorique Heq | HK9: Forfaitaire Heq | HL9: Quantité | HM9: Théorique Heq | HN9: Forfaitaire Heq | HO9: Quantité | HP9: Théorique Heq | HQ9: Forfaitaire Heq | HR9: Quantité | HS9: Théorique Heq | HT9: Forfaitaire Heq | HU9: Quantité | HV9: Théorique Heq | HW9: Forfaitaire Heq | HX9: Quantité | HY9: Théorique Heq | HZ9: Forfaitaire Heq | IA9: Quantité | IB9: Théorique Heq | IC9: Forfaitaire Heq | ID9: Quantité | IE9: Théorique Heq | IF9: Forfaitaire Heq | IG9: Quantité | IH9: Théorique Heq | II9: Forfaitaire Heq | IJ9: Quantité | IK9: Théorique Heq | IL9: Forfaitaire Heq | IM9: Quantité | IN9: Théorique Heq | IO9: Forfaitaire Heq | IP9: Quantité | IQ9: Théorique Heq | IR9: Forfaitaire Heq | IS9: Quantité | IT9: Théorique Heq | IU9: Forfaitaire Heq | IV9: Quantité | IW9: Théorique Heq | IX9: Forfaitaire Heq | IY9: Quantité | IZ9: Théorique Heq | JA9: Forfaitaire Heq | JB9: Quantité | JC9: Théorique Heq | JD9: Forfaitaire Heq | JE9: Quantité | JF9: Théorique Heq | JG9: Forfaitaire Heq | JH9: Quantité | JI9: Théorique Heq | JJ9: Forfaitaire Heq | JK9: Quantité | JL9: Théorique Heq | JM9: Forfaitaire Heq | JN9: Quantité | JO9: Théorique Heq | JP9: Forfaitaire Heq | JQ9: Quantité | JR9: Théorique Heq | JS9: Forfaitaire Heq | JT9: Quantité | JU9: Théorique Heq | JV9: Forfaitaire Heq | JW9: Quantité | JX9: Théorique Heq | JY9: Forfaitaire Heq | JZ9: Quantité | KA9: Théorique Heq | KB9: Forfaitaire Heq | KC9: Quantité | KD9: Théorique Heq | KE9: Forfaitaire Heq | KF9: Quantité | KG9: Théorique Heq | KH9: Forfaitaire Heq | KI9: Quantité | KJ9: Théorique Heq | KK9: Forfaitaire Heq | KL9: Quantité | KM9: Théorique Heq | KN9: Forfaitaire Heq | KO9: Quantité | KP9: Théorique Heq | KQ9: Forfaitaire Heq | KR9: Quantité | KS9: Théorique Heq | KT9: Forfaitaire Heq | KU9: Quantité | KV9: Théorique Heq | KW9: Forfaitaire Heq | KX9: Quantité | KY9: Théorique Heq | KZ9: Forfaitaire Heq | LA9: Quantité | LB9: Théorique Heq | LC9: Forfaitaire Heq | LD9: Quantité | LE9: Théorique Heq | LF9: Forfaitaire Heq | LG9: Quantité | LH9: Théorique Heq | LI9: Forfaitaire Heq | LJ9: Quantité | LK9: Théorique Heq | LL9: Forfaitaire Heq | LM9: Quantité | LN9: Théorique Heq | LO9: Forfaitaire Heq | LP9: Quantité | LQ9: Théorique Heq | LR9: Forfaitaire Heq | LS9: Quantité | LT9: Théorique Heq | LU9: Forfaitaire Heq | LV9: Quantité | LW9: Théorique Heq | LX9: Forfaitaire Heq | LY9: Quantité | LZ9: Théorique Heq | MA9: Forfaitaire Heq | MB9: Quantité | MC9: Théorique Heq | MD9: Forfaitaire Heq | ME9: Quantité | MF9: Théorique Heq | MG9: Forfaitaire Heq | MH9: Quantité | MI9: Théorique Heq | MJ9: Forfaitaire Heq | MK9: Quantité | ML9: Théorique Heq | MM9: Forfaitaire Heq | MN9: Quantité | MO9: Théorique Heq | MP9: Forfaitaire Heq
F10: Quantité au devis | G10: % réalisé | H10: Quantité au devis | I10: % réalisé
A11: Plans d'exécution Plomberie | F11: 1 | G11: =(E21/112)*100 -> 45.53571429
A13: Prestations Préliminaires et Terminales : | E13: =S13+V13+Y13+AB13+AE13+AH13+AK13+AN13+AQ13+AT13+AW13+AZ13+BC13+BF13+BI13+BL13+BO13+BR13+BU13+BX13+CA13+CD13+CG13+CJ13+CM13+CP13+CS13+CV13+CY13+DB13+DE13+DH13+DK13+DN13+DQ13+DT13+DW13+DZ13+EC13+EF13+EI13+EL13+EO13+ER13+EU13+EX13+FA13+FD13+FG13+FJ13+FM13+FP13+FS13+FV13+FY13+GB13+GE13+GH13+GK13+GN13+GQ13+GT13+GW13+GZ13+HC13+HF13+HI13+HL13+HO13+HR13+HU13+HX13+IA13+ID13+IG13+IJ13+IM13+IP13+IS13+IV13+IY13+JB13+JE13+JH13+JK13+JN13+JQ13+JT13+JW13+JZ13+KC13+KF13+KI13+KL13+KO13+KR13+KU13+KX13+LA13+LD13+LG13+LJ13+LM13+LP13+LS13+LV13+LY13+MB13+ME13+MH13+MK13+MN13 -> 0 | Q13: =L13+N13+P13 -> 0 | T13: =$J13*S13 -> 0 | W13: =$J13*V13 -> 0 | Z13: =$J13*Y13 -> 0 | AC13: =$J13*AB13 -> 0 | AF13: =$J13*AE13 -> 0 | AI13: =$J13*AH13 -> 0 | AL13: =$J13*AK13 -> 0 | AO13: =$J13*AN13 -> 0 | AR13: =$J13*AQ13 -> 0 | AU13: =$J13*AT13 -> 0 | AX13: =$J13*AW13 -> 0 | BA13: =$J13*AZ13 -> 0 | BD13: =$J13*BC13 -> 0 | BG13: =$J13*BF13 -> 0 | BJ13: =$J13*BI13 -> 0 | BM13: =$J13*BL13 -> 0 | BP13: =$J13*BO13 -> 0 | BS13: =$J13*BR13 -> 0 | BV13: =$J13*BU13 -> 0 | BY13: =$J13*BX13 -> 0 | CB13: =$J13*CA13 -> 0 | CE13: =$J13*CD13 -> 0 | CH13: =$J13*CG13 -> 0 | CK13: =$J13*CJ13 -> 0 | CN13: =$J13*CM13 -> 0 | CQ13: =$J13*CP13 -> 0 | CT13: =$J13*CS13 -> 0 | CW13: =$J13*CV13 -> 0 | CZ13: =$J13*CY13 -> 0 | DC13: =$J13*DB13 -> 0 | DF13: =$J13*DE13 -> 0 | DI13: =$J13*DH13 -> 0 | DL13: =$J13*DK13 -> 0 | DO13: =$J13*DN13 -> 0 | DR13: =$J13*DQ13 -> 0 | DU13: =$J13*DT13 -> 0 | DX13: =$J13*DW13 -> 0 | EA13: =$J13*DZ13 -> 0 | ED13: =$J13*EC13 -> 0 | EG13: =$J13*EF13 -> 0 | EJ13: =$J13*EI13 -> 0 | EM13: =$J13*EL13 -> 0 | EP13: =$J13*EO13 -> 0 | ES13: =$J13*ER13 -> 0 | EV13: =$J13*EU13 -> 0 | EY13: =$J13*EX13 -> 0 | FB13: =$J13*FA13 -> 0 | FE13: =$J13*FD13 -> 0 | FH13: =$J13*FG13 -> 0 | FK13: =$J13*FJ13 -> 0 | FN13: =$J13*FM13 -> 0 | FQ13: =$J13*FP13 -> 0 | FT13: =$J13*FS13 -> 0 | FW13: =$J13*FV13 -> 0 | FZ13: =$J13*FY13 -> 0 | GC13: =$J13*GB13 -> 0 | GF13: =$J13*GE13 -> 0 | GI13: =$J13*GH13 -> 0 | GL13: =$J13*GK13 -> 0 | GO13: =$J13*GN13 -> 0 | GR13: =$J13*GQ13 -> 0 | GU13: =$J13*GT13 -> 0 | GX13: =$J13*GW13 -> 0 | HA13: =$J13*GZ13 -> 0 | HD13: =$J13*HC13 -> 0 | HG13: =$J13*HF13 -> 0 | HJ13: =$J13*HI13 -> 0 | HM13: =$J13*HL13 -> 0 | HP13: =$J13*HO13 -> 0 | HS13: =$J13*HR13 -> 0 | HV13: =$J13*HU13 -> 0 | HY13: =$J13*HX13 -> 0 | IB13: =$J13*IA13 -> 0 | IE13: =$J13*ID13 -> 0 | IH13: =$J13*IG13 -> 0 | IK13: =$J13*IJ13 -> 0 | IN13: =$J13*IM13 -> 0 | IQ13: =$J13*IP13 -> 0 | IT13: =$J13*IS13 -> 0 | IW13: =$J13*IV13 -> 0 | IZ13: =$J13*IY13 -> 0 | JC13: =$J13*JB13 -> 0 | JF13: =$J13*JE13 -> 0 | JI13: =$J13*JH13 -> 0 | JL13: =$J13*JK13 -> 0 | JO13: =$J13*JN13 -> 0 | JR13: =$J13*JQ13 -> 0 | JU13: =$J13*JT13 -> 0 | JX13: =$J13*JW13 -> 0 | KA13: =$J13*JZ13 -> 0 | KD13: =$J13*KC13 -> 0 | KG13: =$J13*KF13 -> 0 | KJ13: =$J13*KI13 -> 0 | KM13: =$J13*KL13 -> 0 | KP13: =$J13*KO13 -> 0 | KS13: =$J13*KR13 -> 0 | KV13: =$J13*KU13 -> 0 | KY13: =$J13*KX13 -> 0 | LB13: =$J13*LA13 -> 0 | LE13: =$J13*LD13 -> 0 | LH13: =$J13*LG13 -> 0 | LK13: =$J13*LJ13 -> 0 | LN13: =$J13*LM13 -> 0 | LQ13: =$J13*LP13 -> 0 | LT13: =$J13*LS13 -> 0 | LW13: =$J13*LV13 -> 0 | LZ13: =$J13*LY13 -> 0 | MC13: =$J13*MB13 -> 0 | MF13: =$J13*ME13 -> 0 | MI13: =$J13*MH13 -> 0 | ML13: =$J13*MK13 -> 0 | MO13: =$J13*MN13 -> 0
A14: Protection des sol | B14: 112 | E14: =S14+V14+Y14+AB14+AE14+AH14+AK14+AN14+AQ14+AT14+AW14+AZ14+BC14+BF14+BI14+BL14+BO14+BR14+BU14+BX14+CA14+CD14+CG14+CJ14+CM14+CP14+CS14+CV14+CY14+DB14+DE14+DH14+DK14+DN14+DQ14+DT14+DW14+DZ14+EC14+EF14+EI14+EL14+EO14+ER14+EU14+EX14+FA14+FD14+FG14+FJ14+FM14+FP14+FS14+FV14+FY14+GB14+GE14+GH14+GK14+GN14+GQ14+GT14+GW14+GZ14+HC14+HF14+HI14+HL14+HO14+HR14+HU14+HX14+IA14+ID14+IG14+IJ14+IM14+IP14+IS14+IV14+IY14+JB14+JE14+JH14+JK14+JN14+JQ14+JT14+JW14+JZ14+KC14+KF14+KI14+KL14+KO14+KR14+KU14+KX14+LA14+LD14+LG14+LJ14+LM14+LP14+LS14+LV14+LY14+MB14+ME14+MH14+MK14+MN14 -> 42 | F14: 112 | G14: =(E14/112)*100 -> 37.5 | J14: 0.15 | K14: =J14 -> 0.15 | L14: =112*K14 -> 16.8 | Q14: =L14+N14+P14 -> 16.8 | S14: =IF(AND(S$7="EN COURS",SUM(S$56:S$79)>0),1,IF(S$7="TERMINÉ",1,IF(AND(S$7="EN COURS SAUF GAZ",SUM(S$56:S$79)>0),1,IF(S$7="NON RÉALISÉ FACTURÉ",1,0)))) -> 1 | T14: =$J14*S14 -> 0.15 | U14: =$K14*S14 -> 0.15 | V14: =IF(AND(V$7="EN COURS",SUM(V$56:V$79)>0),1,IF(V$7="TERMINÉ",1,IF(AND(V$7="EN COURS SAUF GAZ",SUM(V$56:V$79)>0),1,IF(V$7="NON RÉALISÉ FACTURÉ",1,0)))) -> 1 | W14: =$J14*V14 -> 0.15 | X14: =$K14*V14 -> 0.15 | Y14: =IF(AND(Y$7="EN COURS",SUM(Y$56:Y$79)>0),1,IF(Y$7="TERMINÉ",1,IF(AND(Y$7="EN COURS SAUF GAZ",SUM(Y$56:Y$79)>0),1,IF(Y$7="NON RÉALISÉ FACTURÉ",1,0)))) -> 1 | Z14: =$J14*Y14 -> 0.15 | AA14: =$K14*Y14 -> 0.15 | AB14: =IF(AND(AB$7="EN COURS",SUM(AB$56:AB$79)>0),1,IF(AB$7="TERMINÉ",1,IF(AND(AB$7="EN COURS SAUF GAZ",SUM(AB$56:AB$79)>0),1,IF(AB$7="NON RÉALISÉ FACTURÉ",1,0)))) -> 1 | AC14: =$J14*AB14 -> 0.15 | AD14: =$K14*AB14 -> 0.15 | AE14: =IF(AND(AE$7="EN COURS",SUM(AE$56:AE$79)>0),1,IF(AE$7="TERMINÉ",1,IF(AND(AE$7="EN COURS SAUF GAZ",SUM(AE$56:AE$79)>0),1,IF(AE$7="NON RÉALISÉ FACTURÉ",1,0)))) -> 1 | AF14: =$J14*AE14 -> 0.15 | AG14: =$K14*AE14 -> 0.15 | AH14: =IF(AND(AH$7="EN COURS",SUM(AH$56:AH$79)>0),1,IF(AH$7="TERMINÉ",1,IF(AND(AH$7="EN COURS SAUF GAZ",SUM(AH$56:AH$79)>0),1,IF(AH$7="NON RÉALISÉ FACTURÉ",1,0)))) -> 1 | AI14: =$J14*AH14 -> 0.15 | AJ14: =$K14*AH14 -> 0.15 | AK14: =IF(AND(AK$7="EN COURS",SUM(AK$56:AK$79)>0),1,IF(AK$7="TERMINÉ",1,IF(AND(AK$7="EN COURS SAUF GAZ",SUM(AK$56:AK$79)>0),1,IF(AK$7="NON RÉALISÉ FACTURÉ",1,0)))) -> 1 | AL14: =$J14*AK14 -> 0.15 | AM14: =$K14*AK14 -> 0.15 | AN14: =IF(AND(AN$7="EN COURS",SUM(AN$56:AN$79)>0),1,IF(AN$7="TERMINÉ",1,IF(AND(AN$7="EN COURS SAUF GAZ",SUM(AN$56:AN$79)>0),1,IF(AN$7="NON RÉALISÉ FACTURÉ",1,0)))) -> 1 | AO14: =$J14*AN14 -> 0.15 | AP14: =$K14*AN14 -> 0.15 | AQ14: =IF(AND(AQ$7="EN COURS",SUM(AQ$56:AQ$79)>0),1,IF(AQ$7="TERMINÉ",1,IF(AND(AQ$7="EN COURS SAUF GAZ",SUM(AQ$56:AQ$79)>0),1,IF(AQ$7="NON RÉALISÉ FACTURÉ",1,0)))) -> 1 | AR14: =$J14*AQ14 -> 0.15 | AS14: =$K14*AQ14 -> 0.15 | AT14: =IF(AND(AT$7="EN COURS",SUM(AT$56:AT$79)>0),1,IF(AT$7="TERMINÉ",1,IF(AND(AT$7="EN COURS SAUF GAZ",SUM(AT$56:AT$79)>0),1,IF(AT$7="NON RÉALISÉ FACTURÉ",1,0)))) -> 1 | AU14: =$J14*AT14 -> 0.15 | AV14: =$K14*AT14 -> 0.15 | AW14: =IF(AND(AW$7="EN COURS",SUM(AW$56:AW$79)>0),1,IF(AW$7="TERMINÉ",1,IF(AND(AW$7="EN COURS SAUF GAZ",SUM(AW$56:AW$79)>0),1,IF(AW$7="NON RÉALISÉ FACTURÉ",1,0)))) -> 1 | AX14: =$J14*AW14 -> 0.15 | AY14: =$K14*AW14 -> 0.15 | AZ14: =IF(AND(AZ$7="EN COURS",SUM(AZ$56:AZ$79)>0),1,IF(AZ$7="TERMINÉ",1,IF(AND(AZ$7="EN COURS SAUF GAZ",SUM(AZ$56:AZ$79)>0),1,IF(AZ$7="NON RÉALISÉ FACTURÉ",1,0)))) -> 1 | BA14: =$J14*AZ14 -> 0.15 | BB14: =$K14*AZ14 -> 0.15 | BC14: =IF(AND(BC$7="EN COURS",SUM(BC$56:BC$79)>0),1,IF(BC$7="TERMINÉ",1,IF(AND(BC$7="EN COURS SAUF GAZ",SUM(BC$56:BC$79)>0),1,IF(BC$7="NON RÉALISÉ FACTURÉ",1,0)))) -> 1 | BD14: =$J14*BC14 -> 0.15 | BE14: =$K14*BC14 -> 0.15 | BF14: =IF(AND(BF$7="EN COURS",SUM(BF$56:BF$79)>0),1,IF(BF$7="TERMINÉ",1,IF(AND(BF$7="EN COURS SAUF GAZ",SUM(BF$56:BF$79)>0),1,IF(BF$7="NON RÉALISÉ FACTURÉ",1,0)))) -> 1 | BG14: =$J14*BF14 -> 0.15 | BH14: =$K14*BF14 -> 0.15 | BI14: =IF(AND(BI$7="EN COURS",SUM(BI$56:BI$79)>0),1,IF(BI$7="TERMINÉ",1,IF(AND(BI$7="EN COURS SAUF GAZ",SUM(BI$56:BI$79)>0),1,IF(BI$7="NON RÉALISÉ FACTURÉ",1,0)))) -> 1 | BJ14: =$J14*BI14 -> 0.15 | BK14: =$K14*BI14 -> 0.15 | BL14: =IF(AND(BL$7="EN COURS",SUM(BL$56:BL$79)>0),1,IF(BL$7="TERMINÉ",1,IF(AND(BL$7="EN COURS SAUF GAZ",SUM(BL$56:BL$79)>0),1,IF(BL$7="NON RÉALISÉ FACTURÉ",1,0)))) -> 1 | BM14: =$J14*BL14 -> 0.15 | BN14: =$K14*BL14 -> 0.15 | BO14: =IF(AND(BO$7="EN COURS",SUM(BO$56:BO$79)>0),1,IF(BO$7="TERMINÉ",1,IF(AND(BO$7="EN COURS SAUF GAZ",SUM(BO$56:BO$79)>0),1,IF(BO$7="NON RÉALISÉ FACTURÉ",1,0)))) -> 1 | BP14: =$J14*BO14 -> 0.15 | BQ14: =$K14*BO14 -> 0.15 | BR14: =IF(AND(BR$7="EN COURS",SUM(BR$56:BR$79)>0),1,IF(BR$7="TERMINÉ",1,IF(AND(BR$7="EN COURS SAUF GAZ",SUM(BR$56:BR$79)>0),1,IF(BR$7="NON RÉALISÉ FACTURÉ",1,0)))) -> 1 | BS14: =$J14*BR14 -> 0.15 | BT14: =$K14*BR14 -> 0.15 | BU14: =IF(AND(BU$7="EN COURS",SUM(BU$56:BU$79)>0),1,IF(BU$7="TERMINÉ",1,IF(AND(BU$7="EN COURS SAUF GAZ",SUM(BU$56:BU$79)>0),1,IF(BU$7="NON RÉALISÉ FACTURÉ",1,0)))) -> 1 | BV14: =$J14*BU14 -> 0.15 | BW14: =$K14*BU14 -> 0.15 | BX14: =IF(AND(BX$7="EN COURS",SUM(BX$56:BX$79)>0),1,IF(BX$7="TERMINÉ",1,IF(AND(BX$7="EN COURS SAUF GAZ",SUM(BX$56:BX$79)>0),1,IF(BX$7="NON RÉALISÉ FACTURÉ",1,0)))) -> 1 | BY14: =$J14*BX14 -> 0.15 | BZ14: =$K14*BX14 -> 0.15 | CA14: =IF(AND(CA$7="EN COURS",SUM(CA$56:CA$79)>0),1,IF(CA$7="TERMINÉ",1,IF(AND(CA$7="EN COURS SAUF GAZ",SUM(CA$56:CA$79)>0),1,IF(CA$7="NON RÉALISÉ FACTURÉ",1,0)))) -> 1 | CB14: =$J14*CA14 -> 0.15 | CC14: =$K14*CA14 -> 0.15 | CD14: =IF(AND(CD$7="EN COURS",SUM(CD$56:CD$79)>0),1,IF(CD$7="TERMINÉ",1,IF(AND(CD$7="EN COURS SAUF GAZ",SUM(CD$56:CD$79)>0),1,IF(CD$7="NON RÉALISÉ FACTURÉ",1,0)))) -> 1 | CE14: =$J14*CD14 -> 0.15 | CF14: =$K14*CD14 -> 0.15 | CG14: =IF(AND(CG$7="EN COURS",SUM(CG$56:CG$79)>0),1,IF(CG$7="TERMINÉ",1,IF(AND(CG$7="EN COURS SAUF GAZ",SUM(CG$56:CG$79)>0),1,IF(CG$7="NON RÉALISÉ FACTURÉ",1,0)))) -> 1 | CH14: =$J14*CG14 -> 0.15 | CI14: =$K14*CG14 -> 0.15 | CJ14: =IF(AND(CJ$7="EN COURS",SUM(CJ$56:CJ$79)>0),1,IF(CJ$7="TERMINÉ",1,IF(AND(CJ$7="EN COURS SAUF GAZ",SUM(CJ$56:CJ$79)>0),1,IF(CJ$7="NON RÉALISÉ FACTURÉ",1,0)))) -> 1 | CK14: =$J14*CJ14 -> 0.15 | CL14: =$K14*CJ14 -> 0.15 | CM14: =IF(AND(CM$7="EN COURS",SUM(CM$56:CM$79)>0),1,IF(CM$7="TERMINÉ",1,IF(AND(CM$7="EN COURS SAUF GAZ",SUM(CM$56:CM$79)>0),1,IF(CM$7="NON RÉALISÉ FACTURÉ",1,0)))) -> 1 | CN14: =$J14*CM14 -> 0.15 | CO14: =$K14*CM14 -> 0.15 | CP14: =IF(AND(CP$7="EN COURS",SUM(CP$56:CP$79)>0),1,IF(CP$7="TERMINÉ",1,IF(AND(CP$7="EN COURS SAUF GAZ",SUM(CP$56:CP$79)>0),1,IF(CP$7="NON RÉALISÉ FACTURÉ",1,0)))) -> 1 | CQ14: =$J14*CP14 -> 0.15 | CR14: =$K14*CP14 -> 0.15 | CS14: =IF(AND(CS$7="EN COURS",SUM(CS$56:CS$79)>0),1,IF(CS$7="TERMINÉ",1,IF(AND(CS$7="EN COURS SAUF GAZ",SUM(CS$56:CS$79)>0),1,IF(CS$7="NON RÉALISÉ FACTURÉ",1,0)))) -> 1 | CT14: =$J14*CS14 -> 0.15 | CU14: =$K14*CS14 -> 0.15 | CV14: =IF(AND(CV$7="EN COURS",SUM(CV$56:CV$79)>0),1,IF(CV$7="TERMINÉ",1,IF(AND(CV$7="EN COURS SAUF GAZ",SUM(CV$56:CV$79)>0),1,IF(CV$7="NON RÉALISÉ FACTURÉ",1,0)))) -> 1 | CW14: =$J14*CV14 -> 0.15 | CX14: =$K14*CV14 -> 0.15 | CY14: =IF(AND(CY$7="EN COURS",SUM(CY$56:CY$79)>0),1,IF(CY$7="TERMINÉ",1,IF(AND(CY$7="EN COURS SAUF GAZ",SUM(CY$56:CY$79)>0),1,IF(CY$7="NON RÉALISÉ FACTURÉ",1,0)))) -> 1 | CZ14: =$J14*CY14 -> 0.15 | DA14: =$K14*CY14 -> 0.15 | DB14: =IF(AND(DB$7="EN COURS",SUM(DB$56:DB$79)>0),1,IF(DB$7="TERMINÉ",1,IF(AND(DB$7="EN COURS SAUF GAZ",SUM(DB$56:DB$79)>0),1,IF(DB$7="NON RÉALISÉ FACTURÉ",1,0)))) -> 0 | DC14: =$J14*DB14 -> 0 | DD14: =$K14*DB14 -> 0 | DE14: =IF(AND(DE$7="EN COURS",SUM(DE$56:DE$79)>0),1,IF(DE$7="TERMINÉ",1,IF(AND(DE$7="EN COURS SAUF GAZ",SUM(DE$56:DE$79)>0),1,IF(DE$7="NON RÉALISÉ FACTURÉ",1,0)))) -> 1 | DF14: =$J14*DE14 -> 0.15 | DG14: =$K14*DE14 -> 0.15 | DH14: =IF(AND(DH$7="EN COURS",SUM(DH$56:DH$79)>0),1,IF(DH$7="TERMINÉ",1,IF(AND(DH$7="EN COURS SAUF GAZ",SUM(DH$56:DH$79)>0),1,IF(DH$7="NON RÉALISÉ FACTURÉ",1,0)))) -> 1 | DI14: =$J14*DH14 -> 0.15 | DJ14: =$K14*DH14 -> 0.15 | DK14: =IF(AND(DK$7="EN COURS",SUM(DK$56:DK$79)>0),1,IF(DK$7="TERMINÉ",1,IF(AND(DK$7="EN COURS SAUF GAZ",SUM(DK$56:DK$79)>0),1,IF(DK$7="NON RÉALISÉ FACTURÉ",1,0)))) -> 1 | DL14: =$J14*DK14 -> 0.15 | DM14: =$K14*DK14 -> 0.15 | DN14: =IF(AND(DN$7="EN COURS",SUM(DN$56:DN$79)>0),1,IF(DN$7="TERMINÉ",1,IF(AND(DN$7="EN COURS SAUF GAZ",SUM(DN$56:DN$79)>0),1,IF(DN$7="NON RÉALISÉ FACTURÉ",1,0)))) -> 1 | DO14: =$J14*DN14 -> 0.15 | DP14: =$K14*DN14 -> 0.15 | DQ14: =IF(AND(DQ$7="EN COURS",SUM(DQ$56:DQ$79)>0),1,IF(DQ$7="TERMINÉ",1,IF(AND(DQ$7="EN COURS SAUF GAZ",SUM(DQ$56:DQ$79)>0),1,IF(DQ$7="NON RÉALISÉ FACTURÉ",1,0)))) -> 1 | DR14: =$J14*DQ14 -> 0.15 | DS14: =$K14*DQ14 -> 0.15 | DT14: =IF(AND(DT$7="EN COURS",SUM(DT$56:DT$79)>0),1,IF(DT$7="TERMINÉ",1,IF(AND(DT$7="EN COURS SAUF GAZ",SUM(DT$56:DT$79)>0),1,IF(DT$7="NON RÉALISÉ FACTURÉ",1,0)))) -> 1 | DU14: =$J14*DT14 -> 0.15 | DV14: =$K14*DT14 -> 0.15 | DW14: =IF(AND(DW$7="EN COURS",SUM(DW$56:DW$79)>0),1,IF(DW$7="TERMINÉ",1,IF(AND(DW$7="EN COURS SAUF GAZ",SUM(DW$56:DW$79)>0),1,IF(DW$7="NON RÉALISÉ FACTURÉ",1,0)))) -> 1 | DX14: =$J14*DW14 -> 0.15 | DY14: =$K14*DW14 -> 0.15 | DZ14: =IF(AND(DZ$7="EN COURS",SUM(DZ$56:DZ$79)>0),1,IF(DZ$7="TERMINÉ",1,IF(AND(DZ$7="EN COURS SAUF GAZ",SUM(DZ$56:DZ$79)>0),1,IF(DZ$7="NON RÉALISÉ FACTURÉ",1,0)))) -> 1 | EA14: =$J14*DZ14 -> 0.15 | EB14: =$K14*DZ14 -> 0.15 | EC14: =IF(AND(EC$7="EN COURS",SUM(EC$56:EC$79)>0),1,IF(EC$7="TERMINÉ",1,IF(AND(EC$7="EN COURS SAUF GAZ",SUM(EC$56:EC$79)>0),1,IF(EC$7="NON RÉALISÉ FACTURÉ",1,0)))) -> 0 | ED14: =$J14*EC14 -> 0 | EE14: =$K14*EC14 -> 0 | EF14: =IF(AND(EF$7="EN COURS",SUM(EF$56:EF$79)>0),1,IF(EF$7="TERMINÉ",1,IF(AND(EF$7="EN COURS SAUF GAZ",SUM(EF$56:EF$79)>0),1,IF(EF$7="NON RÉALISÉ FACTURÉ",1,0)))) -> 0 | EG14: =$J14*EF14 -> 0 | EH14: =$K14*EF14 -> 0 | EI14: =IF(AND(EI$7="EN COURS",SUM(EI$56:EI$79)>0),1,IF(EI$7="TERMINÉ",1,IF(AND(EI$7="EN COURS SAUF GAZ",SUM(EI$56:EI$79)>0),1,IF(EI$7="NON RÉALISÉ FACTURÉ",1,0)))) -> 1 | EJ14: =$J14*EI14 -> 0.15 | EK14: =$K14*EI14 -> 0.15 | EL14: =IF(AND(EL$7="EN COURS",SUM(EL$56:EL$79)>0),1,IF(EL$7="TERMINÉ",1,IF(AND(EL$7="EN COURS SAUF GAZ",SUM(EL$56:EL$79)>0),1,IF(EL$7="NON RÉALISÉ FACTURÉ",1,0)))) -> 0 | EM14: =$J14*EL14 -> 0 | EN14: =$K14*EL14 -> 0 | EO14: =IF(AND(EO$7="EN COURS",SUM(EO$56:EO$79)>0),1,IF(EO$7="TERMINÉ",1,IF(AND(EO$7="EN COURS SAUF GAZ",SUM(EO$56:EO$79)>0),1,IF(EO$7="NON RÉALISÉ FACTURÉ",1,0)))) -> 0 | EP14: =$J14*EO14 -> 0 | EQ14: =$K14*EO14 -> 0 | ER14: =IF(AND(ER$7="EN COURS",SUM(ER$56:ER$79)>0),1,IF(ER$7="TERMINÉ",1,IF(AND(ER$7="EN COURS SAUF GAZ",SUM(ER$56:ER$79)>0),1,IF(ER$7="NON RÉALISÉ FACTURÉ",1,0)))) -> 1 | ES14: =$J14*ER14 -> 0.15 | ET14: =$K14*ER14 -> 0.15 | EU14: =IF(AND(EU$7="EN COURS",SUM(EU$56:EU$79)>0),1,IF(EU$7="TERMINÉ",1,IF(AND(EU$7="EN COURS SAUF GAZ",SUM(EU$56:EU$79)>0),1,IF(EU$7="NON RÉALISÉ FACTURÉ",1,0)))) -> 0 | EV14: =$J14*EU14 -> 0 | EW14: =$K14*EU14 -> 0 | EX14: =IF(AND(EX$7="EN COURS",SUM(EX$56:EX$79)>0),1,IF(EX$7="TERMINÉ",1,IF(AND(EX$7="EN COURS SAUF GAZ",SUM(EX$56:EX$79)>0),1,IF(EX$7="NON RÉALISÉ FACTURÉ",1,0)))) -> 0 | EY14: =$J14*EX14 -> 0 | EZ14: =$K14*EX14 -> 0 | FA14: =IF(AND(FA$7="EN COURS",SUM(FA$56:FA$79)>0),1,IF(FA$7="TERMINÉ",1,IF(AND(FA$7="EN COURS SAUF GAZ",SUM(FA$56:FA$79)>0),1,IF(FA$7="NON RÉALISÉ FACTURÉ",1,0)))) -> 0 | FB14: =$J14*FA14 -> 0 | FC14: =$K14*FA14 -> 0 | FD14: =IF(AND(FD$7="EN COURS",SUM(FD$56:FD$79)>0),1,IF(FD$7="TERMINÉ",1,IF(AND(FD$7="EN COURS SAUF GAZ",SUM(FD$56:FD$79)>0),1,IF(FD$7="NON RÉALISÉ FACTURÉ",1,0)))) -> 0 | FE14: =$J14*FD14 -> 0 | FF14: =$K14*FD14 -> 0 | FG14: =IF(AND(FG$7="EN COURS",SUM(FG$56:FG$79)>0),1,IF(FG$7="TERMINÉ",1,IF(AND(FG$7="EN COURS SAUF GAZ",SUM(FG$56:FG$79)>0),1,IF(FG$7="NON RÉALISÉ FACTURÉ",1,0)))) -> 0 | FH14: =$J14*FG14 -> 0 | FI14: =$K14*FG14 -> 0 | FJ14: =IF(AND(FJ$7="EN COURS",SUM(FJ$56:FJ$79)>0),1,IF(FJ$7="TERMINÉ",1,IF(AND(FJ$7="EN COURS SAUF GAZ",SUM(FJ$56:FJ$79)>0),1,IF(FJ$7="NON RÉALISÉ FACTURÉ",1,0)))) -> 1 | FK14: =$J14*FJ14 -> 0.15 | FL14: =$K14*FJ14 -> 0.15 | FM14: =IF(AND(FM$7="EN COURS",SUM(FM$56:FM$79)>0),1,IF(FM$7="TERMINÉ",1,IF(AND(FM$7="EN COURS SAUF GAZ",SUM(FM$56:FM$79)>0),1,IF(FM$7="NON RÉALISÉ FACTURÉ",1,0)))) -> 0 | FN14: =$J14*FM14 -> 0 | FO14: =$K14*FM14 -> 0 | FP14: =IF(AND(FP$7="EN COURS",SUM(FP$56:FP$79)>0),1,IF(FP$7="TERMINÉ",1,IF(AND(FP$7="EN COURS SAUF GAZ",SUM(FP$56:FP$79)>0),1,IF(FP$7="NON RÉALISÉ FACTURÉ",1,0)))) -> 0 | FQ14: =$J14*FP14 -> 0 | FR14: =$K14*FP14 -> 0 | FS14: =IF(AND(FS$7="EN COURS",SUM(FS$56:FS$79)>0),1,IF(FS$7="TERMINÉ",1,IF(AND(FS$7="EN COURS SAUF GAZ",SUM(FS$56:FS$79)>0),1,IF(FS$7="NON RÉALISÉ FACTURÉ",1,0)))) -> 1 | FT14: =$J14*FS14 -> 0.15 | FU14: =$K14*FS14 -> 0.15 | FV14: =IF(AND(FV$7="EN COURS",SUM(FV$56:FV$79)>0),1,IF(FV$7="TERMINÉ",1,IF(AND(FV$7="EN COURS SAUF GAZ",SUM(FV$56:FV$79)>0),1,IF(FV$7="NON RÉALISÉ FACTURÉ",1,0)))) -> 1 | FW14: =$J14*FV14 -> 0.15 | FX14: =$K14*FV14 -> 0.15 | FY14: =IF(AND(FY$7="EN COURS",SUM(FY$56:FY$79)>0),1,IF(FY$7="TERMINÉ",1,IF(AND(FY$7="EN COURS SAUF GAZ",SUM(FY$56:FY$79)>0),1,IF(FY$7="NON RÉALISÉ FACTURÉ",1,0)))) -> 0 | FZ14: =$J14*FY14 -> 0 | GA14: =$K14*FY14 -> 0 | GB14: =IF(AND(GB$7="EN COURS",SUM(GB$56:GB$79)>0),1,IF(GB$7="TERMINÉ",1,IF(AND(GB$7="EN COURS SAUF GAZ",SUM(GB$56:GB$79)>0),1,IF(GB$7="NON RÉALISÉ FACTURÉ",1,0)))) -> 0 | GC14: =$J14*GB14 -> 0 | GD14: =$K14*GB14 -> 0 | GE14: =IF(AND(GE$7="EN COURS",SUM(GE$56:GE$79)>0),1,IF(GE$7="TERMINÉ",1,IF(AND(GE$7="EN COURS SAUF GAZ",SUM(GE$56:GE$79)>0),1,IF(GE$7="NON RÉALISÉ FACTURÉ",1,0)))) -> 0 | GF14: =$J14*GE14 -> 0 | GG14: =$K14*GE14 -> 0 | GH14: =IF(AND(GH$7="EN COURS",SUM(GH$56:GH$79)>0),1,IF(GH$7="TERMINÉ",1,IF(AND(GH$7="EN COURS SAUF GAZ",SUM(GH$56:GH$79)>0),1,IF(GH$7="NON RÉALISÉ FACTURÉ",1,0)))) -> 0 | GI14: =$J14*GH14 -> 0 | GJ14: =$K14*GH14 -> 0 | GK14: =IF(AND(GK$7="EN COURS",SUM(GK$56:GK$79)>0),1,IF(GK$7="TERMINÉ",1,IF(AND(GK$7="EN COURS SAUF GAZ",SUM(GK$56:GK$79)>0),1,IF(GK$7="NON RÉALISÉ FACTURÉ",1,0)))) -> 0 | GL14: =$J14*GK14 -> 0 | GM14: =$K14*GK14 -> 0 | GN14: =IF(AND(GN$7="EN COURS",SUM(GN$56:GN$79)>0),1,IF(GN$7="TERMINÉ",1,IF(AND(GN$7="EN COURS SAUF GAZ",SUM(GN$56:GN$79)>0),1,IF(GN$7="NON RÉALISÉ FACTURÉ",1,0)))) -> 0 | GO14: =$J14*GN14 -> 0 | GP14: =$K14*GN14 -> 0 | GQ14: =IF(AND(GQ$7="EN COURS",SUM(GQ$56:GQ$79)>0),1,IF(GQ$7="TERMINÉ",1,IF(AND(GQ$7="EN COURS SAUF GAZ",SUM(GQ$56:GQ$79)>0),1,IF(GQ$7="NON RÉALISÉ FACTURÉ",1,0)))) -> 0 | GR14: =$J14*GQ14 -> 0 | GS14: =$K14*GQ14 -> 0 | GT14: =IF(AND(GT$7="EN COURS",SUM(GT$56:GT$79)>0),1,IF(GT$7="TERMINÉ",1,IF(AND(GT$7="EN COURS SAUF GAZ",SUM(GT$56:GT$79)>0),1,IF(GT$7="NON RÉALISÉ FACTURÉ",1,0)))) -> 0 | GU14: =$J14*GT14 -> 0 | GV14: =$K14*GT14 -> 0 | GW14: =IF(AND(GW$7="EN COURS",SUM(GW$56:GW$79)>0),1,IF(GW$7="TERMINÉ",1,IF(AND(GW$7="EN COURS SAUF GAZ",SUM(GW$56:GW$79)>0),1,IF(GW$7="NON RÉALISÉ FACTURÉ",1,0)))) -> 0 | GX14: =$J14*GW14 -> 0 | GY14: =$K14*GW14 -> 0 | GZ14: =IF(AND(GZ$7="EN COURS",SUM(GZ$56:GZ$79)>0),1,IF(GZ$7="TERMINÉ",1,IF(AND(GZ$7="EN COURS SAUF GAZ",SUM(GZ$56:GZ$79)>0),1,IF(GZ$7="NON RÉALISÉ FACTURÉ",1,0)))) -> 0 | HA14: =$J14*GZ14 -> 0 | HB14: =$K14*GZ14 -> 0 | HC14: =IF(AND(HC$7="EN COURS",SUM(HC$56:HC$79)>0),1,IF(HC$7="TERMINÉ",1,IF(AND(HC$7="EN COURS SAUF GAZ",SUM(HC$56:HC$79)>0),1,IF(HC$7="NON RÉALISÉ FACTURÉ",1,0)))) -> 0 | HD14: =$J14*HC14 -> 0 | HE14: =$K14*HC14 -> 0 | HF14: =IF(AND(HF$7="EN COURS",SUM(HF$56:HF$79)>0),1,IF(HF$7="TERMINÉ",1,IF(AND(HF$7="EN COURS SAUF GAZ",SUM(HF$56:HF$79)>0),1,IF(HF$7="NON RÉALISÉ FACTURÉ",1,0)))) -> 0 | HG14: =$J14*HF14 -> 0 | HH14: =$K14*HF14 -> 0 | HI14: =IF(AND(HI$7="EN COURS",SUM(HI$56:HI$79)>0),1,IF(HI$7="TERMINÉ",1,IF(AND(HI$7="EN COURS SAUF GAZ",SUM(HI$56:HI$79)>0),1,IF(HI$7="NON RÉALISÉ FACTURÉ",1,0)))) -> 0 | HJ14: =$J14*HI14 -> 0 | HK14: =$K14*HI14 -> 0 | HL14: =IF(AND(HL$7="EN COURS",SUM(HL$56:HL$79)>0),1,IF(HL$7="TERMINÉ",1,IF(AND(HL$7="EN COURS SAUF GAZ",SUM(HL$56:HL$79)>0),1,IF(HL$7="NON RÉALISÉ FACTURÉ",1,0)))) -> 0 | HM14: =$J14*HL14 -> 0 | HN14: =$K14*HL14 -> 0 | HO14: =IF(AND(HO$7="EN COURS",SUM(HO$56:HO$79)>0),1,IF(HO$7="TERMINÉ",1,IF(AND(HO$7="EN COURS SAUF GAZ",SUM(HO$56:HO$79)>0),1,IF(HO$7="NON RÉALISÉ FACTURÉ",1,0)))) -> 0 | HP14: =$J14*HO14 -> 0 | HQ14: =$K14*HO14 -> 0 | HR14: =IF(AND(HR$7="EN COURS",SUM(HR$56:HR$79)>0),1,IF(HR$7="TERMINÉ",1,IF(AND(HR$7="EN COURS SAUF GAZ",SUM(HR$56:HR$79)>0),1,IF(HR$7="NON RÉALISÉ FACTURÉ",1,0)))) -> 0 | HS14: =$J14*HR14 -> 0 | HT14: =$K14*HR14 -> 0 | HU14: =IF(AND(HU$7="EN COURS",SUM(HU$56:HU$79)>0),1,IF(HU$7="TERMINÉ",1,IF(AND(HU$7="EN COURS SAUF GAZ",SUM(HU$56:HU$79)>0),1,IF(HU$7="NON RÉALISÉ FACTURÉ",1,0)))) -> 0 | HV14: =$J14*HU14 -> 0 | HW14: =$K14*HU14 -> 0 | HX14: =IF(AND(HX$7="EN COURS",SUM(HX$56:HX$79)>0),1,IF(HX$7="TERMINÉ",1,IF(AND(HX$7="EN COURS SAUF GAZ",SUM(HX$56:HX$79)>0),1,IF(HX$7="NON RÉALISÉ FACTURÉ",1,0)))) -> 0 | HY14: =$J14*HX14 -> 0 | HZ14: =$K14*HX14 -> 0 | IA14: =IF(AND(IA$7="EN COURS",SUM(IA$56:IA$79)>0),1,IF(IA$7="TERMINÉ",1,IF(AND(IA$7="EN COURS SAUF GAZ",SUM(IA$56:IA$79)>0),1,IF(IA$7="NON RÉALISÉ FACTURÉ",1,0)))) -> 0 | IB14: =$J14*IA14 -> 0 | IC14: =$K14*IA14 -> 0 | ID14: =IF(AND(ID$7="EN COURS",SUM(ID$56:ID$79)>0),1,IF(ID$7="TERMINÉ",1,IF(AND(ID$7="EN COURS SAUF GAZ",SUM(ID$56:ID$79)>0),1,IF(ID$7="NON RÉALISÉ FACTURÉ",1,0)))) -> 0 | IE14: =$J14*ID14 -> 0 | IF14: =$K14*ID14 -> 0 | IG14: =IF(AND(IG$7="EN COURS",SUM(IG$56:IG$79)>0),1,IF(IG$7="TERMINÉ",1,IF(AND(IG$7="EN COURS SAUF GAZ",SUM(IG$56:IG$79)>0),1,IF(IG$7="NON RÉALISÉ FACTURÉ",1,0)))) -> 0 | IH14: =$J14*IG14 -> 0 | II14: =$K14*IG14 -> 0 | IJ14: =IF(AND(IJ$7="EN COURS",SUM(IJ$56:IJ$79)>0),1,IF(IJ$7="TERMINÉ",1,IF(AND(IJ$7="EN COURS SAUF GAZ",SUM(IJ$56:IJ$79)>0),1,IF(IJ$7="NON RÉALISÉ FACTURÉ",1,0)))) -> 0 | IK14: =$J14*IJ14 -> 0 | IL14: =$K14*IJ14 -> 0 | IM14: =IF(AND(IM$7="EN COURS",SUM(IM$56:IM$79)>0),1,IF(IM$7="TERMINÉ",1,IF(AND(IM$7="EN COURS SAUF GAZ",SUM(IM$56:IM$79)>0),1,IF(IM$7="NON RÉALISÉ FACTURÉ",1,0)))) -> 0 | IN14: =$J14*IM14 -> 0 | IO14: =$K14*IM14 -> 0 | IP14: =IF(AND(IP$7="EN COURS",SUM(IP$56:IP$79)>0),1,IF(IP$7="TERMINÉ",1,IF(AND(IP$7="EN COURS SAUF GAZ",SUM(IP$56:IP$79)>0),1,IF(IP$7="NON RÉALISÉ FACTURÉ",1,0)))) -> 0 | IQ14: =$J14*IP14 -> 0 | IR14: =$K14*IP14 -> 0 | IS14: =IF(AND(IS$7="EN COURS",SUM(IS$56:IS$79)>0),1,IF(IS$7="TERMINÉ",1,IF(AND(IS$7="EN COURS SAUF GAZ",SUM(IS$56:IS$79)>0),1,IF(IS$7="NON RÉALISÉ FACTURÉ",1,0)))) -> 0 | IT14: =$J14*IS14 -> 0 | IU14: =$K14*IS14 -> 0 | IV14: =IF(AND(IV$7="EN COURS",SUM(IV$56:IV$79)>0),1,IF(IV$7="TERMINÉ",1,IF(AND(IV$7="EN COURS SAUF GAZ",SUM(IV$56:IV$79)>0),1,IF(IV$7="NON RÉALISÉ FACTURÉ",1,0)))) -> 0 | IW14: =$J14*IV14 -> 0 | IX14: =$K14*IV14 -> 0 | IY14: =IF(AND(IY$7="EN COURS",SUM(IY$56:IY$79)>0),1,IF(IY$7="TERMINÉ",1,IF(AND(IY$7="EN COURS SAUF GAZ",SUM(IY$56:IY$79)>0),1,IF(IY$7="NON RÉALISÉ FACTURÉ",1,0)))) -> 0 | IZ14: =$J14*IY14 -> 0 | JA14: =$K14*IY14 -> 0 | JB14: =IF(AND(JB$7="EN COURS",SUM(JB$56:JB$79)>0),1,IF(JB$7="TERMINÉ",1,IF(AND(JB$7="EN COURS SAUF GAZ",SUM(JB$56:JB$79)>0),1,IF(JB$7="NON RÉALISÉ FACTURÉ",1,0)))) -> 0 | JC14: =$J14*JB14 -> 0 | JD14: =$K14*JB14 -> 0 | JE14: =IF(AND(JE$7="EN COURS",SUM(JE$56:JE$79)>0),1,IF(JE$7="TERMINÉ",1,IF(AND(JE$7="EN COURS SAUF GAZ",SUM(JE$56:JE$79)>0),1,IF(JE$7="NON RÉALISÉ FACTURÉ",1,0)))) -> 0 | JF14: =$J14*JE14 -> 0 | JG14: =$K14*JE14 -> 0 | JH14: =IF(AND(JH$7="EN COURS",SUM(JH$56:JH$79)>0),1,IF(JH$7="TERMINÉ",1,IF(AND(JH$7="EN COURS SAUF GAZ",SUM(JH$56:JH$79)>0),1,IF(JH$7="NON RÉALISÉ FACTURÉ",1,0)))) -> 0 | JI14: =$J14*JH14 -> 0 | JJ14: =$K14*JH14 -> 0 | JK14: =IF(AND(JK$7="EN COURS",SUM(JK$56:JK$79)>0),1,IF(JK$7="TERMINÉ",1,IF(AND(JK$7="EN COURS SAUF GAZ",SUM(JK$56:JK$79)>0),1,IF(JK$7="NON RÉALISÉ FACTURÉ",1,0)))) -> 0 | JL14: =$J14*JK14 -> 0 | JM14: =$K14*JK14 -> 0 | JN14: =IF(AND(JN$7="EN COURS",SUM(JN$56:JN$79)>0),1,IF(JN$7="TERMINÉ",1,IF(AND(JN$7="EN COURS SAUF GAZ",SUM(JN$56:JN$79)>0),1,IF(JN$7="NON RÉALISÉ FACTURÉ",1,0)))) -> 0 | JO14: =$J14*JN14 -> 0 | JP14: =$K14*JN14 -> 0 | JQ14: =IF(AND(JQ$7="EN COURS",SUM(JQ$56:JQ$79)>0),1,IF(JQ$7="TERMINÉ",1,IF(AND(JQ$7="EN COURS SAUF GAZ",SUM(JQ$56:JQ$79)>0),1,IF(JQ$7="NON RÉALISÉ FACTURÉ",1,0)))) -> 0 | JR14: =$J14*JQ14 -> 0 | JS14: =$K14*JQ14 -> 0 | JT14: =IF(AND(JT$7="EN COURS",SUM(JT$56:JT$79)>0),1,IF(JT$7="TERMINÉ",1,IF(AND(JT$7="EN COURS SAUF GAZ",SUM(JT$56:JT$79)>0),1,IF(JT$7="NON RÉALISÉ FACTURÉ",1,0)))) -> 0 | JU14: =$J14*JT14 -> 0 | JV14: =$K14*JT14 -> 0 | JW14: =IF(AND(JW$7="EN COURS",SUM(JW$56:JW$79)>0),1,IF(JW$7="TERMINÉ",1,IF(AND(JW$7="EN COURS SAUF GAZ",SUM(JW$56:JW$79)>0),1,IF(JW$7="NON RÉALISÉ FACTURÉ",1,0)))) -> 0 | JX14: =$J14*JW14 -> 0 | JY14: =$K14*JW14 -> 0 | JZ14: =IF(AND(JZ$7="EN COURS",SUM(JZ$56:JZ$79)>0),1,IF(JZ$7="TERMINÉ",1,IF(AND(JZ$7="EN COURS SAUF GAZ",SUM(JZ$56:JZ$79)>0),1,IF(JZ$7="NON RÉALISÉ FACTURÉ",1,0)))) -> 0 | KA14: =$J14*JZ14 -> 0 | KB14: =$K14*JZ14 -> 0 | KC14: =IF(AND(KC$7="EN COURS",SUM(KC$56:KC$79)>0),1,IF(KC$7="TERMINÉ",1,IF(AND(KC$7="EN COURS SAUF GAZ",SUM(KC$56:KC$79)>0),1,IF(KC$7="NON RÉALISÉ FACTURÉ",1,0)))) -> 0 | KD14: =$J14*KC14 -> 0 | KE14: =$K14*KC14 -> 0 | KF14: =IF(AND(KF$7="EN COURS",SUM(KF$56:KF$79)>0),1,IF(KF$7="TERMINÉ",1,IF(AND(KF$7="EN COURS SAUF GAZ",SUM(KF$56:KF$79)>0),1,IF(KF$7="NON RÉALISÉ FACTURÉ",1,0)))) -> 0 | KG14: =$J14*KF14 -> 0 | KH14: =$K14*KF14 -> 0 | KI14: =IF(AND(KI$7="EN COURS",SUM(KI$56:KI$79)>0),1,IF(KI$7="TERMINÉ",1,IF(AND(KI$7="EN COURS SAUF GAZ",SUM(KI$56:KI$79)>0),1,IF(KI$7="NON RÉALISÉ FACTURÉ",1,0)))) -> 0 | KJ14: =$J14*KI14 -> 0 | KK14: =$K14*KI14 -> 0 | KL14: =IF(AND(KL$7="EN COURS",SUM(KL$56:KL$79)>0),1,IF(KL$7="TERMINÉ",1,IF(AND(KL$7="EN COURS SAUF GAZ",SUM(KL$56:KL$79)>0),1,IF(KL$7="NON RÉALISÉ FACTURÉ",1,0)))) -> 0 | KM14: =$J14*KL14 -> 0 | KN14: =$K14*KL14 -> 0 | KO14: =IF(AND(KO$7="EN COURS",SUM(KO$56:KO$79)>0),1,IF(KO$7="TERMINÉ",1,IF(AND(KO$7="EN COURS SAUF GAZ",SUM(KO$56:KO$79)>0),1,IF(KO$7="NON RÉALISÉ FACTURÉ",1,0)))) -> 0 | KP14: =$J14*KO14 -> 0 | KQ14: =$K14*KO14 -> 0 | KR14: =IF(AND(KR$7="EN COURS",SUM(KR$56:KR$79)>0),1,IF(KR$7="TERMINÉ",1,IF(AND(KR$7="EN COURS SAUF GAZ",SUM(KR$56:KR$79)>0),1,IF(KR$7="NON RÉALISÉ FACTURÉ",1,0)))) -> 0 | KS14: =$J14*KR14 -> 0 | KT14: =$K14*KR14 -> 0 | KU14: =IF(AND(KU$7="EN COURS",SUM(KU$56:KU$79)>0),1,IF(KU$7="TERMINÉ",1,IF(AND(KU$7="EN COURS SAUF GAZ",SUM(KU$56:KU$79)>0),1,IF(KU$7="NON RÉALISÉ FACTURÉ",1,0)))) -> 0 | KV14: =$J14*KU14 -> 0 | KW14: =$K14*KU14 -> 0 | KX14: =IF(AND(KX$7="EN COURS",SUM(KX$56:KX$79)>0),1,IF(KX$7="TERMINÉ",1,IF(AND(KX$7="EN COURS SAUF GAZ",SUM(KX$56:KX$79)>0),1,IF(KX$7="NON RÉALISÉ FACTURÉ",1,0)))) -> 0 | KY14: =$J14*KX14 -> 0 | KZ14: =$K14*KX14 -> 0 | LA14: =IF(AND(LA$7="EN COURS",SUM(LA$56:LA$79)>0),1,IF(LA$7="TERMINÉ",1,IF(AND(LA$7="EN COURS SAUF GAZ",SUM(LA$56:LA$79)>0),1,IF(LA$7="NON RÉALISÉ FACTURÉ",1,0)))) -> 0 | LB14: =$J14*LA14 -> 0 | LC14: =$K14*LA14 -> 0 | LD14: =IF(AND(LD$7="EN COURS",SUM(LD$56:LD$79)>0),1,IF(LD$7="TERMINÉ",1,IF(AND(LD$7="EN COURS SAUF GAZ",SUM(LD$56:LD$79)>0),1,IF(LD$7="NON RÉALISÉ FACTURÉ",1,0)))) -> 0 | LE14: =$J14*LD14 -> 0 | LF14: =$K14*LD14 -> 0 | LG14: =IF(AND(LG$7="EN COURS",SUM(LG$56:LG$79)>0),1,IF(LG$7="TERMINÉ",1,IF(AND(LG$7="EN COURS SAUF GAZ",SUM(LG$56:LG$79)>0),1,IF(LG$7="NON RÉALISÉ FACTURÉ",1,0)))) -> 0 | LH14: =$J14*LG14 -> 0 | LI14: =$K14*LG14 -> 0 | LJ14: =IF(AND(LJ$7="EN COURS",SUM(LJ$56:LJ$79)>0),1,IF(LJ$7="TERMINÉ",1,IF(AND(LJ$7="EN COURS SAUF GAZ",SUM(LJ$56:LJ$79)>0),1,IF(LJ$7="NON RÉALISÉ FACTURÉ",1,0)))) -> 0 | LK14: =$J14*LJ14 -> 0 | LL14: =$K14*LJ14 -> 0 | LM14: =IF(AND(LM$7="EN COURS",SUM(LM$56:LM$79)>0),1,IF(LM$7="TERMINÉ",1,IF(AND(LM$7="EN COURS SAUF GAZ",SUM(LM$56:LM$79)>0),1,IF(LM$7="NON RÉALISÉ FACTURÉ",1,0)))) -> 0 | LN14: =$J14*LM14 -> 0 | LO14: =$K14*LM14 -> 0 | LP14: =IF(AND(LP$7="EN COURS",SUM(LP$56:LP$79)>0),1,IF(LP$7="TERMINÉ",1,IF(AND(LP$7="EN COURS SAUF GAZ",SUM(LP$56:LP$79)>0),1,IF(LP$7="NON RÉALISÉ FACTURÉ",1,0)))) -> 0 | LQ14: =$J14*LP14 -> 0 | LR14: =$K14*LP14 -> 0 | LS14: =IF(AND(LS$7="EN COURS",SUM(LS$56:LS$79)>0),1,IF(LS$7="TERMINÉ",1,IF(AND(LS$7="EN COURS SAUF GAZ",SUM(LS$56:LS$79)>0),1,IF(LS$7="NON RÉALISÉ FACTURÉ",1,0)))) -> 0 | LT14: =$J14*LS14 -> 0 | LU14: =$K14*LS14 -> 0 | LV14: =IF(AND(LV$7="EN COURS",SUM(LV$56:LV$79)>0),1,IF(LV$7="TERMINÉ",1,IF(AND(LV$7="EN COURS SAUF GAZ",SUM(LV$56:LV$79)>0),1,IF(LV$7="NON RÉALISÉ FACTURÉ",1,0)))) -> 0 | LW14: =$J14*LV14 -> 0 | LX14: =$K14*LV14 -> 0 | LY14: =IF(AND(LY$7="EN COURS",SUM(LY$56:LY$79)>0),1,IF(LY$7="TERMINÉ",1,IF(AND(LY$7="EN COURS SAUF GAZ",SUM(LY$56:LY$79)>0),1,IF(LY$7="NON RÉALISÉ FACTURÉ",1,0)))) -> 0 | LZ14: =$J14*LY14 -> 0 | MA14: =$K14*LY14 -> 0 | MB14: =IF(AND(MB$7="EN COURS",SUM(MB$56:MB$79)>0),1,IF(MB$7="TERMINÉ",1,IF(AND(MB$7="EN COURS SAUF GAZ",SUM(MB$56:MB$79)>0),1,IF(MB$7="NON RÉALISÉ FACTURÉ",1,0)))) -> 0 | MC14: =$J14*MB14 -> 0 | MD14: =$K14*MB14 -> 0 | ME14: =IF(AND(ME$7="EN COURS",SUM(ME$56:ME$79)>0),1,IF(ME$7="TERMINÉ",1,IF(AND(ME$7="EN COURS SAUF GAZ",SUM(ME$56:ME$79)>0),1,IF(ME$7="NON RÉALISÉ FACTURÉ",1,0)))) -> 0 | MF14: =$J14*ME14 -> 0 | MG14: =$K14*ME14 -> 0 | MH14: =IF(AND(MH$7="EN COURS",SUM(MH$56:MH$79)>0),1,IF(MH$7="TERMINÉ",1,IF(AND(MH$7="EN COURS SAUF GAZ",SUM(MH$56:MH$79)>0),1,IF(MH$7="NON RÉALISÉ FACTURÉ",1,0)))) -> 0 | MI14: =$J14*MH14 -> 0 | MJ14: =$K14*MH14 -> 0 | MK14: =IF(AND(MK$7="EN COURS",SUM(MK$56:MK$79)>0),1,IF(MK$7="TERMINÉ",1,IF(AND(MK$7="EN COURS SAUF GAZ",SUM(MK$56:MK$79)>0),1,IF(MK$7="NON RÉALISÉ FACTURÉ",1,0)))) -> 0 | ML14: =$J14*MK14 -> 0 | MM14: =$K14*MK14 -> 0 | MN14: =IF(AND(MN$7="EN COURS",SUM(MN$56:MN$79)>0),1,IF(MN$7="TERMINÉ",1,IF(AND(MN$7="EN COURS SAUF GAZ",SUM(MN$56:MN$79)>0),1,IF(MN$7="NON RÉALISÉ FACTURÉ",1,0)))) -> 0 | MO14: =$J14*MN14 -> 0 | MP14: =$K14*MN14 -> 0
A15: Nettoyage Replis du matériel | B15: 112 | E15: =S15+V15+Y15+AB15+AE15+AH15+AK15+AN15+AQ15+AT15+AW15+AZ15+BC15+BF15+BI15+BL15+BO15+BR15+BU15+BX15+CA15+CD15+CG15+CJ15+CM15+CP15+CS15+CV15+CY15+DB15+DE15+DH15+DK15+DN15+DQ15+DT15+DW15+DZ15+EC15+EF15+EI15+EL15+EO15+ER15+EU15+EX15+FA15+FD15+FG15+FJ15+FM15+FP15+FS15+FV15+FY15+GB15+GE15+GH15+GK15+GN15+GQ15+GT15+GW15+GZ15+HC15+HF15+HI15+HL15+HO15+HR15+HU15+HX15+IA15+ID15+IG15+IJ15+IM15+IP15+IS15+IV15+IY15+JB15+JE15+JH15+JK15+JN15+JQ15+JT15+JW15+JZ15+KC15+KF15+KI15+KL15+KO15+KR15+KU15+KX15+LA15+LD15+LG15+LJ15+LM15+LP15+LS15+LV15+LY15+MB15+ME15+MH15+MK15+MN15 -> 42 | F15: 112 | G15: =(E14/112)*100 -> 37.5 | J15: 0.15 | K15: =J15 -> 0.15 | L15: =112*K15 -> 16.8 | Q15: =L15+N15+P15 -> 16.8 | S15: =IF(AND(S$7="EN COURS",SUM(S$56:S$79)>0),1,IF(S$7="TERMINÉ",1,IF(AND(S$7="EN COURS SAUF GAZ",SUM(S$56:S$79)>0),1,IF(S$7="NON RÉALISÉ FACTURÉ",1,0)))) -> 1 | T15: =$J15*S15 -> 0.15 | U15: =$K15*S15 -> 0.15 | V15: =IF(AND(V$7="EN COURS",SUM(V$56:V$79)>0),1,IF(V$7="TERMINÉ",1,IF(AND(V$7="EN COURS SAUF GAZ",SUM(V$56:V$79)>0),1,IF(V$7="NON RÉALISÉ FACTURÉ",1,0)))) -> 1 | W15: =$J15*V15 -> 0.15 | X15: =$K15*V15 -> 0.15 | Y15: =IF(AND(Y$7="EN COURS",SUM(Y$56:Y$79)>0),1,IF(Y$7="TERMINÉ",1,IF(AND(Y$7="EN COURS SAUF GAZ",SUM(Y$56:Y$79)>0),1,IF(Y$7="NON RÉALISÉ FACTURÉ",1,0)))) -> 1 | Z15: =$J15*Y15 -> 0.15 | AA15: =$K15*Y15 -> 0.15 | AB15: =IF(AND(AB$7="EN COURS",SUM(AB$56:AB$79)>0),1,IF(AB$7="TERMINÉ",1,IF(AND(AB$7="EN COURS SAUF GAZ",SUM(AB$56:AB$79)>0),1,IF(AB$7="NON RÉALISÉ FACTURÉ",1,0)))) -> 1 | AC15: =$J15*AB15 -> 0.15 | AD15: =$K15*AB15 -> 0.15 | AE15: =IF(AND(AE$7="EN COURS",SUM(AE$56:AE$79)>0),1,IF(AE$7="TERMINÉ",1,IF(AND(AE$7="EN COURS SAUF GAZ",SUM(AE$56:AE$79)>0),1,IF(AE$7="NON RÉALISÉ FACTURÉ",1,0)))) -> 1 | AF15: =$J15*AE15 -> 0.15 | AG15: =$K15*AE15 -> 0.15 | AH15: =IF(AND(AH$7="EN COURS",SUM(AH$56:AH$79)>0),1,IF(AH$7="TERMINÉ",1,IF(AND(AH$7="EN COURS SAUF GAZ",SUM(AH$56:AH$79)>0),1,IF(AH$7="NON RÉALISÉ FACTURÉ",1,0)))) -> 1 | AI15: =$J15*AH15 -> 0.15 | AJ15: =$K15*AH15 -> 0.15 | AK15: =IF(AND(AK$7="EN COURS",SUM(AK$56:AK$79)>0),1,IF(AK$7="TERMINÉ",1,IF(AND(AK$7="EN COURS SAUF GAZ",SUM(AK$56:AK$79)>0),1,IF(AK$7="NON RÉALISÉ FACTURÉ",1,0)))) -> 1 | AL15: =$J15*AK15 -> 0.15 | AM15: =$K15*AK15 -> 0.15 | AN15: =IF(AND(AN$7="EN COURS",SUM(AN$56:AN$79)>0),1,IF(AN$7="TERMINÉ",1,IF(AND(AN$7="EN COURS SAUF GAZ",SUM(AN$56:AN$79)>0),1,IF(AN$7="NON RÉALISÉ FACTURÉ",1,0)))) -> 1 | AO15: =$J15*AN15 -> 0.15 | AP15: =$K15*AN15 -> 0.15 | AQ15: =IF(AND(AQ$7="EN COURS",SUM(AQ$56:AQ$79)>0),1,IF(AQ$7="TERMINÉ",1,IF(AND(AQ$7="EN COURS SAUF GAZ",SUM(AQ$56:AQ$79)>0),1,IF(AQ$7="NON RÉALISÉ FACTURÉ",1,0)))) -> 1 | AR15: =$J15*AQ15 -> 0.15 | AS15: =$K15*AQ15 -> 0.15 | AT15: =IF(AND(AT$7="EN COURS",SUM(AT$56:AT$79)>0),1,IF(AT$7="TERMINÉ",1,IF(AND(AT$7="EN COURS SAUF GAZ",SUM(AT$56:AT$79)>0),1,IF(AT$7="NON RÉALISÉ FACTURÉ",1,0)))) -> 1 | AU15: =$J15*AT15 -> 0.15 | AV15: =$K15*AT15 -> 0.15 | AW15: =IF(AND(AW$7="EN COURS",SUM(AW$56:AW$79)>0),1,IF(AW$7="TERMINÉ",1,IF(AND(AW$7="EN COURS SAUF GAZ",SUM(AW$56:AW$79)>0),1,IF(AW$7="NON RÉALISÉ FACTURÉ",1,0)))) -> 1 | AX15: =$J15*AW15 -> 0.15 | AY15: =$K15*AW15 -> 0.15 | AZ15: =IF(AND(AZ$7="EN COURS",SUM(AZ$56:AZ$79)>0),1,IF(AZ$7="TERMINÉ",1,IF(AND(AZ$7="EN COURS SAUF GAZ",SUM(AZ$56:AZ$79)>0),1,IF(AZ$7="NON RÉALISÉ FACTURÉ",1,0)))) -> 1 | BA15: =$J15*AZ15 -> 0.15 | BB15: =$K15*AZ15 -> 0.15 | BC15: =IF(AND(BC$7="EN COURS",SUM(BC$56:BC$79)>0),1,IF(BC$7="TERMINÉ",1,IF(AND(BC$7="EN COURS SAUF GAZ",SUM(BC$56:BC$79)>0),1,IF(BC$7="NON RÉALISÉ FACTURÉ",1,0)))) -> 1 | BD15: =$J15*BC15 -> 0.15 | BE15: =$K15*BC15 -> 0.15 | BF15: =IF(AND(BF$7="EN COURS",SUM(BF$56:BF$79)>0),1,IF(BF$7="TERMINÉ",1,IF(AND(BF$7="EN COURS SAUF GAZ",SUM(BF$56:BF$79)>0),1,IF(BF$7="NON RÉALISÉ FACTURÉ",1,0)))) -> 1 | BG15: =$J15*BF15 -> 0.15 | BH15: =$K15*BF15 -> 0.15 | BI15: =IF(AND(BI$7="EN COURS",SUM(BI$56:BI$79)>0),1,IF(BI$7="TERMINÉ",1,IF(AND(BI$7="EN COURS SAUF GAZ",SUM(BI$56:BI$79)>0),1,IF(BI$7="NON RÉALISÉ FACTURÉ",1,0)))) -> 1 | BJ15: =$J15*BI15 -> 0.15 | BK15: =$K15*BI15 -> 0.15 | BL15: =IF(AND(BL$7="EN COURS",SUM(BL$56:BL$79)>0),1,IF(BL$7="TERMINÉ",1,IF(AND(BL$7="EN COURS SAUF GAZ",SUM(BL$56:BL$79)>0),1,IF(BL$7="NON RÉALISÉ FACTURÉ",1,0)))) -> 1 | BM15: =$J15*BL15 -> 0.15 | BN15: =$K15*BL15 -> 0.15 | BO15: =IF(AND(BO$7="EN COURS",SUM(BO$56:BO$79)>0),1,IF(BO$7="TERMINÉ",1,IF(AND(BO$7="EN COURS SAUF GAZ",SUM(BO$56:BO$79)>0),1,IF(BO$7="NON RÉALISÉ FACTURÉ",1,0)))) -> 1 | BP15: =$J15*BO15 -> 0.15 | BQ15: =$K15*BO15 -> 0.15 | BR15: =IF(AND(BR$7="EN COURS",SUM(BR$56:BR$79)>0),1,IF(BR$7="TERMINÉ",1,IF(AND(BR$7="EN COURS SAUF GAZ",SUM(BR$56:BR$79)>0),1,IF(BR$7="NON RÉALISÉ FACTURÉ",1,0)))) -> 1 | BS15: =$J15*BR15 -> 0.15 | BT15: =$K15*BR15 -> 0.15 | BU15: =IF(AND(BU$7="EN COURS",SUM(BU$56:BU$79)>0),1,IF(BU$7="TERMINÉ",1,IF(AND(BU$7="EN COURS SAUF GAZ",SUM(BU$56:BU$79)>0),1,IF(BU$7="NON RÉALISÉ FACTURÉ",1,0)))) -> 1 | BV15: =$J15*BU15 -> 0.15 | BW15: =$K15*BU15 -> 0.15 | BX15: =IF(AND(BX$7="EN COURS",SUM(BX$56:BX$79)>0),1,IF(BX$7="TERMINÉ",1,IF(AND(BX$7="EN COURS SAUF GAZ",SUM(BX$56:BX$79)>0),1,IF(BX$7="NON RÉALISÉ FACTURÉ",1,0)))) -> 1 | BY15: =$J15*BX15 -> 0.15 | BZ15: =$K15*BX15 -> 0.15 | CA15: =IF(AND(CA$7="EN COURS",SUM(CA$56:CA$79)>0),1,IF(CA$7="TERMINÉ",1,IF(AND(CA$7="EN COURS SAUF GAZ",SUM(CA$56:CA$79)>0),1,IF(CA$7="NON RÉALISÉ FACTURÉ",1,0)))) -> 1 | CB15: =$J15*CA15 -> 0.15 | CC15: =$K15*CA15 -> 0.15 | CD15: =IF(AND(CD$7="EN COURS",SUM(CD$56:CD$79)>0),1,IF(CD$7="TERMINÉ",1,IF(AND(CD$7="EN COURS SAUF GAZ",SUM(CD$56:CD$79)>0),1,IF(CD$7="NON RÉALISÉ FACTURÉ",1,0)))) -> 1 | CE15: =$J15*CD15 -> 0.15 | CF15: =$K15*CD15 -> 0.15 | CG15: =IF(AND(CG$7="EN COURS",SUM(CG$56:CG$79)>0),1,IF(CG$7="TERMINÉ",1,IF(AND(CG$7="EN COURS SAUF GAZ",SUM(CG$56:CG$79)>0),1,IF(CG$7="NON RÉALISÉ FACTURÉ",1,0)))) -> 1 | CH15: =$J15*CG15 -> 0.15 | CI15: =$K15*CG15 -> 0.15 | CJ15: =IF(AND(CJ$7="EN COURS",SUM(CJ$56:CJ$79)>0),1,IF(CJ$7="TERMINÉ",1,IF(AND(CJ$7="EN COURS SAUF GAZ",SUM(CJ$56:CJ$79)>0),1,IF(CJ$7="NON RÉALISÉ FACTURÉ",1,0)))) -> 1 | CK15: =$J15*CJ15 -> 0.15 | CL15: =$K15*CJ15 -> 0.15 | CM15: =IF(AND(CM$7="EN COURS",SUM(CM$56:CM$79)>0),1,IF(CM$7="TERMINÉ",1,IF(AND(CM$7="EN COURS SAUF GAZ",SUM(CM$56:CM$79)>0),1,IF(CM$7="NON RÉALISÉ FACTURÉ",1,0)))) -> 1 | CN15: =$J15*CM15 -> 0.15 | CO15: =$K15*CM15 -> 0.15 | CP15: =IF(AND(CP$7="EN COURS",SUM(CP$56:CP$79)>0),1,IF(CP$7="TERMINÉ",1,IF(AND(CP$7="EN COURS SAUF GAZ",SUM(CP$56:CP$79)>0),1,IF(CP$7="NON RÉALISÉ FACTURÉ",1,0)))) -> 1 | CQ15: =$J15*CP15 -> 0.15 | CR15: =$K15*CP15 -> 0.15 | CS15: =IF(AND(CS$7="EN COURS",SUM(CS$56:CS$79)>0),1,IF(CS$7="TERMINÉ",1,IF(AND(CS$7="EN COURS SAUF GAZ",SUM(CS$56:CS$79)>0),1,IF(CS$7="NON RÉALISÉ FACTURÉ",1,0)))) -> 1 | CT15: =$J15*CS15 -> 0.15 | CU15: =$K15*CS15 -> 0.15 | CV15: =IF(AND(CV$7="EN COURS",SUM(CV$56:CV$79)>0),1,IF(CV$7="TERMINÉ",1,IF(AND(CV$7="EN COURS SAUF GAZ",SUM(CV$56:CV$79)>0),1,IF(CV$7="NON RÉALISÉ FACTURÉ",1,0)))) -> 1 | CW15: =$J15*CV15 -> 0.15 | CX15: =$K15*CV15 -> 0.15 | CY15: =IF(AND(CY$7="EN COURS",SUM(CY$56:CY$79)>0),1,IF(CY$7="TERMINÉ",1,IF(AND(CY$7="EN COURS SAUF GAZ",SUM(CY$56:CY$79)>0),1,IF(CY$7="NON RÉALISÉ FACTURÉ",1,0)))) -> 1 | CZ15: =$J15*CY15 -> 0.15 | DA15: =$K15*CY15 -> 0.15 | DB15: =IF(AND(DB$7="EN COURS",SUM(DB$56:DB$79)>0),1,IF(DB$7="TERMINÉ",1,IF(AND(DB$7="EN COURS SAUF GAZ",SUM(DB$56:DB$79)>0),1,IF(DB$7="NON RÉALISÉ FACTURÉ",1,0)))) -> 0 | DC15: =$J15*DB15 -> 0 | DD15: =$K15*DB15 -> 0 | DE15: =IF(AND(DE$7="EN COURS",SUM(DE$56:DE$79)>0),1,IF(DE$7="TERMINÉ",1,IF(AND(DE$7="EN COURS SAUF GAZ",SUM(DE$56:DE$79)>0),1,IF(DE$7="NON RÉALISÉ FACTURÉ",1,0)))) -> 1 | DF15: =$J15*DE15 -> 0.15 | DG15: =$K15*DE15 -> 0.15 | DH15: =IF(AND(DH$7="EN COURS",SUM(DH$56:DH$79)>0),1,IF(DH$7="TERMINÉ",1,IF(AND(DH$7="EN COURS SAUF GAZ",SUM(DH$56:DH$79)>0),1,IF(DH$7="NON RÉALISÉ FACTURÉ",1,0)))) -> 1 | DI15: =$J15*DH15 -> 0.15 | DJ15: =$K15*DH15 -> 0.15 | DK15: =IF(AND(DK$7="EN COURS",SUM(DK$56:DK$79)>0),1,IF(DK$7="TERMINÉ",1,IF(AND(DK$7="EN COURS SAUF GAZ",SUM(DK$56:DK$79)>0),1,IF(DK$7="NON RÉALISÉ FACTURÉ",1,0)))) -> 1 | DL15: =$J15*DK15 -> 0.15 | DM15: =$K15*DK15 -> 0.15 | DN15: =IF(AND(DN$7="EN COURS",SUM(DN$56:DN$79)>0),1,IF(DN$7="TERMINÉ",1,IF(AND(DN$7="EN COURS SAUF GAZ",SUM(DN$56:DN$79)>0),1,IF(DN$7="NON RÉALISÉ FACTURÉ",1,0)))) -> 1 | DO15: =$J15*DN15 -> 0.15 | DP15: =$K15*DN15 -> 0.15 | DQ15: =IF(AND(DQ$7="EN COURS",SUM(DQ$56:DQ$79)>0),1,IF(DQ$7="TERMINÉ",1,IF(AND(DQ$7="EN COURS SAUF GAZ",SUM(DQ$56:DQ$79)>0),1,IF(DQ$7="NON RÉALISÉ FACTURÉ",1,0)))) -> 1 | DR15: =$J15*DQ15 -> 0.15 | DS15: =$K15*DQ15 -> 0.15 | DT15: =IF(AND(DT$7="EN COURS",SUM(DT$56:DT$79)>0),1,IF(DT$7="TERMINÉ",1,IF(AND(DT$7="EN COURS SAUF GAZ",SUM(DT$56:DT$79)>0),1,IF(DT$7="NON RÉALISÉ FACTURÉ",1,0)))) -> 1 | DU15: =$J15*DT15 -> 0.15 | DV15: =$K15*DT15 -> 0.15 | DW15: =IF(AND(DW$7="EN COURS",SUM(DW$56:DW$79)>0),1,IF(DW$7="TERMINÉ",1,IF(AND(DW$7="EN COURS SAUF GAZ",SUM(DW$56:DW$79)>0),1,IF(DW$7="NON RÉALISÉ FACTURÉ",1,0)))) -> 1 | DX15: =$J15*DW15 -> 0.15 | DY15: =$K15*DW15 -> 0.15 | DZ15: =IF(AND(DZ$7="EN COURS",SUM(DZ$56:DZ$79)>0),1,IF(DZ$7="TERMINÉ",1,IF(AND(DZ$7="EN COURS SAUF GAZ",SUM(DZ$56:DZ$79)>0),1,IF(DZ$7="NON RÉALISÉ FACTURÉ",1,0)))) -> 1 | EA15: =$J15*DZ15 -> 0.15 | EB15: =$K15*DZ15 -> 0.15 | EC15: =IF(AND(EC$7="EN COURS",SUM(EC$56:EC$79)>0),1,IF(EC$7="TERMINÉ",1,IF(AND(EC$7="EN COURS SAUF GAZ",SUM(EC$56:EC$79)>0),1,IF(EC$7="NON RÉALISÉ FACTURÉ",1,0)))) -> 0 | ED15: =$J15*EC15 -> 0 | EE15: =$K15*EC15 -> 0 | EF15: =IF(AND(EF$7="EN COURS",SUM(EF$56:EF$79)>0),1,IF(EF$7="TERMINÉ",1,IF(AND(EF$7="EN COURS SAUF GAZ",SUM(EF$56:EF$79)>0),1,IF(EF$7="NON RÉALISÉ FACTURÉ",1,0)))) -> 0 | EG15: =$J15*EF15 -> 0 | EH15: =$K15*EF15 -> 0 | EI15: =IF(AND(EI$7="EN COURS",SUM(EI$56:EI$79)>0),1,IF(EI$7="TERMINÉ",1,IF(AND(EI$7="EN COURS SAUF GAZ",SUM(EI$56:EI$79)>0),1,IF(EI$7="NON RÉALISÉ FACTURÉ",1,0)))) -> 1 | EJ15: =$J15*EI15 -> 0.15 | EK15: =$K15*EI15 -> 0.15 | EL15: =IF(AND(EL$7="EN COURS",SUM(EL$56:EL$79)>0),1,IF(EL$7="TERMINÉ",1,IF(AND(EL$7="EN COURS SAUF GAZ",SUM(EL$56:EL$79)>0),1,IF(EL$7="NON RÉALISÉ FACTURÉ",1,0)))) -> 0 | EM15: =$J15*EL15 -> 0 | EN15: =$K15*EL15 -> 0 | EO15: =IF(AND(EO$7="EN COURS",SUM(EO$56:EO$79)>0),1,IF(EO$7="TERMINÉ",1,IF(AND(EO$7="EN COURS SAUF GAZ",SUM(EO$56:EO$79)>0),1,IF(EO$7="NON RÉALISÉ FACTURÉ",1,0)))) -> 0 | EP15: =$J15*EO15 -> 0 | EQ15: =$K15*EO15 -> 0 | ER15: =IF(AND(ER$7="EN COURS",SUM(ER$56:ER$79)>0),1,IF(ER$7="TERMINÉ",1,IF(AND(ER$7="EN COURS SAUF GAZ",SUM(ER$56:ER$79)>0),1,IF(ER$7="NON RÉALISÉ FACTURÉ",1,0)))) -> 1 | ES15: =$J15*ER15 -> 0.15 | ET15: =$K15*ER15 -> 0.15 | EU15: =IF(AND(EU$7="EN COURS",SUM(EU$56:EU$79)>0),1,IF(EU$7="TERMINÉ",1,IF(AND(EU$7="EN COURS SAUF GAZ",SUM(EU$56:EU$79)>0),1,IF(EU$7="NON RÉALISÉ FACTURÉ",1,0)))) -> 0 | EV15: =$J15*EU15 -> 0 | EW15: =$K15*EU15 -> 0 | EX15: =IF(AND(EX$7="EN COURS",SUM(EX$56:EX$79)>0),1,IF(EX$7="TERMINÉ",1,IF(AND(EX$7="EN COURS SAUF GAZ",SUM(EX$56:EX$79)>0),1,IF(EX$7="NON RÉALISÉ FACTURÉ",1,0)))) -> 0 | EY15: =$J15*EX15 -> 0 | EZ15: =$K15*EX15 -> 0 | FA15: =IF(AND(FA$7="EN COURS",SUM(FA$56:FA$79)>0),1,IF(FA$7="TERMINÉ",1,IF(AND(FA$7="EN COURS SAUF GAZ",SUM(FA$56:FA$79)>0),1,IF(FA$7="NON RÉALISÉ FACTURÉ",1,0)))) -> 0 | FB15: =$J15*FA15 -> 0 | FC15: =$K15*FA15 -> 0 | FD15: =IF(AND(FD$7="EN COURS",SUM(FD$56:FD$79)>0),1,IF(FD$7="TERMINÉ",1,IF(AND(FD$7="EN COURS SAUF GAZ",SUM(FD$56:FD$79)>0),1,IF(FD$7="NON RÉALISÉ FACTURÉ",1,0)))) -> 0 | FE15: =$J15*FD15 -> 0 | FF15: =$K15*FD15 -> 0 | FG15: =IF(AND(FG$7="EN COURS",SUM(FG$56:FG$79)>0),1,IF(FG$7="TERMINÉ",1,IF(AND(FG$7="EN COURS SAUF GAZ",SUM(FG$56:FG$79)>0),1,IF(FG$7="NON RÉALISÉ FACTURÉ",1,0)))) -> 0 | FH15: =$J15*FG15 -> 0 | FI15: =$K15*FG15 -> 0 | FJ15: =IF(AND(FJ$7="EN COURS",SUM(FJ$56:FJ$79)>0),1,IF(FJ$7="TERMINÉ",1,IF(AND(FJ$7="EN COURS SAUF GAZ",SUM(FJ$56:FJ$79)>0),1,IF(FJ$7="NON RÉALISÉ FACTURÉ",1,0)))) -> 1 | FK15: =$J15*FJ15 -> 0.15 | FL15: =$K15*FJ15 -> 0.15 | FM15: =IF(AND(FM$7="EN COURS",SUM(FM$56:FM$79)>0),1,IF(FM$7="TERMINÉ",1,IF(AND(FM$7="EN COURS SAUF GAZ",SUM(FM$56:FM$79)>0),1,IF(FM$7="NON RÉALISÉ FACTURÉ",1,0)))) -> 0 | FN15: =$J15*FM15 -> 0 | FO15: =$K15*FM15 -> 0 | FP15: =IF(AND(FP$7="EN COURS",SUM(FP$56:FP$79)>0),1,IF(FP$7="TERMINÉ",1,IF(AND(FP$7="EN COURS SAUF GAZ",SUM(FP$56:FP$79)>0),1,IF(FP$7="NON RÉALISÉ FACTURÉ",1,0)))) -> 0 | FQ15: =$J15*FP15 -> 0 | FR15: =$K15*FP15 -> 0 | FS15: =IF(AND(FS$7="EN COURS",SUM(FS$56:FS$79)>0),1,IF(FS$7="TERMINÉ",1,IF(AND(FS$7="EN COURS SAUF GAZ",SUM(FS$56:FS$79)>0),1,IF(FS$7="NON RÉALISÉ FACTURÉ",1,0)))) -> 1 | FT15: =$J15*FS15 -> 0.15 | FU15: =$K15*FS15 -> 0.15 | FV15: =IF(AND(FV$7="EN COURS",SUM(FV$56:FV$79)>0),1,IF(FV$7="TERMINÉ",1,IF(AND(FV$7="EN COURS SAUF GAZ",SUM(FV$56:FV$79)>0),1,IF(FV$7="NON RÉALISÉ FACTURÉ",1,0)))) -> 1 | FW15: =$J15*FV15 -> 0.15 | FX15: =$K15*FV15 -> 0.15 | FY15: =IF(AND(FY$7="EN COURS",SUM(FY$56:FY$79)>0),1,IF(FY$7="TERMINÉ",1,IF(AND(FY$7="EN COURS SAUF GAZ",SUM(FY$56:FY$79)>0),1,IF(FY$7="NON RÉALISÉ FACTURÉ",1,0)))) -> 0 | FZ15: =$J15*FY15 -> 0 | GA15: =$K15*FY15 -> 0 | GB15: =IF(AND(GB$7="EN COURS",SUM(GB$56:GB$79)>0),1,IF(GB$7="TERMINÉ",1,IF(AND(GB$7="EN COURS SAUF GAZ",SUM(GB$56:GB$79)>0),1,IF(GB$7="NON RÉALISÉ FACTURÉ",1,0)))) -> 0 | GC15: =$J15*GB15 -> 0 | GD15: =$K15*GB15 -> 0 | GE15: =IF(AND(GE$7="EN COURS",SUM(GE$56:GE$79)>0),1,IF(GE$7="TERMINÉ",1,IF(AND(GE$7="EN COURS SAUF GAZ",SUM(GE$56:GE$79)>0),1,IF(GE$7="NON RÉALISÉ FACTURÉ",1,0)))) -> 0 | GF15: =$J15*GE15 -> 0 | GG15: =$K15*GE15 -> 0 | GH15: =IF(AND(GH$7="EN COURS",SUM(GH$56:GH$79)>0),1,IF(GH$7="TERMINÉ",1,IF(AND(GH$7="EN COURS SAUF GAZ",SUM(GH$56:GH$79)>0),1,IF(GH$7="NON RÉALISÉ FACTURÉ",1,0)))) -> 0 | GI15: =$J15*GH15 -> 0 | GJ15: =$K15*GH15 -> 0 | GK15: =IF(AND(GK$7="EN COURS",SUM(GK$56:GK$79)>0),1,IF(GK$7="TERMINÉ",1,IF(AND(GK$7="EN COURS SAUF GAZ",SUM(GK$56:GK$79)>0),1,IF(GK$7="NON RÉALISÉ FACTURÉ",1,0)))) -> 0 | GL15: =$J15*GK15 -> 0 | GM15: =$K15*GK15 -> 0 | GN15: =IF(AND(GN$7="EN COURS",SUM(GN$56:GN$79)>0),1,IF(GN$7="TERMINÉ",1,IF(AND(GN$7="EN COURS SAUF GAZ",SUM(GN$56:GN$79)>0),1,IF(GN$7="NON RÉALISÉ FACTURÉ",1,0)))) -> 0 | GO15: =$J15*GN15 -> 0 | GP15: =$K15*GN15 -> 0 | GQ15: =IF(AND(GQ$7="EN COURS",SUM(GQ$56:GQ$79)>0),1,IF(GQ$7="TERMINÉ",1,IF(AND(GQ$7="EN COURS SAUF GAZ",SUM(GQ$56:GQ$79)>0),1,IF(GQ$7="NON RÉALISÉ FACTURÉ",1,0)))) -> 0 | GR15: =$J15*GQ15 -> 0 | GS15: =$K15*GQ15 -> 0 | GT15: =IF(AND(GT$7="EN COURS",SUM(GT$56:GT$79)>0),1,IF(GT$7="TERMINÉ",1,IF(AND(GT$7="EN COURS SAUF GAZ",SUM(GT$56:GT$79)>0),1,IF(GT$7="NON RÉALISÉ FACTURÉ",1,0)))) -> 0 | GU15: =$J15*GT15 -> 0 | GV15: =$K15*GT15 -> 0 | GW15: =IF(AND(GW$7="EN COURS",SUM(GW$56:GW$79)>0),1,IF(GW$7="TERMINÉ",1,IF(AND(GW$7="EN COURS SAUF GAZ",SUM(GW$56:GW$79)>0),1,IF(GW$7="NON RÉALISÉ FACTURÉ",1,0)))) -> 0 | GX15: =$J15*GW15 -> 0 | GY15: =$K15*GW15 -> 0 | GZ15: =IF(AND(GZ$7="EN COURS",SUM(GZ$56:GZ$79)>0),1,IF(GZ$7="TERMINÉ",1,IF(AND(GZ$7="EN COURS SAUF GAZ",SUM(GZ$56:GZ$79)>0),1,IF(GZ$7="NON RÉALISÉ FACTURÉ",1,0)))) -> 0 | HA15: =$J15*GZ15 -> 0 | HB15: =$K15*GZ15 -> 0 | HC15: =IF(AND(HC$7="EN COURS",SUM(HC$56:HC$79)>0),1,IF(HC$7="TERMINÉ",1,IF(AND(HC$7="EN COURS SAUF GAZ",SUM(HC$56:HC$79)>0),1,IF(HC$7="NON RÉALISÉ FACTURÉ",1,0)))) -> 0 | HD15: =$J15*HC15 -> 0 | HE15: =$K15*HC15 -> 0 | HF15: =IF(AND(HF$7="EN COURS",SUM(HF$56:HF$79)>0),1,IF(HF$7="TERMINÉ",1,IF(AND(HF$7="EN COURS SAUF GAZ",SUM(HF$56:HF$79)>0),1,IF(HF$7="NON RÉALISÉ FACTURÉ",1,0)))) -> 0 | HG15: =$J15*HF15 -> 0 | HH15: =$K15*HF15 -> 0 | HI15: =IF(AND(HI$7="EN COURS",SUM(HI$56:HI$79)>0),1,IF(HI$7="TERMINÉ",1,IF(AND(HI$7="EN COURS SAUF GAZ",SUM(HI$56:HI$79)>0),1,IF(HI$7="NON RÉALISÉ FACTURÉ",1,0)))) -> 0 | HJ15: =$J15*HI15 -> 0 | HK15: =$K15*HI15 -> 0 | HL15: =IF(AND(HL$7="EN COURS",SUM(HL$56:HL$79)>0),1,IF(HL$7="TERMINÉ",1,IF(AND(HL$7="EN COURS SAUF GAZ",SUM(HL$56:HL$79)>0),1,IF(HL$7="NON RÉALISÉ FACTURÉ",1,0)))) -> 0 | HM15: =$J15*HL15 -> 0 | HN15: =$K15*HL15 -> 0 | HO15: =IF(AND(HO$7="EN COURS",SUM(HO$56:HO$79)>0),1,IF(HO$7="TERMINÉ",1,IF(AND(HO$7="EN COURS SAUF GAZ",SUM(HO$56:HO$79)>0),1,IF(HO$7="NON RÉALISÉ FACTURÉ",1,0)))) -> 0 | HP15: =$J15*HO15 -> 0 | HQ15: =$K15*HO15 -> 0 | HR15: =IF(AND(HR$7="EN COURS",SUM(HR$56:HR$79)>0),1,IF(HR$7="TERMINÉ",1,IF(AND(HR$7="EN COURS SAUF GAZ",SUM(HR$56:HR$79)>0),1,IF(HR$7="NON RÉALISÉ FACTURÉ",1,0)))) -> 0 | HS15: =$J15*HR15 -> 0 | HT15: =$K15*HR15 -> 0 | HU15: =IF(AND(HU$7="EN COURS",SUM(HU$56:HU$79)>0),1,IF(HU$7="TERMINÉ",1,IF(AND(HU$7="EN COURS SAUF GAZ",SUM(HU$56:HU$79)>0),1,IF(HU$7="NON RÉALISÉ FACTURÉ",1,0)))) -> 0 | HV15: =$J15*HU15 -> 0 | HW15: =$K15*HU15 -> 0 | HX15: =IF(AND(HX$7="EN COURS",SUM(HX$56:HX$79)>0),1,IF(HX$7="TERMINÉ",1,IF(AND(HX$7="EN COURS SAUF GAZ",SUM(HX$56:HX$79)>0),1,IF(HX$7="NON RÉALISÉ FACTURÉ",1,0)))) -> 0 | HY15: =$J15*HX15 -> 0 | HZ15: =$K15*HX15 -> 0 | IA15: =IF(AND(IA$7="EN COURS",SUM(IA$56:IA$79)>0),1,IF(IA$7="TERMINÉ",1,IF(AND(IA$7="EN COURS SAUF GAZ",SUM(IA$56:IA$79)>0),1,IF(IA$7="NON RÉALISÉ FACTURÉ",1,0)))) -> 0 | IB15: =$J15*IA15 -> 0 | IC15: =$K15*IA15 -> 0 | ID15: =IF(AND(ID$7="EN COURS",SUM(ID$56:ID$79)>0),1,IF(ID$7="TERMINÉ",1,IF(AND(ID$7="EN COURS SAUF GAZ",SUM(ID$56:ID$79)>0),1,IF(ID$7="NON RÉALISÉ FACTURÉ",1,0)))) -> 0 | IE15: =$J15*ID15 -> 0 | IF15: =$K15*ID15 -> 0 | IG15: =IF(AND(IG$7="EN COURS",SUM(IG$56:IG$79)>0),1,IF(IG$7="TERMINÉ",1,IF(AND(IG$7="EN COURS SAUF GAZ",SUM(IG$56:IG$79)>0),1,IF(IG$7="NON RÉALISÉ FACTURÉ",1,0)))) -> 0 | IH15: =$J15*IG15 -> 0 | II15: =$K15*IG15 -> 0 | IJ15: =IF(AND(IJ$7="EN COURS",SUM(IJ$56:IJ$79)>0),1,IF(IJ$7="TERMINÉ",1,IF(AND(IJ$7="EN COURS SAUF GAZ",SUM(IJ$56:IJ$79)>0),1,IF(IJ$7="NON RÉALISÉ FACTURÉ",1,0)))) -> 0 | IK15: =$J15*IJ15 -> 0 | IL15: =$K15*IJ15 -> 0 | IM15: =IF(AND(IM$7="EN COURS",SUM(IM$56:IM$79)>0),1,IF(IM$7="TERMINÉ",1,IF(AND(IM$7="EN COURS SAUF GAZ",SUM(IM$56:IM$79)>0),1,IF(IM$7="NON RÉALISÉ FACTURÉ",1,0)))) -> 0 | IN15: =$J15*IM15 -> 0 | IO15: =$K15*IM15 -> 0 | IP15: =IF(AND(IP$7="EN COURS",SUM(IP$56:IP$79)>0),1,IF(IP$7="TERMINÉ",1,IF(AND(IP$7="EN COURS SAUF GAZ",SUM(IP$56:IP$79)>0),1,IF(IP$7="NON RÉALISÉ FACTURÉ",1,0)))) -> 0 | IQ15: =$J15*IP15 -> 0 | IR15: =$K15*IP15 -> 0 | IS15: =IF(AND(IS$7="EN COURS",SUM(IS$56:IS$79)>0),1,IF(IS$7="TERMINÉ",1,IF(AND(IS$7="EN COURS SAUF GAZ",SUM(IS$56:IS$79)>0),1,IF(IS$7="NON RÉALISÉ FACTURÉ",1,0)))) -> 0 | IT15: =$J15*IS15 -> 0 | IU15: =$K15*IS15 -> 0 | IV15: =IF(AND(IV$7="EN COURS",SUM(IV$56:IV$79)>0),1,IF(IV$7="TERMINÉ",1,IF(AND(IV$7="EN COURS SAUF GAZ",SUM(IV$56:IV$79)>0),1,IF(IV$7="NON RÉALISÉ FACTURÉ",1,0)))) -> 0 | IW15: =$J15*IV15 -> 0 | IX15: =$K15*IV15 -> 0 | IY15: =IF(AND(IY$7="EN COURS",SUM(IY$56:IY$79)>0),1,IF(IY$7="TERMINÉ",1,IF(AND(IY$7="EN COURS SAUF GAZ",SUM(IY$56:IY$79)>0),1,IF(IY$7="NON RÉALISÉ FACTURÉ",1,0)))) -> 0 | IZ15: =$J15*IY15 -> 0 | JA15: =$K15*IY15 -> 0 | JB15: =IF(AND(JB$7="EN COURS",SUM(JB$56:JB$79)>0),1,IF(JB$7="TERMINÉ",1,IF(AND(JB$7="EN COURS SAUF GAZ",SUM(JB$56:JB$79)>0),1,IF(JB$7="NON RÉALISÉ FACTURÉ",1,0)))) -> 0 | JC15: =$J15*JB15 -> 0 | JD15: =$K15*JB15 -> 0 | JE15: =IF(AND(JE$7="EN COURS",SUM(JE$56:JE$79)>0),1,IF(JE$7="TERMINÉ",1,IF(AND(JE$7="EN COURS SAUF GAZ",SUM(JE$56:JE$79)>0),1,IF(JE$7="NON RÉALISÉ FACTURÉ",1,0)))) -> 0 | JF15: =$J15*JE15 -> 0 | JG15: =$K15*JE15 -> 0 | JH15: =IF(AND(JH$7="EN COURS",SUM(JH$56:JH$79)>0),1,IF(JH$7="TERMINÉ",1,IF(AND(JH$7="EN COURS SAUF GAZ",SUM(JH$56:JH$79)>0),1,IF(JH$7="NON RÉALISÉ FACTURÉ",1,0)))) -> 0 | JI15: =$J15*JH15 -> 0 | JJ15: =$K15*JH15 -> 0 | JK15: =IF(AND(JK$7="EN COURS",SUM(JK$56:JK$79)>0),1,IF(JK$7="TERMINÉ",1,IF(AND(JK$7="EN COURS SAUF GAZ",SUM(JK$56:JK$79)>0),1,IF(JK$7="NON RÉALISÉ FACTURÉ",1,0)))) -> 0 | JL15: =$J15*JK15 -> 0 | JM15: =$K15*JK15 -> 0 | JN15: =IF(AND(JN$7="EN COURS",SUM(JN$56:JN$79)>0),1,IF(JN$7="TERMINÉ",1,IF(AND(JN$7="EN COURS SAUF GAZ",SUM(JN$56:JN$79)>0),1,IF(JN$7="NON RÉALISÉ FACTURÉ",1,0)))) -> 0 | JO15: =$J15*JN15 -> 0 | JP15: =$K15*JN15 -> 0 | JQ15: =IF(AND(JQ$7="EN COURS",SUM(JQ$56:JQ$79)>0),1,IF(JQ$7="TERMINÉ",1,IF(AND(JQ$7="EN COURS SAUF GAZ",SUM(JQ$56:JQ$79)>0),1,IF(JQ$7="NON RÉALISÉ FACTURÉ",1,0)))) -> 0 | JR15: =$J15*JQ15 -> 0 | JS15: =$K15*JQ15 -> 0 | JT15: =IF(AND(JT$7="EN COURS",SUM(JT$56:JT$79)>0),1,IF(JT$7="TERMINÉ",1,IF(AND(JT$7="EN COURS SAUF GAZ",SUM(JT$56:JT$79)>0),1,IF(JT$7="NON RÉALISÉ FACTURÉ",1,0)))) -> 0 | JU15: =$J15*JT15 -> 0 | JV15: =$K15*JT15 -> 0 | JW15: =IF(AND(JW$7="EN COURS",SUM(JW$56:JW$79)>0),1,IF(JW$7="TERMINÉ",1,IF(AND(JW$7="EN COURS SAUF GAZ",SUM(JW$56:JW$79)>0),1,IF(JW$7="NON RÉALISÉ FACTURÉ",1,0)))) -> 0 | JX15: =$J15*JW15 -> 0 | JY15: =$K15*JW15 -> 0 | JZ15: =IF(AND(JZ$7="EN COURS",SUM(JZ$56:JZ$79)>0),1,IF(JZ$7="TERMINÉ",1,IF(AND(JZ$7="EN COURS SAUF GAZ",SUM(JZ$56:JZ$79)>0),1,IF(JZ$7="NON RÉALISÉ FACTURÉ",1,0)))) -> 0 | KA15: =$J15*JZ15 -> 0 | KB15: =$K15*JZ15 -> 0 | KC15: =IF(AND(KC$7="EN COURS",SUM(KC$56:KC$79)>0),1,IF(KC$7="TERMINÉ",1,IF(AND(KC$7="EN COURS SAUF GAZ",SUM(KC$56:KC$79)>0),1,IF(KC$7="NON RÉALISÉ FACTURÉ",1,0)))) -> 0 | KD15: =$J15*KC15 -> 0 | KE15: =$K15*KC15 -> 0 | KF15: =IF(AND(KF$7="EN COURS",SUM(KF$56:KF$79)>0),1,IF(KF$7="TERMINÉ",1,IF(AND(KF$7="EN COURS SAUF GAZ",SUM(KF$56:KF$79)>0),1,IF(KF$7="NON RÉALISÉ FACTURÉ",1,0)))) -> 0 | KG15: =$J15*KF15 -> 0 | KH15: =$K15*KF15 -> 0 | KI15: =IF(AND(KI$7="EN COURS",SUM(KI$56:KI$79)>0),1,IF(KI$7="TERMINÉ",1,IF(AND(KI$7="EN COURS SAUF GAZ",SUM(KI$56:KI$79)>0),1,IF(KI$7="NON RÉALISÉ FACTURÉ",1,0)))) -> 0 | KJ15: =$J15*KI15 -> 0 | KK15: =$K15*KI15 -> 0 | KL15: =IF(AND(KL$7="EN COURS",SUM(KL$56:KL$79)>0),1,IF(KL$7="TERMINÉ",1,IF(AND(KL$7="EN COURS SAUF GAZ",SUM(KL$56:KL$79)>0),1,IF(KL$7="NON RÉALISÉ FACTURÉ",1,0)))) -> 0 | KM15: =$J15*KL15 -> 0 | KN15: =$K15*KL15 -> 0 | KO15: =IF(AND(KO$7="EN COURS",SUM(KO$56:KO$79)>0),1,IF(KO$7="TERMINÉ",1,IF(AND(KO$7="EN COURS SAUF GAZ",SUM(KO$56:KO$79)>0),1,IF(KO$7="NON RÉALISÉ FACTURÉ",1,0)))) -> 0 | KP15: =$J15*KO15 -> 0 | KQ15: =$K15*KO15 -> 0 | KR15: =IF(AND(KR$7="EN COURS",SUM(KR$56:KR$79)>0),1,IF(KR$7="TERMINÉ",1,IF(AND(KR$7="EN COURS SAUF GAZ",SUM(KR$56:KR$79)>0),1,IF(KR$7="NON RÉALISÉ FACTURÉ",1,0)))) -> 0 | KS15: =$J15*KR15 -> 0 | KT15: =$K15*KR15 -> 0 | KU15: =IF(AND(KU$7="EN COURS",SUM(KU$56:KU$79)>0),1,IF(KU$7="TERMINÉ",1,IF(AND(KU$7="EN COURS SAUF GAZ",SUM(KU$56:KU$79)>0),1,IF(KU$7="NON RÉALISÉ FACTURÉ",1,0)))) -> 0 | KV15: =$J15*KU15 -> 0 | KW15: =$K15*KU15 -> 0 | KX15: =IF(AND(KX$7="EN COURS",SUM(KX$56:KX$79)>0),1,IF(KX$7="TERMINÉ",1,IF(AND(KX$7="EN COURS SAUF GAZ",SUM(KX$56:KX$79)>0),1,IF(KX$7="NON RÉALISÉ FACTURÉ",1,0)))) -> 0 | KY15: =$J15*KX15 -> 0 | KZ15: =$K15*KX15 -> 0 | LA15: =IF(AND(LA$7="EN COURS",SUM(LA$56:LA$79)>0),1,IF(LA$7="TERMINÉ",1,IF(AND(LA$7="EN COURS SAUF GAZ",SUM(LA$56:LA$79)>0),1,IF(LA$7="NON RÉALISÉ FACTURÉ",1,0)))) -> 0 | LB15: =$J15*LA15 -> 0 | LC15: =$K15*LA15 -> 0 | LD15: =IF(AND(LD$7="EN COURS",SUM(LD$56:LD$79)>0),1,IF(LD$7="TERMINÉ",1,IF(AND(LD$7="EN COURS SAUF GAZ",SUM(LD$56:LD$79)>0),1,IF(LD$7="NON RÉALISÉ FACTURÉ",1,0)))) -> 0 | LE15: =$J15*LD15 -> 0 | LF15: =$K15*LD15 -> 0 | LG15: =IF(AND(LG$7="EN COURS",SUM(LG$56:LG$79)>0),1,IF(LG$7="TERMINÉ",1,IF(AND(LG$7="EN COURS SAUF GAZ",SUM(LG$56:LG$79)>0),1,IF(LG$7="NON RÉALISÉ FACTURÉ",1,0)))) -> 0 | LH15: =$J15*LG15 -> 0 | LI15: =$K15*LG15 -> 0 | LJ15: =IF(AND(LJ$7="EN COURS",SUM(LJ$56:LJ$79)>0),1,IF(LJ$7="TERMINÉ",1,IF(AND(LJ$7="EN COURS SAUF GAZ",SUM(LJ$56:LJ$79)>0),1,IF(LJ$7="NON RÉALISÉ FACTURÉ",1,0)))) -> 0 | LK15: =$J15*LJ15 -> 0 | LL15: =$K15*LJ15 -> 0 | LM15: =IF(AND(LM$7="EN COURS",SUM(LM$56:LM$79)>0),1,IF(LM$7="TERMINÉ",1,IF(AND(LM$7="EN COURS SAUF GAZ",SUM(LM$56:LM$79)>0),1,IF(LM$7="NON RÉALISÉ FACTURÉ",1,0)))) -> 0 | LN15: =$J15*LM15 -> 0 | LO15: =$K15*LM15 -> 0 | LP15: =IF(AND(LP$7="EN COURS",SUM(LP$56:LP$79)>0),1,IF(LP$7="TERMINÉ",1,IF(AND(LP$7="EN COURS SAUF GAZ",SUM(LP$56:LP$79)>0),1,IF(LP$7="NON RÉALISÉ FACTURÉ",1,0)))) -> 0 | LQ15: =$J15*LP15 -> 0 | LR15: =$K15*LP15 -> 0 | LS15: =IF(AND(LS$7="EN COURS",SUM(LS$56:LS$79)>0),1,IF(LS$7="TERMINÉ",1,IF(AND(LS$7="EN COURS SAUF GAZ",SUM(LS$56:LS$79)>0),1,IF(LS$7="NON RÉALISÉ FACTURÉ",1,0)))) -> 0 | LT15: =$J15*LS15 -> 0 | LU15: =$K15*LS15 -> 0 | LV15: =IF(AND(LV$7="EN COURS",SUM(LV$56:LV$79)>0),1,IF(LV$7="TERMINÉ",1,IF(AND(LV$7="EN COURS SAUF GAZ",SUM(LV$56:LV$79)>0),1,IF(LV$7="NON RÉALISÉ FACTURÉ",1,0)))) -> 0 | LW15: =$J15*LV15 -> 0 | LX15: =$K15*LV15 -> 0 | LY15: =IF(AND(LY$7="EN COURS",SUM(LY$56:LY$79)>0),1,IF(LY$7="TERMINÉ",1,IF(AND(LY$7="EN COURS SAUF GAZ",SUM(LY$56:LY$79)>0),1,IF(LY$7="NON RÉALISÉ FACTURÉ",1,0)))) -> 0 | LZ15: =$J15*LY15 -> 0 | MA15: =$K15*LY15 -> 0 | MB15: =IF(AND(MB$7="EN COURS",SUM(MB$56:MB$79)>0),1,IF(MB$7="TERMINÉ",1,IF(AND(MB$7="EN COURS SAUF GAZ",SUM(MB$56:MB$79)>0),1,IF(MB$7="NON RÉALISÉ FACTURÉ",1,0)))) -> 0 | MC15: =$J15*MB15 -> 0 | MD15: =$K15*MB15 -> 0 | ME15: =IF(AND(ME$7="EN COURS",SUM(ME$56:ME$79)>0),1,IF(ME$7="TERMINÉ",1,IF(AND(ME$7="EN COURS SAUF GAZ",SUM(ME$56:ME$79)>0),1,IF(ME$7="NON RÉALISÉ FACTURÉ",1,0)))) -> 0 | MF15: =$J15*ME15 -> 0 | MG15: =$K15*ME15 -> 0 | MH15: =IF(AND(MH$7="EN COURS",SUM(MH$56:MH$79)>0),1,IF(MH$7="TERMINÉ",1,IF(AND(MH$7="EN COURS SAUF GAZ",SUM(MH$56:MH$79)>0),1,IF(MH$7="NON RÉALISÉ FACTURÉ",1,0)))) -> 0 | MI15: =$J15*MH15 -> 0 | MJ15: =$K15*MH15 -> 0 | MK15: =IF(AND(MK$7="EN COURS",SUM(MK$56:MK$79)>0),1,IF(MK$7="TERMINÉ",1,IF(AND(MK$7="EN COURS SAUF GAZ",SUM(MK$56:MK$79)>0),1,IF(MK$7="NON RÉALISÉ FACTURÉ",1,0)))) -> 0 | ML15: =$J15*MK15 -> 0 | MM15: =$K15*MK15 -> 0 | MN15: =IF(AND(MN$7="EN COURS",SUM(MN$56:MN$79)>0),1,IF(MN$7="TERMINÉ",1,IF(AND(MN$7="EN COURS SAUF GAZ",SUM(MN$56:MN$79)>0),1,IF(MN$7="NON RÉALISÉ FACTURÉ",1,0)))) -> 0 | MO15: =$J15*MN15 -> 0 | MP15: =$K15*MN15 -> 0
E16: =S16+V16+Y16+AB16+AE16+AH16+AK16+AN16+AQ16+AT16+AW16+AZ16+BC16+BF16+BI16+BL16+BO16+BR16+BU16+BX16+CA16+CD16+CG16+CJ16+CM16+CP16+CS16+CV16+CY16+DB16+DE16+DH16+DK16+DN16+DQ16+DT16+DW16+DZ16+EC16+EF16+EI16+EL16+EO16+ER16+EU16+EX16+FA16+FD16+FG16+FJ16+FM16+FP16+FS16+FV16+FY16+GB16+GE16+GH16+GK16+GN16+GQ16+GT16+GW16+GZ16+HC16+HF16+HI16+HL16+HO16+HR16+HU16+HX16+IA16+ID16+IG16+IJ16+IM16+IP16+IS16+IV16+IY16+JB16+JE16+JH16+JK16+JN16+JQ16+JT16+JW16+JZ16+KC16+KF16+KI16+KL16+KO16+KR16+KU16+KX16+LA16+LD16+LG16+LJ16+LM16+LP16+LS16+LV16+LY16+MB16+ME16+MH16+MK16+MN16 -> 0 | Q16: =L16+N16+P16 -> 0 | T16: =$J16*S16 -> 0 | W16: =$J16*V16 -> 0 | Z16: =$J16*Y16 -> 0 | AC16: =$J16*AB16 -> 0 | AF16: =$J16*AE16 -> 0 | AI16: =$J16*AH16 -> 0 | AL16: =$J16*AK16 -> 0 | AO16: =$J16*AN16 -> 0 | AR16: =$J16*AQ16 -> 0 | AU16: =$J16*AT16 -> 0 | AX16: =$J16*AW16 -> 0 | BA16: =$J16*AZ16 -> 0 | BD16: =$J16*BC16 -> 0 | BG16: =$J16*BF16 -> 0 | BJ16: =$J16*BI16 -> 0 | BM16: =$J16*BL16 -> 0 | BP16: =$J16*BO16 -> 0 | BS16: =$J16*BR16 -> 0 | BV16: =$J16*BU16 -> 0 | BY16: =$J16*BX16 -> 0 | CB16: =$J16*CA16 -> 0 | CE16: =$J16*CD16 -> 0 | CH16: =$J16*CG16 -> 0 | CK16: =$J16*CJ16 -> 0 | CN16: =$J16*CM16 -> 0 | CQ16: =$J16*CP16 -> 0 | CT16: =$J16*CS16 -> 0 | CW16: =$J16*CV16 -> 0 | CZ16: =$J16*CY16 -> 0 | DC16: =$J16*DB16 -> 0 | DF16: =$J16*DE16 -> 0 | DI16: =$J16*DH16 -> 0 | DL16: =$J16*DK16 -> 0 | DO16: =$J16*DN16 -> 0 | DR16: =$J16*DQ16 -> 0 | DU16: =$J16*DT16 -> 0 | DX16: =$J16*DW16 -> 0 | EA16: =$J16*DZ16 -> 0 | ED16: =$J16*EC16 -> 0 | EG16: =$J16*EF16 -> 0 | EJ16: =$J16*EI16 -> 0 | EM16: =$J16*EL16 -> 0 | EP16: =$J16*EO16 -> 0 | ES16: =$J16*ER16 -> 0 | EV16: =$J16*EU16 -> 0 | EY16: =$J16*EX16 -> 0 | FB16: =$J16*FA16 -> 0 | FE16: =$J16*FD16 -> 0 | FH16: =$J16*FG16 -> 0 | FK16: =$J16*FJ16 -> 0 | FN16: =$J16*FM16 -> 0 | FQ16: =$J16*FP16 -> 0 | FT16: =$J16*FS16 -> 0 | FW16: =$J16*FV16 -> 0 | FZ16: =$J16*FY16 -> 0 | GC16: =$J16*GB16 -> 0 | GF16: =$J16*GE16 -> 0 | GI16: =$J16*GH16 -> 0 | GL16: =$J16*GK16 -> 0 | GO16: =$J16*GN16 -> 0 | GR16: =$J16*GQ16 -> 0 | GU16: =$J16*GT16 -> 0 | GX16: =$J16*GW16 -> 0 | HA16: =$J16*GZ16 -> 0 | HD16: =$J16*HC16 -> 0 | HG16: =$J16*HF16 -> 0 | HJ16: =$J16*HI16 -> 0 | HM16: =$J16*HL16 -> 0 | HP16: =$J16*HO16 -> 0 | HS16: =$J16*HR16 -> 0 | HV16: =$J16*HU16 -> 0 | HY16: =$J16*HX16 -> 0 | IB16: =$J16*IA16 -> 0 | IE16: =$J16*ID16 -> 0 | IH16: =$J16*IG16 -> 0 | IK16: =$J16*IJ16 -> 0 | IN16: =$J16*IM16 -> 0 | IQ16: =$J16*IP16 -> 0 | IT16: =$J16*IS16 -> 0 | IW16: =$J16*IV16 -> 0 | IZ16: =$J16*IY16 -> 0 | JC16: =$J16*JB16 -> 0 | JF16: =$J16*JE16 -> 0 | JI16: =$J16*JH16 -> 0 | JL16: =$J16*JK16 -> 0 | JO16: =$J16*JN16 -> 0 | JR16: =$J16*JQ16 -> 0 | JU16: =$J16*JT16 -> 0 | JX16: =$J16*JW16 -> 0 | KA16: =$J16*JZ16 -> 0 | KD16: =$J16*KC16 -> 0 | KG16: =$J16*KF16 -> 0 | KJ16: =$J16*KI16 -> 0 | KM16: =$J16*KL16 -> 0 | KP16: =$J16*KO16 -> 0 | KS16: =$J16*KR16 -> 0 | KV16: =$J16*KU16 -> 0 | KY16: =$J16*KX16 -> 0 | LB16: =$J16*LA16 -> 0 | LE16: =$J16*LD16 -> 0 | LH16: =$J16*LG16 -> 0 | LK16: =$J16*LJ16 -> 0 | LN16: =$J16*LM16 -> 0 | LQ16: =$J16*LP16 -> 0 | LT16: =$J16*LS16 -> 0 | LW16: =$J16*LV16 -> 0 | LZ16: =$J16*LY16 -> 0 | MC16: =$J16*MB16 -> 0 | MF16: =$J16*ME16 -> 0 | MI16: =$J16*MH16 -> 0 | ML16: =$J16*MK16 -> 0 | MO16: =$J16*MN16 -> 0
A17: Gaz : | E17: =S17+V17+Y17+AB17+AE17+AH17+AK17+AN17+AQ17+AT17+AW17+AZ17+BC17+BF17+BI17+BL17+BO17+BR17+BU17+BX17+CA17+CD17+CG17+CJ17+CM17+CP17+CS17+CV17+CY17+DB17+DE17+DH17+DK17+DN17+DQ17+DT17+DW17+DZ17+EC17+EF17+EI17+EL17+EO17+ER17+EU17+EX17+FA17+FD17+FG17+FJ17+FM17+FP17+FS17+FV17+FY17+GB17+GE17+GH17+GK17+GN17+GQ17+GT17+GW17+GZ17+HC17+HF17+HI17+HL17+HO17+HR17+HU17+HX17+IA17+ID17+IG17+IJ17+IM17+IP17+IS17+IV17+IY17+JB17+JE17+JH17+JK17+JN17+JQ17+JT17+JW17+JZ17+KC17+KF17+KI17+KL17+KO17+KR17+KU17+KX17+LA17+LD17+LG17+LJ17+LM17+LP17+LS17+LV17+LY17+MB17+ME17+MH17+MK17+MN17 -> 0 | Q17: =L17+N17+P17 -> 0 | T17: =$J17*S17 -> 0 | W17: =$J17*V17 -> 0 | Z17: =$J17*Y17 -> 0 | AC17: =$J17*AB17 -> 0 | AF17: =$J17*AE17 -> 0 | AI17: =$J17*AH17 -> 0 | AL17: =$J17*AK17 -> 0 | AO17: =$J17*AN17 -> 0 | AR17: =$J17*AQ17 -> 0 | AU17: =$J17*AT17 -> 0 | AX17: =$J17*AW17 -> 0 | BA17: =$J17*AZ17 -> 0 | BD17: =$J17*BC17 -> 0 | BG17: =$J17*BF17 -> 0 | BJ17: =$J17*BI17 -> 0 | BM17: =$J17*BL17 -> 0 | BP17: =$J17*BO17 -> 0 | BS17: =$J17*BR17 -> 0 | BV17: =$J17*BU17 -> 0 | BY17: =$J17*BX17 -> 0 | CB17: =$J17*CA17 -> 0 | CE17: =$J17*CD17 -> 0 | CH17: =$J17*CG17 -> 0 | CK17: =$J17*CJ17 -> 0 | CN17: =$J17*CM17 -> 0 | CQ17: =$J17*CP17 -> 0 | CT17: =$J17*CS17 -> 0 | CW17: =$J17*CV17 -> 0 | CZ17: =$J17*CY17 -> 0 | DC17: =$J17*DB17 -> 0 | DF17: =$J17*DE17 -> 0 | DI17: =$J17*DH17 -> 0 | DL17: =$J17*DK17 -> 0 | DO17: =$J17*DN17 -> 0 | DR17: =$J17*DQ17 -> 0 | DU17: =$J17*DT17 -> 0 | DX17: =$J17*DW17 -> 0 | EA17: =$J17*DZ17 -> 0 | ED17: =$J17*EC17 -> 0 | EG17: =$J17*EF17 -> 0 | EJ17: =$J17*EI17 -> 0 | EM17: =$J17*EL17 -> 0 | EP17: =$J17*EO17 -> 0 | ES17: =$J17*ER17 -> 0 | EV17: =$J17*EU17 -> 0 | EY17: =$J17*EX17 -> 0 | FB17: =$J17*FA17 -> 0 | FE17: =$J17*FD17 -> 0 | FH17: =$J17*FG17 -> 0 | FK17: =$J17*FJ17 -> 0 | FN17: =$J17*FM17 -> 0 | FQ17: =$J17*FP17 -> 0 | FT17: =$J17*FS17 -> 0 | FW17: =$J17*FV17 -> 0 | FZ17: =$J17*FY17 -> 0 | GC17: =$J17*GB17 -> 0 | GF17: =$J17*GE17 -> 0 | GI17: =$J17*GH17 -> 0 | GL17: =$J17*GK17 -> 0 | GO17: =$J17*GN17 -> 0 | GR17: =$J17*GQ17 -> 0 | GU17: =$J17*GT17 -> 0 | GX17: =$J17*GW17 -> 0 | HA17: =$J17*GZ17 -> 0 | HD17: =$J17*HC17 -> 0 | HG17: =$J17*HF17 -> 0 | HJ17: =$J17*HI17 -> 0 | HM17: =$J17*HL17 -> 0 | HP17: =$J17*HO17 -> 0 | HS17: =$J17*HR17 -> 0 | HV17: =$J17*HU17 -> 0 | HY17: =$J17*HX17 -> 0 | IB17: =$J17*IA17 -> 0 | IE17: =$J17*ID17 -> 0 | IH17: =$J17*IG17 -> 0 | IK17: =$J17*IJ17 -> 0 | IN17: =$J17*IM17 -> 0 | IQ17: =$J17*IP17 -> 0 | IT17: =$J17*IS17 -> 0 | IW17: =$J17*IV17 -> 0 | IZ17: =$J17*IY17 -> 0 | JC17: =$J17*JB17 -> 0 | JF17: =$J17*JE17 -> 0 | JI17: =$J17*JH17 -> 0 | JL17: =$J17*JK17 -> 0 | JO17: =$J17*JN17 -> 0 | JR17: =$J17*JQ17 -> 0 | JU17: =$J17*JT17 -> 0 | JX17: =$J17*JW17 -> 0 | KA17: =$J17*JZ17 -> 0 | KD17: =$J17*KC17 -> 0 | KG17: =$J17*KF17 -> 0 | KJ17: =$J17*KI17 -> 0 | KM17: =$J17*KL17 -> 0 | KP17: =$J17*KO17 -> 0 | KS17: =$J17*KR17 -> 0 | KV17: =$J17*KU17 -> 0 | KY17: =$J17*KX17 -> 0 | LB17: =$J17*LA17 -> 0 | LE17: =$J17*LD17 -> 0 | LH17: =$J17*LG17 -> 0 | LK17: =$J17*LJ17 -> 0 | LN17: =$J17*LM17 -> 0 | LQ17: =$J17*LP17 -> 0 | LT17: =$J17*LS17 -> 0 | LW17: =$J17*LV17 -> 0 | LZ17: =$J17*LY17 -> 0 | MC17: =$J17*MB17 -> 0 | MF17: =$J17*ME17 -> 0 | MI17: =$J17*MH17 -> 0 | ML17: =$J17*MK17 -> 0 | MO17: =$J17*MN17 -> 0
A19: Raccordement ROAI | B19: 112 | E19: =S19+V19+Y19+AB19+AE19+AH19+AK19+AN19+AQ19+AT19+AW19+AZ19+BC19+BF19+BI19+BL19+BO19+BR19+BU19+BX19+CA19+CD19+CG19+CJ19+CM19+CP19+CS19+CV19+CY19+DB19+DE19+DH19+DK19+DN19+DQ19+DT19+DW19+DZ19+EC19+EF19+EI19+EL19+EO19+ER19+EU19+EX19+FA19+FD19+FG19+FJ19+FM19+FP19+FS19+FV19+FY19+GB19+GE19+GH19+GK19+GN19+GQ19+GT19+GW19+GZ19+HC19+HF19+HI19+HL19+HO19+HR19+HU19+HX19+IA19+ID19+IG19+IJ19+IM19+IP19+IS19+IV19+IY19+JB19+JE19+JH19+JK19+JN19+JQ19+JT19+JW19+JZ19+KC19+KF19+KI19+KL19+KO19+KR19+KU19+KX19+LA19+LD19+LG19+LJ19+LM19+LP19+LS19+LV19+LY19+MB19+ME19+MH19+MK19+MN19 -> 51 | F19: 112 | G19: =(E19/F19)*100 -> 45.53571429 | J19: =1.45 -> 1.45 | K19: =J19 -> 1.45 | L19: =112*K19 -> 162.4 | Q19: =L19+N19+P19 -> 162.4 | S19: =IF(S$7="EN COURS",1,IF(S$7="TERMINÉ",1,IF(S$7="NON RÉALISÉ FACTURÉ",1,0))) -> 1 | T19: =$J19*S19 -> 1.45 | U19: =$K19*S19 -> 1.45 | V19: =IF(V$7="EN COURS",1,IF(V$7="TERMINÉ",1,IF(V$7="NON RÉALISÉ FACTURÉ",1,0))) -> 1 | W19: =$J19*V19 -> 1.45 | X19: =$K19*V19 -> 1.45 | Y19: =IF(Y$7="EN COURS",1,IF(Y$7="TERMINÉ",1,IF(Y$7="NON RÉALISÉ FACTURÉ",1,0))) -> 1 | Z19: =$J19*Y19 -> 1.45 | AA19: =$K19*Y19 -> 1.45 | AB19: =IF(AB$7="EN COURS",1,IF(AB$7="TERMINÉ",1,IF(AB$7="NON RÉALISÉ FACTURÉ",1,0))) -> 1 | AC19: =$J19*AB19 -> 1.45 | AD19: =$K19*AB19 -> 1.45 | AE19: =IF(AE$7="EN COURS",1,IF(AE$7="TERMINÉ",1,IF(AE$7="NON RÉALISÉ FACTURÉ",1,0))) -> 1 | AF19: =$J19*AE19 -> 1.45 | AG19: =$K19*AE19 -> 1.45 | AH19: =IF(AH$7="EN COURS",1,IF(AH$7="TERMINÉ",1,IF(AH$7="NON RÉALISÉ FACTURÉ",1,0))) -> 1 | AI19: =$J19*AH19 -> 1.45 | AJ19: =$K19*AH19 -> 1.45 | AK19: =IF(AK$7="EN COURS",1,IF(AK$7="TERMINÉ",1,IF(AK$7="NON RÉALISÉ FACTURÉ",1,0))) -> 1 | AL19: =$J19*AK19 -> 1.45 | AM19: =$K19*AK19 -> 1.45 | AN19: =IF(AN$7="EN COURS",1,IF(AN$7="TERMINÉ",1,IF(AN$7="NON RÉALISÉ FACTURÉ",1,0))) -> 1 | AO19: =$J19*AN19 -> 1.45 | AP19: =$K19*AN19 -> 1.45 | AQ19: =IF(AQ$7="EN COURS",1,IF(AQ$7="TERMINÉ",1,IF(AQ$7="NON RÉALISÉ FACTURÉ",1,0))) -> 1 | AR19: =$J19*AQ19 -> 1.45 | AS19: =$K19*AQ19 -> 1.45 | AT19: =IF(AT$7="EN COURS",1,IF(AT$7="TERMINÉ",1,IF(AT$7="NON RÉALISÉ FACTURÉ",1,0))) -> 1 | AU19: =$J19*AT19 -> 1.45 | AV19: =$K19*AT19 -> 1.45 | AW19: =IF(AW$7="EN COURS",1,IF(AW$7="TERMINÉ",1,IF(AW$7="NON RÉALISÉ FACTURÉ",1,0))) -> 1 | AX19: =$J19*AW19 -> 1.45 | AY19: =$K19*AW19 -> 1.45 | AZ19: =IF(AZ$7="EN COURS",1,IF(AZ$7="TERMINÉ",1,IF(AZ$7="NON RÉALISÉ FACTURÉ",1,0))) -> 1 | BA19: =$J19*AZ19 -> 1.45 | BB19: =$K19*AZ19 -> 1.45 | BC19: =IF(BC$7="EN COURS",1,IF(BC$7="TERMINÉ",1,IF(BC$7="NON RÉALISÉ FACTURÉ",1,0))) -> 1 | BD19: =$J19*BC19 -> 1.45 | BE19: =$K19*BC19 -> 1.45 | BF19: =IF(BF$7="EN COURS",1,IF(BF$7="TERMINÉ",1,IF(BF$7="NON RÉALISÉ FACTURÉ",1,0))) -> 1 | BG19: =$J19*BF19 -> 1.45 | BH19: =$K19*BF19 -> 1.45 | BI19: =IF(BI$7="EN COURS",1,IF(BI$7="TERMINÉ",1,IF(BI$7="NON RÉALISÉ FACTURÉ",1,0))) -> 1 | BJ19: =$J19*BI19 -> 1.45 | BK19: =$K19*BI19 -> 1.45 | BL19: =IF(BL$7="EN COURS",1,IF(BL$7="TERMINÉ",1,IF(BL$7="NON RÉALISÉ FACTURÉ",1,0))) -> 1 | BM19: =$J19*BL19 -> 1.45 | BN19: =$K19*BL19 -> 1.45 | BO19: =IF(BO$7="EN COURS",1,IF(BO$7="TERMINÉ",1,IF(BO$7="NON RÉALISÉ FACTURÉ",1,0))) -> 1 | BP19: =$J19*BO19 -> 1.45 | BQ19: =$K19*BO19 -> 1.45 | BR19: =IF(BR$7="EN COURS",1,IF(BR$7="TERMINÉ",1,IF(BR$7="NON RÉALISÉ FACTURÉ",1,0))) -> 1 | BS19: =$J19*BR19 -> 1.45 | BT19: =$K19*BR19 -> 1.45 | BU19: =IF(BU$7="EN COURS",1,IF(BU$7="TERMINÉ",1,IF(BU$7="NON RÉALISÉ FACTURÉ",1,0))) -> 1 | BV19: =$J19*BU19 -> 1.45 | BW19: =$K19*BU19 -> 1.45 | BX19: =IF(BX$7="EN COURS",1,IF(BX$7="TERMINÉ",1,IF(BX$7="NON RÉALISÉ FACTURÉ",1,0))) -> 1 | BY19: =$J19*BX19 -> 1.45 | BZ19: =$K19*BX19 -> 1.45 | CA19: =IF(CA$7="EN COURS",1,IF(CA$7="TERMINÉ",1,IF(CA$7="NON RÉALISÉ FACTURÉ",1,0))) -> 1 | CB19: =$J19*CA19 -> 1.45 | CC19: =$K19*CA19 -> 1.45 | CD19: =IF(CD$7="EN COURS",1,IF(CD$7="TERMINÉ",1,IF(CD$7="NON RÉALISÉ FACTURÉ",1,0))) -> 1 | CE19: =$J19*CD19 -> 1.45 | CF19: =$K19*CD19 -> 1.45 | CG19: =IF(CG$7="EN COURS",1,IF(CG$7="TERMINÉ",1,IF(CG$7="NON RÉALISÉ FACTURÉ",1,0))) -> 1 | CH19: =$J19*CG19 -> 1.45 | CI19: =$K19*CG19 -> 1.45 | CJ19: =IF(CJ$7="EN COURS",1,IF(CJ$7="TERMINÉ",1,IF(CJ$7="NON RÉALISÉ FACTURÉ",1,0))) -> 1 | CK19: =$J19*CJ19 -> 1.45 | CL19: =$K19*CJ19 -> 1.45 | CM19: =IF(CM$7="EN COURS",1,IF(CM$7="TERMINÉ",1,IF(CM$7="NON RÉALISÉ FACTURÉ",1,0))) -> 1 | CN19: =$J19*CM19 -> 1.45 | CO19: =$K19*CM19 -> 1.45 | CP19: =IF(CP$7="EN COURS",1,IF(CP$7="TERMINÉ",1,IF(CP$7="NON RÉALISÉ FACTURÉ",1,0))) -> 1 | CQ19: =$J19*CP19 -> 1.45 | CR19: =$K19*CP19 -> 1.45 | CS19: =IF(CS$7="EN COURS",1,IF(CS$7="TERMINÉ",1,IF(CS$7="NON RÉALISÉ FACTURÉ",1,0))) -> 1 | CT19: =$J19*CS19 -> 1.45 | CU19: =$K19*CS19 -> 1.45 | CV19: =IF(CV$7="EN COURS",1,IF(CV$7="TERMINÉ",1,IF(CV$7="NON RÉALISÉ FACTURÉ",1,0))) -> 1 | CW19: =$J19*CV19 -> 1.45 | CX19: =$K19*CV19 -> 1.45 | CY19: =IF(CY$7="EN COURS",1,IF(CY$7="TERMINÉ",1,IF(CY$7="NON RÉALISÉ FACTURÉ",1,0))) -> 1 | CZ19: =$J19*CY19 -> 1.45 | DA19: =$K19*CY19 -> 1.45 | DB19: =IF(DB$7="EN COURS",1,IF(DB$7="TERMINÉ",1,IF(DB$7="NON RÉALISÉ FACTURÉ",1,0))) -> 0 | DC19: =$J19*DB19 -> 0 | DD19: =$K19*DB19 -> 0 | DE19: =IF(DE$7="EN COURS",1,IF(DE$7="TERMINÉ",1,IF(DE$7="NON RÉALISÉ FACTURÉ",1,0))) -> 1 | DF19: =$J19*DE19 -> 1.45 | DG19: =$K19*DE19 -> 1.45 | DH19: =IF(DH$7="EN COURS",1,IF(DH$7="TERMINÉ",1,IF(DH$7="NON RÉALISÉ FACTURÉ",1,0))) -> 1 | DI19: =$J19*DH19 -> 1.45 | DJ19: =$K19*DH19 -> 1.45 | DK19: =IF(DK$7="EN COURS",1,IF(DK$7="TERMINÉ",1,IF(DK$7="NON RÉALISÉ FACTURÉ",1,0))) -> 1 | DL19: =$J19*DK19 -> 1.45 | DM19: =$K19*DK19 -> 1.45 | DN19: =IF(DN$7="EN COURS",1,IF(DN$7="TERMINÉ",1,IF(DN$7="NON RÉALISÉ FACTURÉ",1,0))) -> 1 | DO19: =$J19*DN19 -> 1.45 | DP19: =$K19*DN19 -> 1.45 | DQ19: =IF(DQ$7="EN COURS",1,IF(DQ$7="TERMINÉ",1,IF(DQ$7="NON RÉALISÉ FACTURÉ",1,0))) -> 1 | DR19: =$J19*DQ19 -> 1.45 | DS19: =$K19*DQ19 -> 1.45 | DT19: =IF(DT$7="EN COURS",1,IF(DT$7="TERMINÉ",1,IF(DT$7="NON RÉALISÉ FACTURÉ",1,0))) -> 1 | DU19: =$J19*DT19 -> 1.45 | DV19: =$K19*DT19 -> 1.45 | DW19: =IF(DW$7="EN COURS",1,IF(DW$7="TERMINÉ",1,IF(DW$7="NON RÉALISÉ FACTURÉ",1,0))) -> 1 | DX19: =$J19*DW19 -> 1.45 | DY19: =$K19*DW19 -> 1.45 | DZ19: =IF(DZ$7="EN COURS",1,IF(DZ$7="TERMINÉ",1,IF(DZ$7="NON RÉALISÉ FACTURÉ",1,0))) -> 1 | EA19: =$J19*DZ19 -> 1.45 | EB19: =$K19*DZ19 -> 1.45 | EC19: =IF(EC$7="EN COURS",1,IF(EC$7="TERMINÉ",1,IF(EC$7="NON RÉALISÉ FACTURÉ",1,0))) -> 1 | ED19: =$J19*EC19 -> 1.45 | EE19: =$K19*EC19 -> 1.45 | EF19: =IF(EF$7="EN COURS",1,IF(EF$7="TERMINÉ",1,IF(EF$7="NON RÉALISÉ FACTURÉ",1,0))) -> 0 | EG19: =$J19*EF19 -> 0 | EH19: =$K19*EF19 -> 0 | EI19: =IF(EI$7="EN COURS",1,IF(EI$7="TERMINÉ",1,IF(EI$7="NON RÉALISÉ FACTURÉ",1,0))) -> 1 | EJ19: =$J19*EI19 -> 1.45 | EK19: =$K19*EI19 -> 1.45 | EL19: =IF(EL$7="EN COURS",1,IF(EL$7="TERMINÉ",1,IF(EL$7="NON RÉALISÉ FACTURÉ",1,0))) -> 1 | EM19: =$J19*EL19 -> 1.45 | EN19: =$K19*EL19 -> 1.45 | EO19: =IF(EO$7="EN COURS",1,IF(EO$7="TERMINÉ",1,IF(EO$7="NON RÉALISÉ FACTURÉ",1,0))) -> 1 | EP19: =$J19*EO19 -> 1.45 | EQ19: =$K19*EO19 -> 1.45 | ER19: =IF(ER$7="EN COURS",1,IF(ER$7="TERMINÉ",1,IF(ER$7="NON RÉALISÉ FACTURÉ",1,0))) -> 1 | ES19: =$J19*ER19 -> 1.45 | ET19: =$K19*ER19 -> 1.45 | EU19: =IF(EU$7="EN COURS",1,IF(EU$7="TERMINÉ",1,IF(EU$7="NON RÉALISÉ FACTURÉ",1,0))) -> 0 | EV19: =$J19*EU19 -> 0 | EW19: =$K19*EU19 -> 0 | EX19: =IF(EX$7="EN COURS",1,IF(EX$7="TERMINÉ",1,IF(EX$7="NON RÉALISÉ FACTURÉ",1,0))) -> 1 | EY19: =$J19*EX19 -> 1.45 | EZ19: =$K19*EX19 -> 1.45 | FA19: =IF(FA$7="EN COURS",1,IF(FA$7="TERMINÉ",1,IF(FA$7="NON RÉALISÉ FACTURÉ",1,0))) -> 1 | FB19: =$J19*FA19 -> 1.45 | FC19: =$K19*FA19 -> 1.45 | FD19: =IF(FD$7="EN COURS",1,IF(FD$7="TERMINÉ",1,IF(FD$7="NON RÉALISÉ FACTURÉ",1,0))) -> 0 | FE19: =$J19*FD19 -> 0 | FF19: =$K19*FD19 -> 0 | FG19: =IF(FG$7="EN COURS",1,IF(FG$7="TERMINÉ",1,IF(FG$7="NON RÉALISÉ FACTURÉ",1,0))) -> 0 | FH19: =$J19*FG19 -> 0 | FI19: =$K19*FG19 -> 0 | FJ19: =IF(FJ$7="EN COURS",1,IF(FJ$7="TERMINÉ",1,IF(FJ$7="NON RÉALISÉ FACTURÉ",1,0))) -> 1 | FK19: =$J19*FJ19 -> 1.45 | FL19: =$K19*FJ19 -> 1.45 | FM19: =IF(FM$7="EN COURS",1,IF(FM$7="TERMINÉ",1,IF(FM$7="NON RÉALISÉ FACTURÉ",1,0))) -> 1 | FN19: =$J19*FM19 -> 1.45 | FO19: =$K19*FM19 -> 1.45 | FP19: =IF(FP$7="EN COURS",1,IF(FP$7="TERMINÉ",1,IF(FP$7="NON RÉALISÉ FACTURÉ",1,0))) -> 0 | FQ19: =$J19*FP19 -> 0 | FR19: =$K19*FP19 -> 0 | FS19: =IF(FS$7="EN COURS",1,IF(FS$7="TERMINÉ",1,IF(FS$7="NON RÉALISÉ FACTURÉ",1,0))) -> 1 | FT19: =$J19*FS19 -> 1.45 | FU19: =$K19*FS19 -> 1.45 | FV19: =IF(FV$7="EN COURS",1,IF(FV$7="TERMINÉ",1,IF(FV$7="NON RÉALISÉ FACTURÉ",1,0))) -> 1 | FW19: =$J19*FV19 -> 1.45 | FX19: =$K19*FV19 -> 1.45 | FY19: =IF(FY$7="EN COURS",1,IF(FY$7="TERMINÉ",1,IF(FY$7="NON RÉALISÉ FACTURÉ",1,0))) -> 0 | FZ19: =$J19*FY19 -> 0 | GA19: =$K19*FY19 -> 0 | GB19: =IF(GB$7="EN COURS",1,IF(GB$7="TERMINÉ",1,IF(GB$7="NON RÉALISÉ FACTURÉ",1,0))) -> 1 | GC19: =$J19*GB19 -> 1.45 | GD19: =$K19*GB19 -> 1.45 | GE19: =IF(GE$7="EN COURS",1,IF(GE$7="TERMINÉ",1,IF(GE$7="NON RÉALISÉ FACTURÉ",1,0))) -> 0 | GF19: =$J19*GE19 -> 0 | GG19: =$K19*GE19 -> 0 | GH19: =IF(GH$7="EN COURS",1,IF(GH$7="TERMINÉ",1,IF(GH$7="NON RÉALISÉ FACTURÉ",1,0))) -> 1 | GI19: =$J19*GH19 -> 1.45 | GJ19: =$K19*GH19 -> 1.45 | GK19: =IF(GK$7="EN COURS",1,IF(GK$7="TERMINÉ",1,IF(GK$7="NON RÉALISÉ FACTURÉ",1,0))) -> 0 | GL19: =$J19*GK19 -> 0 | GM19: =$K19*GK19 -> 0 | GN19: =IF(GN$7="EN COURS",1,IF(GN$7="TERMINÉ",1,IF(GN$7="NON RÉALISÉ FACTURÉ",1,0))) -> 0 | GO19: =$J19*GN19 -> 0 | GP19: =$K19*GN19 -> 0 | GQ19: =IF(GQ$7="EN COURS",1,IF(GQ$7="TERMINÉ",1,IF(GQ$7="NON RÉALISÉ FACTURÉ",1,0))) -> 1 | GR19: =$J19*GQ19 -> 1.45 | GS19: =$K19*GQ19 -> 1.45 | GT19: =IF(GT$7="EN COURS",1,IF(GT$7="TERMINÉ",1,IF(GT$7="NON RÉALISÉ FACTURÉ",1,0))) -> 0 | GU19: =$J19*GT19 -> 0 | GV19: =$K19*GT19 -> 0 | GW19: =IF(GW$7="EN COURS",1,IF(GW$7="TERMINÉ",1,IF(GW$7="NON RÉALISÉ FACTURÉ",1,0))) -> 0 | GX19: =$J19*GW19 -> 0 | GY19: =$K19*GW19 -> 0 | GZ19: =IF(GZ$7="EN COURS",1,IF(GZ$7="TERMINÉ",1,IF(GZ$7="NON RÉALISÉ FACTURÉ",1,0))) -> 0 | HA19: =$J19*GZ19 -> 0 | HB19: =$K19*GZ19 -> 0 | HC19: =IF(HC$7="EN COURS",1,IF(HC$7="TERMINÉ",1,IF(HC$7="NON RÉALISÉ FACTURÉ",1,0))) -> 0 | HD19: =$J19*HC19 -> 0 | HE19: =$K19*HC19 -> 0 | HF19: =IF(HF$7="EN COURS",1,IF(HF$7="TERMINÉ",1,IF(HF$7="NON RÉALISÉ FACTURÉ",1,0))) -> 0 | HG19: =$J19*HF19 -> 0 | HH19: =$K19*HF19 -> 0 | HI19: =IF(HI$7="EN COURS",1,IF(HI$7="TERMINÉ",1,IF(HI$7="NON RÉALISÉ FACTURÉ",1,0))) -> 0 | HJ19: =$J19*HI19 -> 0 | HK19: =$K19*HI19 -> 0 | HL19: =IF(HL$7="EN COURS",1,IF(HL$7="TERMINÉ",1,IF(HL$7="NON RÉALISÉ FACTURÉ",1,0))) -> 0 | HM19: =$J19*HL19 -> 0 | HN19: =$K19*HL19 -> 0 | HO19: =IF(HO$7="EN COURS",1,IF(HO$7="TERMINÉ",1,IF(HO$7="NON RÉALISÉ FACTURÉ",1,0))) -> 0 | HP19: =$J19*HO19 -> 0 | HQ19: =$K19*HO19 -> 0 | HR19: =IF(HR$7="EN COURS",1,IF(HR$7="TERMINÉ",1,IF(HR$7="NON RÉALISÉ FACTURÉ",1,0))) -> 0 | HS19: =$J19*HR19 -> 0 | HT19: =$K19*HR19 -> 0 | HU19: =IF(HU$7="EN COURS",1,IF(HU$7="TERMINÉ",1,IF(HU$7="NON RÉALISÉ FACTURÉ",1,0))) -> 0 | HV19: =$J19*HU19 -> 0 | HW19: =$K19*HU19 -> 0 | HX19: =IF(HX$7="EN COURS",1,IF(HX$7="TERMINÉ",1,IF(HX$7="NON RÉALISÉ FACTURÉ",1,0))) -> 0 | HY19: =$J19*HX19 -> 0 | HZ19: =$K19*HX19 -> 0 | IA19: =IF(IA$7="EN COURS",1,IF(IA$7="TERMINÉ",1,IF(IA$7="NON RÉALISÉ FACTURÉ",1,0))) -> 0 | IB19: =$J19*IA19 -> 0 | IC19: =$K19*IA19 -> 0 | ID19: =IF(ID$7="EN COURS",1,IF(ID$7="TERMINÉ",1,IF(ID$7="NON RÉALISÉ FACTURÉ",1,0))) -> 0 | IE19: =$J19*ID19 -> 0 | IF19: =$K19*ID19 -> 0 | IG19: =IF(IG$7="EN COURS",1,IF(IG$7="TERMINÉ",1,IF(IG$7="NON RÉALISÉ FACTURÉ",1,0))) -> 0 | IH19: =$J19*IG19 -> 0 | II19: =$K19*IG19 -> 0 | IJ19: =IF(IJ$7="EN COURS",1,IF(IJ$7="TERMINÉ",1,IF(IJ$7="NON RÉALISÉ FACTURÉ",1,0))) -> 0 | IK19: =$J19*IJ19 -> 0 | IL19: =$K19*IJ19 -> 0 | IM19: =IF(IM$7="EN COURS",1,IF(IM$7="TERMINÉ",1,IF(IM$7="NON RÉALISÉ FACTURÉ",1,0))) -> 0 | IN19: =$J19*IM19 -> 0 | IO19: =$K19*IM19 -> 0 | IP19: =IF(IP$7="EN COURS",1,IF(IP$7="TERMINÉ",1,IF(IP$7="NON RÉALISÉ FACTURÉ",1,0))) -> 0 | IQ19: =$J19*IP19 -> 0 | IR19: =$K19*IP19 -> 0 | IS19: =IF(IS$7="EN COURS",1,IF(IS$7="TERMINÉ",1,IF(IS$7="NON RÉALISÉ FACTURÉ",1,0))) -> 0 | IT19: =$J19*IS19 -> 0 | IU19: =$K19*IS19 -> 0 | IV19: =IF(IV$7="EN COURS",1,IF(IV$7="TERMINÉ",1,IF(IV$7="NON RÉALISÉ FACTURÉ",1,0))) -> 0 | IW19: =$J19*IV19 -> 0 | IX19: =$K19*IV19 -> 0 | IY19: =IF(IY$7="EN COURS",1,IF(IY$7="TERMINÉ",1,IF(IY$7="NON RÉALISÉ FACTURÉ",1,0))) -> 0 | IZ19: =$J19*IY19 -> 0 | JA19: =$K19*IY19 -> 0 | JB19: =IF(JB$7="EN COURS",1,IF(JB$7="TERMINÉ",1,IF(JB$7="NON RÉALISÉ FACTURÉ",1,0))) -> 0 | JC19: =$J19*JB19 -> 0 | JD19: =$K19*JB19 -> 0 | JE19: =IF(JE$7="EN COURS",1,IF(JE$7="TERMINÉ",1,IF(JE$7="NON RÉALISÉ FACTURÉ",1,0))) -> 0 | JF19: =$J19*JE19 -> 0 | JG19: =$K19*JE19 -> 0 | JH19: =IF(JH$7="EN COURS",1,IF(JH$7="TERMINÉ",1,IF(JH$7="NON RÉALISÉ FACTURÉ",1,0))) -> 0 | JI19: =$J19*JH19 -> 0 | JJ19: =$K19*JH19 -> 0 | JK19: =IF(JK$7="EN COURS",1,IF(JK$7="TERMINÉ",1,IF(JK$7="NON RÉALISÉ FACTURÉ",1,0))) -> 0 | JL19: =$J19*JK19 -> 0 | JM19: =$K19*JK19 -> 0 | JN19: =IF(JN$7="EN COURS",1,IF(JN$7="TERMINÉ",1,IF(JN$7="NON RÉALISÉ FACTURÉ",1,0))) -> 0 | JO19: =$J19*JN19 -> 0 | JP19: =$K19*JN19 -> 0 | JQ19: =IF(JQ$7="EN COURS",1,IF(JQ$7="TERMINÉ",1,IF(JQ$7="NON RÉALISÉ FACTURÉ",1,0))) -> 0 | JR19: =$J19*JQ19 -> 0 | JS19: =$K19*JQ19 -> 0 | JT19: =IF(JT$7="EN COURS",1,IF(JT$7="TERMINÉ",1,IF(JT$7="NON RÉALISÉ FACTURÉ",1,0))) -> 0 | JU19: =$J19*JT19 -> 0 | JV19: =$K19*JT19 -> 0 | JW19: =IF(JW$7="EN COURS",1,IF(JW$7="TERMINÉ",1,IF(JW$7="NON RÉALISÉ FACTURÉ",1,0))) -> 0 | JX19: =$J19*JW19 -> 0 | JY19: =$K19*JW19 -> 0 | JZ19: =IF(JZ$7="EN COURS",1,IF(JZ$7="TERMINÉ",1,IF(JZ$7="NON RÉALISÉ FACTURÉ",1,0))) -> 0 | KA19: =$J19*JZ19 -> 0 | KB19: =$K19*JZ19 -> 0 | KC19: =IF(KC$7="EN COURS",1,IF(KC$7="TERMINÉ",1,IF(KC$7="NON RÉALISÉ FACTURÉ",1,0))) -> 0 | KD19: =$J19*KC19 -> 0 | KE19: =$K19*KC19 -> 0 | KF19: =IF(KF$7="EN COURS",1,IF(KF$7="TERMINÉ",1,IF(KF$7="NON RÉALISÉ FACTURÉ",1,0))) -> 0 | KG19: =$J19*KF19 -> 0 | KH19: =$K19*KF19 -> 0 | KI19: =IF(KI$7="EN COURS",1,IF(KI$7="TERMINÉ",1,IF(KI$7="NON RÉALISÉ FACTURÉ",1,0))) -> 0 | KJ19: =$J19*KI19 -> 0 | KK19: =$K19*KI19 -> 0 | KL19: =IF(KL$7="EN COURS",1,IF(KL$7="TERMINÉ",1,IF(KL$7="NON RÉALISÉ FACTURÉ",1,0))) -> 0 | KM19: =$J19*KL19 -> 0 | KN19: =$K19*KL19 -> 0 | KO19: =IF(KO$7="EN COURS",1,IF(KO$7="TERMINÉ",1,IF(KO$7="NON RÉALISÉ FACTURÉ",1,0))) -> 0 | KP19: =$J19*KO19 -> 0 | KQ19: =$K19*KO19 -> 0 | KR19: =IF(KR$7="EN COURS",1,IF(KR$7="TERMINÉ",1,IF(KR$7="NON RÉALISÉ FACTURÉ",1,0))) -> 0 | KS19: =$J19*KR19 -> 0 | KT19: =$K19*KR19 -> 0 | KU19: =IF(KU$7="EN COURS",1,IF(KU$7="TERMINÉ",1,IF(KU$7="NON RÉALISÉ FACTURÉ",1,0))) -> 0 | KV19: =$J19*KU19 -> 0 | KW19: =$K19*KU19 -> 0 | KX19: =IF(KX$7="EN COURS",1,IF(KX$7="TERMINÉ",1,IF(KX$7="NON RÉALISÉ FACTURÉ",1,0))) -> 0 | KY19: =$J19*KX19 -> 0 | KZ19: =$K19*KX19 -> 0 | LA19: =IF(LA$7="EN COURS",1,IF(LA$7="TERMINÉ",1,IF(LA$7="NON RÉALISÉ FACTURÉ",1,0))) -> 0 | LB19: =$J19*LA19 -> 0 | LC19: =$K19*LA19 -> 0 | LD19: =IF(LD$7="EN COURS",1,IF(LD$7="TERMINÉ",1,IF(LD$7="NON RÉALISÉ FACTURÉ",1,0))) -> 0 | LE19: =$J19*LD19 -> 0 | LF19: =$K19*LD19 -> 0 | LG19: =IF(LG$7="EN COURS",1,IF(LG$7="TERMINÉ",1,IF(LG$7="NON RÉALISÉ FACTURÉ",1,0))) -> 0 | LH19: =$J19*LG19 -> 0 | LI19: =$K19*LG19 -> 0 | LJ19: =IF(LJ$7="EN COURS",1,IF(LJ$7="TERMINÉ",1,IF(LJ$7="NON RÉALISÉ FACTURÉ",1,0))) -> 0 | LK19: =$J19*LJ19 -> 0 | LL19: =$K19*LJ19 -> 0 | LM19: =IF(LM$7="EN COURS",1,IF(LM$7="TERMINÉ",1,IF(LM$7="NON RÉALISÉ FACTURÉ",1,0))) -> 0 | LN19: =$J19*LM19 -> 0 | LO19: =$K19*LM19 -> 0 | LP19: =IF(LP$7="EN COURS",1,IF(LP$7="TERMINÉ",1,IF(LP$7="NON RÉALISÉ FACTURÉ",1,0))) -> 0 | LQ19: =$J19*LP19 -> 0 | LR19: =$K19*LP19 -> 0 | LS19: =IF(LS$7="EN COURS",1,IF(LS$7="TERMINÉ",1,IF(LS$7="NON RÉALISÉ FACTURÉ",1,0))) -> 0 | LT19: =$J19*LS19 -> 0 | LU19: =$K19*LS19 -> 0 | LV19: =IF(LV$7="EN COURS",1,IF(LV$7="TERMINÉ",1,IF(LV$7="NON RÉALISÉ FACTURÉ",1,0))) -> 0 | LW19: =$J19*LV19 -> 0 | LX19: =$K19*LV19 -> 0 | LY19: =IF(LY$7="EN COURS",1,IF(LY$7="TERMINÉ",1,IF(LY$7="NON RÉALISÉ FACTURÉ",1,0))) -> 0 | LZ19: =$J19*LY19 -> 0 | MA19: =$K19*LY19 -> 0 | MB19: =IF(MB$7="EN COURS",1,IF(MB$7="TERMINÉ",1,IF(MB$7="NON RÉALISÉ FACTURÉ",1,0))) -> 0 | MC19: =$J19*MB19 -> 0 | MD19: =$K19*MB19 -> 0 | ME19: =IF(ME$7="EN COURS",1,IF(ME$7="TERMINÉ",1,IF(ME$7="NON RÉALISÉ FACTURÉ",1,0))) -> 0 | MF19: =$J19*ME19 -> 0 | MG19: =$K19*ME19 -> 0 | MH19: =IF(MH$7="EN COURS",1,IF(MH$7="TERMINÉ",1,IF(MH$7="NON RÉALISÉ FACTURÉ",1,0))) -> 0 | MI19: =$J19*MH19 -> 0 | MJ19: =$K19*MH19 -> 0 | MK19: =IF(MK$7="EN COURS",1,IF(MK$7="TERMINÉ",1,IF(MK$7="NON RÉALISÉ FACTURÉ",1,0))) -> 0 | ML19: =$J19*MK19 -> 0 | MM19: =$K19*MK19 -> 0 | MN19: =IF(MN$7="EN COURS",1,IF(MN$7="TERMINÉ",1,IF(MN$7="NON RÉALISÉ FACTURÉ",1,0))) -> 0 | MO19: =$J19*MN19 -> 0 | MP19: =$K19*MN19 -> 0
A20: Pose ROAI | B20: 112 | C20: 112 | D20: 112 | E20: 51 | F20: 112 | G20: =(E20/F20)*100 -> 45.53571429 | J20: =0.25 -> 0.25 | K20: =J20 -> 0.25 | L20: =112*K20 -> 28 | Q20: 28 | S20: =IF(S$7="EN COURS",1,IF(S$7="TERMINÉ",1,IF(S$7="NON RÉALISÉ FACTURÉ",1,0))) -> 1 | T20: 0.25 | U20: =$K20*S20 -> 0.25 | V20: =IF(V$7="EN COURS",1,IF(V$7="TERMINÉ",1,IF(V$7="NON RÉALISÉ FACTURÉ",1,0))) -> 1 | W20: 0.25 | X20: =$K20*V20 -> 0.25 | Y20: =IF(Y$7="EN COURS",1,IF(Y$7="TERMINÉ",1,IF(Y$7="NON RÉALISÉ FACTURÉ",1,0))) -> 1 | Z20: 0.25 | AA20: =$K20*Y20 -> 0.25 | AB20: =IF(AB$7="EN COURS",1,IF(AB$7="TERMINÉ",1,IF(AB$7="NON RÉALISÉ FACTURÉ",1,0))) -> 1 | AC20: 0.25 | AD20: =$K20*AB20 -> 0.25 | AE20: =IF(AE$7="EN COURS",1,IF(AE$7="TERMINÉ",1,IF(AE$7="NON RÉALISÉ FACTURÉ",1,0))) -> 1 | AF20: 0.25 | AG20: =$K20*AE20 -> 0.25 | AH20: =IF(AH$7="EN COURS",1,IF(AH$7="TERMINÉ",1,IF(AH$7="NON RÉALISÉ FACTURÉ",1,0))) -> 1 | AI20: 0.25 | AJ20: =$K20*AH20 -> 0.25 | AK20: =IF(AK$7="EN COURS",1,IF(AK$7="TERMINÉ",1,IF(AK$7="NON RÉALISÉ FACTURÉ",1,0))) -> 1 | AL20: 0.25 | AM20: =$K20*AK20 -> 0.25 | AN20: =IF(AN$7="EN COURS",1,IF(AN$7="TERMINÉ",1,IF(AN$7="NON RÉALISÉ FACTURÉ",1,0))) -> 1 | AO20: 0.25 | AP20: =$K20*AN20 -> 0.25 | AQ20: =IF(AQ$7="EN COURS",1,IF(AQ$7="TERMINÉ",1,IF(AQ$7="NON RÉALISÉ FACTURÉ",1,0))) -> 1 | AR20: 0.25 | AS20: =$K20*AQ20 -> 0.25 | AT20: =IF(AT$7="EN COURS",1,IF(AT$7="TERMINÉ",1,IF(AT$7="NON RÉALISÉ FACTURÉ",1,0))) -> 1 | AU20: 0.25 | AV20: =$K20*AT20 -> 0.25 | AW20: =IF(AW$7="EN COURS",1,IF(AW$7="TERMINÉ",1,IF(AW$7="NON RÉALISÉ FACTURÉ",1,0))) -> 1 | AX20: 0.25 | AY20: =$K20*AW20 -> 0.25 | AZ20: =IF(AZ$7="EN COURS",1,IF(AZ$7="TERMINÉ",1,IF(AZ$7="NON RÉALISÉ FACTURÉ",1,0))) -> 1 | BA20: 0.25 | BB20: =$K20*AZ20 -> 0.25 | BC20: =IF(BC$7="EN COURS",1,IF(BC$7="TERMINÉ",1,IF(BC$7="NON RÉALISÉ FACTURÉ",1,0))) -> 1 | BD20: 0.25 | BE20: =$K20*BC20 -> 0.25 | BF20: =IF(BF$7="EN COURS",1,IF(BF$7="TERMINÉ",1,IF(BF$7="NON RÉALISÉ FACTURÉ",1,0))) -> 1 | BG20: 0.25 | BH20: =$K20*BF20 -> 0.25 | BI20: =IF(BI$7="EN COURS",1,IF(BI$7="TERMINÉ",1,IF(BI$7="NON RÉALISÉ FACTURÉ",1,0))) -> 1 | BJ20: 0.25 | BK20: =$K20*BI20 -> 0.25 | BL20: =IF(BL$7="EN COURS",1,IF(BL$7="TERMINÉ",1,IF(BL$7="NON RÉALISÉ FACTURÉ",1,0))) -> 1 | BM20: 0.25 | BN20: =$K20*BL20 -> 0.25 | BO20: =IF(BO$7="EN COURS",1,IF(BO$7="TERMINÉ",1,IF(BO$7="NON RÉALISÉ FACTURÉ",1,0))) -> 1 | BP20: 0.25 | BQ20: =$K20*BO20 -> 0.25 | BR20: =IF(BR$7="EN COURS",1,IF(BR$7="TERMINÉ",1,IF(BR$7="NON RÉALISÉ FACTURÉ",1,0))) -> 1 | BS20: 0.25 | BT20: =$K20*BR20 -> 0.25 | BU20: =IF(BU$7="EN COURS",1,IF(BU$7="TERMINÉ",1,IF(BU$7="NON RÉALISÉ FACTURÉ",1,0))) -> 1 | BV20: 0.25 | BW20: =$K20*BU20 -> 0.25 | BX20: =IF(BX$7="EN COURS",1,IF(BX$7="TERMINÉ",1,IF(BX$7="NON RÉALISÉ FACTURÉ",1,0))) -> 1 | BY20: 0.25 | BZ20: =$K20*BX20 -> 0.25 | CA20: =IF(CA$7="EN COURS",1,IF(CA$7="TERMINÉ",1,IF(CA$7="NON RÉALISÉ FACTURÉ",1,0))) -> 1 | CB20: 0.25 | CC20: =$K20*CA20 -> 0.25 | CD20: =IF(CD$7="EN COURS",1,IF(CD$7="TERMINÉ",1,IF(CD$7="NON RÉALISÉ FACTURÉ",1,0))) -> 1 | CE20: 0.25 | CF20: =$K20*CD20 -> 0.25 | CG20: =IF(CG$7="EN COURS",1,IF(CG$7="TERMINÉ",1,IF(CG$7="NON RÉALISÉ FACTURÉ",1,0))) -> 1 | CH20: 0.25 | CI20: =$K20*CG20 -> 0.25 | CJ20: =IF(CJ$7="EN COURS",1,IF(CJ$7="TERMINÉ",1,IF(CJ$7="NON RÉALISÉ FACTURÉ",1,0))) -> 1 | CK20: 0.25 | CL20: =$K20*CJ20 -> 0.25 | CM20: =IF(CM$7="EN COURS",1,IF(CM$7="TERMINÉ",1,IF(CM$7="NON RÉALISÉ FACTURÉ",1,0))) -> 1 | CN20: 0.25 | CO20: =$K20*CM20 -> 0.25 | CP20: =IF(CP$7="EN COURS",1,IF(CP$7="TERMINÉ",1,IF(CP$7="NON RÉALISÉ FACTURÉ",1,0))) -> 1 | CQ20: 0.25 | CR20: =$K20*CP20 -> 0.25 | CS20: =IF(CS$7="EN COURS",1,IF(CS$7="TERMINÉ",1,IF(CS$7="NON RÉALISÉ FACTURÉ",1,0))) -> 1 | CT20: 0.25 | CU20: =$K20*CS20 -> 0.25 | CV20: =IF(CV$7="EN COURS",1,IF(CV$7="TERMINÉ",1,IF(CV$7="NON RÉALISÉ FACTURÉ",1,0))) -> 1 | CW20: 0.25 | CX20: =$K20*CV20 -> 0.25 | CY20: =IF(CY$7="EN COURS",1,IF(CY$7="TERMINÉ",1,IF(CY$7="NON RÉALISÉ FACTURÉ",1,0))) -> 1 | CZ20: 0.25 | DA20: =$K20*CY20 -> 0.25 | DB20: =IF(DB$7="EN COURS",1,IF(DB$7="TERMINÉ",1,IF(DB$7="NON RÉALISÉ FACTURÉ",1,0))) -> 0 | DC20: 0 | DD20: =$K20*DB20 -> 0 | DE20: =IF(DE$7="EN COURS",1,IF(DE$7="TERMINÉ",1,IF(DE$7="NON RÉALISÉ FACTURÉ",1,0))) -> 1 | DF20: 0.25 | DG20: =$K20*DE20 -> 0.25 | DH20: =IF(DH$7="EN COURS",1,IF(DH$7="TERMINÉ",1,IF(DH$7="NON RÉALISÉ FACTURÉ",1,0))) -> 1 | DI20: 0.25 | DJ20: =$K20*DH20 -> 0.25 | DK20: =IF(DK$7="EN COURS",1,IF(DK$7="TERMINÉ",1,IF(DK$7="NON RÉALISÉ FACTURÉ",1,0))) -> 1 | DL20: 0.25 | DM20: =$K20*DK20 -> 0.25 | DN20: =IF(DN$7="EN COURS",1,IF(DN$7="TERMINÉ",1,IF(DN$7="NON RÉALISÉ FACTURÉ",1,0))) -> 1 | DO20: 0.25 | DP20: =$K20*DN20 -> 0.25 | DQ20: =IF(DQ$7="EN COURS",1,IF(DQ$7="TERMINÉ",1,IF(DQ$7="NON RÉALISÉ FACTURÉ",1,0))) -> 1 | DR20: 0.25 | DS20: =$K20*DQ20 -> 0.25 | DT20: =IF(DT$7="EN COURS",1,IF(DT$7="TERMINÉ",1,IF(DT$7="NON RÉALISÉ FACTURÉ",1,0))) -> 1 | DU20: 0.25 | DV20: =$K20*DT20 -> 0.25 | DW20: =IF(DW$7="EN COURS",1,IF(DW$7="TERMINÉ",1,IF(DW$7="NON RÉALISÉ FACTURÉ",1,0))) -> 1 | DX20: 0.25 | DY20: =$K20*DW20 -> 0.25 | DZ20: =IF(DZ$7="EN COURS",1,IF(DZ$7="TERMINÉ",1,IF(DZ$7="NON RÉALISÉ FACTURÉ",1,0))) -> 1 | EA20: 0.25 | EB20: =$K20*DZ20 -> 0.25 | EC20: =IF(EC$7="EN COURS",1,IF(EC$7="TERMINÉ",1,IF(EC$7="NON RÉALISÉ FACTURÉ",1,0))) -> 1 | ED20: 0.25 | EE20: =$K20*EC20 -> 0.25 | EF20: =IF(EF$7="EN COURS",1,IF(EF$7="TERMINÉ",1,IF(EF$7="NON RÉALISÉ FACTURÉ",1,0))) -> 0 | EG20: 0 | EH20: =$K20*EF20 -> 0 | EI20: =IF(EI$7="EN COURS",1,IF(EI$7="TERMINÉ",1,IF(EI$7="NON RÉALISÉ FACTURÉ",1,0))) -> 1 | EJ20: 0.25 | EK20: =$K20*EI20 -> 0.25 | EL20: =IF(EL$7="EN COURS",1,IF(EL$7="TERMINÉ",1,IF(EL$7="NON RÉALISÉ FACTURÉ",1,0))) -> 1 | EM20: 0.25 | EN20: =$K20*EL20 -> 0.25 | EO20: =IF(EO$7="EN COURS",1,IF(EO$7="TERMINÉ",1,IF(EO$7="NON RÉALISÉ FACTURÉ",1,0))) -> 1 | EP20: 0.25 | EQ20: =$K20*EO20 -> 0.25 | ER20: =IF(ER$7="EN COURS",1,IF(ER$7="TERMINÉ",1,IF(ER$7="NON RÉALISÉ FACTURÉ",1,0))) -> 1 | ES20: 0.25 | ET20: =$K20*ER20 -> 0.25 | EU20: =IF(EU$7="EN COURS",1,IF(EU$7="TERMINÉ",1,IF(EU$7="NON RÉALISÉ FACTURÉ",1,0))) -> 0 | EV20: 0 | EW20: =$K20*EU20 -> 0 | EX20: =IF(EX$7="EN COURS",1,IF(EX$7="TERMINÉ",1,IF(EX$7="NON RÉALISÉ FACTURÉ",1,0))) -> 1 | EY20: 0.25 | EZ20: =$K20*EX20 -> 0.25 | FA20: =IF(FA$7="EN COURS",1,IF(FA$7="TERMINÉ",1,IF(FA$7="NON RÉALISÉ FACTURÉ",1,0))) -> 1 | FB20: 0.25 | FC20: =$K20*FA20 -> 0.25 | FD20: =IF(FD$7="EN COURS",1,IF(FD$7="TERMINÉ",1,IF(FD$7="NON RÉALISÉ FACTURÉ",1,0))) -> 0 | FE20: 0 | FF20: =$K20*FD20 -> 0 | FG20: =IF(FG$7="EN COURS",1,IF(FG$7="TERMINÉ",1,IF(FG$7="NON RÉALISÉ FACTURÉ",1,0))) -> 0 | FH20: 0 | FI20: =$K20*FG20 -> 0 | FJ20: =IF(FJ$7="EN COURS",1,IF(FJ$7="TERMINÉ",1,IF(FJ$7="NON RÉALISÉ FACTURÉ",1,0))) -> 1 | FK20: 0.25 | FL20: =$K20*FJ20 -> 0.25 | FM20: =IF(FM$7="EN COURS",1,IF(FM$7="TERMINÉ",1,IF(FM$7="NON RÉALISÉ FACTURÉ",1,0))) -> 1 | FN20: 0.25 | FO20: =$K20*FM20 -> 0.25 | FP20: =IF(FP$7="EN COURS",1,IF(FP$7="TERMINÉ",1,IF(FP$7="NON RÉALISÉ FACTURÉ",1,0))) -> 0 | FQ20: 0 | FR20: =$K20*FP20 -> 0 | FS20: =IF(FS$7="EN COURS",1,IF(FS$7="TERMINÉ",1,IF(FS$7="NON RÉALISÉ FACTURÉ",1,0))) -> 1 | FT20: 0.25 | FU20: =$K20*FS20 -> 0.25 | FV20: =IF(FV$7="EN COURS",1,IF(FV$7="TERMINÉ",1,IF(FV$7="NON RÉALISÉ FACTURÉ",1,0))) -> 1 | FW20: 0.25 | FX20: =$K20*FV20 -> 0.25 | FY20: =IF(FY$7="EN COURS",1,IF(FY$7="TERMINÉ",1,IF(FY$7="NON RÉALISÉ FACTURÉ",1,0))) -> 0 | FZ20: 0 | GA20: =$K20*FY20 -> 0 | GB20: =IF(GB$7="EN COURS",1,IF(GB$7="TERMINÉ",1,IF(GB$7="NON RÉALISÉ FACTURÉ",1,0))) -> 1 | GC20: 0.25 | GD20: =$K20*GB20 -> 0.25 | GE20: =IF(GE$7="EN COURS",1,IF(GE$7="TERMINÉ",1,IF(GE$7="NON RÉALISÉ FACTURÉ",1,0))) -> 0 | GF20: 0 | GG20: =$K20*GE20 -> 0 | GH20: =IF(GH$7="EN COURS",1,IF(GH$7="TERMINÉ",1,IF(GH$7="NON RÉALISÉ FACTURÉ",1,0))) -> 1 | GI20: 0.25 | GJ20: =$K20*GH20 -> 0.25 | GK20: =IF(GK$7="EN COURS",1,IF(GK$7="TERMINÉ",1,IF(GK$7="NON RÉALISÉ FACTURÉ",1,0))) -> 0 | GL20: 0 | GM20: =$K20*GK20 -> 0 | GN20: =IF(GN$7="EN COURS",1,IF(GN$7="TERMINÉ",1,IF(GN$7="NON RÉALISÉ FACTURÉ",1,0))) -> 0 | GO20: 0 | GP20: =$K20*GN20 -> 0 | GQ20: =IF(GQ$7="EN COURS",1,IF(GQ$7="TERMINÉ",1,IF(GQ$7="NON RÉALISÉ FACTURÉ",1,0))) -> 1 | GR20: 0.25 | GS20: =$K20*GQ20 -> 0.25 | GT20: =IF(GT$7="EN COURS",1,IF(GT$7="TERMINÉ",1,IF(GT$7="NON RÉALISÉ FACTURÉ",1,0))) -> 0 | GU20: 0 | GV20: =$K20*GT20 -> 0 | GW20: =IF(GW$7="EN COURS",1,IF(GW$7="TERMINÉ",1,IF(GW$7="NON RÉALISÉ FACTURÉ",1,0))) -> 0 | GX20: 0 | GY20: =$K20*GW20 -> 0 | GZ20: =IF(GZ$7="EN COURS",1,IF(GZ$7="TERMINÉ",1,IF(GZ$7="NON RÉALISÉ FACTURÉ",1,0))) -> 0 | HA20: 0 | HB20: =$K20*GZ20 -> 0 | HC20: =IF(HC$7="EN COURS",1,IF(HC$7="TERMINÉ",1,IF(HC$7="NON RÉALISÉ FACTURÉ",1,0))) -> 0 | HD20: 0 | HE20: =$K20*HC20 -> 0 | HF20: =IF(HF$7="EN COURS",1,IF(HF$7="TERMINÉ",1,IF(HF$7="NON RÉALISÉ FACTURÉ",1,0))) -> 0 | HG20: 0 | HH20: =$K20*HF20 -> 0 | HI20: =IF(HI$7="EN COURS",1,IF(HI$7="TERMINÉ",1,IF(HI$7="NON RÉALISÉ FACTURÉ",1,0))) -> 0 | HJ20: 0 | HK20: =$K20*HI20 -> 0 | HL20: =IF(HL$7="EN COURS",1,IF(HL$7="TERMINÉ",1,IF(HL$7="NON RÉALISÉ FACTURÉ",1,0))) -> 0 | HM20: 0 | HN20: =$K20*HL20 -> 0 | HO20: =IF(HO$7="EN COURS",1,IF(HO$7="TERMINÉ",1,IF(HO$7="NON RÉALISÉ FACTURÉ",1,0))) -> 0 | HP20: 0 | HQ20: =$K20*HO20 -> 0 | HR20: =IF(HR$7="EN COURS",1,IF(HR$7="TERMINÉ",1,IF(HR$7="NON RÉALISÉ FACTURÉ",1,0))) -> 0 | HS20: 0 | HT20: =$K20*HR20 -> 0 | HU20: =IF(HU$7="EN COURS",1,IF(HU$7="TERMINÉ",1,IF(HU$7="NON RÉALISÉ FACTURÉ",1,0))) -> 0 | HV20: 0 | HW20: =$K20*HU20 -> 0 | HX20: =IF(HX$7="EN COURS",1,IF(HX$7="TERMINÉ",1,IF(HX$7="NON RÉALISÉ FACTURÉ",1,0))) -> 0 | HY20: 0 | HZ20: =$K20*HX20 -> 0 | IA20: =IF(IA$7="EN COURS",1,IF(IA$7="TERMINÉ",1,IF(IA$7="NON RÉALISÉ FACTURÉ",1,0))) -> 0 | IB20: 0 | IC20: =$K20*IA20 -> 0 | ID20: =IF(ID$7="EN COURS",1,IF(ID$7="TERMINÉ",1,IF(ID$7="NON RÉALISÉ FACTURÉ",1,0))) -> 0 | IE20: 0 | IF20: =$K20*ID20 -> 0 | IG20: =IF(IG$7="EN COURS",1,IF(IG$7="TERMINÉ",1,IF(IG$7="NON RÉALISÉ FACTURÉ",1,0))) -> 0 | IH20: 0 | II20: =$K20*IG20 -> 0 | IJ20: =IF(IJ$7="EN COURS",1,IF(IJ$7="TERMINÉ",1,IF(IJ$7="NON RÉALISÉ FACTURÉ",1,0))) -> 0 | IK20: 0 | IL20: =$K20*IJ20 -> 0 | IM20: =IF(IM$7="EN COURS",1,IF(IM$7="TERMINÉ",1,IF(IM$7="NON RÉALISÉ FACTURÉ",1,0))) -> 0 | IN20: 0 | IO20: =$K20*IM20 -> 0 | IP20: =IF(IP$7="EN COURS",1,IF(IP$7="TERMINÉ",1,IF(IP$7="NON RÉALISÉ FACTURÉ",1,0))) -> 0 | IQ20: 0 | IR20: =$K20*IP20 -> 0 | IS20: =IF(IS$7="EN COURS",1,IF(IS$7="TERMINÉ",1,IF(IS$7="NON RÉALISÉ FACTURÉ",1,0))) -> 0 | IT20: 0 | IU20: =$K20*IS20 -> 0 | IV20: =IF(IV$7="EN COURS",1,IF(IV$7="TERMINÉ",1,IF(IV$7="NON RÉALISÉ FACTURÉ",1,0))) -> 0 | IW20: 0 | IX20: =$K20*IV20 -> 0 | IY20: =IF(IY$7="EN COURS",1,IF(IY$7="TERMINÉ",1,IF(IY$7="NON RÉALISÉ FACTURÉ",1,0))) -> 0 | IZ20: 0 | JA20: =$K20*IY20 -> 0 | JB20: =IF(JB$7="EN COURS",1,IF(JB$7="TERMINÉ",1,IF(JB$7="NON RÉALISÉ FACTURÉ",1,0))) -> 0 | JC20: 0 | JD20: =$K20*JB20 -> 0 | JE20: =IF(JE$7="EN COURS",1,IF(JE$7="TERMINÉ",1,IF(JE$7="NON RÉALISÉ FACTURÉ",1,0))) -> 0 | JF20: 0 | JG20: =$K20*JE20 -> 0 | JH20: =IF(JH$7="EN COURS",1,IF(JH$7="TERMINÉ",1,IF(JH$7="NON RÉALISÉ FACTURÉ",1,0))) -> 0 | JI20: 0 | JJ20: =$K20*JH20 -> 0 | JK20: =IF(JK$7="EN COURS",1,IF(JK$7="TERMINÉ",1,IF(JK$7="NON RÉALISÉ FACTURÉ",1,0))) -> 0 | JL20: 0 | JM20: =$K20*JK20 -> 0 | JN20: =IF(JN$7="EN COURS",1,IF(JN$7="TERMINÉ",1,IF(JN$7="NON RÉALISÉ FACTURÉ",1,0))) -> 0 | JO20: 0 | JP20: =$K20*JN20 -> 0 | JQ20: =IF(JQ$7="EN COURS",1,IF(JQ$7="TERMINÉ",1,IF(JQ$7="NON RÉALISÉ FACTURÉ",1,0))) -> 0 | JR20: 0 | JS20: =$K20*JQ20 -> 0 | JT20: =IF(JT$7="EN COURS",1,IF(JT$7="TERMINÉ",1,IF(JT$7="NON RÉALISÉ FACTURÉ",1,0))) -> 0 | JU20: 0 | JV20: =$K20*JT20 -> 0 | JW20: =IF(JW$7="EN COURS",1,IF(JW$7="TERMINÉ",1,IF(JW$7="NON RÉALISÉ FACTURÉ",1,0))) -> 0 | JX20: 0 | JY20: =$K20*JW20 -> 0 | JZ20: =IF(JZ$7="EN COURS",1,IF(JZ$7="TERMINÉ",1,IF(JZ$7="NON RÉALISÉ FACTURÉ",1,0))) -> 0 | KA20: 0 | KB20: =$K20*JZ20 -> 0 | KC20: =IF(KC$7="EN COURS",1,IF(KC$7="TERMINÉ",1,IF(KC$7="NON RÉALISÉ FACTURÉ",1,0))) -> 0 | KD20: 0 | KE20: =$K20*KC20 -> 0 | KF20: =IF(KF$7="EN COURS",1,IF(KF$7="TERMINÉ",1,IF(KF$7="NON RÉALISÉ FACTURÉ",1,0))) -> 0 | KG20: 0 | KH20: =$K20*KF20 -> 0 | KI20: =IF(KI$7="EN COURS",1,IF(KI$7="TERMINÉ",1,IF(KI$7="NON RÉALISÉ FACTURÉ",1,0))) -> 0 | KJ20: 0 | KK20: =$K20*KI20 -> 0 | KL20: =IF(KL$7="EN COURS",1,IF(KL$7="TERMINÉ",1,IF(KL$7="NON RÉALISÉ FACTURÉ",1,0))) -> 0 | KM20: 0 | KN20: =$K20*KL20 -> 0 | KO20: =IF(KO$7="EN COURS",1,IF(KO$7="TERMINÉ",1,IF(KO$7="NON RÉALISÉ FACTURÉ",1,0))) -> 0 | KP20: 0 | KQ20: =$K20*KO20 -> 0 | KR20: =IF(KR$7="EN COURS",1,IF(KR$7="TERMINÉ",1,IF(KR$7="NON RÉALISÉ FACTURÉ",1,0))) -> 0 | KS20: 0 | KT20: =$K20*KR20 -> 0 | KU20: =IF(KU$7="EN COURS",1,IF(KU$7="TERMINÉ",1,IF(KU$7="NON RÉALISÉ FACTURÉ",1,0))) -> 0 | KV20: 0 | KW20: =$K20*KU20 -> 0 | KX20: =IF(KX$7="EN COURS",1,IF(KX$7="TERMINÉ",1,IF(KX$7="NON RÉALISÉ FACTURÉ",1,0))) -> 0 | KY20: 0 | KZ20: =$K20*KX20 -> 0 | LA20: =IF(LA$7="EN COURS",1,IF(LA$7="TERMINÉ",1,IF(LA$7="NON RÉALISÉ FACTURÉ",1,0))) -> 0 | LB20: 0 | LC20: =$K20*LA20 -> 0 | LD20: =IF(LD$7="EN COURS",1,IF(LD$7="TERMINÉ",1,IF(LD$7="NON RÉALISÉ FACTURÉ",1,0))) -> 0 | LE20: 0 | LF20: =$K20*LD20 -> 0 | LG20: =IF(LG$7="EN COURS",1,IF(LG$7="TERMINÉ",1,IF(LG$7="NON RÉALISÉ FACTURÉ",1,0))) -> 0 | LH20: 0 | LI20: =$K20*LG20 -> 0 | LJ20: =IF(LJ$7="EN COURS",1,IF(LJ$7="TERMINÉ",1,IF(LJ$7="NON RÉALISÉ FACTURÉ",1,0))) -> 0 | LK20: 0 | LL20: =$K20*LJ20 -> 0 | LM20: =IF(LM$7="EN COURS",1,IF(LM$7="TERMINÉ",1,IF(LM$7="NON RÉALISÉ FACTURÉ",1,0))) -> 0 | LN20: 0 | LO20: =$K20*LM20 -> 0 | LP20: =IF(LP$7="EN COURS",1,IF(LP$7="TERMINÉ",1,IF(LP$7="NON RÉALISÉ FACTURÉ",1,0))) -> 0 | LQ20: 0 | LR20: =$K20*LP20 -> 0 | LS20: =IF(LS$7="EN COURS",1,IF(LS$7="TERMINÉ",1,IF(LS$7="NON RÉALISÉ FACTURÉ",1,0))) -> 0 | LT20: 0 | LU20: =$K20*LS20 -> 0 | LV20: =IF(LV$7="EN COURS",1,IF(LV$7="TERMINÉ",1,IF(LV$7="NON RÉALISÉ FACTURÉ",1,0))) -> 0 | LW20: 0 | LX20: =$K20*LV20 -> 0 | LY20: =IF(LY$7="EN COURS",1,IF(LY$7="TERMINÉ",1,IF(LY$7="NON RÉALISÉ FACTURÉ",1,0))) -> 0 | LZ20: 0 | MA20: =$K20*LY20 -> 0 | MB20: =IF(MB$7="EN COURS",1,IF(MB$7="TERMINÉ",1,IF(MB$7="NON RÉALISÉ FACTURÉ",1,0))) -> 0 | MC20: 0 | MD20: =$K20*MB20 -> 0 | ME20: =IF(ME$7="EN COURS",1,IF(ME$7="TERMINÉ",1,IF(ME$7="NON RÉALISÉ FACTURÉ",1,0))) -> 0 | MF20: 0 | MG20: =$K20*ME20 -> 0 | MH20: =IF(MH$7="EN COURS",1,IF(MH$7="TERMINÉ",1,IF(MH$7="NON RÉALISÉ FACTURÉ",1,0))) -> 0 | MI20: 0 | MJ20: =$K20*MH20 -> 0 | MK20: =IF(MK$7="EN COURS",1,IF(MK$7="TERMINÉ",1,IF(MK$7="NON RÉALISÉ FACTURÉ",1,0))) -> 0 | ML20: 0 | MM20: =$K20*MK20 -> 0 | MN20: =IF(MN$7="EN COURS",1,IF(MN$7="TERMINÉ",1,IF(MN$7="NON RÉALISÉ FACTURÉ",1,0))) -> 0 | MO20: 0 | MP20: =$K20*MN20 -> 0
A21: Vérification Gaz | B21: 112 | E21: 51 | F21: 112 | G21: 45.53571429 | J21: 0.35 | K21: =J21 -> 0.35 | L21: =112*K21 -> 39.2 | Q21: 39.2 | S21: =IF(S$7="EN COURS",1,IF(S$7="TERMINÉ",1,IF(S$7="NON RÉALISÉ FACTURÉ",1,0))) -> 1 | T21: 0.35 | U21: =$K21*S21 -> 0.35 | V21: =IF(V$7="EN COURS",1,IF(V$7="TERMINÉ",1,IF(V$7="NON RÉALISÉ FACTURÉ",1,0))) -> 1 | W21: 0.35 | X21: =$K21*V21 -> 0.35 | Y21: =IF(Y$7="EN COURS",1,IF(Y$7="TERMINÉ",1,IF(Y$7="NON RÉALISÉ FACTURÉ",1,0))) -> 1 | Z21: 0.35 | AA21: =$K21*Y21 -> 0.35 | AB21: =IF(AB$7="EN COURS",1,IF(AB$7="TERMINÉ",1,IF(AB$7="NON RÉALISÉ FACTURÉ",1,0))) -> 1 | AC21: 0.35 | AD21: =$K21*AB21 -> 0.35 | AE21: =IF(AE$7="EN COURS",1,IF(AE$7="TERMINÉ",1,IF(AE$7="NON RÉALISÉ FACTURÉ",1,0))) -> 1 | AF21: 0.35 | AG21: =$K21*AE21 -> 0.35 | AH21: =IF(AH$7="EN COURS",1,IF(AH$7="TERMINÉ",1,IF(AH$7="NON RÉALISÉ FACTURÉ",1,0))) -> 1 | AI21: 0.35 | AJ21: =$K21*AH21 -> 0.35 | AK21: =IF(AK$7="EN COURS",1,IF(AK$7="TERMINÉ",1,IF(AK$7="NON RÉALISÉ FACTURÉ",1,0))) -> 1 | AL21: 0.35 | AM21: =$K21*AK21 -> 0.35 | AN21: =IF(AN$7="EN COURS",1,IF(AN$7="TERMINÉ",1,IF(AN$7="NON RÉALISÉ FACTURÉ",1,0))) -> 1 | AO21: 0.35 | AP21: =$K21*AN21 -> 0.35 | AQ21: =IF(AQ$7="EN COURS",1,IF(AQ$7="TERMINÉ",1,IF(AQ$7="NON RÉALISÉ FACTURÉ",1,0))) -> 1 | AR21: 0.35 | AS21: =$K21*AQ21 -> 0.35 | AT21: =IF(AT$7="EN COURS",1,IF(AT$7="TERMINÉ",1,IF(AT$7="NON RÉALISÉ FACTURÉ",1,0))) -> 1 | AU21: 0.35 | AV21: =$K21*AT21 -> 0.35 | AW21: =IF(AW$7="EN COURS",1,IF(AW$7="TERMINÉ",1,IF(AW$7="NON RÉALISÉ FACTURÉ",1,0))) -> 1 | AX21: 0.35 | AY21: =$K21*AW21 -> 0.35 | AZ21: =IF(AZ$7="EN COURS",1,IF(AZ$7="TERMINÉ",1,IF(AZ$7="NON RÉALISÉ FACTURÉ",1,0))) -> 1 | BA21: 0.35 | BB21: =$K21*AZ21 -> 0.35 | BC21: =IF(BC$7="EN COURS",1,IF(BC$7="TERMINÉ",1,IF(BC$7="NON RÉALISÉ FACTURÉ",1,0))) -> 1 | BD21: 0.35 | BE21: =$K21*BC21 -> 0.35 | BF21: =IF(BF$7="EN COURS",1,IF(BF$7="TERMINÉ",1,IF(BF$7="NON RÉALISÉ FACTURÉ",1,0))) -> 1 | BG21: 0.35 | BH21: =$K21*BF21 -> 0.35 | BI21: =IF(BI$7="EN COURS",1,IF(BI$7="TERMINÉ",1,IF(BI$7="NON RÉALISÉ FACTURÉ",1,0))) -> 1 | BJ21: 0.35 | BK21: =$K21*BI21 -> 0.35 | BL21: =IF(BL$7="EN COURS",1,IF(BL$7="TERMINÉ",1,IF(BL$7="NON RÉALISÉ FACTURÉ",1,0))) -> 1 | BM21: 0.35 | BN21: =$K21*BL21 -> 0.35 | BO21: =IF(BO$7="EN COURS",1,IF(BO$7="TERMINÉ",1,IF(BO$7="NON RÉALISÉ FACTURÉ",1,0))) -> 1 | BP21: 0.35 | BQ21: =$K21*BO21 -> 0.35 | BR21: =IF(BR$7="EN COURS",1,IF(BR$7="TERMINÉ",1,IF(BR$7="NON RÉALISÉ FACTURÉ",1,0))) -> 1 | BS21: 0.35 | BT21: =$K21*BR21 -> 0.35 | BU21: =IF(BU$7="EN COURS",1,IF(BU$7="TERMINÉ",1,IF(BU$7="NON RÉALISÉ FACTURÉ",1,0))) -> 1 | BV21: 0.35 | BW21: =$K21*BU21 -> 0.35 | BX21: =IF(BX$7="EN COURS",1,IF(BX$7="TERMINÉ",1,IF(BX$7="NON RÉALISÉ FACTURÉ",1,0))) -> 1 | BY21: 0.35 | BZ21: =$K21*BX21 -> 0.35 | CA21: =IF(CA$7="EN COURS",1,IF(CA$7="TERMINÉ",1,IF(CA$7="NON RÉALISÉ FACTURÉ",1,0))) -> 1 | CB21: 0.35 | CC21: =$K21*CA21 -> 0.35 | CD21: =IF(CD$7="EN COURS",1,IF(CD$7="TERMINÉ",1,IF(CD$7="NON RÉALISÉ FACTURÉ",1,0))) -> 1 | CE21: 0.35 | CF21: =$K21*CD21 -> 0.35 | CG21: =IF(CG$7="EN COURS",1,IF(CG$7="TERMINÉ",1,IF(CG$7="NON RÉALISÉ FACTURÉ",1,0))) -> 1 | CH21: 0.35 | CI21: =$K21*CG21 -> 0.35 | CJ21: =IF(CJ$7="EN COURS",1,IF(CJ$7="TERMINÉ",1,IF(CJ$7="NON RÉALISÉ FACTURÉ",1,0))) -> 1 | CK21: 0.35 | CL21: =$K21*CJ21 -> 0.35 | CM21: =IF(CM$7="EN COURS",1,IF(CM$7="TERMINÉ",1,IF(CM$7="NON RÉALISÉ FACTURÉ",1,0))) -> 1 | CN21: 0.35 | CO21: =$K21*CM21 -> 0.35 | CP21: =IF(CP$7="EN COURS",1,IF(CP$7="TERMINÉ",1,IF(CP$7="NON RÉALISÉ FACTURÉ",1,0))) -> 1 | CQ21: 0.35 | CR21: =$K21*CP21 -> 0.35 | CS21: =IF(CS$7="EN COURS",1,IF(CS$7="TERMINÉ",1,IF(CS$7="NON RÉALISÉ FACTURÉ",1,0))) -> 1 | CT21: 0.35 | CU21: =$K21*CS21 -> 0.35 | CV21: =IF(CV$7="EN COURS",1,IF(CV$7="TERMINÉ",1,IF(CV$7="NON RÉALISÉ FACTURÉ",1,0))) -> 1 | CW21: 0.35 | CX21: =$K21*CV21 -> 0.35 | CY21: =IF(CY$7="EN COURS",1,IF(CY$7="TERMINÉ",1,IF(CY$7="NON RÉALISÉ FACTURÉ",1,0))) -> 1 | CZ21: 0.35 | DA21: =$K21*CY21 -> 0.35 | DB21: =IF(DB$7="EN COURS",1,IF(DB$7="TERMINÉ",1,IF(DB$7="NON RÉALISÉ FACTURÉ",1,0))) -> 0 | DC21: 0 | DD21: =$K21*DB21 -> 0 | DE21: =IF(DE$7="EN COURS",1,IF(DE$7="TERMINÉ",1,IF(DE$7="NON RÉALISÉ FACTURÉ",1,0))) -> 1 | DF21: 0.35 | DG21: =$K21*DE21 -> 0.35 | DH21: =IF(DH$7="EN COURS",1,IF(DH$7="TERMINÉ",1,IF(DH$7="NON RÉALISÉ FACTURÉ",1,0))) -> 1 | DI21: 0.35 | DJ21: =$K21*DH21 -> 0.35 | DK21: =IF(DK$7="EN COURS",1,IF(DK$7="TERMINÉ",1,IF(DK$7="NON RÉALISÉ FACTURÉ",1,0))) -> 1 | DL21: 0.35 | DM21: =$K21*DK21 -> 0.35 | DN21: =IF(DN$7="EN COURS",1,IF(DN$7="TERMINÉ",1,IF(DN$7="NON RÉALISÉ FACTURÉ",1,0))) -> 1 | DO21: 0.35 | DP21: =$K21*DN21 -> 0.35 | DQ21: =IF(DQ$7="EN COURS",1,IF(DQ$7="TERMINÉ",1,IF(DQ$7="NON RÉALISÉ FACTURÉ",1,0))) -> 1 | DR21: 0.35 | DS21: =$K21*DQ21 -> 0.35 | DT21: =IF(DT$7="EN COURS",1,IF(DT$7="TERMINÉ",1,IF(DT$7="NON RÉALISÉ FACTURÉ",1,0))) -> 1 | DU21: 0.35 | DV21: =$K21*DT21 -> 0.35 | DW21: =IF(DW$7="EN COURS",1,IF(DW$7="TERMINÉ",1,IF(DW$7="NON RÉALISÉ FACTURÉ",1,0))) -> 1 | DX21: 0.35 | DY21: =$K21*DW21 -> 0.35 | DZ21: =IF(DZ$7="EN COURS",1,IF(DZ$7="TERMINÉ",1,IF(DZ$7="NON RÉALISÉ FACTURÉ",1,0))) -> 1 | EA21: 0.35 | EB21: =$K21*DZ21 -> 0.35 | EC21: =IF(EC$7="EN COURS",1,IF(EC$7="TERMINÉ",1,IF(EC$7="NON RÉALISÉ FACTURÉ",1,0))) -> 1 | ED21: 0.35 | EE21: =$K21*EC21 -> 0.35 | EF21: =IF(EF$7="EN COURS",1,IF(EF$7="TERMINÉ",1,IF(EF$7="NON RÉALISÉ FACTURÉ",1,0))) -> 0 | EG21: 0 | EH21: =$K21*EF21 -> 0 | EI21: =IF(EI$7="EN COURS",1,IF(EI$7="TERMINÉ",1,IF(EI$7="NON RÉALISÉ FACTURÉ",1,0))) -> 1 | EJ21: 0.35 | EK21: =$K21*EI21 -> 0.35 | EL21: =IF(EL$7="EN COURS",1,IF(EL$7="TERMINÉ",1,IF(EL$7="NON RÉALISÉ FACTURÉ",1,0))) -> 1 | EM21: 0.35 | EN21: =$K21*EL21 -> 0.35 | EO21: =IF(EO$7="EN COURS",1,IF(EO$7="TERMINÉ",1,IF(EO$7="NON RÉALISÉ FACTURÉ",1,0))) -> 1 | EP21: 0.35 | EQ21: =$K21*EO21 -> 0.35 | ER21: =IF(ER$7="EN COURS",1,IF(ER$7="TERMINÉ",1,IF(ER$7="NON RÉALISÉ FACTURÉ",1,0))) -> 1 | ES21: 0.35 | ET21: =$K21*ER21 -> 0.35 | EU21: =IF(EU$7="EN COURS",1,IF(EU$7="TERMINÉ",1,IF(EU$7="NON RÉALISÉ FACTURÉ",1,0))) -> 0 | EV21: 0 | EW21: =$K21*EU21 -> 0 | EX21: =IF(EX$7="EN COURS",1,IF(EX$7="TERMINÉ",1,IF(EX$7="NON RÉALISÉ FACTURÉ",1,0))) -> 1 | EY21: 0.35 | EZ21: =$K21*EX21 -> 0.35 | FA21: =IF(FA$7="EN COURS",1,IF(FA$7="TERMINÉ",1,IF(FA$7="NON RÉALISÉ FACTURÉ",1,0))) -> 1 | FB21: 0.35 | FC21: =$K21*FA21 -> 0.35 | FD21: =IF(FD$7="EN COURS",1,IF(FD$7="TERMINÉ",1,IF(FD$7="NON RÉALISÉ FACTURÉ",1,0))) -> 0 | FE21: 0 | FF21: =$K21*FD21 -> 0 | FG21: =IF(FG$7="EN COURS",1,IF(FG$7="TERMINÉ",1,IF(FG$7="NON RÉALISÉ FACTURÉ",1,0))) -> 0 | FH21: 0 | FI21: =$K21*FG21 -> 0 | FJ21: =IF(FJ$7="EN COURS",1,IF(FJ$7="TERMINÉ",1,IF(FJ$7="NON RÉALISÉ FACTURÉ",1,0))) -> 1 | FK21: 0.35 | FL21: =$K21*FJ21 -> 0.35 | FM21: =IF(FM$7="EN COURS",1,IF(FM$7="TERMINÉ",1,IF(FM$7="NON RÉALISÉ FACTURÉ",1,0))) -> 1 | FN21: 0.35 | FO21: =$K21*FM21 -> 0.35 | FP21: =IF(FP$7="EN COURS",1,IF(FP$7="TERMINÉ",1,IF(FP$7="NON RÉALISÉ FACTURÉ",1,0))) -> 0 | FQ21: 0 | FR21: =$K21*FP21 -> 0 | FS21: =IF(FS$7="EN COURS",1,IF(FS$7="TERMINÉ",1,IF(FS$7="NON RÉALISÉ FACTURÉ",1,0))) -> 1 | FT21: 0.35 | FU21: =$K21*FS21 -> 0.35 | FV21: =IF(FV$7="EN COURS",1,IF(FV$7="TERMINÉ",1,IF(FV$7="NON RÉALISÉ FACTURÉ",1,0))) -> 1 | FW21: 0.35 | FX21: =$K21*FV21 -> 0.35 | FY21: =IF(FY$7="EN COURS",1,IF(FY$7="TERMINÉ",1,IF(FY$7="NON RÉALISÉ FACTURÉ",1,0))) -> 0 | FZ21: 0 | GA21: =$K21*FY21 -> 0 | GB21: =IF(GB$7="EN COURS",1,IF(GB$7="TERMINÉ",1,IF(GB$7="NON RÉALISÉ FACTURÉ",1,0))) -> 1 | GC21: 0.35 | GD21: =$K21*GB21 -> 0.35 | GE21: =IF(GE$7="EN COURS",1,IF(GE$7="TERMINÉ",1,IF(GE$7="NON RÉALISÉ FACTURÉ",1,0))) -> 0 | GF21: 0 | GG21: =$K21*GE21 -> 0 | GH21: =IF(GH$7="EN COURS",1,IF(GH$7="TERMINÉ",1,IF(GH$7="NON RÉALISÉ FACTURÉ",1,0))) -> 1 | GI21: 0.35 | GJ21: =$K21*GH21 -> 0.35 | GK21: =IF(GK$7="EN COURS",1,IF(GK$7="TERMINÉ",1,IF(GK$7="NON RÉALISÉ FACTURÉ",1,0))) -> 0 | GL21: 0 | GM21: =$K21*GK21 -> 0 | GN21: =IF(GN$7="EN COURS",1,IF(GN$7="TERMINÉ",1,IF(GN$7="NON RÉALISÉ FACTURÉ",1,0))) -> 0 | GO21: 0 | GP21: =$K21*GN21 -> 0 | GQ21: =IF(GQ$7="EN COURS",1,IF(GQ$7="TERMINÉ",1,IF(GQ$7="NON RÉALISÉ FACTURÉ",1,0))) -> 1 | GR21: 0.35 | GS21: =$K21*GQ21 -> 0.35 | GT21: =IF(GT$7="EN COURS",1,IF(GT$7="TERMINÉ",1,IF(GT$7="NON RÉALISÉ FACTURÉ",1,0))) -> 0 | GU21: 0 | GV21: =$K21*GT21 -> 0 | GW21: =IF(GW$7="EN COURS",1,IF(GW$7="TERMINÉ",1,IF(GW$7="NON RÉALISÉ FACTURÉ",1,0))) -> 0 | GX21: 0 | GY21: =$K21*GW21 -> 0 | GZ21: =IF(GZ$7="EN COURS",1,IF(GZ$7="TERMINÉ",1,IF(GZ$7="NON RÉALISÉ FACTURÉ",1,0))) -> 0 | HA21: 0 | HB21: =$K21*GZ21 -> 0 | HC21: =IF(HC$7="EN COURS",1,IF(HC$7="TERMINÉ",1,IF(HC$7="NON RÉALISÉ FACTURÉ",1,0))) -> 0 | HD21: 0 | HE21: =$K21*HC21 -> 0 | HF21: =IF(HF$7="EN COURS",1,IF(HF$7="TERMINÉ",1,IF(HF$7="NON RÉALISÉ FACTURÉ",1,0))) -> 0 | HG21: 0 | HH21: =$K21*HF21 -> 0 | HI21: =IF(HI$7="EN COURS",1,IF(HI$7="TERMINÉ",1,IF(HI$7="NON RÉALISÉ FACTURÉ",1,0))) -> 0 | HJ21: 0 | HK21: =$K21*HI21 -> 0 | HL21: =IF(HL$7="EN COURS",1,IF(HL$7="TERMINÉ",1,IF(HL$7="NON RÉALISÉ FACTURÉ",1,0))) -> 0 | HM21: 0 | HN21: =$K21*HL21 -> 0 | HO21: =IF(HO$7="EN COURS",1,IF(HO$7="TERMINÉ",1,IF(HO$7="NON RÉALISÉ FACTURÉ",1,0))) -> 0 | HP21: 0 | HQ21: =$K21*HO21 -> 0 | HR21: =IF(HR$7="EN COURS",1,IF(HR$7="TERMINÉ",1,IF(HR$7="NON RÉALISÉ FACTURÉ",1,0))) -> 0 | HS21: 0 | HT21: =$K21*HR21 -> 0 | HU21: =IF(HU$7="EN COURS",1,IF(HU$7="TERMINÉ",1,IF(HU$7="NON RÉALISÉ FACTURÉ",1,0))) -> 0 | HV21: 0 | HW21: =$K21*HU21 -> 0 | HX21: =IF(HX$7="EN COURS",1,IF(HX$7="TERMINÉ",1,IF(HX$7="NON RÉALISÉ FACTURÉ",1,0))) -> 0 | HY21: 0 | HZ21: =$K21*HX21 -> 0 | IA21: =IF(IA$7="EN COURS",1,IF(IA$7="TERMINÉ",1,IF(IA$7="NON RÉALISÉ FACTURÉ",1,0))) -> 0 | IB21: 0 | IC21: =$K21*IA21 -> 0 | ID21: =IF(ID$7="EN COURS",1,IF(ID$7="TERMINÉ",1,IF(ID$7="NON RÉALISÉ FACTURÉ",1,0))) -> 0 | IE21: 0 | IF21: =$K21*ID21 -> 0 | IG21: =IF(IG$7="EN COURS",1,IF(IG$7="TERMINÉ",1,IF(IG$7="NON RÉALISÉ FACTURÉ",1,0))) -> 0 | IH21: 0 | II21: =$K21*IG21 -> 0 | IJ21: =IF(IJ$7="EN COURS",1,IF(IJ$7="TERMINÉ",1,IF(IJ$7="NON RÉALISÉ FACTURÉ",1,0))) -> 0 | IK21: 0 | IL21: =$K21*IJ21 -> 0 | IM21: =IF(IM$7="EN COURS",1,IF(IM$7="TERMINÉ",1,IF(IM$7="NON RÉALISÉ FACTURÉ",1,0))) -> 0 | IN21: 0 | IO21: =$K21*IM21 -> 0 | IP21: =IF(IP$7="EN COURS",1,IF(IP$7="TERMINÉ",1,IF(IP$7="NON RÉALISÉ FACTURÉ",1,0))) -> 0 | IQ21: 0 | IR21: =$K21*IP21 -> 0 | IS21: =IF(IS$7="EN COURS",1,IF(IS$7="TERMINÉ",1,IF(IS$7="NON RÉALISÉ FACTURÉ",1,0))) -> 0 | IT21: 0 | IU21: =$K21*IS21 -> 0 | IV21: =IF(IV$7="EN COURS",1,IF(IV$7="TERMINÉ",1,IF(IV$7="NON RÉALISÉ FACTURÉ",1,0))) -> 0 | IW21: 0 | IX21: =$K21*IV21 -> 0 | IY21: =IF(IY$7="EN COURS",1,IF(IY$7="TERMINÉ",1,IF(IY$7="NON RÉALISÉ FACTURÉ",1,0))) -> 0 | IZ21: 0 | JA21: =$K21*IY21 -> 0 | JB21: =IF(JB$7="EN COURS",1,IF(JB$7="TERMINÉ",1,IF(JB$7="NON RÉALISÉ FACTURÉ",1,0))) -> 0 | JC21: 0 | JD21: =$K21*JB21 -> 0 | JE21: =IF(JE$7="EN COURS",1,IF(JE$7="TERMINÉ",1,IF(JE$7="NON RÉALISÉ FACTURÉ",1,0))) -> 0 | JF21: 0 | JG21: =$K21*JE21 -> 0 | JH21: =IF(JH$7="EN COURS",1,IF(JH$7="TERMINÉ",1,IF(JH$7="NON RÉALISÉ FACTURÉ",1,0))) -> 0 | JI21: 0 | JJ21: =$K21*JH21 -> 0 | JK21: =IF(JK$7="EN COURS",1,IF(JK$7="TERMINÉ",1,IF(JK$7="NON RÉALISÉ FACTURÉ",1,0))) -> 0 | JL21: 0 | JM21: =$K21*JK21 -> 0 | JN21: =IF(JN$7="EN COURS",1,IF(JN$7="TERMINÉ",1,IF(JN$7="NON RÉALISÉ FACTURÉ",1,0))) -> 0 | JO21: 0 | JP21: =$K21*JN21 -> 0 | JQ21: =IF(JQ$7="EN COURS",1,IF(JQ$7="TERMINÉ",1,IF(JQ$7="NON RÉALISÉ FACTURÉ",1,0))) -> 0 | JR21: 0 | JS21: =$K21*JQ21 -> 0 | JT21: =IF(JT$7="EN COURS",1,IF(JT$7="TERMINÉ",1,IF(JT$7="NON RÉALISÉ FACTURÉ",1,0))) -> 0 | JU21: 0 | JV21: =$K21*JT21 -> 0 | JW21: =IF(JW$7="EN COURS",1,IF(JW$7="TERMINÉ",1,IF(JW$7="NON RÉALISÉ FACTURÉ",1,0))) -> 0 | JX21: 0 | JY21: =$K21*JW21 -> 0 | JZ21: =IF(JZ$7="EN COURS",1,IF(JZ$7="TERMINÉ",1,IF(JZ$7="NON RÉALISÉ FACTURÉ",1,0))) -> 0 | KA21: 0 | KB21: =$K21*JZ21 -> 0 | KC21: =IF(KC$7="EN COURS",1,IF(KC$7="TERMINÉ",1,IF(KC$7="NON RÉALISÉ FACTURÉ",1,0))) -> 0 | KD21: 0 | KE21: =$K21*KC21 -> 0 | KF21: =IF(KF$7="EN COURS",1,IF(KF$7="TERMINÉ",1,IF(KF$7="NON RÉALISÉ FACTURÉ",1,0))) -> 0 | KG21: 0 | KH21: =$K21*KF21 -> 0 | KI21: =IF(KI$7="EN COURS",1,IF(KI$7="TERMINÉ",1,IF(KI$7="NON RÉALISÉ FACTURÉ",1,0))) -> 0 | KJ21: 0 | KK21: =$K21*KI21 -> 0 | KL21: =IF(KL$7="EN COURS",1,IF(KL$7="TERMINÉ",1,IF(KL$7="NON RÉALISÉ FACTURÉ",1,0))) -> 0 | KM21: 0 | KN21: =$K21*KL21 -> 0 | KO21: =IF(KO$7="EN COURS",1,IF(KO$7="TERMINÉ",1,IF(KO$7="NON RÉALISÉ FACTURÉ",1,0))) -> 0 | KP21: 0 | KQ21: =$K21*KO21 -> 0 | KR21: =IF(KR$7="EN COURS",1,IF(KR$7="TERMINÉ",1,IF(KR$7="NON RÉALISÉ FACTURÉ",1,0))) -> 0 | KS21: 0 | KT21: =$K21*KR21 -> 0 | KU21: =IF(KU$7="EN COURS",1,IF(KU$7="TERMINÉ",1,IF(KU$7="NON RÉALISÉ FACTURÉ",1,0))) -> 0 | KV21: 0 | KW21: =$K21*KU21 -> 0 | KX21: =IF(KX$7="EN COURS",1,IF(KX$7="TERMINÉ",1,IF(KX$7="NON RÉALISÉ FACTURÉ",1,0))) -> 0 | KY21: 0 | KZ21: =$K21*KX21 -> 0 | LA21: =IF(LA$7="EN COURS",1,IF(LA$7="TERMINÉ",1,IF(LA$7="NON RÉALISÉ FACTURÉ",1,0))) -> 0 | LB21: 0 | LC21: =$K21*LA21 -> 0 | LD21: =IF(LD$7="EN COURS",1,IF(LD$7="TERMINÉ",1,IF(LD$7="NON RÉALISÉ FACTURÉ",1,0))) -> 0 | LE21: 0 | LF21: =$K21*LD21 -> 0 | LG21: =IF(LG$7="EN COURS",1,IF(LG$7="TERMINÉ",1,IF(LG$7="NON RÉALISÉ FACTURÉ",1,0))) -> 0 | LH21: 0 | LI21: =$K21*LG21 -> 0 | LJ21: =IF(LJ$7="EN COURS",1,IF(LJ$7="TERMINÉ",1,IF(LJ$7="NON RÉALISÉ FACTURÉ",1,0))) -> 0 | LK21: 0 | LL21: =$K21*LJ21 -> 0 | LM21: =IF(LM$7="EN COURS",1,IF(LM$7="TERMINÉ",1,IF(LM$7="NON RÉALISÉ FACTURÉ",1,0))) -> 0 | LN21: 0 | LO21: =$K21*LM21 -> 0 | LP21: =IF(LP$7="EN COURS",1,IF(LP$7="TERMINÉ",1,IF(LP$7="NON RÉALISÉ FACTURÉ",1,0))) -> 0 | LQ21: 0 | LR21: =$K21*LP21 -> 0 | LS21: =IF(LS$7="EN COURS",1,IF(LS$7="TERMINÉ",1,IF(LS$7="NON RÉALISÉ FACTURÉ",1,0))) -> 0 | LT21: 0 | LU21: =$K21*LS21 -> 0 | LV21: =IF(LV$7="EN COURS",1,IF(LV$7="TERMINÉ",1,IF(LV$7="NON RÉALISÉ FACTURÉ",1,0))) -> 0 | LW21: 0 | LX21: =$K21*LV21 -> 0 | LY21: =IF(LY$7="EN COURS",1,IF(LY$7="TERMINÉ",1,IF(LY$7="NON RÉALISÉ FACTURÉ",1,0))) -> 0 | LZ21: 0 | MA21: =$K21*LY21 -> 0 | MB21: =IF(MB$7="EN COURS",1,IF(MB$7="TERMINÉ",1,IF(MB$7="NON RÉALISÉ FACTURÉ",1,0))) -> 0 | MC21: 0 | MD21: =$K21*MB21 -> 0 | ME21: =IF(ME$7="EN COURS",1,IF(ME$7="TERMINÉ",1,IF(ME$7="NON RÉALISÉ FACTURÉ",1,0))) -> 0 | MF21: 0 | MG21: =$K21*ME21 -> 0 | MH21: =IF(MH$7="EN COURS",1,IF(MH$7="TERMINÉ",1,IF(MH$7="NON RÉALISÉ FACTURÉ",1,0))) -> 0 | MI21: 0 | MJ21: =$K21*MH21 -> 0 | MK21: =IF(MK$7="EN COURS",1,IF(MK$7="TERMINÉ",1,IF(MK$7="NON RÉALISÉ FACTURÉ",1,0))) -> 0 | ML21: 0 | MM21: =$K21*MK21 -> 0 | MN21: =IF(MN$7="EN COURS",1,IF(MN$7="TERMINÉ",1,IF(MN$7="NON RÉALISÉ FACTURÉ",1,0))) -> 0 | MO21: 0 | MP21: =$K21*MN21 -> 0
A22: Suppresion réseaux pirates | B22: 112 | E22: 51 | F22: 112 | G22: 45.53571429 | J22: 0.65 | K22: =J22 -> 0.65 | L22: =112*K22 -> 72.8 | Q22: 72.8 | S22: =IF(S$7="EN COURS",1,IF(S$7="TERMINÉ",1,IF(S$7="NON RÉALISÉ FACTURÉ",1,0))) -> 1 | T22: 0.65 | U22: =$K22*S22 -> 0.65 | V22: =IF(V$7="EN COURS",1,IF(V$7="TERMINÉ",1,IF(V$7="NON RÉALISÉ FACTURÉ",1,0))) -> 1 | W22: 0.65 | X22: =$K22*V22 -> 0.65 | Y22: =IF(Y$7="EN COURS",1,IF(Y$7="TERMINÉ",1,IF(Y$7="NON RÉALISÉ FACTURÉ",1,0))) -> 1 | Z22: 0.65 | AA22: =$K22*Y22 -> 0.65 | AB22: =IF(AB$7="EN COURS",1,IF(AB$7="TERMINÉ",1,IF(AB$7="NON RÉALISÉ FACTURÉ",1,0))) -> 1 | AC22: 0.65 | AD22: =$K22*AB22 -> 0.65 | AE22: =IF(AE$7="EN COURS",1,IF(AE$7="TERMINÉ",1,IF(AE$7="NON RÉALISÉ FACTURÉ",1,0))) -> 1 | AF22: 0.65 | AG22: =$K22*AE22 -> 0.65 | AH22: =IF(AH$7="EN COURS",1,IF(AH$7="TERMINÉ",1,IF(AH$7="NON RÉALISÉ FACTURÉ",1,0))) -> 1 | AI22: 0.65 | AJ22: =$K22*AH22 -> 0.65 | AK22: =IF(AK$7="EN COURS",1,IF(AK$7="TERMINÉ",1,IF(AK$7="NON RÉALISÉ FACTURÉ",1,0))) -> 1 | AL22: 0.65 | AM22: =$K22*AK22 -> 0.65 | AN22: =IF(AN$7="EN COURS",1,IF(AN$7="TERMINÉ",1,IF(AN$7="NON RÉALISÉ FACTURÉ",1,0))) -> 1 | AO22: 0.65 | AP22: =$K22*AN22 -> 0.65 | AQ22: =IF(AQ$7="EN COURS",1,IF(AQ$7="TERMINÉ",1,IF(AQ$7="NON RÉALISÉ FACTURÉ",1,0))) -> 1 | AR22: 0.65 | AS22: =$K22*AQ22 -> 0.65 | AT22: =IF(AT$7="EN COURS",1,IF(AT$7="TERMINÉ",1,IF(AT$7="NON RÉALISÉ FACTURÉ",1,0))) -> 1 | AU22: 0.65 | AV22: =$K22*AT22 -> 0.65 | AW22: =IF(AW$7="EN COURS",1,IF(AW$7="TERMINÉ",1,IF(AW$7="NON RÉALISÉ FACTURÉ",1,0))) -> 1 | AX22: 0.65 | AY22: =$K22*AW22 -> 0.65 | AZ22: =IF(AZ$7="EN COURS",1,IF(AZ$7="TERMINÉ",1,IF(AZ$7="NON RÉALISÉ FACTURÉ",1,0))) -> 1 | BA22: 0.65 | BB22: =$K22*AZ22 -> 0.65 | BC22: =IF(BC$7="EN COURS",1,IF(BC$7="TERMINÉ",1,IF(BC$7="NON RÉALISÉ FACTURÉ",1,0))) -> 1 | BD22: 0.65 | BE22: =$K22*BC22 -> 0.65 | BF22: =IF(BF$7="EN COURS",1,IF(BF$7="TERMINÉ",1,IF(BF$7="NON RÉALISÉ FACTURÉ",1,0))) -> 1 | BG22: 0.65 | BH22: =$K22*BF22 -> 0.65 | BI22: =IF(BI$7="EN COURS",1,IF(BI$7="TERMINÉ",1,IF(BI$7="NON RÉALISÉ FACTURÉ",1,0))) -> 1 | BJ22: 0.65 | BK22: =$K22*BI22 -> 0.65 | BL22: =IF(BL$7="EN COURS",1,IF(BL$7="TERMINÉ",1,IF(BL$7="NON RÉALISÉ FACTURÉ",1,0))) -> 1 | BM22: 0.65 | BN22: =$K22*BL22 -> 0.65 | BO22: =IF(BO$7="EN COURS",1,IF(BO$7="TERMINÉ",1,IF(BO$7="NON RÉALISÉ FACTURÉ",1,0))) -> 1 | BP22: 0.65 | BQ22: =$K22*BO22 -> 0.65 | BR22: =IF(BR$7="EN COURS",1,IF(BR$7="TERMINÉ",1,IF(BR$7="NON RÉALISÉ FACTURÉ",1,0))) -> 1 | BS22: 0.65 | BT22: =$K22*BR22 -> 0.65 | BU22: =IF(BU$7="EN COURS",1,IF(BU$7="TERMINÉ",1,IF(BU$7="NON RÉALISÉ FACTURÉ",1,0))) -> 1 | BV22: 0.65 | BW22: =$K22*BU22 -> 0.65 | BX22: =IF(BX$7="EN COURS",1,IF(BX$7="TERMINÉ",1,IF(BX$7="NON RÉALISÉ FACTURÉ",1,0))) -> 1 | BY22: 0.65 | BZ22: =$K22*BX22 -> 0.65 | CA22: =IF(CA$7="EN COURS",1,IF(CA$7="TERMINÉ",1,IF(CA$7="NON RÉALISÉ FACTURÉ",1,0))) -> 1 | CB22: 0.65 | CC22: =$K22*CA22 -> 0.65 | CD22: =IF(CD$7="EN COURS",1,IF(CD$7="TERMINÉ",1,IF(CD$7="NON RÉALISÉ FACTURÉ",1,0))) -> 1 | CE22: 0.65 | CF22: =$K22*CD22 -> 0.65 | CG22: =IF(CG$7="EN COURS",1,IF(CG$7="TERMINÉ",1,IF(CG$7="NON RÉALISÉ FACTURÉ",1,0))) -> 1 | CH22: 0.65 | CI22: =$K22*CG22 -> 0.65 | CJ22: =IF(CJ$7="EN COURS",1,IF(CJ$7="TERMINÉ",1,IF(CJ$7="NON RÉALISÉ FACTURÉ",1,0))) -> 1 | CK22: 0.65 | CL22: =$K22*CJ22 -> 0.65 | CM22: =IF(CM$7="EN COURS",1,IF(CM$7="TERMINÉ",1,IF(CM$7="NON RÉALISÉ FACTURÉ",1,0))) -> 1 | CN22: 0.65 | CO22: =$K22*CM22 -> 0.65 | CP22: =IF(CP$7="EN COURS",1,IF(CP$7="TERMINÉ",1,IF(CP$7="NON RÉALISÉ FACTURÉ",1,0))) -> 1 | CQ22: 0.65 | CR22: =$K22*CP22 -> 0.65 | CS22: =IF(CS$7="EN COURS",1,IF(CS$7="TERMINÉ",1,IF(CS$7="NON RÉALISÉ FACTURÉ",1,0))) -> 1 | CT22: 0.65 | CU22: =$K22*CS22 -> 0.65 | CV22: =IF(CV$7="EN COURS",1,IF(CV$7="TERMINÉ",1,IF(CV$7="NON RÉALISÉ FACTURÉ",1,0))) -> 1 | CW22: 0.65 | CX22: =$K22*CV22 -> 0.65 | CY22: =IF(CY$7="EN COURS",1,IF(CY$7="TERMINÉ",1,IF(CY$7="NON RÉALISÉ FACTURÉ",1,0))) -> 1 | CZ22: 0.65 | DA22: =$K22*CY22 -> 0.65 | DB22: =IF(DB$7="EN COURS",1,IF(DB$7="TERMINÉ",1,IF(DB$7="NON RÉALISÉ FACTURÉ",1,0))) -> 0 | DC22: 0 | DD22: =$K22*DB22 -> 0 | DE22: =IF(DE$7="EN COURS",1,IF(DE$7="TERMINÉ",1,IF(DE$7="NON RÉALISÉ FACTURÉ",1,0))) -> 1 | DF22: 0.65 | DG22: =$K22*DE22 -> 0.65 | DH22: =IF(DH$7="EN COURS",1,IF(DH$7="TERMINÉ",1,IF(DH$7="NON RÉALISÉ FACTURÉ",1,0))) -> 1 | DI22: 0.65 | DJ22: =$K22*DH22 -> 0.65 | DK22: =IF(DK$7="EN COURS",1,IF(DK$7="TERMINÉ",1,IF(DK$7="NON RÉALISÉ FACTURÉ",1,0))) -> 1 | DL22: 0.65 | DM22: =$K22*DK22 -> 0.65 | DN22: =IF(DN$7="EN COURS",1,IF(DN$7="TERMINÉ",1,IF(DN$7="NON RÉALISÉ FACTURÉ",1,0))) -> 1 | DO22: 0.65 | DP22: =$K22*DN22 -> 0.65 | DQ22: =IF(DQ$7="EN COURS",1,IF(DQ$7="TERMINÉ",1,IF(DQ$7="NON RÉALISÉ FACTURÉ",1,0))) -> 1 | DR22: 0.65 | DS22: =$K22*DQ22 -> 0.65 | DT22: =IF(DT$7="EN COURS",1,IF(DT$7="TERMINÉ",1,IF(DT$7="NON RÉALISÉ FACTURÉ",1,0))) -> 1 | DU22: 0.65 | DV22: =$K22*DT22 -> 0.65 | DW22: =IF(DW$7="EN COURS",1,IF(DW$7="TERMINÉ",1,IF(DW$7="NON RÉALISÉ FACTURÉ",1,0))) -> 1 | DX22: 0.65 | DY22: =$K22*DW22 -> 0.65 | DZ22: =IF(DZ$7="EN COURS",1,IF(DZ$7="TERMINÉ",1,IF(DZ$7="NON RÉALISÉ FACTURÉ",1,0))) -> 1 | EA22: 0.65 | EB22: =$K22*DZ22 -> 0.65 | EC22: =IF(EC$7="EN COURS",1,IF(EC$7="TERMINÉ",1,IF(EC$7="NON RÉALISÉ FACTURÉ",1,0))) -> 1 | ED22: 0.65 | EE22: =$K22*EC22 -> 0.65 | EF22: =IF(EF$7="EN COURS",1,IF(EF$7="TERMINÉ",1,IF(EF$7="NON RÉALISÉ FACTURÉ",1,0))) -> 0 | EG22: 0 | EH22: =$K22*EF22 -> 0 | EI22: =IF(EI$7="EN COURS",1,IF(EI$7="TERMINÉ",1,IF(EI$7="NON RÉALISÉ FACTURÉ",1,0))) -> 1 | EJ22: 0.65 | EK22: =$K22*EI22 -> 0.65 | EL22: =IF(EL$7="EN COURS",1,IF(EL$7="TERMINÉ",1,IF(EL$7="NON RÉALISÉ FACTURÉ",1,0))) -> 1 | EM22: 0.65 | EN22: =$K22*EL22 -> 0.65 | EO22: =IF(EO$7="EN COURS",1,IF(EO$7="TERMINÉ",1,IF(EO$7="NON RÉALISÉ FACTURÉ",1,0))) -> 1 | EP22: 0.65 | EQ22: =$K22*EO22 -> 0.65 | ER22: =IF(ER$7="EN COURS",1,IF(ER$7="TERMINÉ",1,IF(ER$7="NON RÉALISÉ FACTURÉ",1,0))) -> 1 | ES22: 0.65 | ET22: =$K22*ER22 -> 0.65 | EU22: =IF(EU$7="EN COURS",1,IF(EU$7="TERMINÉ",1,IF(EU$7="NON RÉALISÉ FACTURÉ",1,0))) -> 0 | EV22: 0 | EW22: =$K22*EU22 -> 0 | EX22: =IF(EX$7="EN COURS",1,IF(EX$7="TERMINÉ",1,IF(EX$7="NON RÉALISÉ FACTURÉ",1,0))) -> 1 | EY22: 0.65 | EZ22: =$K22*EX22 -> 0.65 | FA22: =IF(FA$7="EN COURS",1,IF(FA$7="TERMINÉ",1,IF(FA$7="NON RÉALISÉ FACTURÉ",1,0))) -> 1 | FB22: 0.65 | FC22: =$K22*FA22 -> 0.65 | FD22: =IF(FD$7="EN COURS",1,IF(FD$7="TERMINÉ",1,IF(FD$7="NON RÉALISÉ FACTURÉ",1,0))) -> 0 | FE22: 0 | FF22: =$K22*FD22 -> 0 | FG22: =IF(FG$7="EN COURS",1,IF(FG$7="TERMINÉ",1,IF(FG$7="NON RÉALISÉ FACTURÉ",1,0))) -> 0 | FH22: 0 | FI22: =$K22*FG22 -> 0 | FJ22: =IF(FJ$7="EN COURS",1,IF(FJ$7="TERMINÉ",1,IF(FJ$7="NON RÉALISÉ FACTURÉ",1,0))) -> 1 | FK22: 0.65 | FL22: =$K22*FJ22 -> 0.65 | FM22: =IF(FM$7="EN COURS",1,IF(FM$7="TERMINÉ",1,IF(FM$7="NON RÉALISÉ FACTURÉ",1,0))) -> 1 | FN22: 0.65 | FO22: =$K22*FM22 -> 0.65 | FP22: =IF(FP$7="EN COURS",1,IF(FP$7="TERMINÉ",1,IF(FP$7="NON RÉALISÉ FACTURÉ",1,0))) -> 0 | FQ22: 0 | FR22: =$K22*FP22 -> 0 | FS22: =IF(FS$7="EN COURS",1,IF(FS$7="TERMINÉ",1,IF(FS$7="NON RÉALISÉ FACTURÉ",1,0))) -> 1 | FT22: 0.65 | FU22: =$K22*FS22 -> 0.65 | FV22: =IF(FV$7="EN COURS",1,IF(FV$7="TERMINÉ",1,IF(FV$7="NON RÉALISÉ FACTURÉ",1,0))) -> 1 | FW22: 0.65 | FX22: =$K22*FV22 -> 0.65 | FY22: =IF(FY$7="EN COURS",1,IF(FY$7="TERMINÉ",1,IF(FY$7="NON RÉALISÉ FACTURÉ",1,0))) -> 0 | FZ22: 0 | GA22: =$K22*FY22 -> 0 | GB22: =IF(GB$7="EN COURS",1,IF(GB$7="TERMINÉ",1,IF(GB$7="NON RÉALISÉ FACTURÉ",1,0))) -> 1 | GC22: 0.65 | GD22: =$K22*GB22 -> 0.65 | GE22: =IF(GE$7="EN COURS",1,IF(GE$7="TERMINÉ",1,IF(GE$7="NON RÉALISÉ FACTURÉ",1,0))) -> 0 | GF22: 0 | GG22: =$K22*GE22 -> 0 | GH22: =IF(GH$7="EN COURS",1,IF(GH$7="TERMINÉ",1,IF(GH$7="NON RÉALISÉ FACTURÉ",1,0))) -> 1 | GI22: 0.65 | GJ22: =$K22*GH22 -> 0.65 | GK22: =IF(GK$7="EN COURS",1,IF(GK$7="TERMINÉ",1,IF(GK$7="NON RÉALISÉ FACTURÉ",1,0))) -> 0 | GL22: 0 | GM22: =$K22*GK22 -> 0 | GN22: =IF(GN$7="EN COURS",1,IF(GN$7="TERMINÉ",1,IF(GN$7="NON RÉALISÉ FACTURÉ",1,0))) -> 0 | GO22: 0 | GP22: =$K22*GN22 -> 0 | GQ22: =IF(GQ$7="EN COURS",1,IF(GQ$7="TERMINÉ",1,IF(GQ$7="NON RÉALISÉ FACTURÉ",1,0))) -> 1 | GR22: 0.65 | GS22: =$K22*GQ22 -> 0.65 | GT22: =IF(GT$7="EN COURS",1,IF(GT$7="TERMINÉ",1,IF(GT$7="NON RÉALISÉ FACTURÉ",1,0))) -> 0 | GU22: 0 | GV22: =$K22*GT22 -> 0 | GW22: =IF(GW$7="EN COURS",1,IF(GW$7="TERMINÉ",1,IF(GW$7="NON RÉALISÉ FACTURÉ",1,0))) -> 0 | GX22: 0 | GY22: =$K22*GW22 -> 0 | GZ22: =IF(GZ$7="EN COURS",1,IF(GZ$7="TERMINÉ",1,IF(GZ$7="NON RÉALISÉ FACTURÉ",1,0))) -> 0 | HA22: 0 | HB22: =$K22*GZ22 -> 0 | HC22: =IF(HC$7="EN COURS",1,IF(HC$7="TERMINÉ",1,IF(HC$7="NON RÉALISÉ FACTURÉ",1,0))) -> 0 | HD22: 0 | HE22: =$K22*HC22 -> 0 | HF22: =IF(HF$7="EN COURS",1,IF(HF$7="TERMINÉ",1,IF(HF$7="NON RÉALISÉ FACTURÉ",1,0))) -> 0 | HG22: 0 | HH22: =$K22*HF22 -> 0 | HI22: =IF(HI$7="EN COURS",1,IF(HI$7="TERMINÉ",1,IF(HI$7="NON RÉALISÉ FACTURÉ",1,0))) -> 0 | HJ22: 0 | HK22: =$K22*HI22 -> 0 | HL22: =IF(HL$7="EN COURS",1,IF(HL$7="TERMINÉ",1,IF(HL$7="NON RÉALISÉ FACTURÉ",1,0))) -> 0 | HM22: 0 | HN22: =$K22*HL22 -> 0 | HO22: =IF(HO$7="EN COURS",1,IF(HO$7="TERMINÉ",1,IF(HO$7="NON RÉALISÉ FACTURÉ",1,0))) -> 0 | HP22: 0 | HQ22: =$K22*HO22 -> 0 | HR22: =IF(HR$7="EN COURS",1,IF(HR$7="TERMINÉ",1,IF(HR$7="NON RÉALISÉ FACTURÉ",1,0))) -> 0 | HS22: 0 | HT22: =$K22*HR22 -> 0 | HU22: =IF(HU$7="EN COURS",1,IF(HU$7="TERMINÉ",1,IF(HU$7="NON RÉALISÉ FACTURÉ",1,0))) -> 0 | HV22: 0 | HW22: =$K22*HU22 -> 0 | HX22: =IF(HX$7="EN COURS",1,IF(HX$7="TERMINÉ",1,IF(HX$7="NON RÉALISÉ FACTURÉ",1,0))) -> 0 | HY22: 0 | HZ22: =$K22*HX22 -> 0 | IA22: =IF(IA$7="EN COURS",1,IF(IA$7="TERMINÉ",1,IF(IA$7="NON RÉALISÉ FACTURÉ",1,0))) -> 0 | IB22: 0 | IC22: =$K22*IA22 -> 0 | ID22: =IF(ID$7="EN COURS",1,IF(ID$7="TERMINÉ",1,IF(ID$7="NON RÉALISÉ FACTURÉ",1,0))) -> 0 | IE22: 0 | IF22: =$K22*ID22 -> 0 | IG22: =IF(IG$7="EN COURS",1,IF(IG$7="TERMINÉ",1,IF(IG$7="NON RÉALISÉ FACTURÉ",1,0))) -> 0 | IH22: 0 | II22: =$K22*IG22 -> 0 | IJ22: =IF(IJ$7="EN COURS",1,IF(IJ$7="TERMINÉ",1,IF(IJ$7="NON RÉALISÉ FACTURÉ",1,0))) -> 0 | IK22: 0 | IL22: =$K22*IJ22 -> 0 | IM22: =IF(IM$7="EN COURS",1,IF(IM$7="TERMINÉ",1,IF(IM$7="NON RÉALISÉ FACTURÉ",1,0))) -> 0 | IN22: 0 | IO22: =$K22*IM22 -> 0 | IP22: =IF(IP$7="EN COURS",1,IF(IP$7="TERMINÉ",1,IF(IP$7="NON RÉALISÉ FACTURÉ",1,0))) -> 0 | IQ22: 0 | IR22: =$K22*IP22 -> 0 | IS22: =IF(IS$7="EN COURS",1,IF(IS$7="TERMINÉ",1,IF(IS$7="NON RÉALISÉ FACTURÉ",1,0))) -> 0 | IT22: 0 | IU22: =$K22*IS22 -> 0 | IV22: =IF(IV$7="EN COURS",1,IF(IV$7="TERMINÉ",1,IF(IV$7="NON RÉALISÉ FACTURÉ",1,0))) -> 0 | IW22: 0 | IX22: =$K22*IV22 -> 0 | IY22: =IF(IY$7="EN COURS",1,IF(IY$7="TERMINÉ",1,IF(IY$7="NON RÉALISÉ FACTURÉ",1,0))) -> 0 | IZ22: 0 | JA22: =$K22*IY22 -> 0 | JB22: =IF(JB$7="EN COURS",1,IF(JB$7="TERMINÉ",1,IF(JB$7="NON RÉALISÉ FACTURÉ",1,0))) -> 0 | JC22: 0 | JD22: =$K22*JB22 -> 0 | JE22: =IF(JE$7="EN COURS",1,IF(JE$7="TERMINÉ",1,IF(JE$7="NON RÉALISÉ FACTURÉ",1,0))) -> 0 | JF22: 0 | JG22: =$K22*JE22 -> 0 | JH22: =IF(JH$7="EN COURS",1,IF(JH$7="TERMINÉ",1,IF(JH$7="NON RÉALISÉ FACTURÉ",1,0))) -> 0 | JI22: 0 | JJ22: =$K22*JH22 -> 0 | JK22: =IF(JK$7="EN COURS",1,IF(JK$7="TERMINÉ",1,IF(JK$7="NON RÉALISÉ FACTURÉ",1,0))) -> 0 | JL22: 0 | JM22: =$K22*JK22 -> 0 | JN22: =IF(JN$7="EN COURS",1,IF(JN$7="TERMINÉ",1,IF(JN$7="NON RÉALISÉ FACTURÉ",1,0))) -> 0 | JO22: 0 | JP22: =$K22*JN22 -> 0 | JQ22: =IF(JQ$7="EN COURS",1,IF(JQ$7="TERMINÉ",1,IF(JQ$7="NON RÉALISÉ FACTURÉ",1,0))) -> 0 | JR22: 0 | JS22: =$K22*JQ22 -> 0 | JT22: =IF(JT$7="EN COURS",1,IF(JT$7="TERMINÉ",1,IF(JT$7="NON RÉALISÉ FACTURÉ",1,0))) -> 0 | JU22: 0 | JV22: =$K22*JT22 -> 0 | JW22: =IF(JW$7="EN COURS",1,IF(JW$7="TERMINÉ",1,IF(JW$7="NON RÉALISÉ FACTURÉ",1,0))) -> 0 | JX22: 0 | JY22: =$K22*JW22 -> 0 | JZ22: =IF(JZ$7="EN COURS",1,IF(JZ$7="TERMINÉ",1,IF(JZ$7="NON RÉALISÉ FACTURÉ",1,0))) -> 0 | KA22: 0 | KB22: =$K22*JZ22 -> 0 | KC22: =IF(KC$7="EN COURS",1,IF(KC$7="TERMINÉ",1,IF(KC$7="NON RÉALISÉ FACTURÉ",1,0))) -> 0 | KD22: 0 | KE22: =$K22*KC22 -> 0 | KF22: =IF(KF$7="EN COURS",1,IF(KF$7="TERMINÉ",1,IF(KF$7="NON RÉALISÉ FACTURÉ",1,0))) -> 0 | KG22: 0 | KH22: =$K22*KF22 -> 0 | KI22: =IF(KI$7="EN COURS",1,IF(KI$7="TERMINÉ",1,IF(KI$7="NON RÉALISÉ FACTURÉ",1,0))) -> 0 | KJ22: 0 | KK22: =$K22*KI22 -> 0 | KL22: =IF(KL$7="EN COURS",1,IF(KL$7="TERMINÉ",1,IF(KL$7="NON RÉALISÉ FACTURÉ",1,0))) -> 0 | KM22: 0 | KN22: =$K22*KL22 -> 0 | KO22: =IF(KO$7="EN COURS",1,IF(KO$7="TERMINÉ",1,IF(KO$7="NON RÉALISÉ FACTURÉ",1,0))) -> 0 | KP22: 0 | KQ22: =$K22*KO22 -> 0 | KR22: =IF(KR$7="EN COURS",1,IF(KR$7="TERMINÉ",1,IF(KR$7="NON RÉALISÉ FACTURÉ",1,0))) -> 0 | KS22: 0 | KT22: =$K22*KR22 -> 0 | KU22: =IF(KU$7="EN COURS",1,IF(KU$7="TERMINÉ",1,IF(KU$7="NON RÉALISÉ FACTURÉ",1,0))) -> 0 | KV22: 0 | KW22: =$K22*KU22 -> 0 | KX22: =IF(KX$7="EN COURS",1,IF(KX$7="TERMINÉ",1,IF(KX$7="NON RÉALISÉ FACTURÉ",1,0))) -> 0 | KY22: 0 | KZ22: =$K22*KX22 -> 0 | LA22: =IF(LA$7="EN COURS",1,IF(LA$7="TERMINÉ",1,IF(LA$7="NON RÉALISÉ FACTURÉ",1,0))) -> 0 | LB22: 0 | LC22: =$K22*LA22 -> 0 | LD22: =IF(LD$7="EN COURS",1,IF(LD$7="TERMINÉ",1,IF(LD$7="NON RÉALISÉ FACTURÉ",1,0))) -> 0 | LE22: 0 | LF22: =$K22*LD22 -> 0 | LG22: =IF(LG$7="EN COURS",1,IF(LG$7="TERMINÉ",1,IF(LG$7="NON RÉALISÉ FACTURÉ",1,0))) -> 0 | LH22: 0 | LI22: =$K22*LG22 -> 0 | LJ22: =IF(LJ$7="EN COURS",1,IF(LJ$7="TERMINÉ",1,IF(LJ$7="NON RÉALISÉ FACTURÉ",1,0))) -> 0 | LK22: 0 | LL22: =$K22*LJ22 -> 0 | LM22: =IF(LM$7="EN COURS",1,IF(LM$7="TERMINÉ",1,IF(LM$7="NON RÉALISÉ FACTURÉ",1,0))) -> 0 | LN22: 0 | LO22: =$K22*LM22 -> 0 | LP22: =IF(LP$7="EN COURS",1,IF(LP$7="TERMINÉ",1,IF(LP$7="NON RÉALISÉ FACTURÉ",1,0))) -> 0 | LQ22: 0 | LR22: =$K22*LP22 -> 0 | LS22: =IF(LS$7="EN COURS",1,IF(LS$7="TERMINÉ",1,IF(LS$7="NON RÉALISÉ FACTURÉ",1,0))) -> 0 | LT22: 0 | LU22: =$K22*LS22 -> 0 | LV22: =IF(LV$7="EN COURS",1,IF(LV$7="TERMINÉ",1,IF(LV$7="NON RÉALISÉ FACTURÉ",1,0))) -> 0 | LW22: 0 | LX22: =$K22*LV22 -> 0 | LY22: =IF(LY$7="EN COURS",1,IF(LY$7="TERMINÉ",1,IF(LY$7="NON RÉALISÉ FACTURÉ",1,0))) -> 0 | LZ22: 0 | MA22: =$K22*LY22 -> 0 | MB22: =IF(MB$7="EN COURS",1,IF(MB$7="TERMINÉ",1,IF(MB$7="NON RÉALISÉ FACTURÉ",1,0))) -> 0 | MC22: 0 | MD22: =$K22*MB22 -> 0 | ME22: =IF(ME$7="EN COURS",1,IF(ME$7="TERMINÉ",1,IF(ME$7="NON RÉALISÉ FACTURÉ",1,0))) -> 0 | MF22: 0 | MG22: =$K22*ME22 -> 0 | MH22: =IF(MH$7="EN COURS",1,IF(MH$7="TERMINÉ",1,IF(MH$7="NON RÉALISÉ FACTURÉ",1,0))) -> 0 | MI22: 0 | MJ22: =$K22*MH22 -> 0 | MK22: =IF(MK$7="EN COURS",1,IF(MK$7="TERMINÉ",1,IF(MK$7="NON RÉALISÉ FACTURÉ",1,0))) -> 0 | ML22: 0 | MM22: =$K22*MK22 -> 0 | MN22: =IF(MN$7="EN COURS",1,IF(MN$7="TERMINÉ",1,IF(MN$7="NON RÉALISÉ FACTURÉ",1,0))) -> 0 | MO22: 0 | MP22: =$K22*MN22 -> 0
E23: 0 | Q23: 0 | T23: 0 | W23: 0 | Z23: 0 | AC23: 0 | AF23: 0 | AI23: 0 | AL23: 0 | AO23: 0 | AR23: 0 | AU23: 0 | AX23: 0 | BA23: 0 | BD23: 0 | BG23: 0 | BJ23: 0 | BM23: 0 | BP23: 0 | BS23: 0 | BV23: 0 | BY23: 0 | CB23: 0 | CE23: 0 | CH23: 0 | CK23: 0 | CN23: 0 | CQ23: 0 | CT23: 0 | CW23: 0 | CZ23: 0 | DC23: 0 | DF23: 0 | DI23: 0 | DL23: 0 | DO23: 0 | DR23: 0 | DU23: 0 | DX23: 0 | EA23: 0 | ED23: 0 | EG23: 0 | EJ23: 0 | EM23: 0 | EP23: 0 | ES23: 0 | EV23: 0 | EY23: 0 | FB23: 0 | FE23: 0 | FH23: 0 | FK23: 0 | FN23: 0 | FQ23: 0 | FT23: 0 | FW23: 0 | FZ23: 0 | GC23: 0 | GF23: 0 | GI23: 0 | GL23: 0 | GO23: 0 | GR23: 0 | GU23: 0 | GX23: 0 | HA23: 0 | HD23: 0 | HG23: 0 | HJ23: 0 | HM23: 0 | HP23: 0 | HS23: 0 | HV23: 0 | HY23: 0 | IB23: 0 | IE23: 0 | IH23: 0 | IK23: 0 | IN23: 0 | IQ23: 0 | IT23: 0 | IW23: 0 | IZ23: 0 | JC23: 0 | JF23: 0 | JI23: 0 | JL23: 0 | JO23: 0 | JR23: 0 | JU23: 0 | JX23: 0 | KA23: 0 | KD23: 0 | KG23: 0 | KJ23: 0 | KM23: 0 | KP23: 0 | KS23: 0 | KV23: 0 | KY23: 0 | LB23: 0 | LE23: 0 | LH23: 0 | LK23: 0 | LN23: 0 | LQ23: 0 | LT23: 0 | LW23: 0 | LZ23: 0 | MC23: 0 | MF23: 0 | MI23: 0 | ML23: 0 | MO23: 0
A24: Plomberie : | E24: 0 | Q24: 0 | T24: 0 | W24: 0 | Z24: 0 | AC24: 0 | AF24: 0 | AI24: 0 | AL24: 0 | AO24: 0 | AR24: 0 | AU24: 0 | AX24: 0 | BA24: 0 | BD24: 0 | BG24: 0 | BJ24: 0 | BM24: 0 | BP24: 0 | BS24: 0 | BV24: 0 | BY24: 0 | CB24: 0 | CE24: 0 | CH24: 0 | CK24: 0 | CN24: 0 | CQ24: 0 | CT24: 0 | CW24: 0 | CZ24: 0 | DC24: 0 | DF24: 0 | DI24: 0 | DL24: 0 | DO24: 0 | DR24: 0 | DU24: 0 | DX24: 0 | EA24: 0 | ED24: 0 | EG24: 0 | EJ24: 0 | EM24: 0 | EP24: 0 | ES24: 0 | EV24: 0 | EY24: 0 | FB24: 0 | FE24: 0 | FH24: 0 | FK24: 0 | FN24: 0 | FQ24: 0 | FT24: 0 | FW24: 0 | FZ24: 0 | GC24: 0 | GF24: 0 | GI24: 0 | GL24: 0 | GO24: 0 | GR24: 0 | GU24: 0 | GX24: 0 | HA24: 0 | HD24: 0 | HG24: 0 | HJ24: 0 | HM24: 0 | HP24: 0 | HS24: 0 | HV24: 0 | HY24: 0 | IB24: 0 | IE24: 0 | IH24: 0 | IK24: 0 | IN24: 0 | IQ24: 0 | IT24: 0 | IW24: 0 | IZ24: 0 | JC24: 0 | JF24: 0 | JI24: 0 | JL24: 0 | JO24: 0 | JR24: 0 | JU24: 0 | JX24: 0 | KA24: 0 | KD24: 0 | KG24: 0 | KJ24: 0 | KM24: 0 | KP24: 0 | KS24: 0 | KV24: 0 | KY24: 0 | LB24: 0 | LE24: 0 | LH24: 0 | LK24: 0 | LN24: 0 | LQ24: 0 | LT24: 0 | LW24: 0 | LZ24: 0 | MC24: 0 | MF24: 0 | MI24: 0 | ML24: 0 | MO24: 0
E25: 0 | Q25: 0 | T25: 0 | W25: 0 | Z25: 0 | AC25: 0 | AF25: 0 | AI25: 0 | AL25: 0 | AO25: 0 | AR25: 0 | AU25: 0 | AX25: 0 | BA25: 0 | BD25: 0 | BG25: 0 | BJ25: 0 | BM25: 0 | BP25: 0 | BS25: 0 | BV25: 0 | BY25: 0 | CB25: 0 | CE25: 0 | CH25: 0 | CK25: 0 | CN25: 0 | CQ25: 0 | CT25: 0 | CW25: 0 | CZ25: 0 | DC25: 0 | DF25: 0 | DI25: 0 | DL25: 0 | DO25: 0 | DR25: 0 | DU25: 0 | DX25: 0 | EA25: 0 | ED25: 0 | EG25: 0 | EJ25: 0 | EM25: 0 | EP25: 0 | ES25: 0 | EV25: 0 | EY25: 0 | FB25: 0 | FE25: 0 | FH25: 0 | FK25: 0 | FN25: 0 | FQ25: 0 | FT25: 0 | FW25: 0 | FZ25: 0 | GC25: 0 | GF25: 0 | GI25: 0 | GL25: 0 | GO25: 0 | GR25: 0 | GU25: 0 | GX25: 0 | HA25: 0 | HD25: 0 | HG25: 0 | HJ25: 0 | HM25: 0 | HP25: 0 | HS25: 0 | HV25: 0 | HY25: 0 | IB25: 0 | IE25: 0 | IH25: 0 | IK25: 0 | IN25: 0 | IQ25: 0 | IT25: 0 | IW25: 0 | IZ25: 0 | JC25: 0 | JF25: 0 | JI25: 0 | JL25: 0 | JO25: 0 | JR25: 0 | JU25: 0 | JX25: 0 | KA25: 0 | KD25: 0 | KG25: 0 | KJ25: 0 | KM25: 0 | KP25: 0 | KS25: 0 | KV25: 0 | KY25: 0 | LB25: 0 | LE25: 0 | LH25: 0 | LK25: 0 | LN25: 0 | LQ25: 0 | LT25: 0 | LW25: 0 | LZ25: 0 | MC25: 0 | MF25: 0 | MI25: 0 | ML25: 0 | MO25: 0
A26: Isolement des réseaux EF ECS EU : | B26: 112 | E26: 42 | F26: 112 | G26: =(E26/F26)*100 -> 37.5 | H26: 100 | I26: cps | J26: 0.15 | K26: =J26 -> 0.15 | L26: =112*K26 -> 16.8 | M26: =0.15*100/112 -> 0.1339285714 | N26: =M26*112 -> 15 | Q26: 31.8 | S26: =IF(AND(S$7="EN COURS",SUM(S$56:S$79)>0),1,IF(S$7="TERMINÉ",1,IF(AND(S$7="EN COURS SAUF GAZ",SUM(S$56:S$79)>0),1,IF(S$7="NON RÉALISÉ FACTURÉ",1,0)))) -> 1 | T26: 0.15 | U26: =($K26+$M26)*S26 -> 0.2839285714 | V26: =IF(AND(V$7="EN COURS",SUM(V$56:V$79)>0),1,IF(V$7="TERMINÉ",1,IF(AND(V$7="EN COURS SAUF GAZ",SUM(V$56:V$79)>0),1,IF(V$7="NON RÉALISÉ FACTURÉ",1,0)))) -> 1 | W26: 0.15 | X26: =($K26+$M26)*V26 -> 0.2839285714 | Y26: =IF(AND(Y$7="EN COURS",SUM(Y$56:Y$79)>0),1,IF(Y$7="TERMINÉ",1,IF(AND(Y$7="EN COURS SAUF GAZ",SUM(Y$56:Y$79)>0),1,IF(Y$7="NON RÉALISÉ FACTURÉ",1,0)))) -> 1 | Z26: 0.15 | AA26: =($K26+$M26)*Y26 -> 0.2839285714 | AB26: =IF(AND(AB$7="EN COURS",SUM(AB$56:AB$79)>0),1,IF(AB$7="TERMINÉ",1,IF(AND(AB$7="EN COURS SAUF GAZ",SUM(AB$56:AB$79)>0),1,IF(AB$7="NON RÉALISÉ FACTURÉ",1,0)))) -> 1 | AC26: 0.15 | AD26: =($K26+$M26)*AB26 -> 0.2839285714 | AE26: =IF(AND(AE$7="EN COURS",SUM(AE$56:AE$79)>0),1,IF(AE$7="TERMINÉ",1,IF(AND(AE$7="EN COURS SAUF GAZ",SUM(AE$56:AE$79)>0),1,IF(AE$7="NON RÉALISÉ FACTURÉ",1,0)))) -> 1 | AF26: 0.15 | AG26: =($K26+$M26)*AE26 -> 0.2839285714 | AH26: =IF(AND(AH$7="EN COURS",SUM(AH$56:AH$79)>0),1,IF(AH$7="TERMINÉ",1,IF(AND(AH$7="EN COURS SAUF GAZ",SUM(AH$56:AH$79)>0),1,IF(AH$7="NON RÉALISÉ FACTURÉ",1,0)))) -> 1 | AI26: 0.15 | AJ26: =($K26+$M26)*AH26 -> 0.2839285714 | AK26: =IF(AND(AK$7="EN COURS",SUM(AK$56:AK$79)>0),1,IF(AK$7="TERMINÉ",1,IF(AND(AK$7="EN COURS SAUF GAZ",SUM(AK$56:AK$79)>0),1,IF(AK$7="NON RÉALISÉ FACTURÉ",1,0)))) -> 1 | AL26: 0.15 | AM26: =($K26+$M26)*AK26 -> 0.2839285714 | AN26: =IF(AND(AN$7="EN COURS",SUM(AN$56:AN$79)>0),1,IF(AN$7="TERMINÉ",1,IF(AND(AN$7="EN COURS SAUF GAZ",SUM(AN$56:AN$79)>0),1,IF(AN$7="NON RÉALISÉ FACTURÉ",1,0)))) -> 1 | AO26: 0.15 | AP26: =($K26+$M26)*AN26 -> 0.2839285714 | AQ26: =IF(AND(AQ$7="EN COURS",SUM(AQ$56:AQ$79)>0),1,IF(AQ$7="TERMINÉ",1,IF(AND(AQ$7="EN COURS SAUF GAZ",SUM(AQ$56:AQ$79)>0),1,IF(AQ$7="NON RÉALISÉ FACTURÉ",1,0)))) -> 1 | AR26: 0.15 | AS26: =($K26+$M26)*AQ26 -> 0.2839285714 | AT26: =IF(AND(AT$7="EN COURS",SUM(AT$56:AT$79)>0),1,IF(AT$7="TERMINÉ",1,IF(AND(AT$7="EN COURS SAUF GAZ",SUM(AT$56:AT$79)>0),1,IF(AT$7="NON RÉALISÉ FACTURÉ",1,0)))) -> 1 | AU26: 0.15 | AV26: =($K26+$M26)*AT26 -> 0.2839285714 | AW26: =IF(AND(AW$7="EN COURS",SUM(AW$56:AW$79)>0),1,IF(AW$7="TERMINÉ",1,IF(AND(AW$7="EN COURS SAUF GAZ",SUM(AW$56:AW$79)>0),1,IF(AW$7="NON RÉALISÉ FACTURÉ",1,0)))) -> 1 | AX26: 0.15 | AY26: =($K26+$M26)*AW26 -> 0.2839285714 | AZ26: =IF(AND(AZ$7="EN COURS",SUM(AZ$56:AZ$79)>0),1,IF(AZ$7="TERMINÉ",1,IF(AND(AZ$7="EN COURS SAUF GAZ",SUM(AZ$56:AZ$79)>0),1,IF(AZ$7="NON RÉALISÉ FACTURÉ",1,0)))) -> 1 | BA26: 0.15 | BB26: =($K26+$M26)*AZ26 -> 0.2839285714 | BC26: =IF(AND(BC$7="EN COURS",SUM(BC$56:BC$79)>0),1,IF(BC$7="TERMINÉ",1,IF(AND(BC$7="EN COURS SAUF GAZ",SUM(BC$56:BC$79)>0),1,IF(BC$7="NON RÉALISÉ FACTURÉ",1,0)))) -> 1 | BD26: 0.15 | BE26: =($K26+$M26)*BC26 -> 0.2839285714 | BF26: =IF(AND(BF$7="EN COURS",SUM(BF$56:BF$79)>0),1,IF(BF$7="TERMINÉ",1,IF(AND(BF$7="EN COURS SAUF GAZ",SUM(BF$56:BF$79)>0),1,IF(BF$7="NON RÉALISÉ FACTURÉ",1,0)))) -> 1 | BG26: 0.15 | BH26: =($K26+$M26)*BF26 -> 0.2839285714 | BI26: =IF(AND(BI$7="EN COURS",SUM(BI$56:BI$79)>0),1,IF(BI$7="TERMINÉ",1,IF(AND(BI$7="EN COURS SAUF GAZ",SUM(BI$56:BI$79)>0),1,IF(BI$7="NON RÉALISÉ FACTURÉ",1,0)))) -> 1 | BJ26: 0.15 | BK26: =($K26+$M26)*BI26 -> 0.2839285714 | BL26: =IF(AND(BL$7="EN COURS",SUM(BL$56:BL$79)>0),1,IF(BL$7="TERMINÉ",1,IF(AND(BL$7="EN COURS SAUF GAZ",SUM(BL$56:BL$79)>0),1,IF(BL$7="NON RÉALISÉ FACTURÉ",1,0)))) -> 1 | BM26: 0.15 | BN26: =($K26+$M26)*BL26 -> 0.2839285714 | BO26: =IF(AND(BO$7="EN COURS",SUM(BO$56:BO$79)>0),1,IF(BO$7="TERMINÉ",1,IF(AND(BO$7="EN COURS SAUF GAZ",SUM(BO$56:BO$79)>0),1,IF(BO$7="NON RÉALISÉ FACTURÉ",1,0)))) -> 1 | BP26: 0.15 | BQ26: =($K26+$M26)*BO26 -> 0.2839285714 | BR26: =IF(AND(BR$7="EN COURS",SUM(BR$56:BR$79)>0),1,IF(BR$7="TERMINÉ",1,IF(AND(BR$7="EN COURS SAUF GAZ",SUM(BR$56:BR$79)>0),1,IF(BR$7="NON RÉALISÉ FACTURÉ",1,0)))) -> 1 | BS26: 0.15 | BT26: =($K26+$M26)*BR26 -> 0.2839285714 | BU26: =IF(AND(BU$7="EN COURS",SUM(BU$56:BU$79)>0),1,IF(BU$7="TERMINÉ",1,IF(AND(BU$7="EN COURS SAUF GAZ",SUM(BU$56:BU$79)>0),1,IF(BU$7="NON RÉALISÉ FACTURÉ",1,0)))) -> 1 | BV26: 0.15 | BW26: =($K26+$M26)*BU26 -> 0.2839285714 | BX26: =IF(AND(BX$7="EN COURS",SUM(BX$56:BX$79)>0),1,IF(BX$7="TERMINÉ",1,IF(AND(BX$7="EN COURS SAUF GAZ",SUM(BX$56:BX$79)>0),1,IF(BX$7="NON RÉALISÉ FACTURÉ",1,0)))) -> 1 | BY26: 0.15 | BZ26: =($K26+$M26)*BX26 -> 0.2839285714 | CA26: =IF(AND(CA$7="EN COURS",SUM(CA$56:CA$79)>0),1,IF(CA$7="TERMINÉ",1,IF(AND(CA$7="EN COURS SAUF GAZ",SUM(CA$56:CA$79)>0),1,IF(CA$7="NON RÉALISÉ FACTURÉ",1,0)))) -> 1 | CB26: 0.15 | CC26: =($K26+$M26)*CA26 -> 0.2839285714 | CD26: =IF(AND(CD$7="EN COURS",SUM(CD$56:CD$79)>0),1,IF(CD$7="TERMINÉ",1,IF(AND(CD$7="EN COURS SAUF GAZ",SUM(CD$56:CD$79)>0),1,IF(CD$7="NON RÉALISÉ FACTURÉ",1,0)))) -> 1 | CE26: 0.15 | CF26: =($K26+$M26)*CD26 -> 0.2839285714 | CG26: =IF(AND(CG$7="EN COURS",SUM(CG$56:CG$79)>0),1,IF(CG$7="TERMINÉ",1,IF(AND(CG$7="EN COURS SAUF GAZ",SUM(CG$56:CG$79)>0),1,IF(CG$7="NON RÉALISÉ FACTURÉ",1,0)))) -> 1 | CH26: 0.15 | CI26: =($K26+$M26)*CG26 -> 0.2839285714 | CJ26: =IF(AND(CJ$7="EN COURS",SUM(CJ$56:CJ$79)>0),1,IF(CJ$7="TERMINÉ",1,IF(AND(CJ$7="EN COURS SAUF GAZ",SUM(CJ$56:CJ$79)>0),1,IF(CJ$7="NON RÉALISÉ FACTURÉ",1,0)))) -> 1 | CK26: 0.15 | CL26: =($K26+$M26)*CJ26 -> 0.2839285714 | CM26: =IF(AND(CM$7="EN COURS",SUM(CM$56:CM$79)>0),1,IF(CM$7="TERMINÉ",1,IF(AND(CM$7="EN COURS SAUF GAZ",SUM(CM$56:CM$79)>0),1,IF(CM$7="NON RÉALISÉ FACTURÉ",1,0)))) -> 1 | CN26: 0.15 | CO26: =($K26+$M26)*CM26 -> 0.2839285714 | CP26: =IF(AND(CP$7="EN COURS",SUM(CP$56:CP$79)>0),1,IF(CP$7="TERMINÉ",1,IF(AND(CP$7="EN COURS SAUF GAZ",SUM(CP$56:CP$79)>0),1,IF(CP$7="NON RÉALISÉ FACTURÉ",1,0)))) -> 1 | CQ26: 0.15 | CR26: =($K26+$M26)*CP26 -> 0.2839285714 | CS26: =IF(AND(CS$7="EN COURS",SUM(CS$56:CS$79)>0),1,IF(CS$7="TERMINÉ",1,IF(AND(CS$7="EN COURS SAUF GAZ",SUM(CS$56:CS$79)>0),1,IF(CS$7="NON RÉALISÉ FACTURÉ",1,0)))) -> 1 | CT26: 0.15 | CU26: =($K26+$M26)*CS26 -> 0.2839285714 | CV26: =IF(AND(CV$7="EN COURS",SUM(CV$56:CV$79)>0),1,IF(CV$7="TERMINÉ",1,IF(AND(CV$7="EN COURS SAUF GAZ",SUM(CV$56:CV$79)>0),1,IF(CV$7="NON RÉALISÉ FACTURÉ",1,0)))) -> 1 | CW26: 0.15 | CX26: =($K26+$M26)*CV26 -> 0.2839285714 | CY26: =IF(AND(CY$7="EN COURS",SUM(CY$56:CY$79)>0),1,IF(CY$7="TERMINÉ",1,IF(AND(CY$7="EN COURS SAUF GAZ",SUM(CY$56:CY$79)>0),1,IF(CY$7="NON RÉALISÉ FACTURÉ",1,0)))) -> 1 | CZ26: 0.15 | DA26: =($K26+$M26)*CY26 -> 0.2839285714 | DB26: =IF(AND(DB$7="EN COURS",SUM(DB$56:DB$79)>0),1,IF(DB$7="TERMINÉ",1,IF(AND(DB$7="EN COURS SAUF GAZ",SUM(DB$56:DB$79)>0),1,IF(DB$7="NON RÉALISÉ FACTURÉ",1,0)))) -> 0 | DC26: 0 | DD26: =($K26+$M26)*DB26 -> 0 | DE26: =IF(AND(DE$7="EN COURS",SUM(DE$56:DE$79)>0),1,IF(DE$7="TERMINÉ",1,IF(AND(DE$7="EN COURS SAUF GAZ",SUM(DE$56:DE$79)>0),1,IF(DE$7="NON RÉALISÉ FACTURÉ",1,0)))) -> 1 | DF26: 0.15 | DG26: =($K26+$M26)*DE26 -> 0.2839285714 | DH26: =IF(AND(DH$7="EN COURS",SUM(DH$56:DH$79)>0),1,IF(DH$7="TERMINÉ",1,IF(AND(DH$7="EN COURS SAUF GAZ",SUM(DH$56:DH$79)>0),1,IF(DH$7="NON RÉALISÉ FACTURÉ",1,0)))) -> 1 | DI26: 0.15 | DJ26: =($K26+$M26)*DH26 -> 0.2839285714 | DK26: =IF(AND(DK$7="EN COURS",SUM(DK$56:DK$79)>0),1,IF(DK$7="TERMINÉ",1,IF(AND(DK$7="EN COURS SAUF GAZ",SUM(DK$56:DK$79)>0),1,IF(DK$7="NON RÉALISÉ FACTURÉ",1,0)))) -> 1 | DL26: 0.15 | DM26: =($K26+$M26)*DK26 -> 0.2839285714 | DN26: =IF(AND(DN$7="EN COURS",SUM(DN$56:DN$79)>0),1,IF(DN$7="TERMINÉ",1,IF(AND(DN$7="EN COURS SAUF GAZ",SUM(DN$56:DN$79)>0),1,IF(DN$7="NON RÉALISÉ FACTURÉ",1,0)))) -> 1 | DO26: 0.15 | DP26: =($K26+$M26)*DN26 -> 0.2839285714 | DQ26: =IF(AND(DQ$7="EN COURS",SUM(DQ$56:DQ$79)>0),1,IF(DQ$7="TERMINÉ",1,IF(AND(DQ$7="EN COURS SAUF GAZ",SUM(DQ$56:DQ$79)>0),1,IF(DQ$7="NON RÉALISÉ FACTURÉ",1,0)))) -> 1 | DR26: 0.15 | DS26: =($K26+$M26)*DQ26 -> 0.2839285714 | DT26: =IF(AND(DT$7="EN COURS",SUM(DT$56:DT$79)>0),1,IF(DT$7="TERMINÉ",1,IF(AND(DT$7="EN COURS SAUF GAZ",SUM(DT$56:DT$79)>0),1,IF(DT$7="NON RÉALISÉ FACTURÉ",1,0)))) -> 1 | DU26: 0.15 | DV26: =($K26+$M26)*DT26 -> 0.2839285714 | DW26: =IF(AND(DW$7="EN COURS",SUM(DW$56:DW$79)>0),1,IF(DW$7="TERMINÉ",1,IF(AND(DW$7="EN COURS SAUF GAZ",SUM(DW$56:DW$79)>0),1,IF(DW$7="NON RÉALISÉ FACTURÉ",1,0)))) -> 1 | DX26: 0.15 | DY26: =($K26+$M26)*DW26 -> 0.2839285714 | DZ26: =IF(AND(DZ$7="EN COURS",SUM(DZ$56:DZ$79)>0),1,IF(DZ$7="TERMINÉ",1,IF(AND(DZ$7="EN COURS SAUF GAZ",SUM(DZ$56:DZ$79)>0),1,IF(DZ$7="NON RÉALISÉ FACTURÉ",1,0)))) -> 1 | EA26: 0.15 | EB26: =($K26+$M26)*DZ26 -> 0.2839285714 | EC26: =IF(AND(EC$7="EN COURS",SUM(EC$56:EC$79)>0),1,IF(EC$7="TERMINÉ",1,IF(AND(EC$7="EN COURS SAUF GAZ",SUM(EC$56:EC$79)>0),1,IF(EC$7="NON RÉALISÉ FACTURÉ",1,0)))) -> 0 | ED26: 0 | EE26: =($K26+$M26)*EC26 -> 0 | EF26: =IF(AND(EF$7="EN COURS",SUM(EF$56:EF$79)>0),1,IF(EF$7="TERMINÉ",1,IF(AND(EF$7="EN COURS SAUF GAZ",SUM(EF$56:EF$79)>0),1,IF(EF$7="NON RÉALISÉ FACTURÉ",1,0)))) -> 0 | EG26: 0 | EH26: =($K26+$M26)*EF26 -> 0 | EI26: =IF(AND(EI$7="EN COURS",SUM(EI$56:EI$79)>0),1,IF(EI$7="TERMINÉ",1,IF(AND(EI$7="EN COURS SAUF GAZ",SUM(EI$56:EI$79)>0),1,IF(EI$7="NON RÉALISÉ FACTURÉ",1,0)))) -> 1 | EJ26: 0.15 | EK26: =($K26+$M26)*EI26 -> 0.2839285714 | EL26: =IF(AND(EL$7="EN COURS",SUM(EL$56:EL$79)>0),1,IF(EL$7="TERMINÉ",1,IF(AND(EL$7="EN COURS SAUF GAZ",SUM(EL$56:EL$79)>0),1,IF(EL$7="NON RÉALISÉ FACTURÉ",1,0)))) -> 0 | EM26: 0 | EN26: =($K26+$M26)*EL26 -> 0 | EO26: =IF(AND(EO$7="EN COURS",SUM(EO$56:EO$79)>0),1,IF(EO$7="TERMINÉ",1,IF(AND(EO$7="EN COURS SAUF GAZ",SUM(EO$56:EO$79)>0),1,IF(EO$7="NON RÉALISÉ FACTURÉ",1,0)))) -> 0 | EP26: 0 | EQ26: =($K26+$M26)*EO26 -> 0 | ER26: =IF(AND(ER$7="EN COURS",SUM(ER$56:ER$79)>0),1,IF(ER$7="TERMINÉ",1,IF(AND(ER$7="EN COURS SAUF GAZ",SUM(ER$56:ER$79)>0),1,IF(ER$7="NON RÉALISÉ FACTURÉ",1,0)))) -> 1 | ES26: 0.15 | ET26: =($K26+$M26)*ER26 -> 0.2839285714 | EU26: =IF(AND(EU$7="EN COURS",SUM(EU$56:EU$79)>0),1,IF(EU$7="TERMINÉ",1,IF(AND(EU$7="EN COURS SAUF GAZ",SUM(EU$56:EU$79)>0),1,IF(EU$7="NON RÉALISÉ FACTURÉ",1,0)))) -> 0 | EV26: 0 | EW26: =($K26+$M26)*EU26 -> 0 | EX26: =IF(AND(EX$7="EN COURS",SUM(EX$56:EX$79)>0),1,IF(EX$7="TERMINÉ",1,IF(AND(EX$7="EN COURS SAUF GAZ",SUM(EX$56:EX$79)>0),1,IF(EX$7="NON RÉALISÉ FACTURÉ",1,0)))) -> 0 | EY26: 0 | EZ26: =($K26+$M26)*EX26 -> 0 | FA26: =IF(AND(FA$7="EN COURS",SUM(FA$56:FA$79)>0),1,IF(FA$7="TERMINÉ",1,IF(AND(FA$7="EN COURS SAUF GAZ",SUM(FA$56:FA$79)>0),1,IF(FA$7="NON RÉALISÉ FACTURÉ",1,0)))) -> 0 | FB26: 0 | FC26: =($K26+$M26)*FA26 -> 0 | FD26: =IF(AND(FD$7="EN COURS",SUM(FD$56:FD$79)>0),1,IF(FD$7="TERMINÉ",1,IF(AND(FD$7="EN COURS SAUF GAZ",SUM(FD$56:FD$79)>0),1,IF(FD$7="NON RÉALISÉ FACTURÉ",1,0)))) -> 0 | FE26: 0 | FF26: =($K26+$M26)*FD26 -> 0 | FG26: =IF(AND(FG$7="EN COURS",SUM(FG$56:FG$79)>0),1,IF(FG$7="TERMINÉ",1,IF(AND(FG$7="EN COURS SAUF GAZ",SUM(FG$56:FG$79)>0),1,IF(FG$7="NON RÉALISÉ FACTURÉ",1,0)))) -> 0 | FH26: 0 | FI26: =($K26+$M26)*FG26 -> 0 | FJ26: =IF(AND(FJ$7="EN COURS",SUM(FJ$56:FJ$79)>0),1,IF(FJ$7="TERMINÉ",1,IF(AND(FJ$7="EN COURS SAUF GAZ",SUM(FJ$56:FJ$79)>0),1,IF(FJ$7="NON RÉALISÉ FACTURÉ",1,0)))) -> 1 | FK26: 0.15 | FL26: =($K26+$M26)*FJ26 -> 0.2839285714 | FM26: =IF(AND(FM$7="EN COURS",SUM(FM$56:FM$79)>0),1,IF(FM$7="TERMINÉ",1,IF(AND(FM$7="EN COURS SAUF GAZ",SUM(FM$56:FM$79)>0),1,IF(FM$7="NON RÉALISÉ FACTURÉ",1,0)))) -> 0 | FN26: 0 | FO26: =($K26+$M26)*FM26 -> 0 | FP26: =IF(AND(FP$7="EN COURS",SUM(FP$56:FP$79)>0),1,IF(FP$7="TERMINÉ",1,IF(AND(FP$7="EN COURS SAUF GAZ",SUM(FP$56:FP$79)>0),1,IF(FP$7="NON RÉALISÉ FACTURÉ",1,0)))) -> 0 | FQ26: 0 | FR26: =($K26+$M26)*FP26 -> 0 | FS26: =IF(AND(FS$7="EN COURS",SUM(FS$56:FS$79)>0),1,IF(FS$7="TERMINÉ",1,IF(AND(FS$7="EN COURS SAUF GAZ",SUM(FS$56:FS$79)>0),1,IF(FS$7="NON RÉALISÉ FACTURÉ",1,0)))) -> 1 | FT26: 0.15 | FU26: =($K26+$M26)*FS26 -> 0.2839285714 | FV26: =IF(AND(FV$7="EN COURS",SUM(FV$56:FV$79)>0),1,IF(FV$7="TERMINÉ",1,IF(AND(FV$7="EN COURS SAUF GAZ",SUM(FV$56:FV$79)>0),1,IF(FV$7="NON RÉALISÉ FACTURÉ",1,0)))) -> 1 | FW26: 0.15 | FX26: =($K26+$M26)*FV26 -> 0.2839285714 | FY26: =IF(AND(FY$7="EN COURS",SUM(FY$56:FY$79)>0),1,IF(FY$7="TERMINÉ",1,IF(AND(FY$7="EN COURS SAUF GAZ",SUM(FY$56:FY$79)>0),1,IF(FY$7="NON RÉALISÉ FACTURÉ",1,0)))) -> 0 | FZ26: 0 | GA26: =($K26+$M26)*FY26 -> 0 | GB26: =IF(AND(GB$7="EN COURS",SUM(GB$56:GB$79)>0),1,IF(GB$7="TERMINÉ",1,IF(AND(GB$7="EN COURS SAUF GAZ",SUM(GB$56:GB$79)>0),1,IF(GB$7="NON RÉALISÉ FACTURÉ",1,0)))) -> 0 | GC26: 0 | GD26: =($K26+$M26)*GB26 -> 0 | GE26: =IF(AND(GE$7="EN COURS",SUM(GE$56:GE$79)>0),1,IF(GE$7="TERMINÉ",1,IF(AND(GE$7="EN COURS SAUF GAZ",SUM(GE$56:GE$79)>0),1,IF(GE$7="NON RÉALISÉ FACTURÉ",1,0)))) -> 0 | GF26: 0 | GG26: =($K26+$M26)*GE26 -> 0 | GH26: =IF(AND(GH$7="EN COURS",SUM(GH$56:GH$79)>0),1,IF(GH$7="TERMINÉ",1,IF(AND(GH$7="EN COURS SAUF GAZ",SUM(GH$56:GH$79)>0),1,IF(GH$7="NON RÉALISÉ FACTURÉ",1,0)))) -> 0 | GI26: 0 | GJ26: =($K26+$M26)*GH26 -> 0 | GK26: =IF(AND(GK$7="EN COURS",SUM(GK$56:GK$79)>0),1,IF(GK$7="TERMINÉ",1,IF(AND(GK$7="EN COURS SAUF GAZ",SUM(GK$56:GK$79)>0),1,IF(GK$7="NON RÉALISÉ FACTURÉ",1,0)))) -> 0 | GL26: 0 | GM26: =($K26+$M26)*GK26 -> 0 | GN26: =IF(AND(GN$7="EN COURS",SUM(GN$56:GN$79)>0),1,IF(GN$7="TERMINÉ",1,IF(AND(GN$7="EN COURS SAUF GAZ",SUM(GN$56:GN$79)>0),1,IF(GN$7="NON RÉALISÉ FACTURÉ",1,0)))) -> 0 | GO26: 0 | GP26: =($K26+$M26)*GN26 -> 0 | GQ26: =IF(AND(GQ$7="EN COURS",SUM(GQ$56:GQ$79)>0),1,IF(GQ$7="TERMINÉ",1,IF(AND(GQ$7="EN COURS SAUF GAZ",SUM(GQ$56:GQ$79)>0),1,IF(GQ$7="NON RÉALISÉ FACTURÉ",1,0)))) -> 0 | GR26: 0 | GS26: =($K26+$M26)*GQ26 -> 0 | GT26: =IF(AND(GT$7="EN COURS",SUM(GT$56:GT$79)>0),1,IF(GT$7="TERMINÉ",1,IF(AND(GT$7="EN COURS SAUF GAZ",SUM(GT$56:GT$79)>0),1,IF(GT$7="NON RÉALISÉ FACTURÉ",1,0)))) -> 0 | GU26: 0 | GV26: =($K26+$M26)*GT26 -> 0 | GW26: =IF(AND(GW$7="EN COURS",SUM(GW$56:GW$79)>0),1,IF(GW$7="TERMINÉ",1,IF(AND(GW$7="EN COURS SAUF GAZ",SUM(GW$56:GW$79)>0),1,IF(GW$7="NON RÉALISÉ FACTURÉ",1,0)))) -> 0 | GX26: 0 | GY26: =($K26+$M26)*GW26 -> 0 | GZ26: =IF(AND(GZ$7="EN COURS",SUM(GZ$56:GZ$79)>0),1,IF(GZ$7="TERMINÉ",1,IF(AND(GZ$7="EN COURS SAUF GAZ",SUM(GZ$56:GZ$79)>0),1,IF(GZ$7="NON RÉALISÉ FACTURÉ",1,0)))) -> 0 | HA26: 0 | HB26: =($K26+$M26)*GZ26 -> 0 | HC26: =IF(AND(HC$7="EN COURS",SUM(HC$56:HC$79)>0),1,IF(HC$7="TERMINÉ",1,IF(AND(HC$7="EN COURS SAUF GAZ",SUM(HC$56:HC$79)>0),1,IF(HC$7="NON RÉALISÉ FACTURÉ",1,0)))) -> 0 | HD26: 0 | HE26: =($K26+$M26)*HC26 -> 0 | HF26: =IF(AND(HF$7="EN COURS",SUM(HF$56:HF$79)>0),1,IF(HF$7="TERMINÉ",1,IF(AND(HF$7="EN COURS SAUF GAZ",SUM(HF$56:HF$79)>0),1,IF(HF$7="NON RÉALISÉ FACTURÉ",1,0)))) -> 0 | HG26: 0 | HH26: =($K26+$M26)*HF26 -> 0 | HI26: =IF(AND(HI$7="EN COURS",SUM(HI$56:HI$79)>0),1,IF(HI$7="TERMINÉ",1,IF(AND(HI$7="EN COURS SAUF GAZ",SUM(HI$56:HI$79)>0),1,IF(HI$7="NON RÉALISÉ FACTURÉ",1,0)))) -> 0 | HJ26: 0 | HK26: =($K26+$M26)*HI26 -> 0 | HL26: =IF(AND(HL$7="EN COURS",SUM(HL$56:HL$79)>0),1,IF(HL$7="TERMINÉ",1,IF(AND(HL$7="EN COURS SAUF GAZ",SUM(HL$56:HL$79)>0),1,IF(HL$7="NON RÉALISÉ FACTURÉ",1,0)))) -> 0 | HM26: 0 | HN26: =($K26+$M26)*HL26 -> 0 | HO26: =IF(AND(HO$7="EN COURS",SUM(HO$56:HO$79)>0),1,IF(HO$7="TERMINÉ",1,IF(AND(HO$7="EN COURS SAUF GAZ",SUM(HO$56:HO$79)>0),1,IF(HO$7="NON RÉALISÉ FACTURÉ",1,0)))) -> 0 | HP26: 0 | HQ26: =($K26+$M26)*HO26 -> 0 | HR26: =IF(AND(HR$7="EN COURS",SUM(HR$56:HR$79)>0),1,IF(HR$7="TERMINÉ",1,IF(AND(HR$7="EN COURS SAUF GAZ",SUM(HR$56:HR$79)>0),1,IF(HR$7="NON RÉALISÉ FACTURÉ",1,0)))) -> 0 | HS26: 0 | HT26: =($K26+$M26)*HR26 -> 0 | HU26: =IF(AND(HU$7="EN COURS",SUM(HU$56:HU$79)>0),1,IF(HU$7="TERMINÉ",1,IF(AND(HU$7="EN COURS SAUF GAZ",SUM(HU$56:HU$79)>0),1,IF(HU$7="NON RÉALISÉ FACTURÉ",1,0)))) -> 0 | HV26: 0 | HW26: =($K26+$M26)*HU26 -> 0 | HX26: =IF(AND(HX$7="EN COURS",SUM(HX$56:HX$79)>0),1,IF(HX$7="TERMINÉ",1,IF(AND(HX$7="EN COURS SAUF GAZ",SUM(HX$56:HX$79)>0),1,IF(HX$7="NON RÉALISÉ FACTURÉ",1,0)))) -> 0 | HY26: 0 | HZ26: =($K26+$M26)*HX26 -> 0 | IA26: =IF(AND(IA$7="EN COURS",SUM(IA$56:IA$79)>0),1,IF(IA$7="TERMINÉ",1,IF(AND(IA$7="EN COURS SAUF GAZ",SUM(IA$56:IA$79)>0),1,IF(IA$7="NON RÉALISÉ FACTURÉ",1,0)))) -> 0 | IB26: 0 | IC26: =($K26+$M26)*IA26 -> 0 | ID26: =IF(AND(ID$7="EN COURS",SUM(ID$56:ID$79)>0),1,IF(ID$7="TERMINÉ",1,IF(AND(ID$7="EN COURS SAUF GAZ",SUM(ID$56:ID$79)>0),1,IF(ID$7="NON RÉALISÉ FACTURÉ",1,0)))) -> 0 | IE26: 0 | IF26: =($K26+$M26)*ID26 -> 0 | IG26: =IF(AND(IG$7="EN COURS",SUM(IG$56:IG$79)>0),1,IF(IG$7="TERMINÉ",1,IF(AND(IG$7="EN COURS SAUF GAZ",SUM(IG$56:IG$79)>0),1,IF(IG$7="NON RÉALISÉ FACTURÉ",1,0)))) -> 0 | IH26: 0 | II26: =($K26+$M26)*IG26 -> 0 | IJ26: =IF(AND(IJ$7="EN COURS",SUM(IJ$56:IJ$79)>0),1,IF(IJ$7="TERMINÉ",1,IF(AND(IJ$7="EN COURS SAUF GAZ",SUM(IJ$56:IJ$79)>0),1,IF(IJ$7="NON RÉALISÉ FACTURÉ",1,0)))) -> 0 | IK26: 0 | IL26: =($K26+$M26)*IJ26 -> 0 | IM26: =IF(AND(IM$7="EN COURS",SUM(IM$56:IM$79)>0),1,IF(IM$7="TERMINÉ",1,IF(AND(IM$7="EN COURS SAUF GAZ",SUM(IM$56:IM$79)>0),1,IF(IM$7="NON RÉALISÉ FACTURÉ",1,0)))) -> 0 | IN26: 0 | IO26: =($K26+$M26)*IM26 -> 0 | IP26: =IF(AND(IP$7="EN COURS",SUM(IP$56:IP$79)>0),1,IF(IP$7="TERMINÉ",1,IF(AND(IP$7="EN COURS SAUF GAZ",SUM(IP$56:IP$79)>0),1,IF(IP$7="NON RÉALISÉ FACTURÉ",1,0)))) -> 0 | IQ26: 0 | IR26: =($K26+$M26)*IP26 -> 0 | IS26: =IF(AND(IS$7="EN COURS",SUM(IS$56:IS$79)>0),1,IF(IS$7="TERMINÉ",1,IF(AND(IS$7="EN COURS SAUF GAZ",SUM(IS$56:IS$79)>0),1,IF(IS$7="NON RÉALISÉ FACTURÉ",1,0)))) -> 0 | IT26: 0 | IU26: =($K26+$M26)*IS26 -> 0 | IV26: =IF(AND(IV$7="EN COURS",SUM(IV$56:IV$79)>0),1,IF(IV$7="TERMINÉ",1,IF(AND(IV$7="EN COURS SAUF GAZ",SUM(IV$56:IV$79)>0),1,IF(IV$7="NON RÉALISÉ FACTURÉ",1,0)))) -> 0 | IW26: 0 | IX26: =($K26+$M26)*IV26 -> 0 | IY26: =IF(AND(IY$7="EN COURS",SUM(IY$56:IY$79)>0),1,IF(IY$7="TERMINÉ",1,IF(AND(IY$7="EN COURS SAUF GAZ",SUM(IY$56:IY$79)>0),1,IF(IY$7="NON RÉALISÉ FACTURÉ",1,0)))) -> 0 | IZ26: 0 | JA26: =($K26+$M26)*IY26 -> 0 | JB26: =IF(AND(JB$7="EN COURS",SUM(JB$56:JB$79)>0),1,IF(JB$7="TERMINÉ",1,IF(AND(JB$7="EN COURS SAUF GAZ",SUM(JB$56:JB$79)>0),1,IF(JB$7="NON RÉALISÉ FACTURÉ",1,0)))) -> 0 | JC26: 0 | JD26: =($K26+$M26)*JB26 -> 0 | JE26: =IF(AND(JE$7="EN COURS",SUM(JE$56:JE$79)>0),1,IF(JE$7="TERMINÉ",1,IF(AND(JE$7="EN COURS SAUF GAZ",SUM(JE$56:JE$79)>0),1,IF(JE$7="NON RÉALISÉ FACTURÉ",1,0)))) -> 0 | JF26: 0 | JG26: =($K26+$M26)*JE26 -> 0 | JH26: =IF(AND(JH$7="EN COURS",SUM(JH$56:JH$79)>0),1,IF(JH$7="TERMINÉ",1,IF(AND(JH$7="EN COURS SAUF GAZ",SUM(JH$56:JH$79)>0),1,IF(JH$7="NON RÉALISÉ FACTURÉ",1,0)))) -> 0 | JI26: 0 | JJ26: =($K26+$M26)*JH26 -> 0 | JK26: =IF(AND(JK$7="EN COURS",SUM(JK$56:JK$79)>0),1,IF(JK$7="TERMINÉ",1,IF(AND(JK$7="EN COURS SAUF GAZ",SUM(JK$56:JK$79)>0),1,IF(JK$7="NON RÉALISÉ FACTURÉ",1,0)))) -> 0 | JL26: 0 | JM26: =($K26+$M26)*JK26 -> 0 | JN26: =IF(AND(JN$7="EN COURS",SUM(JN$56:JN$79)>0),1,IF(JN$7="TERMINÉ",1,IF(AND(JN$7="EN COURS SAUF GAZ",SUM(JN$56:JN$79)>0),1,IF(JN$7="NON RÉALISÉ FACTURÉ",1,0)))) -> 0 | JO26: 0 | JP26: =($K26+$M26)*JN26 -> 0 | JQ26: =IF(AND(JQ$7="EN COURS",SUM(JQ$56:JQ$79)>0),1,IF(JQ$7="TERMINÉ",1,IF(AND(JQ$7="EN COURS SAUF GAZ",SUM(JQ$56:JQ$79)>0),1,IF(JQ$7="NON RÉALISÉ FACTURÉ",1,0)))) -> 0 | JR26: 0 | JS26: =($K26+$M26)*JQ26 -> 0 | JT26: =IF(AND(JT$7="EN COURS",SUM(JT$56:JT$79)>0),1,IF(JT$7="TERMINÉ",1,IF(AND(JT$7="EN COURS SAUF GAZ",SUM(JT$56:JT$79)>0),1,IF(JT$7="NON RÉALISÉ FACTURÉ",1,0)))) -> 0 | JU26: 0 | JV26: =($K26+$M26)*JT26 -> 0 | JW26: =IF(AND(JW$7="EN COURS",SUM(JW$56:JW$79)>0),1,IF(JW$7="TERMINÉ",1,IF(AND(JW$7="EN COURS SAUF GAZ",SUM(JW$56:JW$79)>0),1,IF(JW$7="NON RÉALISÉ FACTURÉ",1,0)))) -> 0 | JX26: 0 | JY26: =($K26+$M26)*JW26 -> 0 | JZ26: =IF(AND(JZ$7="EN COURS",SUM(JZ$56:JZ$79)>0),1,IF(JZ$7="TERMINÉ",1,IF(AND(JZ$7="EN COURS SAUF GAZ",SUM(JZ$56:JZ$79)>0),1,IF(JZ$7="NON RÉALISÉ FACTURÉ",1,0)))) -> 0 | KA26: 0 | KB26: =($K26+$M26)*JZ26 -> 0 | KC26: =IF(AND(KC$7="EN COURS",SUM(KC$56:KC$79)>0),1,IF(KC$7="TERMINÉ",1,IF(AND(KC$7="EN COURS SAUF GAZ",SUM(KC$56:KC$79)>0),1,IF(KC$7="NON RÉALISÉ FACTURÉ",1,0)))) -> 0 | KD26: 0 | KE26: =($K26+$M26)*KC26 -> 0 | KF26: =IF(AND(KF$7="EN COURS",SUM(KF$56:KF$79)>0),1,IF(KF$7="TERMINÉ",1,IF(AND(KF$7="EN COURS SAUF GAZ",SUM(KF$56:KF$79)>0),1,IF(KF$7="NON RÉALISÉ FACTURÉ",1,0)))) -> 0 | KG26: 0 | KH26: =($K26+$M26)*KF26 -> 0 | KI26: =IF(AND(KI$7="EN COURS",SUM(KI$56:KI$79)>0),1,IF(KI$7="TERMINÉ",1,IF(AND(KI$7="EN COURS SAUF GAZ",SUM(KI$56:KI$79)>0),1,IF(KI$7="NON RÉALISÉ FACTURÉ",1,0)))) -> 0 | KJ26: 0 | KK26: =($K26+$M26)*KI26 -> 0 | KL26: =IF(AND(KL$7="EN COURS",SUM(KL$56:KL$79)>0),1,IF(KL$7="TERMINÉ",1,IF(AND(KL$7="EN COURS SAUF GAZ",SUM(KL$56:KL$79)>0),1,IF(KL$7="NON RÉALISÉ FACTURÉ",1,0)))) -> 0 | KM26: 0 | KN26: =($K26+$M26)*KL26 -> 0 | KO26: =IF(AND(KO$7="EN COURS",SUM(KO$56:KO$79)>0),1,IF(KO$7="TERMINÉ",1,IF(AND(KO$7="EN COURS SAUF GAZ",SUM(KO$56:KO$79)>0),1,IF(KO$7="NON RÉALISÉ FACTURÉ",1,0)))) -> 0 | KP26: 0 | KQ26: =($K26+$M26)*KO26 -> 0 | KR26: =IF(AND(KR$7="EN COURS",SUM(KR$56:KR$79)>0),1,IF(KR$7="TERMINÉ",1,IF(AND(KR$7="EN COURS SAUF GAZ",SUM(KR$56:KR$79)>0),1,IF(KR$7="NON RÉALISÉ FACTURÉ",1,0)))) -> 0 | KS26: 0 | KT26: =($K26+$M26)*KR26 -> 0 | KU26: =IF(AND(KU$7="EN COURS",SUM(KU$56:KU$79)>0),1,IF(KU$7="TERMINÉ",1,IF(AND(KU$7="EN COURS SAUF GAZ",SUM(KU$56:KU$79)>0),1,IF(KU$7="NON RÉALISÉ FACTURÉ",1,0)))) -> 0 | KV26: 0 | KW26: =($K26+$M26)*KU26 -> 0 | KX26: =IF(AND(KX$7="EN COURS",SUM(KX$56:KX$79)>0),1,IF(KX$7="TERMINÉ",1,IF(AND(KX$7="EN COURS SAUF GAZ",SUM(KX$56:KX$79)>0),1,IF(KX$7="NON RÉALISÉ FACTURÉ",1,0)))) -> 0 | KY26: 0 | KZ26: =($K26+$M26)*KX26 -> 0 | LA26: =IF(AND(LA$7="EN COURS",SUM(LA$56:LA$79)>0),1,IF(LA$7="TERMINÉ",1,IF(AND(LA$7="EN COURS SAUF GAZ",SUM(LA$56:LA$79)>0),1,IF(LA$7="NON RÉALISÉ FACTURÉ",1,0)))) -> 0 | LB26: 0 | LC26: =($K26+$M26)*LA26 -> 0 | LD26: =IF(AND(LD$7="EN COURS",SUM(LD$56:LD$79)>0),1,IF(LD$7="TERMINÉ",1,IF(AND(LD$7="EN COURS SAUF GAZ",SUM(LD$56:LD$79)>0),1,IF(LD$7="NON RÉALISÉ FACTURÉ",1,0)))) -> 0 | LE26: 0 | LF26: =($K26+$M26)*LD26 -> 0 | LG26: =IF(AND(LG$7="EN COURS",SUM(LG$56:LG$79)>0),1,IF(LG$7="TERMINÉ",1,IF(AND(LG$7="EN COURS SAUF GAZ",SUM(LG$56:LG$79)>0),1,IF(LG$7="NON RÉALISÉ FACTURÉ",1,0)))) -> 0 | LH26: 0 | LI26: =($K26+$M26)*LG26 -> 0 | LJ26: =IF(AND(LJ$7="EN COURS",SUM(LJ$56:LJ$79)>0),1,IF(LJ$7="TERMINÉ",1,IF(AND(LJ$7="EN COURS SAUF GAZ",SUM(LJ$56:LJ$79)>0),1,IF(LJ$7="NON RÉALISÉ FACTURÉ",1,0)))) -> 0 | LK26: 0 | LL26: =($K26+$M26)*LJ26 -> 0 | LM26: =IF(AND(LM$7="EN COURS",SUM(LM$56:LM$79)>0),1,IF(LM$7="TERMINÉ",1,IF(AND(LM$7="EN COURS SAUF GAZ",SUM(LM$56:LM$79)>0),1,IF(LM$7="NON RÉALISÉ FACTURÉ",1,0)))) -> 0 | LN26: 0 | LO26: =($K26+$M26)*LM26 -> 0 | LP26: =IF(AND(LP$7="EN COURS",SUM(LP$56:LP$79)>0),1,IF(LP$7="TERMINÉ",1,IF(AND(LP$7="EN COURS SAUF GAZ",SUM(LP$56:LP$79)>0),1,IF(LP$7="NON RÉALISÉ FACTURÉ",1,0)))) -> 0 | LQ26: 0 | LR26: =($K26+$M26)*LP26 -> 0 | LS26: =IF(AND(LS$7="EN COURS",SUM(LS$56:LS$79)>0),1,IF(LS$7="TERMINÉ",1,IF(AND(LS$7="EN COURS SAUF GAZ",SUM(LS$56:LS$79)>0),1,IF(LS$7="NON RÉALISÉ FACTURÉ",1,0)))) -> 0 | LT26: 0 | LU26: =($K26+$M26)*LS26 -> 0 | LV26: =IF(AND(LV$7="EN COURS",SUM(LV$56:LV$79)>0),1,IF(LV$7="TERMINÉ",1,IF(AND(LV$7="EN COURS SAUF GAZ",SUM(LV$56:LV$79)>0),1,IF(LV$7="NON RÉALISÉ FACTURÉ",1,0)))) -> 0 | LW26: 0 | LX26: =($K26+$M26)*LV26 -> 0 | LY26: =IF(AND(LY$7="EN COURS",SUM(LY$56:LY$79)>0),1,IF(LY$7="TERMINÉ",1,IF(AND(LY$7="EN COURS SAUF GAZ",SUM(LY$56:LY$79)>0),1,IF(LY$7="NON RÉALISÉ FACTURÉ",1,0)))) -> 0 | LZ26: 0 | MA26: =($K26+$M26)*LY26 -> 0 | MB26: =IF(AND(MB$7="EN COURS",SUM(MB$56:MB$79)>0),1,IF(MB$7="TERMINÉ",1,IF(AND(MB$7="EN COURS SAUF GAZ",SUM(MB$56:MB$79)>0),1,IF(MB$7="NON RÉALISÉ FACTURÉ",1,0)))) -> 0 | MC26: 0 | MD26: =($K26+$M26)*MB26 -> 0 | ME26: =IF(AND(ME$7="EN COURS",SUM(ME$56:ME$79)>0),1,IF(ME$7="TERMINÉ",1,IF(AND(ME$7="EN COURS SAUF GAZ",SUM(ME$56:ME$79)>0),1,IF(ME$7="NON RÉALISÉ FACTURÉ",1,0)))) -> 0 | MF26: 0 | MG26: =($K26+$M26)*ME26 -> 0 | MH26: =IF(AND(MH$7="EN COURS",SUM(MH$56:MH$79)>0),1,IF(MH$7="TERMINÉ",1,IF(AND(MH$7="EN COURS SAUF GAZ",SUM(MH$56:MH$79)>0),1,IF(MH$7="NON RÉALISÉ FACTURÉ",1,0)))) -> 0 | MI26: 0 | MJ26: =($K26+$M26)*MH26 -> 0 | MK26: =IF(AND(MK$7="EN COURS",SUM(MK$56:MK$79)>0),1,IF(MK$7="TERMINÉ",1,IF(AND(MK$7="EN COURS SAUF GAZ",SUM(MK$56:MK$79)>0),1,IF(MK$7="NON RÉALISÉ FACTURÉ",1,0)))) -> 0 | ML26: 0 | MM26: =($K26+$M26)*MK26 -> 0 | MN26: =IF(AND(MN$7="EN COURS",SUM(MN$56:MN$79)>0),1,IF(MN$7="TERMINÉ",1,IF(AND(MN$7="EN COURS SAUF GAZ",SUM(MN$56:MN$79)>0),1,IF(MN$7="NON RÉALISÉ FACTURÉ",1,0)))) -> 0 | MO26: 0 | MP26: =($K26+$M26)*MN26 -> 0
A28: Dépose et évacuations : | B28: 112 | E28: =S28+V28+Y28+AB28+AE28+AH28+AK28+AN28+AQ28+AT28+AW28+AZ28+BC28+BF28+BI28+BL28+BO28+BR28+BU28+BX28+CA28+CD28+CG28+CJ28+CM28+CP28+CS28+CV28+CY28+DB28+DE28+DH28+DK28+DN28+DQ28+DT28+DW28+DZ28+EC28+EF28+EI28+EL28+EO28+ER28+EU28+EX28+FA28+FD28+FG28+FJ28+FM28+FP28+FS28+FV28+FY28+GB28+GE28+GH28+GK28+GN28+GQ28+GT28+GW28+GZ28+HC28+HF28+HI28+HL28+HO28+HR28+HU28+HX28+IA28+ID28+IG28+IJ28+IM28+IP28+IS28+IV28+IY28+JB28+JE28+JH28+JK28+JN28+JQ28+JT28+JW28+JZ28+KC28+KF28+KI28+KL28+KO28+KR28+KU28+KX28+LA28+LD28+LG28+LJ28+LM28+LP28+LS28+LV28+LY28+MB28+ME28+MH28+MK28+MN28 -> 42 | F28: 112 | G28: =(E28/F28)*100 -> 37.5 | K28: =0.79+0.33 -> 1.12 | L28: =112*K28 -> 125.44 | Q28: =L28+N28+P28 -> 125.44 | S28: =IF(AND(S$7="EN COURS",SUM(S$56:S$79)>0),1,IF(S$7="TERMINÉ",1,IF(AND(S$7="EN COURS SAUF GAZ",SUM(S$56:S$79)>0),1,IF(S$7="NON RÉALISÉ FACTURÉ",1,0)))) -> 1 | T28: =$J28*S28 -> 0 | U28: =$K28*S28 -> 1.12 | V28: =IF(AND(V$7="EN COURS",SUM(V$56:V$79)>0),1,IF(V$7="TERMINÉ",1,IF(AND(V$7="EN COURS SAUF GAZ",SUM(V$56:V$79)>0),1,IF(V$7="NON RÉALISÉ FACTURÉ",1,0)))) -> 1 | W28: =$J28*V28 -> 0 | X28: =$K28*V$28 -> 1.12 | Y28: =IF(AND(Y$7="EN COURS",SUM(Y$56:Y$79)>0),1,IF(Y$7="TERMINÉ",1,IF(AND(Y$7="EN COURS SAUF GAZ",SUM(Y$56:Y$79)>0),1,IF(Y$7="NON RÉALISÉ FACTURÉ",1,0)))) -> 1 | Z28: =$J28*Y28 -> 0 | AA28: =$K28*Y$28 -> 1.12 | AB28: =IF(AND(AB$7="EN COURS",SUM(AB$56:AB$79)>0),1,IF(AB$7="TERMINÉ",1,IF(AND(AB$7="EN COURS SAUF GAZ",SUM(AB$56:AB$79)>0),1,IF(AB$7="NON RÉALISÉ FACTURÉ",1,0)))) -> 1 | AC28: =$J28*AB28 -> 0 | AD28: =$K28*AB$28 -> 1.12 | AE28: =IF(AND(AE$7="EN COURS",SUM(AE$56:AE$79)>0),1,IF(AE$7="TERMINÉ",1,IF(AND(AE$7="EN COURS SAUF GAZ",SUM(AE$56:AE$79)>0),1,IF(AE$7="NON RÉALISÉ FACTURÉ",1,0)))) -> 1 | AF28: =$J28*AE28 -> 0 | AG28: =$K28*AE$28 -> 1.12 | AH28: =IF(AND(AH$7="EN COURS",SUM(AH$56:AH$79)>0),1,IF(AH$7="TERMINÉ",1,IF(AND(AH$7="EN COURS SAUF GAZ",SUM(AH$56:AH$79)>0),1,IF(AH$7="NON RÉALISÉ FACTURÉ",1,0)))) -> 1 | AI28: =$J28*AH28 -> 0 | AJ28: =$K28*AH$28 -> 1.12 | AK28: =IF(AND(AK$7="EN COURS",SUM(AK$56:AK$79)>0),1,IF(AK$7="TERMINÉ",1,IF(AND(AK$7="EN COURS SAUF GAZ",SUM(AK$56:AK$79)>0),1,IF(AK$7="NON RÉALISÉ FACTURÉ",1,0)))) -> 1 | AL28: =$J28*AK28 -> 0 | AM28: =$K28*AK$28 -> 1.12 | AN28: =IF(AND(AN$7="EN COURS",SUM(AN$56:AN$79)>0),1,IF(AN$7="TERMINÉ",1,IF(AND(AN$7="EN COURS SAUF GAZ",SUM(AN$56:AN$79)>0),1,IF(AN$7="NON RÉALISÉ FACTURÉ",1,0)))) -> 1 | AO28: =$J28*AN28 -> 0 | AP28: =$K28*AN$28 -> 1.12 | AQ28: =IF(AND(AQ$7="EN COURS",SUM(AQ$56:AQ$79)>0),1,IF(AQ$7="TERMINÉ",1,IF(AND(AQ$7="EN COURS SAUF GAZ",SUM(AQ$56:AQ$79)>0),1,IF(AQ$7="NON RÉALISÉ FACTURÉ",1,0)))) -> 1 | AR28: =$J28*AQ28 -> 0 | AS28: =$K28*AQ$28 -> 1.12 | AT28: =IF(AND(AT$7="EN COURS",SUM(AT$56:AT$79)>0),1,IF(AT$7="TERMINÉ",1,IF(AND(AT$7="EN COURS SAUF GAZ",SUM(AT$56:AT$79)>0),1,IF(AT$7="NON RÉALISÉ FACTURÉ",1,0)))) -> 1 | AU28: =$J28*AT28 -> 0 | AV28: =$K28*AT$28 -> 1.12 | AW28: =IF(AND(AW$7="EN COURS",SUM(AW$56:AW$79)>0),1,IF(AW$7="TERMINÉ",1,IF(AND(AW$7="EN COURS SAUF GAZ",SUM(AW$56:AW$79)>0),1,IF(AW$7="NON RÉALISÉ FACTURÉ",1,0)))) -> 1 | AX28: =$J28*AW28 -> 0 | AY28: =$K28*AW$28 -> 1.12 | AZ28: =IF(AND(AZ$7="EN COURS",SUM(AZ$56:AZ$79)>0),1,IF(AZ$7="TERMINÉ",1,IF(AND(AZ$7="EN COURS SAUF GAZ",SUM(AZ$56:AZ$79)>0),1,IF(AZ$7="NON RÉALISÉ FACTURÉ",1,0)))) -> 1 | BA28: =$J28*AZ28 -> 0 | BB28: =$K28*AZ$28 -> 1.12 | BC28: =IF(AND(BC$7="EN COURS",SUM(BC$56:BC$79)>0),1,IF(BC$7="TERMINÉ",1,IF(AND(BC$7="EN COURS SAUF GAZ",SUM(BC$56:BC$79)>0),1,IF(BC$7="NON RÉALISÉ FACTURÉ",1,0)))) -> 1 | BD28: =$J28*BC28 -> 0 | BE28: =$K28*BC$28 -> 1.12 | BF28: =IF(AND(BF$7="EN COURS",SUM(BF$56:BF$79)>0),1,IF(BF$7="TERMINÉ",1,IF(AND(BF$7="EN COURS SAUF GAZ",SUM(BF$56:BF$79)>0),1,IF(BF$7="NON RÉALISÉ FACTURÉ",1,0)))) -> 1 | BG28: =$J28*BF28 -> 0 | BH28: =$K28*BF$28 -> 1.12 | BI28: =IF(AND(BI$7="EN COURS",SUM(BI$56:BI$79)>0),1,IF(BI$7="TERMINÉ",1,IF(AND(BI$7="EN COURS SAUF GAZ",SUM(BI$56:BI$79)>0),1,IF(BI$7="NON RÉALISÉ FACTURÉ",1,0)))) -> 1 | BJ28: =$J28*BI28 -> 0 | BK28: =$K28*BI$28 -> 1.12 | BL28: =IF(AND(BL$7="EN COURS",SUM(BL$56:BL$79)>0),1,IF(BL$7="TERMINÉ",1,IF(AND(BL$7="EN COURS SAUF GAZ",SUM(BL$56:BL$79)>0),1,IF(BL$7="NON RÉALISÉ FACTURÉ",1,0)))) -> 1 | BM28: =$J28*BL28 -> 0 | BN28: =$K28*BL$28 -> 1.12 | BO28: =IF(AND(BO$7="EN COURS",SUM(BO$56:BO$79)>0),1,IF(BO$7="TERMINÉ",1,IF(AND(BO$7="EN COURS SAUF GAZ",SUM(BO$56:BO$79)>0),1,IF(BO$7="NON RÉALISÉ FACTURÉ",1,0)))) -> 1 | BP28: =$J28*BO28 -> 0 | BQ28: =$K28*BO$28 -> 1.12 | BR28: =IF(AND(BR$7="EN COURS",SUM(BR$56:BR$79)>0),1,IF(BR$7="TERMINÉ",1,IF(AND(BR$7="EN COURS SAUF GAZ",SUM(BR$56:BR$79)>0),1,IF(BR$7="NON RÉALISÉ FACTURÉ",1,0)))) -> 1 | BS28: =$J28*BR28 -> 0 | BT28: =$K28*BR$28 -> 1.12 | BU28: =IF(AND(BU$7="EN COURS",SUM(BU$56:BU$79)>0),1,IF(BU$7="TERMINÉ",1,IF(AND(BU$7="EN COURS SAUF GAZ",SUM(BU$56:BU$79)>0),1,IF(BU$7="NON RÉALISÉ FACTURÉ",1,0)))) -> 1 | BV28: =$J28*BU28 -> 0 | BW28: =$K28*BU$28 -> 1.12 | BX28: =IF(AND(BX$7="EN COURS",SUM(BX$56:BX$79)>0),1,IF(BX$7="TERMINÉ",1,IF(AND(BX$7="EN COURS SAUF GAZ",SUM(BX$56:BX$79)>0),1,IF(BX$7="NON RÉALISÉ FACTURÉ",1,0)))) -> 1 | BY28: =$J28*BX28 -> 0 | BZ28: =$K28*BX$28 -> 1.12 | CA28: =IF(AND(CA$7="EN COURS",SUM(CA$56:CA$79)>0),1,IF(CA$7="TERMINÉ",1,IF(AND(CA$7="EN COURS SAUF GAZ",SUM(CA$56:CA$79)>0),1,IF(CA$7="NON RÉALISÉ FACTURÉ",1,0)))) -> 1 | CB28: =$J28*CA28 -> 0 | CC28: =$K28*CA$28 -> 1.12 | CD28: =IF(AND(CD$7="EN COURS",SUM(CD$56:CD$79)>0),1,IF(CD$7="TERMINÉ",1,IF(AND(CD$7="EN COURS SAUF GAZ",SUM(CD$56:CD$79)>0),1,IF(CD$7="NON RÉALISÉ FACTURÉ",1,0)))) -> 1 | CE28: =$J28*CD28 -> 0 | CF28: =$K28*CD$28 -> 1.12 | CG28: =IF(AND(CG$7="EN COURS",SUM(CG$56:CG$79)>0),1,IF(CG$7="TERMINÉ",1,IF(AND(CG$7="EN COURS SAUF GAZ",SUM(CG$56:CG$79)>0),1,IF(CG$7="NON RÉALISÉ FACTURÉ",1,0)))) -> 1 | CH28: =$J28*CG28 -> 0 | CI28: =$K28*CG$28 -> 1.12 | CJ28: =IF(AND(CJ$7="EN COURS",SUM(CJ$56:CJ$79)>0),1,IF(CJ$7="TERMINÉ",1,IF(AND(CJ$7="EN COURS SAUF GAZ",SUM(CJ$56:CJ$79)>0),1,IF(CJ$7="NON RÉALISÉ FACTURÉ",1,0)))) -> 1 | CK28: =$J28*CJ28 -> 0 | CL28: =$K28*CJ$28 -> 1.12 | CM28: =IF(AND(CM$7="EN COURS",SUM(CM$56:CM$79)>0),1,IF(CM$7="TERMINÉ",1,IF(AND(CM$7="EN COURS SAUF GAZ",SUM(CM$56:CM$79)>0),1,IF(CM$7="NON RÉALISÉ FACTURÉ",1,0)))) -> 1 | CN28: =$J28*CM28 -> 0 | CO28: =$K28*CM$28 -> 1.12 | CP28: =IF(AND(CP$7="EN COURS",SUM(CP$56:CP$79)>0),1,IF(CP$7="TERMINÉ",1,IF(AND(CP$7="EN COURS SAUF GAZ",SUM(CP$56:CP$79)>0),1,IF(CP$7="NON RÉALISÉ FACTURÉ",1,0)))) -> 1 | CQ28: =$J28*CP28 -> 0 | CR28: =$K28*CP$28 -> 1.12 | CS28: =IF(AND(CS$7="EN COURS",SUM(CS$56:CS$79)>0),1,IF(CS$7="TERMINÉ",1,IF(AND(CS$7="EN COURS SAUF GAZ",SUM(CS$56:CS$79)>0),1,IF(CS$7="NON RÉALISÉ FACTURÉ",1,0)))) -> 1 | CT28: =$J28*CS28 -> 0 | CU28: =$K28*CS$28 -> 1.12 | CV28: =IF(AND(CV$7="EN COURS",SUM(CV$56:CV$79)>0),1,IF(CV$7="TERMINÉ",1,IF(AND(CV$7="EN COURS SAUF GAZ",SUM(CV$56:CV$79)>0),1,IF(CV$7="NON RÉALISÉ FACTURÉ",1,0)))) -> 1 | CW28: =$J28*CV28 -> 0 | CX28: =$K28*CV$28 -> 1.12 | CY28: =IF(AND(CY$7="EN COURS",SUM(CY$56:CY$79)>0),1,IF(CY$7="TERMINÉ",1,IF(AND(CY$7="EN COURS SAUF GAZ",SUM(CY$56:CY$79)>0),1,IF(CY$7="NON RÉALISÉ FACTURÉ",1,0)))) -> 1 | CZ28: =$J28*CY28 -> 0 | DA28: =$K28*CY$28 -> 1.12 | DB28: =IF(AND(DB$7="EN COURS",SUM(DB$56:DB$79)>0),1,IF(DB$7="TERMINÉ",1,IF(AND(DB$7="EN COURS SAUF GAZ",SUM(DB$56:DB$79)>0),1,IF(DB$7="NON RÉALISÉ FACTURÉ",1,0)))) -> 0 | DC28: =$J28*DB28 -> 0 | DD28: =$K28*DB$28 -> 0 | DE28: =IF(AND(DE$7="EN COURS",SUM(DE$56:DE$79)>0),1,IF(DE$7="TERMINÉ",1,IF(AND(DE$7="EN COURS SAUF GAZ",SUM(DE$56:DE$79)>0),1,IF(DE$7="NON RÉALISÉ FACTURÉ",1,0)))) -> 1 | DF28: =$J28*DE28 -> 0 | DG28: =$K28*DE$28 -> 1.12 | DH28: =IF(AND(DH$7="EN COURS",SUM(DH$56:DH$79)>0),1,IF(DH$7="TERMINÉ",1,IF(AND(DH$7="EN COURS SAUF GAZ",SUM(DH$56:DH$79)>0),1,IF(DH$7="NON RÉALISÉ FACTURÉ",1,0)))) -> 1 | DI28: =$J28*DH28 -> 0 | DJ28: =$K28*DH$28 -> 1.12 | DK28: =IF(AND(DK$7="EN COURS",SUM(DK$56:DK$79)>0),1,IF(DK$7="TERMINÉ",1,IF(AND(DK$7="EN COURS SAUF GAZ",SUM(DK$56:DK$79)>0),1,IF(DK$7="NON RÉALISÉ FACTURÉ",1,0)))) -> 1 | DL28: =$J28*DK28 -> 0 | DM28: =$K28*DK$28 -> 1.12 | DN28: =IF(AND(DN$7="EN COURS",SUM(DN$56:DN$79)>0),1,IF(DN$7="TERMINÉ",1,IF(AND(DN$7="EN COURS SAUF GAZ",SUM(DN$56:DN$79)>0),1,IF(DN$7="NON RÉALISÉ FACTURÉ",1,0)))) -> 1 | DO28: =$J28*DN28 -> 0 | DP28: =$K28*DN$28 -> 1.12 | DQ28: =IF(AND(DQ$7="EN COURS",SUM(DQ$56:DQ$79)>0),1,IF(DQ$7="TERMINÉ",1,IF(AND(DQ$7="EN COURS SAUF GAZ",SUM(DQ$56:DQ$79)>0),1,IF(DQ$7="NON RÉALISÉ FACTURÉ",1,0)))) -> 1 | DR28: =$J28*DQ28 -> 0 | DS28: =$K28*DQ$28 -> 1.12 | DT28: =IF(AND(DT$7="EN COURS",SUM(DT$56:DT$79)>0),1,IF(DT$7="TERMINÉ",1,IF(AND(DT$7="EN COURS SAUF GAZ",SUM(DT$56:DT$79)>0),1,IF(DT$7="NON RÉALISÉ FACTURÉ",1,0)))) -> 1 | DU28: =$J28*DT28 -> 0 | DV28: =$K28*DT$28 -> 1.12 | DW28: =IF(AND(DW$7="EN COURS",SUM(DW$56:DW$79)>0),1,IF(DW$7="TERMINÉ",1,IF(AND(DW$7="EN COURS SAUF GAZ",SUM(DW$56:DW$79)>0),1,IF(DW$7="NON RÉALISÉ FACTURÉ",1,0)))) -> 1 | DX28: =$J28*DW28 -> 0 | DY28: =$K28*DW$28 -> 1.12 | DZ28: =IF(AND(DZ$7="EN COURS",SUM(DZ$56:DZ$79)>0),1,IF(DZ$7="TERMINÉ",1,IF(AND(DZ$7="EN COURS SAUF GAZ",SUM(DZ$56:DZ$79)>0),1,IF(DZ$7="NON RÉALISÉ FACTURÉ",1,0)))) -> 1 | EA28: =$J28*DZ28 -> 0 | EB28: =$K28*DZ$28 -> 1.12 | EC28: =IF(AND(EC$7="EN COURS",SUM(EC$56:EC$79)>0),1,IF(EC$7="TERMINÉ",1,IF(AND(EC$7="EN COURS SAUF GAZ",SUM(EC$56:EC$79)>0),1,IF(EC$7="NON RÉALISÉ FACTURÉ",1,0)))) -> 0 | ED28: =$J28*EC28 -> 0 | EE28: =$K28*EC$28 -> 0 | EF28: =IF(AND(EF$7="EN COURS",SUM(EF$56:EF$79)>0),1,IF(EF$7="TERMINÉ",1,IF(AND(EF$7="EN COURS SAUF GAZ",SUM(EF$56:EF$79)>0),1,IF(EF$7="NON RÉALISÉ FACTURÉ",1,0)))) -> 0 | EG28: =$J28*EF28 -> 0 | EH28: =$K28*EF$28 -> 0 | EI28: =IF(AND(EI$7="EN COURS",SUM(EI$56:EI$79)>0),1,IF(EI$7="TERMINÉ",1,IF(AND(EI$7="EN COURS SAUF GAZ",SUM(EI$56:EI$79)>0),1,IF(EI$7="NON RÉALISÉ FACTURÉ",1,0)))) -> 1 | EJ28: =$J28*EI28 -> 0 | EK28: =$K28*EI$28 -> 1.12 | EL28: =IF(AND(EL$7="EN COURS",SUM(EL$56:EL$79)>0),1,IF(EL$7="TERMINÉ",1,IF(AND(EL$7="EN COURS SAUF GAZ",SUM(EL$56:EL$79)>0),1,IF(EL$7="NON RÉALISÉ FACTURÉ",1,0)))) -> 0 | EM28: =$J28*EL28 -> 0 | EN28: =$K28*EL$28 -> 0 | EO28: =IF(AND(EO$7="EN COURS",SUM(EO$56:EO$79)>0),1,IF(EO$7="TERMINÉ",1,IF(AND(EO$7="EN COURS SAUF GAZ",SUM(EO$56:EO$79)>0),1,IF(EO$7="NON RÉALISÉ FACTURÉ",1,0)))) -> 0 | EP28: =$J28*EO28 -> 0 | EQ28: =$K28*EO$28 -> 0 | ER28: =IF(AND(ER$7="EN COURS",SUM(ER$56:ER$79)>0),1,IF(ER$7="TERMINÉ",1,IF(AND(ER$7="EN COURS SAUF GAZ",SUM(ER$56:ER$79)>0),1,IF(ER$7="NON RÉALISÉ FACTURÉ",1,0)))) -> 1 | ES28: =$J28*ER28 -> 0 | ET28: =$K28*ER$28 -> 1.12 | EU28: =IF(AND(EU$7="EN COURS",SUM(EU$56:EU$79)>0),1,IF(EU$7="TERMINÉ",1,IF(AND(EU$7="EN COURS SAUF GAZ",SUM(EU$56:EU$79)>0),1,IF(EU$7="NON RÉALISÉ FACTURÉ",1,0)))) -> 0 | EV28: =$J28*EU28 -> 0 | EW28: =$K28*EU$28 -> 0 | EX28: =IF(AND(EX$7="EN COURS",SUM(EX$56:EX$79)>0),1,IF(EX$7="TERMINÉ",1,IF(AND(EX$7="EN COURS SAUF GAZ",SUM(EX$56:EX$79)>0),1,IF(EX$7="NON RÉALISÉ FACTURÉ",1,0)))) -> 0 | EY28: =$J28*EX28 -> 0 | EZ28: =$K28*EX$28 -> 0 | FA28: =IF(AND(FA$7="EN COURS",SUM(FA$56:FA$79)>0),1,IF(FA$7="TERMINÉ",1,IF(AND(FA$7="EN COURS SAUF GAZ",SUM(FA$56:FA$79)>0),1,IF(FA$7="NON RÉALISÉ FACTURÉ",1,0)))) -> 0 | FB28: =$J28*FA28 -> 0 | FC28: =$K28*FA$28 -> 0 | FD28: =IF(AND(FD$7="EN COURS",SUM(FD$56:FD$79)>0),1,IF(FD$7="TERMINÉ",1,IF(AND(FD$7="EN COURS SAUF GAZ",SUM(FD$56:FD$79)>0),1,IF(FD$7="NON RÉALISÉ FACTURÉ",1,0)))) -> 0 | FE28: =$J28*FD28 -> 0 | FF28: =$K28*FD$28 -> 0 | FG28: =IF(AND(FG$7="EN COURS",SUM(FG$56:FG$79)>0),1,IF(FG$7="TERMINÉ",1,IF(AND(FG$7="EN COURS SAUF GAZ",SUM(FG$56:FG$79)>0),1,IF(FG$7="NON RÉALISÉ FACTURÉ",1,0)))) -> 0 | FH28: =$J28*FG28 -> 0 | FI28: =$K28*FG$28 -> 0 | FJ28: =IF(AND(FJ$7="EN COURS",SUM(FJ$56:FJ$79)>0),1,IF(FJ$7="TERMINÉ",1,IF(AND(FJ$7="EN COURS SAUF GAZ",SUM(FJ$56:FJ$79)>0),1,IF(FJ$7="NON RÉALISÉ FACTURÉ",1,0)))) -> 1 | FK28: =$J28*FJ28 -> 0 | FL28: =$K28*FJ$28 -> 1.12 | FM28: =IF(AND(FM$7="EN COURS",SUM(FM$56:FM$79)>0),1,IF(FM$7="TERMINÉ",1,IF(AND(FM$7="EN COURS SAUF GAZ",SUM(FM$56:FM$79)>0),1,IF(FM$7="NON RÉALISÉ FACTURÉ",1,0)))) -> 0 | FN28: =$J28*FM28 -> 0 | FO28: =$K28*FM$28 -> 0 | FP28: =IF(AND(FP$7="EN COURS",SUM(FP$56:FP$79)>0),1,IF(FP$7="TERMINÉ",1,IF(AND(FP$7="EN COURS SAUF GAZ",SUM(FP$56:FP$79)>0),1,IF(FP$7="NON RÉALISÉ FACTURÉ",1,0)))) -> 0 | FQ28: =$J28*FP28 -> 0 | FR28: =$K28*FP$28 -> 0 | FS28: =IF(AND(FS$7="EN COURS",SUM(FS$56:FS$79)>0),1,IF(FS$7="TERMINÉ",1,IF(AND(FS$7="EN COURS SAUF GAZ",SUM(FS$56:FS$79)>0),1,IF(FS$7="NON RÉALISÉ FACTURÉ",1,0)))) -> 1 | FT28: =$J28*FS28 -> 0 | FU28: =$K28*FS$28 -> 1.12 | FV28: =IF(AND(FV$7="EN COURS",SUM(FV$56:FV$79)>0),1,IF(FV$7="TERMINÉ",1,IF(AND(FV$7="EN COURS SAUF GAZ",SUM(FV$56:FV$79)>0),1,IF(FV$7="NON RÉALISÉ FACTURÉ",1,0)))) -> 1 | FW28: =$J28*FV28 -> 0 | FX28: =$K28*FV$28 -> 1.12 | FY28: =IF(AND(FY$7="EN COURS",SUM(FY$56:FY$79)>0),1,IF(FY$7="TERMINÉ",1,IF(AND(FY$7="EN COURS SAUF GAZ",SUM(FY$56:FY$79)>0),1,IF(FY$7="NON RÉALISÉ FACTURÉ",1,0)))) -> 0 | FZ28: =$J28*FY28 -> 0 | GA28: =$K28*FY$28 -> 0 | GB28: =IF(AND(GB$7="EN COURS",SUM(GB$56:GB$79)>0),1,IF(GB$7="TERMINÉ",1,IF(AND(GB$7="EN COURS SAUF GAZ",SUM(GB$56:GB$79)>0),1,IF(GB$7="NON RÉALISÉ FACTURÉ",1,0)))) -> 0 | GC28: =$J28*GB28 -> 0 | GD28: =$K28*GB$28 -> 0 | GE28: =IF(AND(GE$7="EN COURS",SUM(GE$56:GE$79)>0),1,IF(GE$7="TERMINÉ",1,IF(AND(GE$7="EN COURS SAUF GAZ",SUM(GE$56:GE$79)>0),1,IF(GE$7="NON RÉALISÉ FACTURÉ",1,0)))) -> 0 | GF28: =$J28*GE28 -> 0 | GG28: =$K28*GE$28 -> 0 | GH28: =IF(AND(GH$7="EN COURS",SUM(GH$56:GH$79)>0),1,IF(GH$7="TERMINÉ",1,IF(AND(GH$7="EN COURS SAUF GAZ",SUM(GH$56:GH$79)>0),1,IF(GH$7="NON RÉALISÉ FACTURÉ",1,0)))) -> 0 | GI28: =$J28*GH28 -> 0 | GJ28: =$K28*GH$28 -> 0 | GK28: =IF(AND(GK$7="EN COURS",SUM(GK$56:GK$79)>0),1,IF(GK$7="TERMINÉ",1,IF(AND(GK$7="EN COURS SAUF GAZ",SUM(GK$56:GK$79)>0),1,IF(GK$7="NON RÉALISÉ FACTURÉ",1,0)))) -> 0 | GL28: =$J28*GK28 -> 0 | GM28: =$K28*GK$28 -> 0 | GN28: =IF(AND(GN$7="EN COURS",SUM(GN$56:GN$79)>0),1,IF(GN$7="TERMINÉ",1,IF(AND(GN$7="EN COURS SAUF GAZ",SUM(GN$56:GN$79)>0),1,IF(GN$7="NON RÉALISÉ FACTURÉ",1,0)))) -> 0 | GO28: =$J28*GN28 -> 0 | GP28: =$K28*GN$28 -> 0 | GQ28: =IF(AND(GQ$7="EN COURS",SUM(GQ$56:GQ$79)>0),1,IF(GQ$7="TERMINÉ",1,IF(AND(GQ$7="EN COURS SAUF GAZ",SUM(GQ$56:GQ$79)>0),1,IF(GQ$7="NON RÉALISÉ FACTURÉ",1,0)))) -> 0 | GR28: =$J28*GQ28 -> 0 | GS28: =$K28*GQ$28 -> 0 | GT28: =IF(AND(GT$7="EN COURS",SUM(GT$56:GT$79)>0),1,IF(GT$7="TERMINÉ",1,IF(AND(GT$7="EN COURS SAUF GAZ",SUM(GT$56:GT$79)>0),1,IF(GT$7="NON RÉALISÉ FACTURÉ",1,0)))) -> 0 | GU28: =$J28*GT28 -> 0 | GV28: =$K28*GT$28 -> 0 | GW28: =IF(AND(GW$7="EN COURS",SUM(GW$56:GW$79)>0),1,IF(GW$7="TERMINÉ",1,IF(AND(GW$7="EN COURS SAUF GAZ",SUM(GW$56:GW$79)>0),1,IF(GW$7="NON RÉALISÉ FACTURÉ",1,0)))) -> 0 | GX28: =$J28*GW28 -> 0 | GY28: =$K28*GW$28 -> 0 | GZ28: =IF(AND(GZ$7="EN COURS",SUM(GZ$56:GZ$79)>0),1,IF(GZ$7="TERMINÉ",1,IF(AND(GZ$7="EN COURS SAUF GAZ",SUM(GZ$56:GZ$79)>0),1,IF(GZ$7="NON RÉALISÉ FACTURÉ",1,0)))) -> 0 | HA28: =$J28*GZ28 -> 0 | HB28: =$K28*GZ$28 -> 0 | HC28: =IF(AND(HC$7="EN COURS",SUM(HC$56:HC$79)>0),1,IF(HC$7="TERMINÉ",1,IF(AND(HC$7="EN COURS SAUF GAZ",SUM(HC$56:HC$79)>0),1,IF(HC$7="NON RÉALISÉ FACTURÉ",1,0)))) -> 0 | HD28: =$J28*HC28 -> 0 | HE28: =$K28*HC$28 -> 0 | HF28: =IF(AND(HF$7="EN COURS",SUM(HF$56:HF$79)>0),1,IF(HF$7="TERMINÉ",1,IF(AND(HF$7="EN COURS SAUF GAZ",SUM(HF$56:HF$79)>0),1,IF(HF$7="NON RÉALISÉ FACTURÉ",1,0)))) -> 0 | HG28: =$J28*HF28 -> 0 | HH28: =$K28*HF$28 -> 0 | HI28: =IF(AND(HI$7="EN COURS",SUM(HI$56:HI$79)>0),1,IF(HI$7="TERMINÉ",1,IF(AND(HI$7="EN COURS SAUF GAZ",SUM(HI$56:HI$79)>0),1,IF(HI$7="NON RÉALISÉ FACTURÉ",1,0)))) -> 0 | HJ28: =$J28*HI28 -> 0 | HK28: =$K28*HI$28 -> 0 | HL28: =IF(AND(HL$7="EN COURS",SUM(HL$56:HL$79)>0),1,IF(HL$7="TERMINÉ",1,IF(AND(HL$7="EN COURS SAUF GAZ",SUM(HL$56:HL$79)>0),1,IF(HL$7="NON RÉALISÉ FACTURÉ",1,0)))) -> 0 | HM28: =$J28*HL28 -> 0 | HN28: =$K28*HL$28 -> 0 | HO28: =IF(AND(HO$7="EN COURS",SUM(HO$56:HO$79)>0),1,IF(HO$7="TERMINÉ",1,IF(AND(HO$7="EN COURS SAUF GAZ",SUM(HO$56:HO$79)>0),1,IF(HO$7="NON RÉALISÉ FACTURÉ",1,0)))) -> 0 | HP28: =$J28*HO28 -> 0 | HQ28: =$K28*HO$28 -> 0 | HR28: =IF(AND(HR$7="EN COURS",SUM(HR$56:HR$79)>0),1,IF(HR$7="TERMINÉ",1,IF(AND(HR$7="EN COURS SAUF GAZ",SUM(HR$56:HR$79)>0),1,IF(HR$7="NON RÉALISÉ FACTURÉ",1,0)))) -> 0 | HS28: =$J28*HR28 -> 0 | HT28: =$K28*HR$28 -> 0 | HU28: =IF(AND(HU$7="EN COURS",SUM(HU$56:HU$79)>0),1,IF(HU$7="TERMINÉ",1,IF(AND(HU$7="EN COURS SAUF GAZ",SUM(HU$56:HU$79)>0),1,IF(HU$7="NON RÉALISÉ FACTURÉ",1,0)))) -> 0 | HV28: =$J28*HU28 -> 0 | HW28: =$K28*HU$28 -> 0 | HX28: =IF(AND(HX$7="EN COURS",SUM(HX$56:HX$79)>0),1,IF(HX$7="TERMINÉ",1,IF(AND(HX$7="EN COURS SAUF GAZ",SUM(HX$56:HX$79)>0),1,IF(HX$7="NON RÉALISÉ FACTURÉ",1,0)))) -> 0 | HY28: =$J28*HX28 -> 0 | HZ28: =$K28*HX$28 -> 0 | IA28: =IF(AND(IA$7="EN COURS",SUM(IA$56:IA$79)>0),1,IF(IA$7="TERMINÉ",1,IF(AND(IA$7="EN COURS SAUF GAZ",SUM(IA$56:IA$79)>0),1,IF(IA$7="NON RÉALISÉ FACTURÉ",1,0)))) -> 0 | IB28: =$J28*IA28 -> 0 | IC28: =$K28*IA$28 -> 0 | ID28: =IF(AND(ID$7="EN COURS",SUM(ID$56:ID$79)>0),1,IF(ID$7="TERMINÉ",1,IF(AND(ID$7="EN COURS SAUF GAZ",SUM(ID$56:ID$79)>0),1,IF(ID$7="NON RÉALISÉ FACTURÉ",1,0)))) -> 0 | IE28: =$J28*ID28 -> 0 | IF28: =$K28*ID$28 -> 0 | IG28: =IF(AND(IG$7="EN COURS",SUM(IG$56:IG$79)>0),1,IF(IG$7="TERMINÉ",1,IF(AND(IG$7="EN COURS SAUF GAZ",SUM(IG$56:IG$79)>0),1,IF(IG$7="NON RÉALISÉ FACTURÉ",1,0)))) -> 0 | IH28: =$J28*IG28 -> 0 | II28: =$K28*IG$28 -> 0 | IJ28: =IF(AND(IJ$7="EN COURS",SUM(IJ$56:IJ$79)>0),1,IF(IJ$7="TERMINÉ",1,IF(AND(IJ$7="EN COURS SAUF GAZ",SUM(IJ$56:IJ$79)>0),1,IF(IJ$7="NON RÉALISÉ FACTURÉ",1,0)))) -> 0 | IK28: =$J28*IJ28 -> 0 | IL28: =$K28*IJ$28 -> 0 | IM28: =IF(AND(IM$7="EN COURS",SUM(IM$56:IM$79)>0),1,IF(IM$7="TERMINÉ",1,IF(AND(IM$7="EN COURS SAUF GAZ",SUM(IM$56:IM$79)>0),1,IF(IM$7="NON RÉALISÉ FACTURÉ",1,0)))) -> 0 | IN28: =$J28*IM28 -> 0 | IO28: =$K28*IM$28 -> 0 | IP28: =IF(AND(IP$7="EN COURS",SUM(IP$56:IP$79)>0),1,IF(IP$7="TERMINÉ",1,IF(AND(IP$7="EN COURS SAUF GAZ",SUM(IP$56:IP$79)>0),1,IF(IP$7="NON RÉALISÉ FACTURÉ",1,0)))) -> 0 | IQ28: =$J28*IP28 -> 0 | IR28: =$K28*IP$28 -> 0 | IS28: =IF(AND(IS$7="EN COURS",SUM(IS$56:IS$79)>0),1,IF(IS$7="TERMINÉ",1,IF(AND(IS$7="EN COURS SAUF GAZ",SUM(IS$56:IS$79)>0),1,IF(IS$7="NON RÉALISÉ FACTURÉ",1,0)))) -> 0 | IT28: =$J28*IS28 -> 0 | IU28: =$K28*IS$28 -> 0 | IV28: =IF(AND(IV$7="EN COURS",SUM(IV$56:IV$79)>0),1,IF(IV$7="TERMINÉ",1,IF(AND(IV$7="EN COURS SAUF GAZ",SUM(IV$56:IV$79)>0),1,IF(IV$7="NON RÉALISÉ FACTURÉ",1,0)))) -> 0 | IW28: =$J28*IV28 -> 0 | IX28: =$K28*IV$28 -> 0 | IY28: =IF(AND(IY$7="EN COURS",SUM(IY$56:IY$79)>0),1,IF(IY$7="TERMINÉ",1,IF(AND(IY$7="EN COURS SAUF GAZ",SUM(IY$56:IY$79)>0),1,IF(IY$7="NON RÉALISÉ FACTURÉ",1,0)))) -> 0 | IZ28: =$J28*IY28 -> 0 | JA28: =$K28*IY$28 -> 0 | JB28: =IF(AND(JB$7="EN COURS",SUM(JB$56:JB$79)>0),1,IF(JB$7="TERMINÉ",1,IF(AND(JB$7="EN COURS SAUF GAZ",SUM(JB$56:JB$79)>0),1,IF(JB$7="NON RÉALISÉ FACTURÉ",1,0)))) -> 0 | JC28: =$J28*JB28 -> 0 | JD28: =$K28*JB$28 -> 0 | JE28: =IF(AND(JE$7="EN COURS",SUM(JE$56:JE$79)>0),1,IF(JE$7="TERMINÉ",1,IF(AND(JE$7="EN COURS SAUF GAZ",SUM(JE$56:JE$79)>0),1,IF(JE$7="NON RÉALISÉ FACTURÉ",1,0)))) -> 0 | JF28: =$J28*JE28 -> 0 | JG28: =$K28*JE$28 -> 0 | JH28: =IF(AND(JH$7="EN COURS",SUM(JH$56:JH$79)>0),1,IF(JH$7="TERMINÉ",1,IF(AND(JH$7="EN COURS SAUF GAZ",SUM(JH$56:JH$79)>0),1,IF(JH$7="NON RÉALISÉ FACTURÉ",1,0)))) -> 0 | JI28: =$J28*JH28 -> 0 | JJ28: =$K28*JH$28 -> 0 | JK28: =IF(AND(JK$7="EN COURS",SUM(JK$56:JK$79)>0),1,IF(JK$7="TERMINÉ",1,IF(AND(JK$7="EN COURS SAUF GAZ",SUM(JK$56:JK$79)>0),1,IF(JK$7="NON RÉALISÉ FACTURÉ",1,0)))) -> 0 | JL28: =$J28*JK28 -> 0 | JM28: =$K28*JK$28 -> 0 | JN28: =IF(AND(JN$7="EN COURS",SUM(JN$56:JN$79)>0),1,IF(JN$7="TERMINÉ",1,IF(AND(JN$7="EN COURS SAUF GAZ",SUM(JN$56:JN$79)>0),1,IF(JN$7="NON RÉALISÉ FACTURÉ",1,0)))) -> 0 | JO28: =$J28*JN28 -> 0 | JP28: =$K28*JN$28 -> 0 | JQ28: =IF(AND(JQ$7="EN COURS",SUM(JQ$56:JQ$79)>0),1,IF(JQ$7="TERMINÉ",1,IF(AND(JQ$7="EN COURS SAUF GAZ",SUM(JQ$56:JQ$79)>0),1,IF(JQ$7="NON RÉALISÉ FACTURÉ",1,0)))) -> 0 | JR28: =$J28*JQ28 -> 0 | JS28: =$K28*JQ$28 -> 0 | JT28: =IF(AND(JT$7="EN COURS",SUM(JT$56:JT$79)>0),1,IF(JT$7="TERMINÉ",1,IF(AND(JT$7="EN COURS SAUF GAZ",SUM(JT$56:JT$79)>0),1,IF(JT$7="NON RÉALISÉ FACTURÉ",1,0)))) -> 0 | JU28: =$J28*JT28 -> 0 | JV28: =$K28*JT$28 -> 0 | JW28: =IF(AND(JW$7="EN COURS",SUM(JW$56:JW$79)>0),1,IF(JW$7="TERMINÉ",1,IF(AND(JW$7="EN COURS SAUF GAZ",SUM(JW$56:JW$79)>0),1,IF(JW$7="NON RÉALISÉ FACTURÉ",1,0)))) -> 0 | JX28: =$J28*JW28 -> 0 | JY28: =$K28*JW$28 -> 0 | JZ28: =IF(AND(JZ$7="EN COURS",SUM(JZ$56:JZ$79)>0),1,IF(JZ$7="TERMINÉ",1,IF(AND(JZ$7="EN COURS SAUF GAZ",SUM(JZ$56:JZ$79)>0),1,IF(JZ$7="NON RÉALISÉ FACTURÉ",1,0)))) -> 0 | KA28: =$J28*JZ28 -> 0 | KB28: =$K28*JZ$28 -> 0 | KC28: =IF(AND(KC$7="EN COURS",SUM(KC$56:KC$79)>0),1,IF(KC$7="TERMINÉ",1,IF(AND(KC$7="EN COURS SAUF GAZ",SUM(KC$56:KC$79)>0),1,IF(KC$7="NON RÉALISÉ FACTURÉ",1,0)))) -> 0 | KD28: =$J28*KC28 -> 0 | KE28: =$K28*KC$28 -> 0 | KF28: =IF(AND(KF$7="EN COURS",SUM(KF$56:KF$79)>0),1,IF(KF$7="TERMINÉ",1,IF(AND(KF$7="EN COURS SAUF GAZ",SUM(KF$56:KF$79)>0),1,IF(KF$7="NON RÉALISÉ FACTURÉ",1,0)))) -> 0 | KG28: =$J28*KF28 -> 0 | KH28: =$K28*KF$28 -> 0 | KI28: =IF(AND(KI$7="EN COURS",SUM(KI$56:KI$79)>0),1,IF(KI$7="TERMINÉ",1,IF(AND(KI$7="EN COURS SAUF GAZ",SUM(KI$56:KI$79)>0),1,IF(KI$7="NON RÉALISÉ FACTURÉ",1,0)))) -> 0 | KJ28: =$J28*KI28 -> 0 | KK28: =$K28*KI$28 -> 0 | KL28: =IF(AND(KL$7="EN COURS",SUM(KL$56:KL$79)>0),1,IF(KL$7="TERMINÉ",1,IF(AND(KL$7="EN COURS SAUF GAZ",SUM(KL$56:KL$79)>0),1,IF(KL$7="NON RÉALISÉ FACTURÉ",1,0)))) -> 0 | KM28: =$J28*KL28 -> 0 | KN28: =$K28*KL$28 -> 0 | KO28: =IF(AND(KO$7="EN COURS",SUM(KO$56:KO$79)>0),1,IF(KO$7="TERMINÉ",1,IF(AND(KO$7="EN COURS SAUF GAZ",SUM(KO$56:KO$79)>0),1,IF(KO$7="NON RÉALISÉ FACTURÉ",1,0)))) -> 0 | KP28: =$J28*KO28 -> 0 | KQ28: =$K28*KO$28 -> 0 | KR28: =IF(AND(KR$7="EN COURS",SUM(KR$56:KR$79)>0),1,IF(KR$7="TERMINÉ",1,IF(AND(KR$7="EN COURS SAUF GAZ",SUM(KR$56:KR$79)>0),1,IF(KR$7="NON RÉALISÉ FACTURÉ",1,0)))) -> 0 | KS28: =$J28*KR28 -> 0 | KT28: =$K28*KR$28 -> 0 | KU28: =IF(AND(KU$7="EN COURS",SUM(KU$56:KU$79)>0),1,IF(KU$7="TERMINÉ",1,IF(AND(KU$7="EN COURS SAUF GAZ",SUM(KU$56:KU$79)>0),1,IF(KU$7="NON RÉALISÉ FACTURÉ",1,0)))) -> 0 | KV28: =$J28*KU28 -> 0 | KW28: =$K28*KU$28 -> 0 | KX28: =IF(AND(KX$7="EN COURS",SUM(KX$56:KX$79)>0),1,IF(KX$7="TERMINÉ",1,IF(AND(KX$7="EN COURS SAUF GAZ",SUM(KX$56:KX$79)>0),1,IF(KX$7="NON RÉALISÉ FACTURÉ",1,0)))) -> 0 | KY28: =$J28*KX28 -> 0 | KZ28: =$K28*KX$28 -> 0 | LA28: =IF(AND(LA$7="EN COURS",SUM(LA$56:LA$79)>0),1,IF(LA$7="TERMINÉ",1,IF(AND(LA$7="EN COURS SAUF GAZ",SUM(LA$56:LA$79)>0),1,IF(LA$7="NON RÉALISÉ FACTURÉ",1,0)))) -> 0 | LB28: =$J28*LA28 -> 0 | LC28: =$K28*LA$28 -> 0 | LD28: =IF(AND(LD$7="EN COURS",SUM(LD$56:LD$79)>0),1,IF(LD$7="TERMINÉ",1,IF(AND(LD$7="EN COURS SAUF GAZ",SUM(LD$56:LD$79)>0),1,IF(LD$7="NON RÉALISÉ FACTURÉ",1,0)))) -> 0 | LE28: =$J28*LD28 -> 0 | LF28: =$K28*LD$28 -> 0 | LG28: =IF(AND(LG$7="EN COURS",SUM(LG$56:LG$79)>0),1,IF(LG$7="TERMINÉ",1,IF(AND(LG$7="EN COURS SAUF GAZ",SUM(LG$56:LG$79)>0),1,IF(LG$7="NON RÉALISÉ FACTURÉ",1,0)))) -> 0 | LH28: =$J28*LG28 -> 0 | LI28: =$K28*LG$28 -> 0 | LJ28: =IF(AND(LJ$7="EN COURS",SUM(LJ$56:LJ$79)>0),1,IF(LJ$7="TERMINÉ",1,IF(AND(LJ$7="EN COURS SAUF GAZ",SUM(LJ$56:LJ$79)>0),1,IF(LJ$7="NON RÉALISÉ FACTURÉ",1,0)))) -> 0 | LK28: =$J28*LJ28 -> 0 | LL28: =$K28*LJ$28 -> 0 | LM28: =IF(AND(LM$7="EN COURS",SUM(LM$56:LM$79)>0),1,IF(LM$7="TERMINÉ",1,IF(AND(LM$7="EN COURS SAUF GAZ",SUM(LM$56:LM$79)>0),1,IF(LM$7="NON RÉALISÉ FACTURÉ",1,0)))) -> 0 | LN28: =$J28*LM28 -> 0 | LO28: =$K28*LM$28 -> 0 | LP28: =IF(AND(LP$7="EN COURS",SUM(LP$56:LP$79)>0),1,IF(LP$7="TERMINÉ",1,IF(AND(LP$7="EN COURS SAUF GAZ",SUM(LP$56:LP$79)>0),1,IF(LP$7="NON RÉALISÉ FACTURÉ",1,0)))) -> 0 | LQ28: =$J28*LP28 -> 0 | LR28: =$K28*LP$28 -> 0 | LS28: =IF(AND(LS$7="EN COURS",SUM(LS$56:LS$79)>0),1,IF(LS$7="TERMINÉ",1,IF(AND(LS$7="EN COURS SAUF GAZ",SUM(LS$56:LS$79)>0),1,IF(LS$7="NON RÉALISÉ FACTURÉ",1,0)))) -> 0 | LT28: =$J28*LS28 -> 0 | LU28: =$K28*LS$28 -> 0 | LV28: =IF(AND(LV$7="EN COURS",SUM(LV$56:LV$79)>0),1,IF(LV$7="TERMINÉ",1,IF(AND(LV$7="EN COURS SAUF GAZ",SUM(LV$56:LV$79)>0),1,IF(LV$7="NON RÉALISÉ FACTURÉ",1,0)))) -> 0 | LW28: =$J28*LV28 -> 0 | LX28: =$K28*LV$28 -> 0 | LY28: =IF(AND(LY$7="EN COURS",SUM(LY$56:LY$79)>0),1,IF(LY$7="TERMINÉ",1,IF(AND(LY$7="EN COURS SAUF GAZ",SUM(LY$56:LY$79)>0),1,IF(LY$7="NON RÉALISÉ FACTURÉ",1,0)))) -> 0 | LZ28: =$J28*LY28 -> 0 | MA28: =$K28*LY$28 -> 0 | MB28: =IF(AND(MB$7="EN COURS",SUM(MB$56:MB$79)>0),1,IF(MB$7="TERMINÉ",1,IF(AND(MB$7="EN COURS SAUF GAZ",SUM(MB$56:MB$79)>0),1,IF(MB$7="NON RÉALISÉ FACTURÉ",1,0)))) -> 0 | MC28: =$J28*MB28 -> 0 | MD28: =$K28*MB$28 -> 0 | ME28: =IF(AND(ME$7="EN COURS",SUM(ME$56:ME$79)>0),1,IF(ME$7="TERMINÉ",1,IF(AND(ME$7="EN COURS SAUF GAZ",SUM(ME$56:ME$79)>0),1,IF(ME$7="NON RÉALISÉ FACTURÉ",1,0)))) -> 0 | MF28: =$J28*ME28 -> 0 | MG28: =$K28*ME$28 -> 0 | MH28: =IF(AND(MH$7="EN COURS",SUM(MH$56:MH$79)>0),1,IF(MH$7="TERMINÉ",1,IF(AND(MH$7="EN COURS SAUF GAZ",SUM(MH$56:MH$79)>0),1,IF(MH$7="NON RÉALISÉ FACTURÉ",1,0)))) -> 0 | MI28: =$J28*MH28 -> 0 | MJ28: =$K28*MH$28 -> 0 | MK28: =IF(AND(MK$7="EN COURS",SUM(MK$56:MK$79)>0),1,IF(MK$7="TERMINÉ",1,IF(AND(MK$7="EN COURS SAUF GAZ",SUM(MK$56:MK$79)>0),1,IF(MK$7="NON RÉALISÉ FACTURÉ",1,0)))) -> 0 | ML28: =$J28*MK28 -> 0 | MM28: =$K28*MK$28 -> 0 | MN28: =IF(AND(MN$7="EN COURS",SUM(MN$56:MN$79)>0),1,IF(MN$7="TERMINÉ",1,IF(AND(MN$7="EN COURS SAUF GAZ",SUM(MN$56:MN$79)>0),1,IF(MN$7="NON RÉALISÉ FACTURÉ",1,0)))) -> 0 | MO28: =$J28*MN28 -> 0 | MP28: =$K28*MN$28 -> 0
A29: Dépose 1 évier (HE) = | B29: =B56 -> 40 | E29: 13 | F29: =F56 -> 28 | H29: =H$56 -> 12 | I29: cps | J29: =((0.19+0.06)*112)/28 -> 1 | M29: =(0.33+0.64)*12/40 -> 0.291 | N29: =M29*40 -> 11.64 | Q29: 11.64 | S29: =S56 -> 0 | T29: 0 | U29: =$M29*S29 -> 0 | V29: =V56 -> 1 | W29: 1 | X29: =$M29*V29 -> 0.291 | Y29: =Y56 -> 1 | Z29: 1 | AA29: =$M29*Y29 -> 0.291 | AB29: =AB56 -> 1 | AC29: 1 | AD29: =$M29*AB29 -> 0.291 | AE29: =AE56 -> 0 | AF29: 0 | AG29: =$M29*AE29 -> 0 | AH29: =AH56 -> 0 | AI29: 0 | AJ29: =$M29*AH29 -> 0 | AK29: =AK56 -> 0 | AL29: 0 | AM29: =$M29*AK29 -> 0 | AN29: =AN56 -> 0 | AO29: 0 | AP29: =$M29*AN29 -> 0 | AQ29: =AQ56 -> 1 | AR29: 1 | AS29: =$M29*AQ29 -> 0.291 | AT29: =AT56 -> 0 | AU29: 0 | AV29: =$M29*AT29 -> 0 | AW29: =AW56 -> 0 | AX29: 0 | AY29: =$M29*AW29 -> 0 | AZ29: =AZ56 -> 0 | BA29: 0 | BB29: =$M29*AZ29 -> 0 | BC29: =BC56 -> 0 | BD29: 0 | BE29: =$M29*BC29 -> 0 | BF29: =BF56 -> 1 | BG29: 1 | BH29: =$M29*BF29 -> 0.291 | BI29: =BI56 -> 0 | BJ29: 0 | BK29: =$M29*BI29 -> 0 | BL29: =BL56 -> 0 | BM29: 0 | BN29: =$M29*BL29 -> 0 | BO29: =BO56 -> 0 | BP29: 0 | BQ29: =$M29*BO29 -> 0 | BR29: =BR56 -> 0 | BS29: 0 | BT29: =$M29*BR29 -> 0 | BU29: =BU56 -> 0 | BV29: 0 | BW29: =$M29*BU29 -> 0 | BX29: =BX56 -> 0 | BY29: 0 | BZ29: =$M29*BX29 -> 0 | CA29: =CA56 -> 1 | CB29: 1 | CC29: =$M29*CA29 -> 0.291 | CD29: =CD56 -> 1 | CE29: 1 | CF29: =$M29*CD29 -> 0.291 | CG29: =CG56 -> 1 | CH29: 1 | CI29: =$M29*CG29 -> 0.291 | CJ29: =CJ56 -> 0 | CK29: 0 | CL29: =$M29*CJ29 -> 0 | CM29: =CM56 -> 1 | CN29: 1 | CO29: =$M29*CM29 -> 0.291 | CP29: =CP56 -> 0 | CQ29: 0 | CR29: =$M29*CP29 -> 0 | CS29: =CS56 -> 0 | CT29: 0 | CU29: =$M29*CS29 -> 0 | CV29: =CV56 -> 0 | CW29: 0 | CX29: =$M29*CV29 -> 0 | CY29: =CY56 -> 0 | CZ29: 0 | DA29: =$M29*CY29 -> 0 | DB29: =DB56 -> 0 | DC29: 0 | DD29: =$M29*DB29 -> 0 | DE29: =DE56 -> 0 | DF29: 0 | DG29: =$M29*DE29 -> 0 | DH29: =DH56 -> 1 | DI29: 1 | DJ29: =$M29*DH29 -> 0.291 | DK29: =DK56 -> 0 | DL29: 0 | DM29: =$M29*DK29 -> 0 | DN29: =DN56 -> 0 | DO29: 0 | DP29: =$M29*DN29 -> 0 | DQ29: =DQ56 -> 1 | DR29: 1 | DS29: =$M29*DQ29 -> 0.291 | DT29: =DT56 -> 0 | DU29: 0 | DV29: =$M29*DT29 -> 0 | DW29: =DW56 -> 0 | DX29: 0 | DY29: =$M29*DW29 -> 0 | DZ29: =DZ56 -> 0 | EA29: 0 | EB29: =$M29*DZ29 -> 0 | EC29: =EC56 -> 0 | ED29: 0 | EE29: =$M29*EC29 -> 0 | EF29: =EF56 -> 0 | EG29: 0 | EH29: =$M29*EF29 -> 0 | EI29: =EI56 -> 1 | EJ29: 1 | EK29: =$M29*EI29 -> 0.291 | EL29: =EL56 -> 0 | EM29: 0 | EN29: =$M29*EL29 -> 0 | EO29: =EO56 -> 0 | EP29: 0 | EQ29: =$M29*EO29 -> 0 | ER29: =ER56 -> 0 | ES29: 0 | ET29: =$M29*ER29 -> 0 | EU29: =EU56 -> 0 | EV29: 0 | EW29: =$M29*EU29 -> 0 | EX29: =EX56 -> 0 | EY29: 0 | EZ29: =$M29*EX29 -> 0 | FA29: =FA56 -> 0 | FB29: 0 | FC29: =$M29*FA29 -> 0 | FD29: =FD56 -> 0 | FE29: 0 | FF29: =$M29*FD29 -> 0 | FG29: =FG56 -> 0 | FH29: 0 | FI29: =$M29*FG29 -> 0 | FJ29: =FJ56 -> 0 | FK29: 0 | FL29: =$M29*FJ29 -> 0 | FM29: =FM56 -> 0 | FN29: 0 | FO29: =$M29*FM29 -> 0 | FP29: =FP56 -> 0 | FQ29: 0 | FR29: =$M29*FP29 -> 0 | FS29: =FS56 -> 1 | FT29: 1 | FU29: =$M29*FS29 -> 0.291 | FV29: =FV56 -> 0 | FW29: 0 | FX29: =$M29*FV29 -> 0 | FY29: =FY56 -> 0 | FZ29: 0 | GA29: =$M29*FY29 -> 0 | GB29: =GB56 -> 0 | GC29: 0 | GD29: =$M29*GB29 -> 0 | GE29: =GE56 -> 0 | GF29: 0 | GG29: =$M29*GE29 -> 0 | GH29: =GH56 -> 0 | GI29: 0 | GJ29: =$M29*GH29 -> 0 | GK29: =GK56 -> 0 | GL29: 0 | GM29: =$M29*GK29 -> 0 | GN29: =GN56 -> 0 | GO29: 0 | GP29: =$M29*GN29 -> 0 | GQ29: =GQ56 -> 0 | GR29: 0 | GS29: =$M29*GQ29 -> 0 | GT29: =GT56 -> 0 | GU29: 0 | GV29: =$M29*GT29 -> 0 | GW29: =GW56 -> 0 | GX29: 0 | GY29: =$M29*GW29 -> 0 | GZ29: =GZ56 -> 0 | HA29: 0 | HB29: =$M29*GZ29 -> 0 | HC29: =HC56 -> 0 | HD29: 0 | HE29: =$M29*HC29 -> 0 | HF29: =HF56 -> 0 | HG29: 0 | HH29: =$M29*HF29 -> 0 | HI29: =HI56 -> 0 | HJ29: 0 | HK29: =$M29*HI29 -> 0 | HL29: =HL56 -> 0 | HM29: 0 | HN29: =$M29*HL29 -> 0 | HO29: =HO56 -> 0 | HP29: 0 | HQ29: =$M29*HO29 -> 0 | HR29: =HR56 -> 0 | HS29: 0 | HT29: =$M29*HR29 -> 0 | HU29: =HU56 -> 0 | HV29: 0 | HW29: =$M29*HU29 -> 0 | HX29: =HX56 -> 0 | HY29: 0 | HZ29: =$M29*HX29 -> 0 | IA29: =IA56 -> 0 | IB29: 0 | IC29: =$M29*IA29 -> 0 | ID29: =ID56 -> 0 | IE29: 0 | IF29: =$M29*ID29 -> 0 | IG29: =IG56 -> 0 | IH29: 0 | II29: =$M29*IG29 -> 0 | IJ29: =IJ56 -> 0 | IK29: 0 | IL29: =$M29*IJ29 -> 0 | IM29: =IM56 -> 0 | IN29: 0 | IO29: =$M29*IM29 -> 0 | IP29: =IP56 -> 0 | IQ29: 0 | IR29: =$M29*IP29 -> 0 | IS29: =IS56 -> 0 | IT29: 0 | IU29: =$M29*IS29 -> 0 | IV29: =IV56 -> 0 | IW29: 0 | IX29: =$M29*IV29 -> 0 | IY29: =IY56 -> 0 | IZ29: 0 | JA29: =$M29*IY29 -> 0 | JB29: =JB56 -> 0 | JC29: 0 | JD29: =$M29*JB29 -> 0 | JE29: =JE56 -> 0 | JF29: 0 | JG29: =$M29*JE29 -> 0 | JH29: =JH56 -> 0 | JI29: 0 | JJ29: =$M29*JH29 -> 0 | JK29: =JK56 -> 0 | JL29: 0 | JM29: =$M29*JK29 -> 0 | JN29: =JN56 -> 0 | JO29: 0 | JP29: =$M29*JN29 -> 0 | JQ29: =JQ56 -> 0 | JR29: 0 | JS29: =$M29*JQ29 -> 0 | JT29: =JT56 -> 0 | JU29: 0 | JV29: =$M29*JT29 -> 0 | JW29: =JW56 -> 0 | JX29: 0 | JY29: =$M29*JW29 -> 0 | JZ29: =JZ56 -> 0 | KA29: 0 | KB29: =$M29*JZ29 -> 0 | KC29: =KC56 -> 0 | KD29: 0 | KE29: =$M29*KC29 -> 0 | KF29: =KF56 -> 0 | KG29: 0 | KH29: =$M29*KF29 -> 0 | KI29: =KI56 -> 0 | KJ29: 0 | KK29: =$M29*KI29 -> 0 | KL29: =KL56 -> 0 | KM29: 0 | KN29: =$M29*KL29 -> 0 | KO29: =KO56 -> 0 | KP29: 0 | KQ29: =$M29*KO29 -> 0 | KR29: =KR56 -> 0 | KS29: 0 | KT29: =$M29*KR29 -> 0 | KU29: =KU56 -> 0 | KV29: 0 | KW29: =$M29*KU29 -> 0 | KX29: =KX56 -> 0 | KY29: 0 | KZ29: =$M29*KX29 -> 0 | LA29: =LA56 -> 0 | LB29: 0 | LC29: =$M29*LA29 -> 0 | LD29: =LD56 -> 0 | LE29: 0 | LF29: =$M29*LD29 -> 0 | LG29: =LG56 -> 0 | LH29: 0 | LI29: =$M29*LG29 -> 0 | LJ29: =LJ56 -> 0 | LK29: 0 | LL29: =$M29*LJ29 -> 0 | LM29: =LM56 -> 0 | LN29: 0 | LO29: =$M29*LM29 -> 0 | LP29: =LP56 -> 0 | LQ29: 0 | LR29: =$M29*LP29 -> 0 | LS29: =LS56 -> 0 | LT29: 0 | LU29: =$M29*LS29 -> 0 | LV29: =LV56 -> 0 | LW29: 0 | LX29: =$M29*LV29 -> 0 | LY29: =LY56 -> 0 | LZ29: 0 | MA29: =$M29*LY29 -> 0 | MB29: =MB56 -> 0 | MC29: 0 | MD29: =$M29*MB29 -> 0 | ME29: =ME56 -> 0 | MF29: 0 | MG29: =$M29*ME29 -> 0 | MH29: =MH56 -> 0 | MI29: 0 | MJ29: =$M29*MH29 -> 0 | MK29: =MK56 -> 0 | ML29: 0 | MM29: =$M29*MK29 -> 0 | MN29: =MN56 -> 0 | MO29: 0 | MP29: =$M29*MN29 -> 0
A30: Dépose 1 WC (HE) = | B30: =B59 -> 50 | E30: 16 | F30: =F59 -> 23 | H30: =H$59 -> 27 | I30: cps | J30: =(112*(0.07+0.05))/23 -> 0.5843478261 | M30: =(0.33+0.64)*(11+16)/50 -> 0.5238 | N30: =M30*50 -> 26.19 | Q30: 26.19 | S30: =S59 -> 0 | T30: 0 | U30: =$M30*S30 -> 0 | V30: =V59 -> 0 | W30: 0 | X30: =$M30*V30 -> 0 | Y30: =Y59 -> 1 | Z30: 0.5843478261 | AA30: =$M30*Y30 -> 0.5238 | AB30: =AB59 -> 0 | AC30: 0 | AD30: =$M30*AB30 -> 0 | AE30: =AE59 -> 0 | AF30: 0 | AG30: =$M30*AE30 -> 0 | AH30: =AH59 -> 0 | AI30: 0 | AJ30: =$M30*AH30 -> 0 | AK30: =AK59 -> 0 | AL30: 0 | AM30: =$M30*AK30 -> 0 | AN30: =AN59 -> 0 | AO30: 0 | AP30: =$M30*AN30 -> 0 | AQ30: =AQ59 -> 0 | AR30: 0 | AS30: =$M30*AQ30 -> 0 | AT30: =AT59 -> 0 | AU30: 0 | AV30: =$M30*AT30 -> 0 | AW30: =AW59 -> 0 | AX30: 0 | AY30: =$M30*AW30 -> 0 | AZ30: =AZ59 -> 0 | BA30: 0 | BB30: =$M30*AZ30 -> 0 | BC30: =BC59 -> 0 | BD30: 0 | BE30: =$M30*BC30 -> 0 | BF30: =BF59 -> 2 | BG30: 1.168695652 | BH30: =$M30*BF30 -> 1.0476 | BI30: =BI59 -> 0 | BJ30: 0 | BK30: =$M30*BI30 -> 0 | BL30: =BL59 -> 0 | BM30: 0 | BN30: =$M30*BL30 -> 0 | BO30: =BO59 -> 0 | BP30: 0 | BQ30: =$M30*BO30 -> 0 | BR30: =BR59 -> 0 | BS30: 0 | BT30: =$M30*BR30 -> 0 | BU30: =BU59 -> 0 | BV30: 0 | BW30: =$M30*BU30 -> 0 | BX30: =BX59 -> 0 | BY30: 0 | BZ30: =$M30*BX30 -> 0 | CA30: =CA59 -> 1 | CB30: 0.5843478261 | CC30: =$M30*CA30 -> 0.5238 | CD30: =CD59 -> 1 | CE30: 0.5843478261 | CF30: =$M30*CD30 -> 0.5238 | CG30: =CG59 -> 1 | CH30: 0.5843478261 | CI30: =$M30*CG30 -> 0.5238 | CJ30: =CJ59 -> 1 | CK30: 0.5843478261 | CL30: =$M30*CJ30 -> 0.5238 | CM30: =CM59 -> 1 | CN30: 0.5843478261 | CO30: =$M30*CM30 -> 0.5238 | CP30: =CP59 -> 0 | CQ30: 0 | CR30: =$M30*CP30 -> 0 | CS30: =CS59 -> 1 | CT30: 0.5843478261 | CU30: =$M30*CS30 -> 0.5238 | CV30: =CV59 -> 1 | CW30: 0.5843478261 | CX30: =$M30*CV30 -> 0.5238 | CY30: =CY59 -> 1 | CZ30: 0.5843478261 | DA30: =$M30*CY30 -> 0.5238 | DB30: =DB59 -> 0 | DC30: 0 | DD30: =$M30*DB30 -> 0 | DE30: =DE59 -> 1 | DF30: 0.5843478261 | DG30: =$M30*DE30 -> 0.5238 | DH30: =DH59 -> 0 | DI30: 0 | DJ30: =$M30*DH30 -> 0 | DK30: =DK59 -> 0 | DL30: 0 | DM30: =$M30*DK30 -> 0 | DN30: =DN59 -> 0 | DO30: 0 | DP30: =$M30*DN30 -> 0 | DQ30: =DQ59 -> 0 | DR30: 0 | DS30: =$M30*DQ30 -> 0 | DT30: =DT59 -> 0 | DU30: 0 | DV30: =$M30*DT30 -> 0 | DW30: =DW59 -> 0 | DX30: 0 | DY30: =$M30*DW30 -> 0 | DZ30: =DZ59 -> 0 | EA30: 0 | EB30: =$M30*DZ30 -> 0 | EC30: =EC59 -> 0 | ED30: 0 | EE30: =$M30*EC30 -> 0 | EF30: =EF59 -> 0 | EG30: 0 | EH30: =$M30*EF30 -> 0 | EI30: =EI59 -> 1 | EJ30: 0.5843478261 | EK30: =$M30*EI30 -> 0.5238 | EL30: =EL59 -> 0 | EM30: 0 | EN30: =$M30*EL30 -> 0 | EO30: =EO59 -> 0 | EP30: 0 | EQ30: =$M30*EO30 -> 0 | ER30: =ER59 -> 0 | ES30: 0 | ET30: =$M30*ER30 -> 0 | EU30: =EU59 -> 0 | EV30: 0 | EW30: =$M30*EU30 -> 0 | EX30: =EX59 -> 0 | EY30: 0 | EZ30: =$M30*EX30 -> 0 | FA30: =FA59 -> 0 | FB30: 0 | FC30: =$M30*FA30 -> 0 | FD30: =FD59 -> 0 | FE30: 0 | FF30: =$M30*FD30 -> 0 | FG30: =FG59 -> 0 | FH30: 0 | FI30: =$M30*FG30 -> 0 | FJ30: =FJ59 -> 1 | FK30: 0.5843478261 | FL30: =$M30*FJ30 -> 0.5238 | FM30: =FM59 -> 0 | FN30: 0 | FO30: =$M30*FM30 -> 0 | FP30: =FP59 -> 0 | FQ30: 0 | FR30: =$M30*FP30 -> 0 | FS30: =FS59 -> 1 | FT30: 0.5843478261 | FU30: =$M30*FS30 -> 0.5238 | FV30: =FV59 -> 1 | FW30: 0.5843478261 | FX30: =$M30*FV30 -> 0.5238 | FY30: =FY59 -> 0 | FZ30: 0 | GA30: =$M30*FY30 -> 0 | GB30: =GB59 -> 0 | GC30: 0 | GD30: =$M30*GB30 -> 0 | GE30: =GE59 -> 0 | GF30: 0 | GG30: =$M30*GE30 -> 0 | GH30: =GH59 -> 0 | GI30: 0 | GJ30: =$M30*GH30 -> 0 | GK30: =GK59 -> 0 | GL30: 0 | GM30: =$M30*GK30 -> 0 | GN30: =GN59 -> 0 | GO30: 0 | GP30: =$M30*GN30 -> 0 | GQ30: =GQ59 -> 0 | GR30: 0 | GS30: =$M30*GQ30 -> 0 | GT30: =GT59 -> 0 | GU30: 0 | GV30: =$M30*GT30 -> 0 | GW30: =GW59 -> 0 | GX30: 0 | GY30: =$M30*GW30 -> 0 | GZ30: =GZ59 -> 0 | HA30: 0 | HB30: =$M30*GZ30 -> 0 | HC30: =HC59 -> 0 | HD30: 0 | HE30: =$M30*HC30 -> 0 | HF30: =HF59 -> 0 | HG30: 0 | HH30: =$M30*HF30 -> 0 | HI30: =HI59 -> 0 | HJ30: 0 | HK30: =$M30*HI30 -> 0 | HL30: =HL59 -> 0 | HM30: 0 | HN30: =$M30*HL30 -> 0 | HO30: =HO59 -> 0 | HP30: 0 | HQ30: =$M30*HO30 -> 0 | HR30: =HR59 -> 0 | HS30: 0 | HT30: =$M30*HR30 -> 0 | HU30: =HU59 -> 0 | HV30: 0 | HW30: =$M30*HU30 -> 0 | HX30: =HX59 -> 0 | HY30: 0 | HZ30: =$M30*HX30 -> 0 | IA30: =IA59 -> 0 | IB30: 0 | IC30: =$M30*IA30 -> 0 | ID30: =ID59 -> 0 | IE30: 0 | IF30: =$M30*ID30 -> 0 | IG30: =IG59 -> 0 | IH30: 0 | II30: =$M30*IG30 -> 0 | IJ30: =IJ59 -> 0 | IK30: 0 | IL30: =$M30*IJ30 -> 0 | IM30: =IM59 -> 0 | IN30: 0 | IO30: =$M30*IM30 -> 0 | IP30: =IP59 -> 0 | IQ30: 0 | IR30: =$M30*IP30 -> 0 | IS30: =IS59 -> 0 | IT30: 0 | IU30: =$M30*IS30 -> 0 | IV30: =IV59 -> 0 | IW30: 0 | IX30: =$M30*IV30 -> 0 | IY30: =IY59 -> 0 | IZ30: 0 | JA30: =$M30*IY30 -> 0 | JB30: =JB59 -> 0 | JC30: 0 | JD30: =$M30*JB30 -> 0 | JE30: =JE59 -> 0 | JF30: 0 | JG30: =$M30*JE30 -> 0 | JH30: =JH59 -> 0 | JI30: 0 | JJ30: =$M30*JH30 -> 0 | JK30: =JK59 -> 0 | JL30: 0 | JM30: =$M30*JK30 -> 0 | JN30: =JN59 -> 0 | JO30: 0 | JP30: =$M30*JN30 -> 0 | JQ30: =JQ59 -> 0 | JR30: 0 | JS30: =$M30*JQ30 -> 0 | JT30: =JT59 -> 0 | JU30: 0 | JV30: =$M30*JT30 -> 0 | JW30: =JW59 -> 0 | JX30: 0 | JY30: =$M30*JW30 -> 0 | JZ30: =JZ59 -> 0 | KA30: 0 | KB30: =$M30*JZ30 -> 0 | KC30: =KC59 -> 0 | KD30: 0 | KE30: =$M30*KC30 -> 0 | KF30: =KF59 -> 0 | KG30: 0 | KH30: =$M30*KF30 -> 0 | KI30: =KI59 -> 0 | KJ30: 0 | KK30: =$M30*KI30 -> 0 | KL30: =KL59 -> 0 | KM30: 0 | KN30: =$M30*KL30 -> 0 | KO30: =KO59 -> 0 | KP30: 0 | KQ30: =$M30*KO30 -> 0 | KR30: =KR59 -> 0 | KS30: 0 | KT30: =$M30*KR30 -> 0 | KU30: =KU59 -> 0 | KV30: 0 | KW30: =$M30*KU30 -> 0 | KX30: =KX59 -> 0 | KY30: 0 | KZ30: =$M30*KX30 -> 0 | LA30: =LA59 -> 0 | LB30: 0 | LC30: =$M30*LA30 -> 0 | LD30: =LD59 -> 0 | LE30: 0 | LF30: =$M30*LD30 -> 0 | LG30: =LG59 -> 0 | LH30: 0 | LI30: =$M30*LG30 -> 0 | LJ30: =LJ59 -> 0 | LK30: 0 | LL30: =$M30*LJ30 -> 0 | LM30: =LM59 -> 0 | LN30: 0 | LO30: =$M30*LM30 -> 0 | LP30: =LP59 -> 0 | LQ30: 0 | LR30: =$M30*LP30 -> 0 | LS30: =LS59 -> 0 | LT30: 0 | LU30: =$M30*LS30 -> 0 | LV30: =LV59 -> 0 | LW30: 0 | LX30: =$M30*LV30 -> 0 | LY30: =LY59 -> 0 | LZ30: 0 | MA30: =$M30*LY30 -> 0 | MB30: =MB59 -> 0 | MC30: 0 | MD30: =$M30*MB30 -> 0 | ME30: =ME59 -> 0 | MF30: 0 | MG30: =$M30*ME30 -> 0 | MH30: =MH59 -> 0 | MI30: 0 | MJ30: =$M30*MH30 -> 0 | MK30: =MK59 -> 0 | ML30: 0 | MM30: =$M30*MK30 -> 0 | MN30: =MN59 -> 0 | MO30: 0 | MP30: =$M30*MN30 -> 0
A31: Dépose 1 lavabo (HE) = | B31: =B60 -> 90 | E31: 36 | F31: =F60 -> 56 | H31: =H$60 -> 34 | I31: cps | J31: =(112*(0.18+0.13))/56 -> 0.62 | M31: =(0.33+0.64)*(15+19)/90 -> 0.3664444444 | N31: =M31*90 -> 32.98 | Q31: 32.98 | S31: =S60 -> 2 | T31: 1.24 | U31: =$M31*S31 -> 0.7328888889 | V31: =V60 -> 2 | W31: 1.24 | X31: =$M31*V31 -> 0.7328888889 | Y31: =Y60 -> 2 | Z31: 1.24 | AA31: =$M31*Y31 -> 0.7328888889 | AB31: =AB60 -> 2 | AC31: 1.24 | AD31: =$M31*AB31 -> 0.7328888889 | AE31: =AE60 -> 1 | AF31: 0.62 | AG31: =$M31*AE31 -> 0.3664444444 | AH31: =AH60 -> 0 | AI31: 0 | AJ31: =$M31*AH31 -> 0 | AK31: =AK60 -> 1 | AL31: 0.62 | AM31: =$M31*AK31 -> 0.3664444444 | AN31: =AN60 -> 0 | AO31: 0 | AP31: =$M31*AN31 -> 0 | AQ31: =AQ60 -> 0 | AR31: 0 | AS31: =$M31*AQ31 -> 0 | AT31: =AT60 -> 0 | AU31: 0 | AV31: =$M31*AT31 -> 0 | AW31: =AW60 -> 0 | AX31: 0 | AY31: =$M31*AW31 -> 0 | AZ31: =AZ60 -> 2 | BA31: 1.24 | BB31: =$M31*AZ31 -> 0.7328888889 | BC31: =BC60 -> 1 | BD31: 0.62 | BE31: =$M31*BC31 -> 0.3664444444 | BF31: =BF60 -> 1 | BG31: 0.62 | BH31: =$M31*BF31 -> 0.3664444444 | BI31: =BI60 -> 0 | BJ31: 0 | BK31: =$M31*BI31 -> 0 | BL31: =BL60 -> 0 | BM31: 0 | BN31: =$M31*BL31 -> 0 | BO31: =BO60 -> 0 | BP31: 0 | BQ31: =$M31*BO31 -> 0 | BR31: =BR60 -> 2 | BS31: 1.24 | BT31: =$M31*BR31 -> 0.7328888889 | BU31: =BU60 -> 1 | BV31: 0.62 | BW31: =$M31*BU31 -> 0.3664444444 | BX31: =BX60 -> 0 | BY31: 0 | BZ31: =$M31*BX31 -> 0 | CA31: =CA60 -> 2 | CB31: 1.24 | CC31: =$M31*CA31 -> 0.7328888889 | CD31: =CD60 -> 2 | CE31: 1.24 | CF31: =$M31*CD31 -> 0.7328888889 | CG31: =CG60 -> 1 | CH31: 0.62 | CI31: =$M31*CG31 -> 0.3664444444 | CJ31: =CJ60 -> 2 | CK31: 1.24 | CL31: =$M31*CJ31 -> 0.7328888889 | CM31: =CM60 -> 1 | CN31: 0.62 | CO31: =$M31*CM31 -> 0.3664444444 | CP31: =CP60 -> 0 | CQ31: 0 | CR31: =$M31*CP31 -> 0 | CS31: =CS60 -> 0 | CT31: 0 | CU31: =$M31*CS31 -> 0 | CV31: =CV60 -> 0 | CW31: 0 | CX31: =$M31*CV31 -> 0 | CY31: =CY60 -> 2 | CZ31: 1.24 | DA31: =$M31*CY31 -> 0.7328888889 | DB31: =DB60 -> 0 | DC31: 0 | DD31: =$M31*DB31 -> 0 | DE31: =DE60 -> 0 | DF31: 0 | DG31: =$M31*DE31 -> 0 | DH31: =DH60 -> 1 | DI31: 0.62 | DJ31: =$M31*DH31 -> 0.3664444444 | DK31: =DK60 -> 2 | DL31: 1.24 | DM31: =$M31*DK31 -> 0.7328888889 | DN31: =DN60 -> 1 | DO31: 0.62 | DP31: =$M31*DN31 -> 0.3664444444 | DQ31: =DQ60 -> 1 | DR31: 0.62 | DS31: =$M31*DQ31 -> 0.3664444444 | DT31: =DT60 -> 1 | DU31: 0.62 | DV31: =$M31*DT31 -> 0.3664444444 | DW31: =DW60 -> 0 | DX31: 0 | DY31: =$M31*DW31 -> 0 | DZ31: =DZ60 -> 0 | EA31: 0 | EB31: =$M31*DZ31 -> 0 | EC31: =EC60 -> 0 | ED31: 0 | EE31: =$M31*EC31 -> 0 | EF31: =EF60 -> 0 | EG31: 0 | EH31: =$M31*EF31 -> 0 | EI31: =EI60 -> 2 | EJ31: 1.24 | EK31: =$M31*EI31 -> 0.7328888889 | EL31: =EL60 -> 0 | EM31: 0 | EN31: =$M31*EL31 -> 0 | EO31: =EO60 -> 0 | EP31: 0 | EQ31: =$M31*EO31 -> 0 | ER31: =ER60 -> 0 | ES31: 0 | ET31: =$M31*ER31 -> 0 | EU31: =EU60 -> 0 | EV31: 0 | EW31: =$M31*EU31 -> 0 | EX31: =EX60 -> 0 | EY31: 0 | EZ31: =$M31*EX31 -> 0 | FA31: =FA60 -> 0 | FB31: 0 | FC31: =$M31*FA31 -> 0 | FD31: =FD60 -> 0 | FE31: 0 | FF31: =$M31*FD31 -> 0 | FG31: =FG60 -> 0 | FH31: 0 | FI31: =$M31*FG31 -> 0 | FJ31: =FJ60 -> 0 | FK31: 0 | FL31: =$M31*FJ31 -> 0 | FM31: =FM60 -> 0 | FN31: 0 | FO31: =$M31*FM31 -> 0 | FP31: =FP60 -> 0 | FQ31: 0 | FR31: =$M31*FP31 -> 0 | FS31: =FS60 -> 1 | FT31: 0.62 | FU31: =$M31*FS31 -> 0.3664444444 | FV31: =FV60 -> 0 | FW31: 0 | FX31: =$M31*FV31 -> 0 | FY31: =FY60 -> 0 | FZ31: 0 | GA31: =$M31*FY31 -> 0 | GB31: =GB60 -> 0 | GC31: 0 | GD31: =$M31*GB31 -> 0 | GE31: =GE60 -> 0 | GF31: 0 | GG31: =$M31*GE31 -> 0 | GH31: =GH60 -> 0 | GI31: 0 | GJ31: =$M31*GH31 -> 0 | GK31: =GK60 -> 0 | GL31: 0 | GM31: =$M31*GK31 -> 0 | GN31: =GN60 -> 0 | GO31: 0 | GP31: =$M31*GN31 -> 0 | GQ31: =GQ60 -> 0 | GR31: 0 | GS31: =$M31*GQ31 -> 0 | GT31: =GT60 -> 0 | GU31: 0 | GV31: =$M31*GT31 -> 0 | GW31: =GW60 -> 0 | GX31: 0 | GY31: =$M31*GW31 -> 0 | GZ31: =GZ60 -> 0 | HA31: 0 | HB31: =$M31*GZ31 -> 0 | HC31: =HC60 -> 0 | HD31: 0 | HE31: =$M31*HC31 -> 0 | HF31: =HF60 -> 0 | HG31: 0 | HH31: =$M31*HF31 -> 0 | HI31: =HI60 -> 0 | HJ31: 0 | HK31: =$M31*HI31 -> 0 | HL31: =HL60 -> 0 | HM31: 0 | HN31: =$M31*HL31 -> 0 | HO31: =HO60 -> 0 | HP31: 0 | HQ31: =$M31*HO31 -> 0 | HR31: =HR60 -> 0 | HS31: 0 | HT31: =$M31*HR31 -> 0 | HU31: =HU60 -> 0 | HV31: 0 | HW31: =$M31*HU31 -> 0 | HX31: =HX60 -> 0 | HY31: 0 | HZ31: =$M31*HX31 -> 0 | IA31: =IA60 -> 0 | IB31: 0 | IC31: =$M31*IA31 -> 0 | ID31: =ID60 -> 0 | IE31: 0 | IF31: =$M31*ID31 -> 0 | IG31: =IG60 -> 0 | IH31: 0 | II31: =$M31*IG31 -> 0 | IJ31: =IJ60 -> 0 | IK31: 0 | IL31: =$M31*IJ31 -> 0 | IM31: =IM60 -> 0 | IN31: 0 | IO31: =$M31*IM31 -> 0 | IP31: =IP60 -> 0 | IQ31: 0 | IR31: =$M31*IP31 -> 0 | IS31: =IS60 -> 0 | IT31: 0 | IU31: =$M31*IS31 -> 0 | IV31: =IV60 -> 0 | IW31: 0 | IX31: =$M31*IV31 -> 0 | IY31: =IY60 -> 0 | IZ31: 0 | JA31: =$M31*IY31 -> 0 | JB31: =JB60 -> 0 | JC31: 0 | JD31: =$M31*JB31 -> 0 | JE31: =JE60 -> 0 | JF31: 0 | JG31: =$M31*JE31 -> 0 | JH31: =JH60 -> 0 | JI31: 0 | JJ31: =$M31*JH31 -> 0 | JK31: =JK60 -> 0 | JL31: 0 | JM31: =$M31*JK31 -> 0 | JN31: =JN60 -> 0 | JO31: 0 | JP31: =$M31*JN31 -> 0 | JQ31: =JQ60 -> 0 | JR31: 0 | JS31: =$M31*JQ31 -> 0 | JT31: =JT60 -> 0 | JU31: 0 | JV31: =$M31*JT31 -> 0 | JW31: =JW60 -> 0 | JX31: 0 | JY31: =$M31*JW31 -> 0 | JZ31: =JZ60 -> 0 | KA31: 0 | KB31: =$M31*JZ31 -> 0 | KC31: =KC60 -> 0 | KD31: 0 | KE31: =$M31*KC31 -> 0 | KF31: =KF60 -> 0 | KG31: 0 | KH31: =$M31*KF31 -> 0 | KI31: =KI60 -> 0 | KJ31: 0 | KK31: =$M31*KI31 -> 0 | KL31: =KL60 -> 0 | KM31: 0 | KN31: =$M31*KL31 -> 0 | KO31: =KO60 -> 0 | KP31: 0 | KQ31: =$M31*KO31 -> 0 | KR31: =KR60 -> 0 | KS31: 0 | KT31: =$M31*KR31 -> 0 | KU31: =KU60 -> 0 | KV31: 0 | KW31: =$M31*KU31 -> 0 | KX31: =KX60 -> 0 | KY31: 0 | KZ31: =$M31*KX31 -> 0 | LA31: =LA60 -> 0 | LB31: 0 | LC31: =$M31*LA31 -> 0 | LD31: =LD60 -> 0 | LE31: 0 | LF31: =$M31*LD31 -> 0 | LG31: =LG60 -> 0 | LH31: 0 | LI31: =$M31*LG31 -> 0 | LJ31: =LJ60 -> 0 | LK31: 0 | LL31: =$M31*LJ31 -> 0 | LM31: =LM60 -> 0 | LN31: 0 | LO31: =$M31*LM31 -> 0 | LP31: =LP60 -> 0 | LQ31: 0 | LR31: =$M31*LP31 -> 0 | LS31: =LS60 -> 0 | LT31: 0 | LU31: =$M31*LS31 -> 0 | LV31: =LV60 -> 0 | LW31: 0 | LX31: =$M31*LV31 -> 0 | LY31: =LY60 -> 0 | LZ31: 0 | MA31: =$M31*LY31 -> 0 | MB31: =MB60 -> 0 | MC31: 0 | MD31: =$M31*MB31 -> 0 | ME31: =ME60 -> 0 | MF31: 0 | MG31: =$M31*ME31 -> 0 | MH31: =MH60 -> 0 | MI31: 0 | MJ31: =$M31*MH31 -> 0 | MK31: =MK60 -> 0 | ML31: 0 | MM31: =$M31*MK31 -> 0 | MN31: =MN60 -> 0 | MO31: 0 | MP31: =$M31*MN31 -> 0
A32: Dépose 1 baignoire (HE) = | B32: =B64 -> 25 | E32: 5 | F32: =F64 -> 17 | H32: =H$64 -> 8 | I32: cps | J32: =(112*(0.15+0.04))/17 -> 1.251764706 | M32: =(0.33+0.64)*8/25 -> 0.3104 | N32: =M32*25 -> 7.76 | Q32: 7.76 | S32: =S64 -> 0 | T32: 0 | U32: =$M32*S32 -> 0 | V32: =V64 -> 0 | W32: 0 | X32: =$M32*V32 -> 0 | Y32: =Y64 -> 0 | Z32: 0 | AA32: =$M32*Y32 -> 0 | AB32: =AB64 -> 0 | AC32: 0 | AD32: =$M32*AB32 -> 0 | AE32: =AE64 -> 0 | AF32: 0 | AG32: =$M32*AE32 -> 0 | AH32: =AH64 -> 0 | AI32: 0 | AJ32: =$M32*AH32 -> 0 | AK32: =AK64 -> 0 | AL32: 0 | AM32: =$M32*AK32 -> 0 | AN32: =AN64 -> 1 | AO32: 1.251764706 | AP32: =$M32*AN32 -> 0.3104 | AQ32: =AQ64 -> 1 | AR32: 1.251764706 | AS32: =$M32*AQ32 -> 0.3104 | AT32: =AT64 -> 0 | AU32: 0 | AV32: =$M32*AT32 -> 0 | AW32: =AW64 -> 0 | AX32: 0 | AY32: =$M32*AW32 -> 0 | AZ32: =AZ64 -> 0 | BA32: 0 | BB32: =$M32*AZ32 -> 0 | BC32: =BC64 -> 0 | BD32: 0 | BE32: =$M32*BC32 -> 0 | BF32: =BF64 -> 1 | BG32: 1.251764706 | BH32: =$M32*BF32 -> 0.3104 | BI32: =BI64 -> 0 | BJ32: 0 | BK32: =$M32*BI32 -> 0 | BL32: =BL64 -> 0 | BM32: 0 | BN32: =$M32*BL32 -> 0 | BO32: =BO64 -> 0 | BP32: 0 | BQ32: =$M32*BO32 -> 0 | BR32: =BR64 -> 0 | BS32: 0 | BT32: =$M32*BR32 -> 0 | BU32: =BU64 -> 0 | BV32: 0 | BW32: =$M32*BU32 -> 0 | BX32: =BX64 -> 0 | BY32: 0 | BZ32: =$M32*BX32 -> 0 | CA32: =CA64 -> 0 | CB32: 0 | CC32: =$M32*CA32 -> 0 | CD32: =CD64 -> 1 | CE32: 1.251764706 | CF32: =$M32*CD32 -> 0.3104 | CG32: =CG64 -> 0 | CH32: 0 | CI32: =$M32*CG32 -> 0 | CJ32: =CJ64 -> 0 | CK32: 0 | CL32: =$M32*CJ32 -> 0 | CM32: =CM64 -> 0 | CN32: 0 | CO32: =$M32*CM32 -> 0 | CP32: =CP64 -> 0 | CQ32: 0 | CR32: =$M32*CP32 -> 0 | CS32: =CS64 -> 0 | CT32: 0 | CU32: =$M32*CS32 -> 0 | CV32: =CV64 -> 0 | CW32: 0 | CX32: =$M32*CV32 -> 0 | CY32: =CY64 -> 0 | CZ32: 0 | DA32: =$M32*CY32 -> 0 | DB32: =DB64 -> 0 | DC32: 0 | DD32: =$M32*DB32 -> 0 | DE32: =DE64 -> 0 | DF32: 0 | DG32: =$M32*DE32 -> 0 | DH32: =DH64 -> 0 | DI32: 0 | DJ32: =$M32*DH32 -> 0 | DK32: =DK64 -> 0 | DL32: 0 | DM32: =$M32*DK32 -> 0 | DN32: =DN64 -> 0 | DO32: 0 | DP32: =$M32*DN32 -> 0 | DQ32: =DQ64 -> 0 | DR32: 0 | DS32: =$M32*DQ32 -> 0 | DT32: =DT64 -> 0 | DU32: 0 | DV32: =$M32*DT32 -> 0 | DW32: =DW64 -> 0 | DX32: 0 | DY32: =$M32*DW32 -> 0 | DZ32: =DZ64 -> 0 | EA32: 0 | EB32: =$M32*DZ32 -> 0 | EC32: =EC64 -> 0 | ED32: 0 | EE32: =$M32*EC32 -> 0 | EF32: =EF64 -> 0 | EG32: 0 | EH32: =$M32*EF32 -> 0 | EI32: =EI64 -> 1 | EJ32: 1.251764706 | EK32: =$M32*EI32 -> 0.3104 | EL32: =EL64 -> 0 | EM32: 0 | EN32: =$M32*EL32 -> 0 | EO32: =EO64 -> 0 | EP32: 0 | EQ32: =$M32*EO32 -> 0 | ER32: =ER64 -> 0 | ES32: 0 | ET32: =$M32*ER32 -> 0 | EU32: =EU64 -> 0 | EV32: 0 | EW32: =$M32*EU32 -> 0 | EX32: =EX64 -> 0 | EY32: 0 | EZ32: =$M32*EX32 -> 0 | FA32: =FA64 -> 0 | FB32: 0 | FC32: =$M32*FA32 -> 0 | FD32: =FD64 -> 0 | FE32: 0 | FF32: =$M32*FD32 -> 0 | FG32: =FG64 -> 0 | FH32: 0 | FI32: =$M32*FG32 -> 0 | FJ32: =FJ64 -> 0 | FK32: 0 | FL32: =$M32*FJ32 -> 0 | FM32: =FM64 -> 0 | FN32: 0 | FO32: =$M32*FM32 -> 0 | FP32: =FP64 -> 0 | FQ32: 0 | FR32: =$M32*FP32 -> 0 | FS32: =FS64 -> 0 | FT32: 0 | FU32: =$M32*FS32 -> 0 | FV32: =FV64 -> 0 | FW32: 0 | FX32: =$M32*FV32 -> 0 | FY32: =FY64 -> 0 | FZ32: 0 | GA32: =$M32*FY32 -> 0 | GB32: =GB64 -> 0 | GC32: 0 | GD32: =$M32*GB32 -> 0 | GE32: =GE64 -> 0 | GF32: 0 | GG32: =$M32*GE32 -> 0 | GH32: =GH64 -> 0 | GI32: 0 | GJ32: =$M32*GH32 -> 0 | GK32: =GK64 -> 0 | GL32: 0 | GM32: =$M32*GK32 -> 0 | GN32: =GN64 -> 0 | GO32: 0 | GP32: =$M32*GN32 -> 0 | GQ32: =GQ64 -> 0 | GR32: 0 | GS32: =$M32*GQ32 -> 0 | GT32: =GT64 -> 0 | GU32: 0 | GV32: =$M32*GT32 -> 0 | GW32: =GW64 -> 0 | GX32: 0 | GY32: =$M32*GW32 -> 0 | GZ32: =GZ64 -> 0 | HA32: 0 | HB32: =$M32*GZ32 -> 0 | HC32: =HC64 -> 0 | HD32: 0 | HE32: =$M32*HC32 -> 0 | HF32: =HF64 -> 0 | HG32: 0 | HH32: =$M32*HF32 -> 0 | HI32: =HI64 -> 0 | HJ32: 0 | HK32: =$M32*HI32 -> 0 | HL32: =HL64 -> 0 | HM32: 0 | HN32: =$M32*HL32 -> 0 | HO32: =HO64 -> 0 | HP32: 0 | HQ32: =$M32*HO32 -> 0 | HR32: =HR64 -> 0 | HS32: 0 | HT32: =$M32*HR32 -> 0 | HU32: =HU64 -> 0 | HV32: 0 | HW32: =$M32*HU32 -> 0 | HX32: =HX64 -> 0 | HY32: 0 | HZ32: =$M32*HX32 -> 0 | IA32: =IA64 -> 0 | IB32: 0 | IC32: =$M32*IA32 -> 0 | ID32: =ID64 -> 0 | IE32: 0 | IF32: =$M32*ID32 -> 0 | IG32: =IG64 -> 0 | IH32: 0 | II32: =$M32*IG32 -> 0 | IJ32: =IJ64 -> 0 | IK32: 0 | IL32: =$M32*IJ32 -> 0 | IM32: =IM64 -> 0 | IN32: 0 | IO32: =$M32*IM32 -> 0 | IP32: =IP64 -> 0 | IQ32: 0 | IR32: =$M32*IP32 -> 0 | IS32: =IS64 -> 0 | IT32: 0 | IU32: =$M32*IS32 -> 0 | IV32: =IV64 -> 0 | IW32: 0 | IX32: =$M32*IV32 -> 0 | IY32: =IY64 -> 0 | IZ32: 0 | JA32: =$M32*IY32 -> 0 | JB32: =JB64 -> 0 | JC32: 0 | JD32: =$M32*JB32 -> 0 | JE32: =JE64 -> 0 | JF32: 0 | JG32: =$M32*JE32 -> 0 | JH32: =JH64 -> 0 | JI32: 0 | JJ32: =$M32*JH32 -> 0 | JK32: =JK64 -> 0 | JL32: 0 | JM32: =$M32*JK32 -> 0 | JN32: =JN64 -> 0 | JO32: 0 | JP32: =$M32*JN32 -> 0 | JQ32: =JQ64 -> 0 | JR32: 0 | JS32: =$M32*JQ32 -> 0 | JT32: =JT64 -> 0 | JU32: 0 | JV32: =$M32*JT32 -> 0 | JW32: =JW64 -> 0 | JX32: 0 | JY32: =$M32*JW32 -> 0 | JZ32: =JZ64 -> 0 | KA32: 0 | KB32: =$M32*JZ32 -> 0 | KC32: =KC64 -> 0 | KD32: 0 | KE32: =$M32*KC32 -> 0 | KF32: =KF64 -> 0 | KG32: 0 | KH32: =$M32*KF32 -> 0 | KI32: =KI64 -> 0 | KJ32: 0 | KK32: =$M32*KI32 -> 0 | KL32: =KL64 -> 0 | KM32: 0 | KN32: =$M32*KL32 -> 0 | KO32: =KO64 -> 0 | KP32: 0 | KQ32: =$M32*KO32 -> 0 | KR32: =KR64 -> 0 | KS32: 0 | KT32: =$M32*KR32 -> 0 | KU32: =KU64 -> 0 | KV32: 0 | KW32: =$M32*KU32 -> 0 | KX32: =KX64 -> 0 | KY32: 0 | KZ32: =$M32*KX32 -> 0 | LA32: =LA64 -> 0 | LB32: 0 | LC32: =$M32*LA32 -> 0 | LD32: =LD64 -> 0 | LE32: 0 | LF32: =$M32*LD32 -> 0 | LG32: =LG64 -> 0 | LH32: 0 | LI32: =$M32*LG32 -> 0 | LJ32: =LJ64 -> 0 | LK32: 0 | LL32: =$M32*LJ32 -> 0 | LM32: =LM64 -> 0 | LN32: 0 | LO32: =$M32*LM32 -> 0 | LP32: =LP64 -> 0 | LQ32: 0 | LR32: =$M32*LP32 -> 0 | LS32: =LS64 -> 0 | LT32: 0 | LU32: =$M32*LS32 -> 0 | LV32: =LV64 -> 0 | LW32: 0 | LX32: =$M32*LV32 -> 0 | LY32: =LY64 -> 0 | LZ32: 0 | MA32: =$M32*LY32 -> 0 | MB32: =MB64 -> 0 | MC32: 0 | MD32: =$M32*MB32 -> 0 | ME32: =ME64 -> 0 | MF32: 0 | MG32: =$M32*ME32 -> 0 | MH32: =MH64 -> 0 | MI32: 0 | MJ32: =$M32*MH32 -> 0 | MK32: =MK64 -> 0 | ML32: 0 | MM32: =$M32*MK32 -> 0 | MN32: =MN64 -> 0 | MO32: 0 | MP32: =$M32*MN32 -> 0
A33: Dépose 1 baignoire/douche (HE) = | B33: =B70 -> 42 | E33: 15 | F33: =F70 -> 23 | H33: =H$70 -> 19 | I33: cps | J33: =(112*(0.21+0.05))/23 -> 1.266086957 | M33: =(0.33+0.64)*19/42 -> 0.4388095238 | N33: =M33*42 -> 18.43 | Q33: 18.43 | S33: =S70 -> 1 | T33: 1.266086957 | U33: =$M33*S33 -> 0.4388095238 | V33: =V70 -> 1 | W33: 1.266086957 | X33: =$M33*V33 -> 0.4388095238 | Y33: =Y70 -> 1 | Z33: 1.266086957 | AA33: =$M33*Y33 -> 0.4388095238 | AB33: =AB70 -> 1 | AC33: 1.266086957 | AD33: =$M33*AB33 -> 0.4388095238 | AE33: =AE70 -> 1 | AF33: 1.266086957 | AG33: =$M33*AE33 -> 0.4388095238 | AH33: =AH70 -> 0 | AI33: 0 | AJ33: =$M33*AH33 -> 0 | AK33: =AK70 -> 1 | AL33: 1.266086957 | AM33: =$M33*AK33 -> 0.4388095238 | AN33: =AN70 -> 0 | AO33: 0 | AP33: =$M33*AN33 -> 0 | AQ33: =AQ70 -> 0 | AR33: 0 | AS33: =$M33*AQ33 -> 0 | AT33: =AT70 -> 0 | AU33: 0 | AV33: =$M33*AT33 -> 0 | AW33: =AW70 -> 0 | AX33: 0 | AY33: =$M33*AW33 -> 0 | AZ33: =AZ70 -> 1 | BA33: 1.266086957 | BB33: =$M33*AZ33 -> 0.4388095238 | BC33: =BC70 -> 0 | BD33: 0 | BE33: =$M33*BC33 -> 0 | BF33: =BF70 -> 0 | BG33: 0 | BH33: =$M33*BF33 -> 0 | BI33: =BI70 -> 0 | BJ33: 0 | BK33: =$M33*BI33 -> 0 | BL33: =BL70 -> 0 | BM33: 0 | BN33: =$M33*BL33 -> 0 | BO33: =BO70 -> 0 | BP33: 0 | BQ33: =$M33*BO33 -> 0 | BR33: =BR70 -> 1 | BS33: 1.266086957 | BT33: =$M33*BR33 -> 0.4388095238 | BU33: =BU70 -> 1 | BV33: 1.266086957 | BW33: =$M33*BU33 -> 0.4388095238 | BX33: =BX70 -> 0 | BY33: 0 | BZ33: =$M33*BX33 -> 0 | CA33: =CA70 -> 1 | CB33: 1.266086957 | CC33: =$M33*CA33 -> 0.4388095238 | CD33: =CD70 -> 0 | CE33: 0 | CF33: =$M33*CD33 -> 0 | CG33: =CG70 -> 1 | CH33: 1.266086957 | CI33: =$M33*CG33 -> 0.4388095238 | CJ33: =CJ70 -> 1 | CK33: 1.266086957 | CL33: =$M33*CJ33 -> 0.4388095238 | CM33: =CM70 -> 0 | CN33: 0 | CO33: =$M33*CM33 -> 0 | CP33: =CP70 -> 0 | CQ33: 0 | CR33: =$M33*CP33 -> 0 | CS33: =CS70 -> 0 | CT33: 0 | CU33: =$M33*CS33 -> 0 | CV33: =CV70 -> 0 | CW33: 0 | CX33: =$M33*CV33 -> 0 | CY33: =CY70 -> 1 | CZ33: 1.266086957 | DA33: =$M33*CY33 -> 0.4388095238 | DB33: =DB70 -> 0 | DC33: 0 | DD33: =$M33*DB33 -> 0 | DE33: =DE70 -> 0 | DF33: 0 | DG33: =$M33*DE33 -> 0 | DH33: =DH70 -> 1 | DI33: 1.266086957 | DJ33: =$M33*DH33 -> 0.4388095238 | DK33: =DK70 -> 0 | DL33: 0 | DM33: =$M33*DK33 -> 0 | DN33: =DN70 -> 0 | DO33: 0 | DP33: =$M33*DN33 -> 0 | DQ33: =DQ70 -> 0 | DR33: 0 | DS33: =$M33*DQ33 -> 0 | DT33: =DT70 -> 0 | DU33: 0 | DV33: =$M33*DT33 -> 0 | DW33: =DW70 -> 0 | DX33: 0 | DY33: =$M33*DW33 -> 0 | DZ33: =DZ70 -> 0 | EA33: 0 | EB33: =$M33*DZ33 -> 0 | EC33: =EC70 -> 0 | ED33: 0 | EE33: =$M33*EC33 -> 0 | EF33: =EF70 -> 0 | EG33: 0 | EH33: =$M33*EF33 -> 0 | EI33: =EI70 -> 0 | EJ33: 0 | EK33: =$M33*EI33 -> 0 | EL33: =EL70 -> 0 | EM33: 0 | EN33: =$M33*EL33 -> 0 | EO33: =EO70 -> 0 | EP33: 0 | EQ33: =$M33*EO33 -> 0 | ER33: =ER70 -> 0 | ES33: 0 | ET33: =$M33*ER33 -> 0 | EU33: =EU70 -> 0 | EV33: 0 | EW33: =$M33*EU33 -> 0 | EX33: =EX70 -> 0 | EY33: 0 | EZ33: =$M33*EX33 -> 0 | FA33: =FA70 -> 0 | FB33: 0 | FC33: =$M33*FA33 -> 0 | FD33: =FD70 -> 0 | FE33: 0 | FF33: =$M33*FD33 -> 0 | FG33: =FG70 -> 0 | FH33: 0 | FI33: =$M33*FG33 -> 0 | FJ33: =FJ70 -> 0 | FK33: 0 | FL33: =$M33*FJ33 -> 0 | FM33: =FM70 -> 0 | FN33: 0 | FO33: =$M33*FM33 -> 0 | FP33: =FP70 -> 0 | FQ33: 0 | FR33: =$M33*FP33 -> 0 | FS33: =FS70 -> 1 | FT33: 1.266086957 | FU33: =$M33*FS33 -> 0.4388095238 | FV33: =FV70 -> 0 | FW33: 0 | FX33: =$M33*FV33 -> 0 | FY33: =FY70 -> 0 | FZ33: 0 | GA33: =$M33*FY33 -> 0 | GB33: =GB70 -> 0 | GC33: 0 | GD33: =$M33*GB33 -> 0 | GE33: =GE70 -> 0 | GF33: 0 | GG33: =$M33*GE33 -> 0 | GH33: =GH70 -> 0 | GI33: 0 | GJ33: =$M33*GH33 -> 0 | GK33: =GK70 -> 0 | GL33: 0 | GM33: =$M33*GK33 -> 0 | GN33: =GN70 -> 0 | GO33: 0 | GP33: =$M33*GN33 -> 0 | GQ33: =GQ70 -> 0 | GR33: 0 | GS33: =$M33*GQ33 -> 0 | GT33: =GT70 -> 0 | GU33: 0 | GV33: =$M33*GT33 -> 0 | GW33: =GW70 -> 0 | GX33: 0 | GY33: =$M33*GW33 -> 0 | GZ33: =GZ70 -> 0 | HA33: 0 | HB33: =$M33*GZ33 -> 0 | HC33: =HC70 -> 0 | HD33: 0 | HE33: =$M33*HC33 -> 0 | HF33: =HF70 -> 0 | HG33: 0 | HH33: =$M33*HF33 -> 0 | HI33: =HI70 -> 0 | HJ33: 0 | HK33: =$M33*HI33 -> 0 | HL33: =HL70 -> 0 | HM33: 0 | HN33: =$M33*HL33 -> 0 | HO33: =HO70 -> 0 | HP33: 0 | HQ33: =$M33*HO33 -> 0 | HR33: =HR70 -> 0 | HS33: 0 | HT33: =$M33*HR33 -> 0 | HU33: =HU70 -> 0 | HV33: 0 | HW33: =$M33*HU33 -> 0 | HX33: =HX70 -> 0 | HY33: 0 | HZ33: =$M33*HX33 -> 0 | IA33: =IA70 -> 0 | IB33: 0 | IC33: =$M33*IA33 -> 0 | ID33: =ID70 -> 0 | IE33: 0 | IF33: =$M33*ID33 -> 0 | IG33: =IG70 -> 0 | IH33: 0 | II33: =$M33*IG33 -> 0 | IJ33: =IJ70 -> 0 | IK33: 0 | IL33: =$M33*IJ33 -> 0 | IM33: =IM70 -> 0 | IN33: 0 | IO33: =$M33*IM33 -> 0 | IP33: =IP70 -> 0 | IQ33: 0 | IR33: =$M33*IP33 -> 0 | IS33: =IS70 -> 0 | IT33: 0 | IU33: =$M33*IS33 -> 0 | IV33: =IV70 -> 0 | IW33: 0 | IX33: =$M33*IV33 -> 0 | IY33: =IY70 -> 0 | IZ33: 0 | JA33: =$M33*IY33 -> 0 | JB33: =JB70 -> 0 | JC33: 0 | JD33: =$M33*JB33 -> 0 | JE33: =JE70 -> 0 | JF33: 0 | JG33: =$M33*JE33 -> 0 | JH33: =JH70 -> 0 | JI33: 0 | JJ33: =$M33*JH33 -> 0 | JK33: =JK70 -> 0 | JL33: 0 | JM33: =$M33*JK33 -> 0 | JN33: =JN70 -> 0 | JO33: 0 | JP33: =$M33*JN33 -> 0 | JQ33: =JQ70 -> 0 | JR33: 0 | JS33: =$M33*JQ33 -> 0 | JT33: =JT70 -> 0 | JU33: 0 | JV33: =$M33*JT33 -> 0 | JW33: =JW70 -> 0 | JX33: 0 | JY33: =$M33*JW33 -> 0 | JZ33: =JZ70 -> 0 | KA33: 0 | KB33: =$M33*JZ33 -> 0 | KC33: =KC70 -> 0 | KD33: 0 | KE33: =$M33*KC33 -> 0 | KF33: =KF70 -> 0 | KG33: 0 | KH33: =$M33*KF33 -> 0 | KI33: =KI70 -> 0 | KJ33: 0 | KK33: =$M33*KI33 -> 0 | KL33: =KL70 -> 0 | KM33: 0 | KN33: =$M33*KL33 -> 0 | KO33: =KO70 -> 0 | KP33: 0 | KQ33: =$M33*KO33 -> 0 | KR33: =KR70 -> 0 | KS33: 0 | KT33: =$M33*KR33 -> 0 | KU33: =KU70 -> 0 | KV33: 0 | KW33: =$M33*KU33 -> 0 | KX33: =KX70 -> 0 | KY33: 0 | KZ33: =$M33*KX33 -> 0 | LA33: =LA70 -> 0 | LB33: 0 | LC33: =$M33*LA33 -> 0 | LD33: =LD70 -> 0 | LE33: 0 | LF33: =$M33*LD33 -> 0 | LG33: =LG70 -> 0 | LH33: 0 | LI33: =$M33*LG33 -> 0 | LJ33: =LJ70 -> 0 | LK33: 0 | LL33: =$M33*LJ33 -> 0 | LM33: =LM70 -> 0 | LN33: 0 | LO33: =$M33*LM33 -> 0 | LP33: =LP70 -> 0 | LQ33: 0 | LR33: =$M33*LP33 -> 0 | LS33: =LS70 -> 0 | LT33: 0 | LU33: =$M33*LS33 -> 0 | LV33: =LV70 -> 0 | LW33: 0 | LX33: =$M33*LV33 -> 0 | LY33: =LY70 -> 0 | LZ33: 0 | MA33: =$M33*LY33 -> 0 | MB33: =MB70 -> 0 | MC33: 0 | MD33: =$M33*MB33 -> 0 | ME33: =ME70 -> 0 | MF33: 0 | MG33: =$M33*ME33 -> 0 | MH33: =MH70 -> 0 | MI33: 0 | MJ33: =$M33*MH33 -> 0 | MK33: =MK70 -> 0 | ML33: 0 | MM33: =$M33*MK33 -> 0 | MN33: =MN70 -> 0 | MO33: 0 | MP33: =$M33*MN33 -> 0
E34: 0 | Q34: 0 | T34: 0 | W34: 0 | Z34: 0 | AC34: 0 | AF34: 0 | AI34: 0 | AL34: 0 | AO34: 0 | AR34: 0 | AU34: 0 | AX34: 0 | BA34: 0 | BD34: 0 | BG34: 0 | BJ34: 0 | BM34: 0 | BP34: 0 | BS34: 0 | BV34: 0 | BY34: 0 | CB34: 0 | CE34: 0 | CH34: 0 | CK34: 0 | CN34: 0 | CQ34: 0 | CT34: 0 | CW34: 0 | CZ34: 0 | DC34: 0 | DF34: 0 | DI34: 0 | DL34: 0 | DO34: 0 | DR34: 0 | DU34: 0 | DX34: 0 | EA34: 0 | ED34: 0 | EG34: 0 | EJ34: 0 | EM34: 0 | EP34: 0 | ES34: 0 | EV34: 0 | EY34: 0 | FB34: 0 | FE34: 0 | FH34: 0 | FK34: 0 | FN34: 0 | FQ34: 0 | FT34: 0 | FW34: 0 | FZ34: 0 | GC34: 0 | GF34: 0 | GI34: 0 | GL34: 0 | GO34: 0 | GR34: 0 | GU34: 0 | GX34: 0 | HA34: 0 | HD34: 0 | HG34: 0 | HJ34: 0 | HM34: 0 | HP34: 0 | HS34: 0 | HV34: 0 | HY34: 0 | IB34: 0 | IE34: 0 | IH34: 0 | IK34: 0 | IN34: 0 | IQ34: 0 | IT34: 0 | IW34: 0 | IZ34: 0 | JC34: 0 | JF34: 0 | JI34: 0 | JL34: 0 | JO34: 0 | JR34: 0 | JU34: 0 | JX34: 0 | KA34: 0 | KD34: 0 | KG34: 0 | KJ34: 0 | KM34: 0 | KP34: 0 | KS34: 0 | KV34: 0 | KY34: 0 | LB34: 0 | LE34: 0 | LH34: 0 | LK34: 0 | LN34: 0 | LQ34: 0 | LT34: 0 | LW34: 0 | LZ34: 0 | MC34: 0 | MF34: 0 | MI34: 0 | ML34: 0 | MO34: 0
A35: Adaptation des réseaux EF ECS : | B35: 112 | E35: 42 | F35: 112 | G35: =(E35/F35)*100 -> 37.5 | K35: =0.55 -> 0.55 | L35: =112*K35 -> 61.6 | Q35: 61.6 | S35: =IF(AND(S$7="EN COURS",SUM(S$56:S$79)>0),1,IF(S$7="TERMINÉ",1,IF(AND(S$7="EN COURS SAUF GAZ",SUM(S$56:S$79)>0),1,IF(S$7="NON RÉALISÉ FACTURÉ",1,0)))) -> 1 | T35: 0 | U35: =$K35*S35 -> 0.55 | V35: =IF(AND(V$7="EN COURS",SUM(V$56:V$79)>0),1,IF(V$7="TERMINÉ",1,IF(AND(V$7="EN COURS SAUF GAZ",SUM(V$56:V$79)>0),1,IF(V$7="NON RÉALISÉ FACTURÉ",1,0)))) -> 1 | W35: 0 | X35: =$K35*V35 -> 0.55 | Y35: =IF(AND(Y$7="EN COURS",SUM(Y$56:Y$79)>0),1,IF(Y$7="TERMINÉ",1,IF(AND(Y$7="EN COURS SAUF GAZ",SUM(Y$56:Y$79)>0),1,IF(Y$7="NON RÉALISÉ FACTURÉ",1,0)))) -> 1 | Z35: 0 | AA35: =$K35*Y35 -> 0.55 | AB35: =IF(AND(AB$7="EN COURS",SUM(AB$56:AB$79)>0),1,IF(AB$7="TERMINÉ",1,IF(AND(AB$7="EN COURS SAUF GAZ",SUM(AB$56:AB$79)>0),1,IF(AB$7="NON RÉALISÉ FACTURÉ",1,0)))) -> 1 | AC35: 0 | AD35: =$K35*AB35 -> 0.55 | AE35: =IF(AND(AE$7="EN COURS",SUM(AE$56:AE$79)>0),1,IF(AE$7="TERMINÉ",1,IF(AND(AE$7="EN COURS SAUF GAZ",SUM(AE$56:AE$79)>0),1,IF(AE$7="NON RÉALISÉ FACTURÉ",1,0)))) -> 1 | AF35: 0 | AG35: =$K35*AE35 -> 0.55 | AH35: =IF(AND(AH$7="EN COURS",SUM(AH$56:AH$79)>0),1,IF(AH$7="TERMINÉ",1,IF(AND(AH$7="EN COURS SAUF GAZ",SUM(AH$56:AH$79)>0),1,IF(AH$7="NON RÉALISÉ FACTURÉ",1,0)))) -> 1 | AI35: 0 | AJ35: =$K35*AH35 -> 0.55 | AK35: =IF(AND(AK$7="EN COURS",SUM(AK$56:AK$79)>0),1,IF(AK$7="TERMINÉ",1,IF(AND(AK$7="EN COURS SAUF GAZ",SUM(AK$56:AK$79)>0),1,IF(AK$7="NON RÉALISÉ FACTURÉ",1,0)))) -> 1 | AL35: 0 | AM35: =$K35*AK35 -> 0.55 | AN35: =IF(AND(AN$7="EN COURS",SUM(AN$56:AN$79)>0),1,IF(AN$7="TERMINÉ",1,IF(AND(AN$7="EN COURS SAUF GAZ",SUM(AN$56:AN$79)>0),1,IF(AN$7="NON RÉALISÉ FACTURÉ",1,0)))) -> 1 | AO35: 0 | AP35: =$K35*AN35 -> 0.55 | AQ35: =IF(AND(AQ$7="EN COURS",SUM(AQ$56:AQ$79)>0),1,IF(AQ$7="TERMINÉ",1,IF(AND(AQ$7="EN COURS SAUF GAZ",SUM(AQ$56:AQ$79)>0),1,IF(AQ$7="NON RÉALISÉ FACTURÉ",1,0)))) -> 1 | AR35: 0 | AS35: =$K35*AQ35 -> 0.55 | AT35: =IF(AND(AT$7="EN COURS",SUM(AT$56:AT$79)>0),1,IF(AT$7="TERMINÉ",1,IF(AND(AT$7="EN COURS SAUF GAZ",SUM(AT$56:AT$79)>0),1,IF(AT$7="NON RÉALISÉ FACTURÉ",1,0)))) -> 1 | AU35: 0 | AV35: =$K35*AT35 -> 0.55 | AW35: =IF(AND(AW$7="EN COURS",SUM(AW$56:AW$79)>0),1,IF(AW$7="TERMINÉ",1,IF(AND(AW$7="EN COURS SAUF GAZ",SUM(AW$56:AW$79)>0),1,IF(AW$7="NON RÉALISÉ FACTURÉ",1,0)))) -> 1 | AX35: 0 | AY35: =$K35*AW35 -> 0.55 | AZ35: =IF(AND(AZ$7="EN COURS",SUM(AZ$56:AZ$79)>0),1,IF(AZ$7="TERMINÉ",1,IF(AND(AZ$7="EN COURS SAUF GAZ",SUM(AZ$56:AZ$79)>0),1,IF(AZ$7="NON RÉALISÉ FACTURÉ",1,0)))) -> 1 | BA35: 0 | BB35: =$K35*AZ35 -> 0.55 | BC35: =IF(AND(BC$7="EN COURS",SUM(BC$56:BC$79)>0),1,IF(BC$7="TERMINÉ",1,IF(AND(BC$7="EN COURS SAUF GAZ",SUM(BC$56:BC$79)>0),1,IF(BC$7="NON RÉALISÉ FACTURÉ",1,0)))) -> 1 | BD35: 0 | BE35: =$K35*BC35 -> 0.55 | BF35: =IF(AND(BF$7="EN COURS",SUM(BF$56:BF$79)>0),1,IF(BF$7="TERMINÉ",1,IF(AND(BF$7="EN COURS SAUF GAZ",SUM(BF$56:BF$79)>0),1,IF(BF$7="NON RÉALISÉ FACTURÉ",1,0)))) -> 1 | BG35: 0 | BH35: =$K35*BF35 -> 0.55 | BI35: =IF(AND(BI$7="EN COURS",SUM(BI$56:BI$79)>0),1,IF(BI$7="TERMINÉ",1,IF(AND(BI$7="EN COURS SAUF GAZ",SUM(BI$56:BI$79)>0),1,IF(BI$7="NON RÉALISÉ FACTURÉ",1,0)))) -> 1 | BJ35: 0 | BK35: =$K35*BI35 -> 0.55 | BL35: =IF(AND(BL$7="EN COURS",SUM(BL$56:BL$79)>0),1,IF(BL$7="TERMINÉ",1,IF(AND(BL$7="EN COURS SAUF GAZ",SUM(BL$56:BL$79)>0),1,IF(BL$7="NON RÉALISÉ FACTURÉ",1,0)))) -> 1 | BM35: 0 | BN35: =$K35*BL35 -> 0.55 | BO35: =IF(AND(BO$7="EN COURS",SUM(BO$56:BO$79)>0),1,IF(BO$7="TERMINÉ",1,IF(AND(BO$7="EN COURS SAUF GAZ",SUM(BO$56:BO$79)>0),1,IF(BO$7="NON RÉALISÉ FACTURÉ",1,0)))) -> 1 | BP35: 0 | BQ35: =$K35*BO35 -> 0.55 | BR35: =IF(AND(BR$7="EN COURS",SUM(BR$56:BR$79)>0),1,IF(BR$7="TERMINÉ",1,IF(AND(BR$7="EN COURS SAUF GAZ",SUM(BR$56:BR$79)>0),1,IF(BR$7="NON RÉALISÉ FACTURÉ",1,0)))) -> 1 | BS35: 0 | BT35: =$K35*BR35 -> 0.55 | BU35: =IF(AND(BU$7="EN COURS",SUM(BU$56:BU$79)>0),1,IF(BU$7="TERMINÉ",1,IF(AND(BU$7="EN COURS SAUF GAZ",SUM(BU$56:BU$79)>0),1,IF(BU$7="NON RÉALISÉ FACTURÉ",1,0)))) -> 1 | BV35: 0 | BW35: =$K35*BU35 -> 0.55 | BX35: =IF(AND(BX$7="EN COURS",SUM(BX$56:BX$79)>0),1,IF(BX$7="TERMINÉ",1,IF(AND(BX$7="EN COURS SAUF GAZ",SUM(BX$56:BX$79)>0),1,IF(BX$7="NON RÉALISÉ FACTURÉ",1,0)))) -> 1 | BY35: 0 | BZ35: =$K35*BX35 -> 0.55 | CA35: =IF(AND(CA$7="EN COURS",SUM(CA$56:CA$79)>0),1,IF(CA$7="TERMINÉ",1,IF(AND(CA$7="EN COURS SAUF GAZ",SUM(CA$56:CA$79)>0),1,IF(CA$7="NON RÉALISÉ FACTURÉ",1,0)))) -> 1 | CB35: 0 | CC35: =$K35*CA35 -> 0.55 | CD35: =IF(AND(CD$7="EN COURS",SUM(CD$56:CD$79)>0),1,IF(CD$7="TERMINÉ",1,IF(AND(CD$7="EN COURS SAUF GAZ",SUM(CD$56:CD$79)>0),1,IF(CD$7="NON RÉALISÉ FACTURÉ",1,0)))) -> 1 | CE35: 0 | CF35: =$K35*CD35 -> 0.55 | CG35: =IF(AND(CG$7="EN COURS",SUM(CG$56:CG$79)>0),1,IF(CG$7="TERMINÉ",1,IF(AND(CG$7="EN COURS SAUF GAZ",SUM(CG$56:CG$79)>0),1,IF(CG$7="NON RÉALISÉ FACTURÉ",1,0)))) -> 1 | CH35: 0 | CI35: =$K35*CG35 -> 0.55 | CJ35: =IF(AND(CJ$7="EN COURS",SUM(CJ$56:CJ$79)>0),1,IF(CJ$7="TERMINÉ",1,IF(AND(CJ$7="EN COURS SAUF GAZ",SUM(CJ$56:CJ$79)>0),1,IF(CJ$7="NON RÉALISÉ FACTURÉ",1,0)))) -> 1 | CK35: 0 | CL35: =$K35*CJ35 -> 0.55 | CM35: =IF(AND(CM$7="EN COURS",SUM(CM$56:CM$79)>0),1,IF(CM$7="TERMINÉ",1,IF(AND(CM$7="EN COURS SAUF GAZ",SUM(CM$56:CM$79)>0),1,IF(CM$7="NON RÉALISÉ FACTURÉ",1,0)))) -> 1 | CN35: 0 | CO35: =$K35*CM35 -> 0.55 | CP35: =IF(AND(CP$7="EN COURS",SUM(CP$56:CP$79)>0),1,IF(CP$7="TERMINÉ",1,IF(AND(CP$7="EN COURS SAUF GAZ",SUM(CP$56:CP$79)>0),1,IF(CP$7="NON RÉALISÉ FACTURÉ",1,0)))) -> 1 | CQ35: 0 | CR35: =$K35*CP35 -> 0.55 | CS35: =IF(AND(CS$7="EN COURS",SUM(CS$56:CS$79)>0),1,IF(CS$7="TERMINÉ",1,IF(AND(CS$7="EN COURS SAUF GAZ",SUM(CS$56:CS$79)>0),1,IF(CS$7="NON RÉALISÉ FACTURÉ",1,0)))) -> 1 | CT35: 0 | CU35: =$K35*CS35 -> 0.55 | CV35: =IF(AND(CV$7="EN COURS",SUM(CV$56:CV$79)>0),1,IF(CV$7="TERMINÉ",1,IF(AND(CV$7="EN COURS SAUF GAZ",SUM(CV$56:CV$79)>0),1,IF(CV$7="NON RÉALISÉ FACTURÉ",1,0)))) -> 1 | CW35: 0 | CX35: =$K35*CV35 -> 0.55 | CY35: =IF(AND(CY$7="EN COURS",SUM(CY$56:CY$79)>0),1,IF(CY$7="TERMINÉ",1,IF(AND(CY$7="EN COURS SAUF GAZ",SUM(CY$56:CY$79)>0),1,IF(CY$7="NON RÉALISÉ FACTURÉ",1,0)))) -> 1 | CZ35: 0 | DA35: =$K35*CY35 -> 0.55 | DB35: =IF(AND(DB$7="EN COURS",SUM(DB$56:DB$79)>0),1,IF(DB$7="TERMINÉ",1,IF(AND(DB$7="EN COURS SAUF GAZ",SUM(DB$56:DB$79)>0),1,IF(DB$7="NON RÉALISÉ FACTURÉ",1,0)))) -> 0 | DC35: 0 | DD35: =$K35*DB35 -> 0 | DE35: =IF(AND(DE$7="EN COURS",SUM(DE$56:DE$79)>0),1,IF(DE$7="TERMINÉ",1,IF(AND(DE$7="EN COURS SAUF GAZ",SUM(DE$56:DE$79)>0),1,IF(DE$7="NON RÉALISÉ FACTURÉ",1,0)))) -> 1 | DF35: 0 | DG35: =$K35*DE35 -> 0.55 | DH35: =IF(AND(DH$7="EN COURS",SUM(DH$56:DH$79)>0),1,IF(DH$7="TERMINÉ",1,IF(AND(DH$7="EN COURS SAUF GAZ",SUM(DH$56:DH$79)>0),1,IF(DH$7="NON RÉALISÉ FACTURÉ",1,0)))) -> 1 | DI35: 0 | DJ35: =$K35*DH35 -> 0.55 | DK35: =IF(AND(DK$7="EN COURS",SUM(DK$56:DK$79)>0),1,IF(DK$7="TERMINÉ",1,IF(AND(DK$7="EN COURS SAUF GAZ",SUM(DK$56:DK$79)>0),1,IF(DK$7="NON RÉALISÉ FACTURÉ",1,0)))) -> 1 | DL35: 0 | DM35: =$K35*DK35 -> 0.55 | DN35: =IF(AND(DN$7="EN COURS",SUM(DN$56:DN$79)>0),1,IF(DN$7="TERMINÉ",1,IF(AND(DN$7="EN COURS SAUF GAZ",SUM(DN$56:DN$79)>0),1,IF(DN$7="NON RÉALISÉ FACTURÉ",1,0)))) -> 1 | DO35: 0 | DP35: =$K35*DN35 -> 0.55 | DQ35: =IF(AND(DQ$7="EN COURS",SUM(DQ$56:DQ$79)>0),1,IF(DQ$7="TERMINÉ",1,IF(AND(DQ$7="EN COURS SAUF GAZ",SUM(DQ$56:DQ$79)>0),1,IF(DQ$7="NON RÉALISÉ FACTURÉ",1,0)))) -> 1 | DR35: 0 | DS35: =$K35*DQ35 -> 0.55 | DT35: =IF(AND(DT$7="EN COURS",SUM(DT$56:DT$79)>0),1,IF(DT$7="TERMINÉ",1,IF(AND(DT$7="EN COURS SAUF GAZ",SUM(DT$56:DT$79)>0),1,IF(DT$7="NON RÉALISÉ FACTURÉ",1,0)))) -> 1 | DU35: 0 | DV35: =$K35*DT35 -> 0.55 | DW35: =IF(AND(DW$7="EN COURS",SUM(DW$56:DW$79)>0),1,IF(DW$7="TERMINÉ",1,IF(AND(DW$7="EN COURS SAUF GAZ",SUM(DW$56:DW$79)>0),1,IF(DW$7="NON RÉALISÉ FACTURÉ",1,0)))) -> 1 | DX35: 0 | DY35: =$K35*DW35 -> 0.55 | DZ35: =IF(AND(DZ$7="EN COURS",SUM(DZ$56:DZ$79)>0),1,IF(DZ$7="TERMINÉ",1,IF(AND(DZ$7="EN COURS SAUF GAZ",SUM(DZ$56:DZ$79)>0),1,IF(DZ$7="NON RÉALISÉ FACTURÉ",1,0)))) -> 1 | EA35: 0 | EB35: =$K35*DZ35 -> 0.55 | EC35: =IF(AND(EC$7="EN COURS",SUM(EC$56:EC$79)>0),1,IF(EC$7="TERMINÉ",1,IF(AND(EC$7="EN COURS SAUF GAZ",SUM(EC$56:EC$79)>0),1,IF(EC$7="NON RÉALISÉ FACTURÉ",1,0)))) -> 0 | ED35: 0 | EE35: =$K35*EC35 -> 0 | EF35: =IF(AND(EF$7="EN COURS",SUM(EF$56:EF$79)>0),1,IF(EF$7="TERMINÉ",1,IF(AND(EF$7="EN COURS SAUF GAZ",SUM(EF$56:EF$79)>0),1,IF(EF$7="NON RÉALISÉ FACTURÉ",1,0)))) -> 0 | EG35: 0 | EH35: =$K35*EF35 -> 0 | EI35: =IF(AND(EI$7="EN COURS",SUM(EI$56:EI$79)>0),1,IF(EI$7="TERMINÉ",1,IF(AND(EI$7="EN COURS SAUF GAZ",SUM(EI$56:EI$79)>0),1,IF(EI$7="NON RÉALISÉ FACTURÉ",1,0)))) -> 1 | EJ35: 0 | EK35: =$K35*EI35 -> 0.55 | EL35: =IF(AND(EL$7="EN COURS",SUM(EL$56:EL$79)>0),1,IF(EL$7="TERMINÉ",1,IF(AND(EL$7="EN COURS SAUF GAZ",SUM(EL$56:EL$79)>0),1,IF(EL$7="NON RÉALISÉ FACTURÉ",1,0)))) -> 0 | EM35: 0 | EN35: =$K35*EL35 -> 0 | EO35: =IF(AND(EO$7="EN COURS",SUM(EO$56:EO$79)>0),1,IF(EO$7="TERMINÉ",1,IF(AND(EO$7="EN COURS SAUF GAZ",SUM(EO$56:EO$79)>0),1,IF(EO$7="NON RÉALISÉ FACTURÉ",1,0)))) -> 0 | EP35: 0 | EQ35: =$K35*EO35 -> 0 | ER35: =IF(AND(ER$7="EN COURS",SUM(ER$56:ER$79)>0),1,IF(ER$7="TERMINÉ",1,IF(AND(ER$7="EN COURS SAUF GAZ",SUM(ER$56:ER$79)>0),1,IF(ER$7="NON RÉALISÉ FACTURÉ",1,0)))) -> 1 | ES35: 0 | ET35: =$K35*ER35 -> 0.55 | EU35: =IF(AND(EU$7="EN COURS",SUM(EU$56:EU$79)>0),1,IF(EU$7="TERMINÉ",1,IF(AND(EU$7="EN COURS SAUF GAZ",SUM(EU$56:EU$79)>0),1,IF(EU$7="NON RÉALISÉ FACTURÉ",1,0)))) -> 0 | EV35: 0 | EW35: =$K35*EU35 -> 0 | EX35: =IF(AND(EX$7="EN COURS",SUM(EX$56:EX$79)>0),1,IF(EX$7="TERMINÉ",1,IF(AND(EX$7="EN COURS SAUF GAZ",SUM(EX$56:EX$79)>0),1,IF(EX$7="NON RÉALISÉ FACTURÉ",1,0)))) -> 0 | EY35: 0 | EZ35: =$K35*EX35 -> 0 | FA35: =IF(AND(FA$7="EN COURS",SUM(FA$56:FA$79)>0),1,IF(FA$7="TERMINÉ",1,IF(AND(FA$7="EN COURS SAUF GAZ",SUM(FA$56:FA$79)>0),1,IF(FA$7="NON RÉALISÉ FACTURÉ",1,0)))) -> 0 | FB35: 0 | FC35: =$K35*FA35 -> 0 | FD35: =IF(AND(FD$7="EN COURS",SUM(FD$56:FD$79)>0),1,IF(FD$7="TERMINÉ",1,IF(AND(FD$7="EN COURS SAUF GAZ",SUM(FD$56:FD$79)>0),1,IF(FD$7="NON RÉALISÉ FACTURÉ",1,0)))) -> 0 | FE35: 0 | FF35: =$K35*FD35 -> 0 | FG35: =IF(AND(FG$7="EN COURS",SUM(FG$56:FG$79)>0),1,IF(FG$7="TERMINÉ",1,IF(AND(FG$7="EN COURS SAUF GAZ",SUM(FG$56:FG$79)>0),1,IF(FG$7="NON RÉALISÉ FACTURÉ",1,0)))) -> 0 | FH35: 0 | FI35: =$K35*FG35 -> 0 | FJ35: =IF(AND(FJ$7="EN COURS",SUM(FJ$56:FJ$79)>0),1,IF(FJ$7="TERMINÉ",1,IF(AND(FJ$7="EN COURS SAUF GAZ",SUM(FJ$56:FJ$79)>0),1,IF(FJ$7="NON RÉALISÉ FACTURÉ",1,0)))) -> 1 | FK35: 0 | FL35: =$K35*FJ35 -> 0.55 | FM35: =IF(AND(FM$7="EN COURS",SUM(FM$56:FM$79)>0),1,IF(FM$7="TERMINÉ",1,IF(AND(FM$7="EN COURS SAUF GAZ",SUM(FM$56:FM$79)>0),1,IF(FM$7="NON RÉALISÉ FACTURÉ",1,0)))) -> 0 | FN35: 0 | FO35: =$K35*FM35 -> 0 | FP35: =IF(AND(FP$7="EN COURS",SUM(FP$56:FP$79)>0),1,IF(FP$7="TERMINÉ",1,IF(AND(FP$7="EN COURS SAUF GAZ",SUM(FP$56:FP$79)>0),1,IF(FP$7="NON RÉALISÉ FACTURÉ",1,0)))) -> 0 | FQ35: 0 | FR35: =$K35*FP35 -> 0 | FS35: =IF(AND(FS$7="EN COURS",SUM(FS$56:FS$79)>0),1,IF(FS$7="TERMINÉ",1,IF(AND(FS$7="EN COURS SAUF GAZ",SUM(FS$56:FS$79)>0),1,IF(FS$7="NON RÉALISÉ FACTURÉ",1,0)))) -> 1 | FT35: 0 | FU35: =$K35*FS35 -> 0.55 | FV35: =IF(AND(FV$7="EN COURS",SUM(FV$56:FV$79)>0),1,IF(FV$7="TERMINÉ",1,IF(AND(FV$7="EN COURS SAUF GAZ",SUM(FV$56:FV$79)>0),1,IF(FV$7="NON RÉALISÉ FACTURÉ",1,0)))) -> 1 | FW35: 0 | FX35: =$K35*FV35 -> 0.55 | FY35: =IF(AND(FY$7="EN COURS",SUM(FY$56:FY$79)>0),1,IF(FY$7="TERMINÉ",1,IF(AND(FY$7="EN COURS SAUF GAZ",SUM(FY$56:FY$79)>0),1,IF(FY$7="NON RÉALISÉ FACTURÉ",1,0)))) -> 0 | FZ35: 0 | GA35: =$K35*FY35 -> 0 | GB35: =IF(AND(GB$7="EN COURS",SUM(GB$56:GB$79)>0),1,IF(GB$7="TERMINÉ",1,IF(AND(GB$7="EN COURS SAUF GAZ",SUM(GB$56:GB$79)>0),1,IF(GB$7="NON RÉALISÉ FACTURÉ",1,0)))) -> 0 | GC35: 0 | GD35: =$K35*GB35 -> 0 | GE35: =IF(AND(GE$7="EN COURS",SUM(GE$56:GE$79)>0),1,IF(GE$7="TERMINÉ",1,IF(AND(GE$7="EN COURS SAUF GAZ",SUM(GE$56:GE$79)>0),1,IF(GE$7="NON RÉALISÉ FACTURÉ",1,0)))) -> 0 | GF35: 0 | GG35: =$K35*GE35 -> 0 | GH35: =IF(AND(GH$7="EN COURS",SUM(GH$56:GH$79)>0),1,IF(GH$7="TERMINÉ",1,IF(AND(GH$7="EN COURS SAUF GAZ",SUM(GH$56:GH$79)>0),1,IF(GH$7="NON RÉALISÉ FACTURÉ",1,0)))) -> 0 | GI35: 0 | GJ35: =$K35*GH35 -> 0 | GK35: =IF(AND(GK$7="EN COURS",SUM(GK$56:GK$79)>0),1,IF(GK$7="TERMINÉ",1,IF(AND(GK$7="EN COURS SAUF GAZ",SUM(GK$56:GK$79)>0),1,IF(GK$7="NON RÉALISÉ FACTURÉ",1,0)))) -> 0 | GL35: 0 | GM35: =$K35*GK35 -> 0 | GN35: =IF(AND(GN$7="EN COURS",SUM(GN$56:GN$79)>0),1,IF(GN$7="TERMINÉ",1,IF(AND(GN$7="EN COURS SAUF GAZ",SUM(GN$56:GN$79)>0),1,IF(GN$7="NON RÉALISÉ FACTURÉ",1,0)))) -> 0 | GO35: 0 | GP35: =$K35*GN35 -> 0 | GQ35: =IF(AND(GQ$7="EN COURS",SUM(GQ$56:GQ$79)>0),1,IF(GQ$7="TERMINÉ",1,IF(AND(GQ$7="EN COURS SAUF GAZ",SUM(GQ$56:GQ$79)>0),1,IF(GQ$7="NON RÉALISÉ FACTURÉ",1,0)))) -> 0 | GR35: 0 | GS35: =$K35*GQ35 -> 0 | GT35: =IF(AND(GT$7="EN COURS",SUM(GT$56:GT$79)>0),1,IF(GT$7="TERMINÉ",1,IF(AND(GT$7="EN COURS SAUF GAZ",SUM(GT$56:GT$79)>0),1,IF(GT$7="NON RÉALISÉ FACTURÉ",1,0)))) -> 0 | GU35: 0 | GV35: =$K35*GT35 -> 0 | GW35: =IF(AND(GW$7="EN COURS",SUM(GW$56:GW$79)>0),1,IF(GW$7="TERMINÉ",1,IF(AND(GW$7="EN COURS SAUF GAZ",SUM(GW$56:GW$79)>0),1,IF(GW$7="NON RÉALISÉ FACTURÉ",1,0)))) -> 0 | GX35: 0 | GY35: =$K35*GW35 -> 0 | GZ35: =IF(AND(GZ$7="EN COURS",SUM(GZ$56:GZ$79)>0),1,IF(GZ$7="TERMINÉ",1,IF(AND(GZ$7="EN COURS SAUF GAZ",SUM(GZ$56:GZ$79)>0),1,IF(GZ$7="NON RÉALISÉ FACTURÉ",1,0)))) -> 0 | HA35: 0 | HB35: =$K35*GZ35 -> 0 | HC35: =IF(AND(HC$7="EN COURS",SUM(HC$56:HC$79)>0),1,IF(HC$7="TERMINÉ",1,IF(AND(HC$7="EN COURS SAUF GAZ",SUM(HC$56:HC$79)>0),1,IF(HC$7="NON RÉALISÉ FACTURÉ",1,0)))) -> 0 | HD35: 0 | HE35: =$K35*HC35 -> 0 | HF35: =IF(AND(HF$7="EN COURS",SUM(HF$56:HF$79)>0),1,IF(HF$7="TERMINÉ",1,IF(AND(HF$7="EN COURS SAUF GAZ",SUM(HF$56:HF$79)>0),1,IF(HF$7="NON RÉALISÉ FACTURÉ",1,0)))) -> 0 | HG35: 0 | HH35: =$K35*HF35 -> 0 | HI35: =IF(AND(HI$7="EN COURS",SUM(HI$56:HI$79)>0),1,IF(HI$7="TERMINÉ",1,IF(AND(HI$7="EN COURS SAUF GAZ",SUM(HI$56:HI$79)>0),1,IF(HI$7="NON RÉALISÉ FACTURÉ",1,0)))) -> 0 | HJ35: 0 | HK35: =$K35*HI35 -> 0 | HL35: =IF(AND(HL$7="EN COURS",SUM(HL$56:HL$79)>0),1,IF(HL$7="TERMINÉ",1,IF(AND(HL$7="EN COURS SAUF GAZ",SUM(HL$56:HL$79)>0),1,IF(HL$7="NON RÉALISÉ FACTURÉ",1,0)))) -> 0 | HM35: 0 | HN35: =$K35*HL35 -> 0 | HO35: =IF(AND(HO$7="EN COURS",SUM(HO$56:HO$79)>0),1,IF(HO$7="TERMINÉ",1,IF(AND(HO$7="EN COURS SAUF GAZ",SUM(HO$56:HO$79)>0),1,IF(HO$7="NON RÉALISÉ FACTURÉ",1,0)))) -> 0 | HP35: 0 | HQ35: =$K35*HO35 -> 0 | HR35: =IF(AND(HR$7="EN COURS",SUM(HR$56:HR$79)>0),1,IF(HR$7="TERMINÉ",1,IF(AND(HR$7="EN COURS SAUF GAZ",SUM(HR$56:HR$79)>0),1,IF(HR$7="NON RÉALISÉ FACTURÉ",1,0)))) -> 0 | HS35: 0 | HT35: =$K35*HR35 -> 0 | HU35: =IF(AND(HU$7="EN COURS",SUM(HU$56:HU$79)>0),1,IF(HU$7="TERMINÉ",1,IF(AND(HU$7="EN COURS SAUF GAZ",SUM(HU$56:HU$79)>0),1,IF(HU$7="NON RÉALISÉ FACTURÉ",1,0)))) -> 0 | HV35: 0 | HW35: =$K35*HU35 -> 0 | HX35: =IF(AND(HX$7="EN COURS",SUM(HX$56:HX$79)>0),1,IF(HX$7="TERMINÉ",1,IF(AND(HX$7="EN COURS SAUF GAZ",SUM(HX$56:HX$79)>0),1,IF(HX$7="NON RÉALISÉ FACTURÉ",1,0)))) -> 0 | HY35: 0 | HZ35: =$K35*HX35 -> 0 | IA35: =IF(AND(IA$7="EN COURS",SUM(IA$56:IA$79)>0),1,IF(IA$7="TERMINÉ",1,IF(AND(IA$7="EN COURS SAUF GAZ",SUM(IA$56:IA$79)>0),1,IF(IA$7="NON RÉALISÉ FACTURÉ",1,0)))) -> 0 | IB35: 0 | IC35: =$K35*IA35 -> 0 | ID35: =IF(AND(ID$7="EN COURS",SUM(ID$56:ID$79)>0),1,IF(ID$7="TERMINÉ",1,IF(AND(ID$7="EN COURS SAUF GAZ",SUM(ID$56:ID$79)>0),1,IF(ID$7="NON RÉALISÉ FACTURÉ",1,0)))) -> 0 | IE35: 0 | IF35: =$K35*ID35 -> 0 | IG35: =IF(AND(IG$7="EN COURS",SUM(IG$56:IG$79)>0),1,IF(IG$7="TERMINÉ",1,IF(AND(IG$7="EN COURS SAUF GAZ",SUM(IG$56:IG$79)>0),1,IF(IG$7="NON RÉALISÉ FACTURÉ",1,0)))) -> 0 | IH35: 0 | II35: =$K35*IG35 -> 0 | IJ35: =IF(AND(IJ$7="EN COURS",SUM(IJ$56:IJ$79)>0),1,IF(IJ$7="TERMINÉ",1,IF(AND(IJ$7="EN COURS SAUF GAZ",SUM(IJ$56:IJ$79)>0),1,IF(IJ$7="NON RÉALISÉ FACTURÉ",1,0)))) -> 0 | IK35: 0 | IL35: =$K35*IJ35 -> 0 | IM35: =IF(AND(IM$7="EN COURS",SUM(IM$56:IM$79)>0),1,IF(IM$7="TERMINÉ",1,IF(AND(IM$7="EN COURS SAUF GAZ",SUM(IM$56:IM$79)>0),1,IF(IM$7="NON RÉALISÉ FACTURÉ",1,0)))) -> 0 | IN35: 0 | IO35: =$K35*IM35 -> 0 | IP35: =IF(AND(IP$7="EN COURS",SUM(IP$56:IP$79)>0),1,IF(IP$7="TERMINÉ",1,IF(AND(IP$7="EN COURS SAUF GAZ",SUM(IP$56:IP$79)>0),1,IF(IP$7="NON RÉALISÉ FACTURÉ",1,0)))) -> 0 | IQ35: 0 | IR35: =$K35*IP35 -> 0 | IS35: =IF(AND(IS$7="EN COURS",SUM(IS$56:IS$79)>0),1,IF(IS$7="TERMINÉ",1,IF(AND(IS$7="EN COURS SAUF GAZ",SUM(IS$56:IS$79)>0),1,IF(IS$7="NON RÉALISÉ FACTURÉ",1,0)))) -> 0 | IT35: 0 | IU35: =$K35*IS35 -> 0 | IV35: =IF(AND(IV$7="EN COURS",SUM(IV$56:IV$79)>0),1,IF(IV$7="TERMINÉ",1,IF(AND(IV$7="EN COURS SAUF GAZ",SUM(IV$56:IV$79)>0),1,IF(IV$7="NON RÉALISÉ FACTURÉ",1,0)))) -> 0 | IW35: 0 | IX35: =$K35*IV35 -> 0 | IY35: =IF(AND(IY$7="EN COURS",SUM(IY$56:IY$79)>0),1,IF(IY$7="TERMINÉ",1,IF(AND(IY$7="EN COURS SAUF GAZ",SUM(IY$56:IY$79)>0),1,IF(IY$7="NON RÉALISÉ FACTURÉ",1,0)))) -> 0 | IZ35: 0 | JA35: =$K35*IY35 -> 0 | JB35: =IF(AND(JB$7="EN COURS",SUM(JB$56:JB$79)>0),1,IF(JB$7="TERMINÉ",1,IF(AND(JB$7="EN COURS SAUF GAZ",SUM(JB$56:JB$79)>0),1,IF(JB$7="NON RÉALISÉ FACTURÉ",1,0)))) -> 0 | JC35: 0 | JD35: =$K35*JB35 -> 0 | JE35: =IF(AND(JE$7="EN COURS",SUM(JE$56:JE$79)>0),1,IF(JE$7="TERMINÉ",1,IF(AND(JE$7="EN COURS SAUF GAZ",SUM(JE$56:JE$79)>0),1,IF(JE$7="NON RÉALISÉ FACTURÉ",1,0)))) -> 0 | JF35: 0 | JG35: =$K35*JE35 -> 0 | JH35: =IF(AND(JH$7="EN COURS",SUM(JH$56:JH$79)>0),1,IF(JH$7="TERMINÉ",1,IF(AND(JH$7="EN COURS SAUF GAZ",SUM(JH$56:JH$79)>0),1,IF(JH$7="NON RÉALISÉ FACTURÉ",1,0)))) -> 0 | JI35: 0 | JJ35: =$K35*JH35 -> 0 | JK35: =IF(AND(JK$7="EN COURS",SUM(JK$56:JK$79)>0),1,IF(JK$7="TERMINÉ",1,IF(AND(JK$7="EN COURS SAUF GAZ",SUM(JK$56:JK$79)>0),1,IF(JK$7="NON RÉALISÉ FACTURÉ",1,0)))) -> 0 | JL35: 0 | JM35: =$K35*JK35 -> 0 | JN35: =IF(AND(JN$7="EN COURS",SUM(JN$56:JN$79)>0),1,IF(JN$7="TERMINÉ",1,IF(AND(JN$7="EN COURS SAUF GAZ",SUM(JN$56:JN$79)>0),1,IF(JN$7="NON RÉALISÉ FACTURÉ",1,0)))) -> 0 | JO35: 0 | JP35: =$K35*JN35 -> 0 | JQ35: =IF(AND(JQ$7="EN COURS",SUM(JQ$56:JQ$79)>0),1,IF(JQ$7="TERMINÉ",1,IF(AND(JQ$7="EN COURS SAUF GAZ",SUM(JQ$56:JQ$79)>0),1,IF(JQ$7="NON RÉALISÉ FACTURÉ",1,0)))) -> 0 | JR35: 0 | JS35: =$K35*JQ35 -> 0 | JT35: =IF(AND(JT$7="EN COURS",SUM(JT$56:JT$79)>0),1,IF(JT$7="TERMINÉ",1,IF(AND(JT$7="EN COURS SAUF GAZ",SUM(JT$56:JT$79)>0),1,IF(JT$7="NON RÉALISÉ FACTURÉ",1,0)))) -> 0 | JU35: 0 | JV35: =$K35*JT35 -> 0 | JW35: =IF(AND(JW$7="EN COURS",SUM(JW$56:JW$79)>0),1,IF(JW$7="TERMINÉ",1,IF(AND(JW$7="EN COURS SAUF GAZ",SUM(JW$56:JW$79)>0),1,IF(JW$7="NON RÉALISÉ FACTURÉ",1,0)))) -> 0 | JX35: 0 | JY35: =$K35*JW35 -> 0 | JZ35: =IF(AND(JZ$7="EN COURS",SUM(JZ$56:JZ$79)>0),1,IF(JZ$7="TERMINÉ",1,IF(AND(JZ$7="EN COURS SAUF GAZ",SUM(JZ$56:JZ$79)>0),1,IF(JZ$7="NON RÉALISÉ FACTURÉ",1,0)))) -> 0 | KA35: 0 | KB35: =$K35*JZ35 -> 0 | KC35: =IF(AND(KC$7="EN COURS",SUM(KC$56:KC$79)>0),1,IF(KC$7="TERMINÉ",1,IF(AND(KC$7="EN COURS SAUF GAZ",SUM(KC$56:KC$79)>0),1,IF(KC$7="NON RÉALISÉ FACTURÉ",1,0)))) -> 0 | KD35: 0 | KE35: =$K35*KC35 -> 0 | KF35: =IF(AND(KF$7="EN COURS",SUM(KF$56:KF$79)>0),1,IF(KF$7="TERMINÉ",1,IF(AND(KF$7="EN COURS SAUF GAZ",SUM(KF$56:KF$79)>0),1,IF(KF$7="NON RÉALISÉ FACTURÉ",1,0)))) -> 0 | KG35: 0 | KH35: =$K35*KF35 -> 0 | KI35: =IF(AND(KI$7="EN COURS",SUM(KI$56:KI$79)>0),1,IF(KI$7="TERMINÉ",1,IF(AND(KI$7="EN COURS SAUF GAZ",SUM(KI$56:KI$79)>0),1,IF(KI$7="NON RÉALISÉ FACTURÉ",1,0)))) -> 0 | KJ35: 0 | KK35: =$K35*KI35 -> 0 | KL35: =IF(AND(KL$7="EN COURS",SUM(KL$56:KL$79)>0),1,IF(KL$7="TERMINÉ",1,IF(AND(KL$7="EN COURS SAUF GAZ",SUM(KL$56:KL$79)>0),1,IF(KL$7="NON RÉALISÉ FACTURÉ",1,0)))) -> 0 | KM35: 0 | KN35: =$K35*KL35 -> 0 | KO35: =IF(AND(KO$7="EN COURS",SUM(KO$56:KO$79)>0),1,IF(KO$7="TERMINÉ",1,IF(AND(KO$7="EN COURS SAUF GAZ",SUM(KO$56:KO$79)>0),1,IF(KO$7="NON RÉALISÉ FACTURÉ",1,0)))) -> 0 | KP35: 0 | KQ35: =$K35*KO35 -> 0 | KR35: =IF(AND(KR$7="EN COURS",SUM(KR$56:KR$79)>0),1,IF(KR$7="TERMINÉ",1,IF(AND(KR$7="EN COURS SAUF GAZ",SUM(KR$56:KR$79)>0),1,IF(KR$7="NON RÉALISÉ FACTURÉ",1,0)))) -> 0 | KS35: 0 | KT35: =$K35*KR35 -> 0 | KU35: =IF(AND(KU$7="EN COURS",SUM(KU$56:KU$79)>0),1,IF(KU$7="TERMINÉ",1,IF(AND(KU$7="EN COURS SAUF GAZ",SUM(KU$56:KU$79)>0),1,IF(KU$7="NON RÉALISÉ FACTURÉ",1,0)))) -> 0 | KV35: 0 | KW35: =$K35*KU35 -> 0 | KX35: =IF(AND(KX$7="EN COURS",SUM(KX$56:KX$79)>0),1,IF(KX$7="TERMINÉ",1,IF(AND(KX$7="EN COURS SAUF GAZ",SUM(KX$56:KX$79)>0),1,IF(KX$7="NON RÉALISÉ FACTURÉ",1,0)))) -> 0 | KY35: 0 | KZ35: =$K35*KX35 -> 0 | LA35: =IF(AND(LA$7="EN COURS",SUM(LA$56:LA$79)>0),1,IF(LA$7="TERMINÉ",1,IF(AND(LA$7="EN COURS SAUF GAZ",SUM(LA$56:LA$79)>0),1,IF(LA$7="NON RÉALISÉ FACTURÉ",1,0)))) -> 0 | LB35: 0 | LC35: =$K35*LA35 -> 0 | LD35: =IF(AND(LD$7="EN COURS",SUM(LD$56:LD$79)>0),1,IF(LD$7="TERMINÉ",1,IF(AND(LD$7="EN COURS SAUF GAZ",SUM(LD$56:LD$79)>0),1,IF(LD$7="NON RÉALISÉ FACTURÉ",1,0)))) -> 0 | LE35: 0 | LF35: =$K35*LD35 -> 0 | LG35: =IF(AND(LG$7="EN COURS",SUM(LG$56:LG$79)>0),1,IF(LG$7="TERMINÉ",1,IF(AND(LG$7="EN COURS SAUF GAZ",SUM(LG$56:LG$79)>0),1,IF(LG$7="NON RÉALISÉ FACTURÉ",1,0)))) -> 0 | LH35: 0 | LI35: =$K35*LG35 -> 0 | LJ35: =IF(AND(LJ$7="EN COURS",SUM(LJ$56:LJ$79)>0),1,IF(LJ$7="TERMINÉ",1,IF(AND(LJ$7="EN COURS SAUF GAZ",SUM(LJ$56:LJ$79)>0),1,IF(LJ$7="NON RÉALISÉ FACTURÉ",1,0)))) -> 0 | LK35: 0 | LL35: =$K35*LJ35 -> 0 | LM35: =IF(AND(LM$7="EN COURS",SUM(LM$56:LM$79)>0),1,IF(LM$7="TERMINÉ",1,IF(AND(LM$7="EN COURS SAUF GAZ",SUM(LM$56:LM$79)>0),1,IF(LM$7="NON RÉALISÉ FACTURÉ",1,0)))) -> 0 | LN35: 0 | LO35: =$K35*LM35 -> 0 | LP35: =IF(AND(LP$7="EN COURS",SUM(LP$56:LP$79)>0),1,IF(LP$7="TERMINÉ",1,IF(AND(LP$7="EN COURS SAUF GAZ",SUM(LP$56:LP$79)>0),1,IF(LP$7="NON RÉALISÉ FACTURÉ",1,0)))) -> 0 | LQ35: 0 | LR35: =$K35*LP35 -> 0 | LS35: =IF(AND(LS$7="EN COURS",SUM(LS$56:LS$79)>0),1,IF(LS$7="TERMINÉ",1,IF(AND(LS$7="EN COURS SAUF GAZ",SUM(LS$56:LS$79)>0),1,IF(LS$7="NON RÉALISÉ FACTURÉ",1,0)))) -> 0 | LT35: 0 | LU35: =$K35*LS35 -> 0 | LV35: =IF(AND(LV$7="EN COURS",SUM(LV$56:LV$79)>0),1,IF(LV$7="TERMINÉ",1,IF(AND(LV$7="EN COURS SAUF GAZ",SUM(LV$56:LV$79)>0),1,IF(LV$7="NON RÉALISÉ FACTURÉ",1,0)))) -> 0 | LW35: 0 | LX35: =$K35*LV35 -> 0 | LY35: =IF(AND(LY$7="EN COURS",SUM(LY$56:LY$79)>0),1,IF(LY$7="TERMINÉ",1,IF(AND(LY$7="EN COURS SAUF GAZ",SUM(LY$56:LY$79)>0),1,IF(LY$7="NON RÉALISÉ FACTURÉ",1,0)))) -> 0 | LZ35: 0 | MA35: =$K35*LY35 -> 0 | MB35: =IF(AND(MB$7="EN COURS",SUM(MB$56:MB$79)>0),1,IF(MB$7="TERMINÉ",1,IF(AND(MB$7="EN COURS SAUF GAZ",SUM(MB$56:MB$79)>0),1,IF(MB$7="NON RÉALISÉ FACTURÉ",1,0)))) -> 0 | MC35: 0 | MD35: =$K35*MB35 -> 0 | ME35: =IF(AND(ME$7="EN COURS",SUM(ME$56:ME$79)>0),1,IF(ME$7="TERMINÉ",1,IF(AND(ME$7="EN COURS SAUF GAZ",SUM(ME$56:ME$79)>0),1,IF(ME$7="NON RÉALISÉ FACTURÉ",1,0)))) -> 0 | MF35: 0 | MG35: =$K35*ME35 -> 0 | MH35: =IF(AND(MH$7="EN COURS",SUM(MH$56:MH$79)>0),1,IF(MH$7="TERMINÉ",1,IF(AND(MH$7="EN COURS SAUF GAZ",SUM(MH$56:MH$79)>0),1,IF(MH$7="NON RÉALISÉ FACTURÉ",1,0)))) -> 0 | MI35: 0 | MJ35: =$K35*MH35 -> 0 | MK35: =IF(AND(MK$7="EN COURS",SUM(MK$56:MK$79)>0),1,IF(MK$7="TERMINÉ",1,IF(AND(MK$7="EN COURS SAUF GAZ",SUM(MK$56:MK$79)>0),1,IF(MK$7="NON RÉALISÉ FACTURÉ",1,0)))) -> 0 | ML35: 0 | MM35: =$K35*MK35 -> 0 | MN35: =IF(AND(MN$7="EN COURS",SUM(MN$56:MN$79)>0),1,IF(MN$7="TERMINÉ",1,IF(AND(MN$7="EN COURS SAUF GAZ",SUM(MN$56:MN$79)>0),1,IF(MN$7="NON RÉALISÉ FACTURÉ",1,0)))) -> 0 | MO35: 0 | MP35: =$K35*MN35 -> 0
A36: . évier (HE) = | B36: =B56 -> 40 | E36: 13 | H36: =H$56 -> 12 | I36: cps | J36: =((0.13)*112)/28 -> 0.52 | M36: =0.55*12/40 -> 0.165 | N36: =M36*40 -> 6.6 | Q36: 6.6 | S36: =S56 -> 0 | T36: 0 | U36: =$M36*S36 -> 0 | V36: =V56 -> 1 | W36: 0.52 | X36: =$M36*V36 -> 0.165 | Y36: =Y56 -> 1 | Z36: 0.52 | AA36: =$M36*Y36 -> 0.165 | AB36: =AB56 -> 1 | AC36: 0.52 | AD36: =$M36*AB36 -> 0.165 | AE36: =AE56 -> 0 | AF36: 0 | AG36: =$M36*AE36 -> 0 | AH36: =AH56 -> 0 | AI36: 0 | AJ36: =$M36*AH36 -> 0 | AK36: =AK56 -> 0 | AL36: 0 | AM36: =$M36*AK36 -> 0 | AN36: =AN56 -> 0 | AO36: 0 | AP36: =$M36*AN36 -> 0 | AQ36: =AQ56 -> 1 | AR36: 0.52 | AS36: =$M36*AQ36 -> 0.165 | AT36: =AT56 -> 0 | AU36: 0 | AV36: =$M36*AT36 -> 0 | AW36: =AW56 -> 0 | AX36: 0 | AY36: =$M36*AW36 -> 0 | AZ36: =AZ56 -> 0 | BA36: 0 | BB36: =$M36*AZ36 -> 0 | BC36: =BC56 -> 0 | BD36: 0 | BE36: =$M36*BC36 -> 0 | BF36: =BF56 -> 1 | BG36: 0.52 | BH36: =$M36*BF36 -> 0.165 | BI36: =BI56 -> 0 | BJ36: 0 | BK36: =$M36*BI36 -> 0 | BL36: =BL56 -> 0 | BM36: 0 | BN36: =$M36*BL36 -> 0 | BO36: =BO56 -> 0 | BP36: 0 | BQ36: =$M36*BO36 -> 0 | BR36: =BR56 -> 0 | BS36: 0 | BT36: =$M36*BR36 -> 0 | BU36: =BU56 -> 0 | BV36: 0 | BW36: =$M36*BU36 -> 0 | BX36: =BX56 -> 0 | BY36: 0 | BZ36: =$M36*BX36 -> 0 | CA36: =CA56 -> 1 | CB36: 0.52 | CC36: =$M36*CA36 -> 0.165 | CD36: =CD56 -> 1 | CE36: 0.52 | CF36: =$M36*CD36 -> 0.165 | CG36: =CG56 -> 1 | CH36: 0.52 | CI36: =$M36*CG36 -> 0.165 | CJ36: =CJ56 -> 0 | CK36: 0 | CL36: =$M36*CJ36 -> 0 | CM36: =CM56 -> 1 | CN36: 0.52 | CO36: =$M36*CM36 -> 0.165 | CP36: =CP56 -> 0 | CQ36: 0 | CR36: =$M36*CP36 -> 0 | CS36: =CS56 -> 0 | CT36: 0 | CU36: =$M36*CS36 -> 0 | CV36: =CV56 -> 0 | CW36: 0 | CX36: =$M36*CV36 -> 0 | CY36: =CY56 -> 0 | CZ36: 0 | DA36: =$M36*CY36 -> 0 | DB36: =DB56 -> 0 | DC36: 0 | DD36: =$M36*DB36 -> 0 | DE36: =DE56 -> 0 | DF36: 0 | DG36: =$M36*DE36 -> 0 | DH36: =DH56 -> 1 | DI36: 0.52 | DJ36: =$M36*DH36 -> 0.165 | DK36: =DK56 -> 0 | DL36: 0 | DM36: =$M36*DK36 -> 0 | DN36: =DN56 -> 0 | DO36: 0 | DP36: =$M36*DN36 -> 0 | DQ36: =DQ56 -> 1 | DR36: 0.52 | DS36: =$M36*DQ36 -> 0.165 | DT36: =DT56 -> 0 | DU36: 0 | DV36: =$M36*DT36 -> 0 | DW36: =DW56 -> 0 | DX36: 0 | DY36: =$M36*DW36 -> 0 | DZ36: =DZ56 -> 0 | EA36: 0 | EB36: =$M36*DZ36 -> 0 | EC36: =EC56 -> 0 | ED36: 0 | EE36: =$M36*EC36 -> 0 | EF36: =EF56 -> 0 | EG36: 0 | EH36: =$M36*EF36 -> 0 | EI36: =EI56 -> 1 | EJ36: 0.52 | EK36: =$M36*EI36 -> 0.165 | EL36: =EL56 -> 0 | EM36: 0 | EN36: =$M36*EL36 -> 0 | EO36: =EO56 -> 0 | EP36: 0 | EQ36: =$M36*EO36 -> 0 | ER36: =ER56 -> 0 | ES36: 0 | ET36: =$M36*ER36 -> 0 | EU36: =EU56 -> 0 | EV36: 0 | EW36: =$M36*EU36 -> 0 | EX36: =EX56 -> 0 | EY36: 0 | EZ36: =$M36*EX36 -> 0 | FA36: =FA56 -> 0 | FB36: 0 | FC36: =$M36*FA36 -> 0 | FD36: =FD56 -> 0 | FE36: 0 | FF36: =$M36*FD36 -> 0 | FG36: =FG56 -> 0 | FH36: 0 | FI36: =$M36*FG36 -> 0 | FJ36: =FJ56 -> 0 | FK36: 0 | FL36: =$M36*FJ36 -> 0 | FM36: =FM56 -> 0 | FN36: 0 | FO36: =$M36*FM36 -> 0 | FP36: =FP56 -> 0 | FQ36: 0 | FR36: =$M36*FP36 -> 0 | FS36: =FS56 -> 1 | FT36: 0.52 | FU36: =$M36*FS36 -> 0.165 | FV36: =FV56 -> 0 | FW36: 0 | FX36: =$M36*FV36 -> 0 | FY36: =FY56 -> 0 | FZ36: 0 | GA36: =$M36*FY36 -> 0 | GB36: =GB56 -> 0 | GC36: 0 | GD36: =$M36*GB36 -> 0 | GE36: =GE56 -> 0 | GF36: 0 | GG36: =$M36*GE36 -> 0 | GH36: =GH56 -> 0 | GI36: 0 | GJ36: =$M36*GH36 -> 0 | GK36: =GK56 -> 0 | GL36: 0 | GM36: =$M36*GK36 -> 0 | GN36: =GN56 -> 0 | GO36: 0 | GP36: =$M36*GN36 -> 0 | GQ36: =GQ56 -> 0 | GR36: 0 | GS36: =$M36*GQ36 -> 0 | GT36: =GT56 -> 0 | GU36: 0 | GV36: =$M36*GT36 -> 0 | GW36: =GW56 -> 0 | GX36: 0 | GY36: =$M36*GW36 -> 0 | GZ36: =GZ56 -> 0 | HA36: 0 | HB36: =$M36*GZ36 -> 0 | HC36: =HC56 -> 0 | HD36: 0 | HE36: =$M36*HC36 -> 0 | HF36: =HF56 -> 0 | HG36: 0 | HH36: =$M36*HF36 -> 0 | HI36: =HI56 -> 0 | HJ36: 0 | HK36: =$M36*HI36 -> 0 | HL36: =HL56 -> 0 | HM36: 0 | HN36: =$M36*HL36 -> 0 | HO36: =HO56 -> 0 | HP36: 0 | HQ36: =$M36*HO36 -> 0 | HR36: =HR56 -> 0 | HS36: 0 | HT36: =$M36*HR36 -> 0 | HU36: =HU56 -> 0 | HV36: 0 | HW36: =$M36*HU36 -> 0 | HX36: =HX56 -> 0 | HY36: 0 | HZ36: =$M36*HX36 -> 0 | IA36: =IA56 -> 0 | IB36: 0 | IC36: =$M36*IA36 -> 0 | ID36: =ID56 -> 0 | IE36: 0 | IF36: =$M36*ID36 -> 0 | IG36: =IG56 -> 0 | IH36: 0 | II36: =$M36*IG36 -> 0 | IJ36: =IJ56 -> 0 | IK36: 0 | IL36: =$M36*IJ36 -> 0 | IM36: =IM56 -> 0 | IN36: 0 | IO36: =$M36*IM36 -> 0 | IP36: =IP56 -> 0 | IQ36: 0 | IR36: =$M36*IP36 -> 0 | IS36: =IS56 -> 0 | IT36: 0 | IU36: =$M36*IS36 -> 0 | IV36: =IV56 -> 0 | IW36: 0 | IX36: =$M36*IV36 -> 0 | IY36: =IY56 -> 0 | IZ36: 0 | JA36: =$M36*IY36 -> 0 | JB36: =JB56 -> 0 | JC36: 0 | JD36: =$M36*JB36 -> 0 | JE36: =JE56 -> 0 | JF36: 0 | JG36: =$M36*JE36 -> 0 | JH36: =JH56 -> 0 | JI36: 0 | JJ36: =$M36*JH36 -> 0 | JK36: =JK56 -> 0 | JL36: 0 | JM36: =$M36*JK36 -> 0 | JN36: =JN56 -> 0 | JO36: 0 | JP36: =$M36*JN36 -> 0 | JQ36: =JQ56 -> 0 | JR36: 0 | JS36: =$M36*JQ36 -> 0 | JT36: =JT56 -> 0 | JU36: 0 | JV36: =$M36*JT36 -> 0 | JW36: =JW56 -> 0 | JX36: 0 | JY36: =$M36*JW36 -> 0 | JZ36: =JZ56 -> 0 | KA36: 0 | KB36: =$M36*JZ36 -> 0 | KC36: =KC56 -> 0 | KD36: 0 | KE36: =$M36*KC36 -> 0 | KF36: =KF56 -> 0 | KG36: 0 | KH36: =$M36*KF36 -> 0 | KI36: =KI56 -> 0 | KJ36: 0 | KK36: =$M36*KI36 -> 0 | KL36: =KL56 -> 0 | KM36: 0 | KN36: =$M36*KL36 -> 0 | KO36: =KO56 -> 0 | KP36: 0 | KQ36: =$M36*KO36 -> 0 | KR36: =KR56 -> 0 | KS36: 0 | KT36: =$M36*KR36 -> 0 | KU36: =KU56 -> 0 | KV36: 0 | KW36: =$M36*KU36 -> 0 | KX36: =KX56 -> 0 | KY36: 0 | KZ36: =$M36*KX36 -> 0 | LA36: =LA56 -> 0 | LB36: 0 | LC36: =$M36*LA36 -> 0 | LD36: =LD56 -> 0 | LE36: 0 | LF36: =$M36*LD36 -> 0 | LG36: =LG56 -> 0 | LH36: 0 | LI36: =$M36*LG36 -> 0 | LJ36: =LJ56 -> 0 | LK36: 0 | LL36: =$M36*LJ36 -> 0 | LM36: =LM56 -> 0 | LN36: 0 | LO36: =$M36*LM36 -> 0 | LP36: =LP56 -> 0 | LQ36: 0 | LR36: =$M36*LP36 -> 0 | LS36: =LS56 -> 0 | LT36: 0 | LU36: =$M36*LS36 -> 0 | LV36: =LV56 -> 0 | LW36: 0 | LX36: =$M36*LV36 -> 0 | LY36: =LY56 -> 0 | LZ36: 0 | MA36: =$M36*LY36 -> 0 | MB36: =MB56 -> 0 | MC36: 0 | MD36: =$M36*MB36 -> 0 | ME36: =ME56 -> 0 | MF36: 0 | MG36: =$M36*ME36 -> 0 | MH36: =MH56 -> 0 | MI36: 0 | MJ36: =$M36*MH36 -> 0 | MK36: =MK56 -> 0 | ML36: 0 | MM36: =$M36*MK36 -> 0 | MN36: =MN56 -> 0 | MO36: 0 | MP36: =$M36*MN36 -> 0
A37: . WC (HE) = | B37: =B59 -> 50 | E37: 16 | H37: =H$59 -> 27 | I37: cps | J37: =(112*(0.1))/23 -> 0.4869565217 | M37: =0.55*(11+16)/50 -> 0.297 | N37: =M37*50 -> 14.85 | Q37: 14.85 | S37: =S59 -> 0 | T37: 0 | U37: =$M37*S37 -> 0 | V37: =V59 -> 0 | W37: 0 | X37: =$M37*V37 -> 0 | Y37: =Y59 -> 1 | Z37: 0.4869565217 | AA37: =$M37*Y37 -> 0.297 | AB37: =AB59 -> 0 | AC37: 0 | AD37: =$M37*AB37 -> 0 | AE37: =AE59 -> 0 | AF37: 0 | AG37: =$M37*AE37 -> 0 | AH37: =AH59 -> 0 | AI37: 0 | AJ37: =$M37*AH37 -> 0 | AK37: =AK59 -> 0 | AL37: 0 | AM37: =$M37*AK37 -> 0 | AN37: =AN59 -> 0 | AO37: 0 | AP37: =$M37*AN37 -> 0 | AQ37: =AQ59 -> 0 | AR37: 0 | AS37: =$M37*AQ37 -> 0 | AT37: =AT59 -> 0 | AU37: 0 | AV37: =$M37*AT37 -> 0 | AW37: =AW59 -> 0 | AX37: 0 | AY37: =$M37*AW37 -> 0 | AZ37: =AZ59 -> 0 | BA37: 0 | BB37: =$M37*AZ37 -> 0 | BC37: =BC59 -> 0 | BD37: 0 | BE37: =$M37*BC37 -> 0 | BF37: =BF59 -> 2 | BG37: 0.9739130435 | BH37: =$M37*BF37 -> 0.594 | BI37: =BI59 -> 0 | BJ37: 0 | BK37: =$M37*BI37 -> 0 | BL37: =BL59 -> 0 | BM37: 0 | BN37: =$M37*BL37 -> 0 | BO37: =BO59 -> 0 | BP37: 0 | BQ37: =$M37*BO37 -> 0 | BR37: =BR59 -> 0 | BS37: 0 | BT37: =$M37*BR37 -> 0 | BU37: =BU59 -> 0 | BV37: 0 | BW37: =$M37*BU37 -> 0 | BX37: =BX59 -> 0 | BY37: 0 | BZ37: =$M37*BX37 -> 0 | CA37: =CA59 -> 1 | CB37: 0.4869565217 | CC37: =$M37*CA37 -> 0.297 | CD37: =CD59 -> 1 | CE37: 0.4869565217 | CF37: =$M37*CD37 -> 0.297 | CG37: =CG59 -> 1 | CH37: 0.4869565217 | CI37: =$M37*CG37 -> 0.297 | CJ37: =CJ59 -> 1 | CK37: 0.4869565217 | CL37: =$M37*CJ37 -> 0.297 | CM37: =CM59 -> 1 | CN37: 0.4869565217 | CO37: =$M37*CM37 -> 0.297 | CP37: =CP59 -> 0 | CQ37: 0 | CR37: =$M37*CP37 -> 0 | CS37: =CS59 -> 1 | CT37: 0.4869565217 | CU37: =$M37*CS37 -> 0.297 | CV37: =CV59 -> 1 | CW37: 0.4869565217 | CX37: =$M37*CV37 -> 0.297 | CY37: =CY59 -> 1 | CZ37: 0.4869565217 | DA37: =$M37*CY37 -> 0.297 | DB37: =DB59 -> 0 | DC37: 0 | DD37: =$M37*DB37 -> 0 | DE37: =DE59 -> 1 | DF37: 0.4869565217 | DG37: =$M37*DE37 -> 0.297 | DH37: =DH59 -> 0 | DI37: 0 | DJ37: =$M37*DH37 -> 0 | DK37: =DK59 -> 0 | DL37: 0 | DM37: =$M37*DK37 -> 0 | DN37: =DN59 -> 0 | DO37: 0 | DP37: =$M37*DN37 -> 0 | DQ37: =DQ59 -> 0 | DR37: 0 | DS37: =$M37*DQ37 -> 0 | DT37: =DT59 -> 0 | DU37: 0 | DV37: =$M37*DT37 -> 0 | DW37: =DW59 -> 0 | DX37: 0 | DY37: =$M37*DW37 -> 0 | DZ37: =DZ59 -> 0 | EA37: 0 | EB37: =$M37*DZ37 -> 0 | EC37: =EC59 -> 0 | ED37: 0 | EE37: =$M37*EC37 -> 0 | EF37: =EF59 -> 0 | EG37: 0 | EH37: =$M37*EF37 -> 0 | EI37: =EI59 -> 1 | EJ37: 0.4869565217 | EK37: =$M37*EI37 -> 0.297 | EL37: =EL59 -> 0 | EM37: 0 | EN37: =$M37*EL37 -> 0 | EO37: =EO59 -> 0 | EP37: 0 | EQ37: =$M37*EO37 -> 0 | ER37: =ER59 -> 0 | ES37: 0 | ET37: =$M37*ER37 -> 0 | EU37: =EU59 -> 0 | EV37: 0 | EW37: =$M37*EU37 -> 0 | EX37: =EX59 -> 0 | EY37: 0 | EZ37: =$M37*EX37 -> 0 | FA37: =FA59 -> 0 | FB37: 0 | FC37: =$M37*FA37 -> 0 | FD37: =FD59 -> 0 | FE37: 0 | FF37: =$M37*FD37 -> 0 | FG37: =FG59 -> 0 | FH37: 0 | FI37: =$M37*FG37 -> 0 | FJ37: =FJ59 -> 1 | FK37: 0.4869565217 | FL37: =$M37*FJ37 -> 0.297 | FM37: =FM59 -> 0 | FN37: 0 | FO37: =$M37*FM37 -> 0 | FP37: =FP59 -> 0 | FQ37: 0 | FR37: =$M37*FP37 -> 0 | FS37: =FS59 -> 1 | FT37: 0.4869565217 | FU37: =$M37*FS37 -> 0.297 | FV37: =FV59 -> 1 | FW37: 0.4869565217 | FX37: =$M37*FV37 -> 0.297 | FY37: =FY59 -> 0 | FZ37: 0 | GA37: =$M37*FY37 -> 0 | GB37: =GB59 -> 0 | GC37: 0 | GD37: =$M37*GB37 -> 0 | GE37: =GE59 -> 0 | GF37: 0 | GG37: =$M37*GE37 -> 0 | GH37: =GH59 -> 0 | GI37: 0 | GJ37: =$M37*GH37 -> 0 | GK37: =GK59 -> 0 | GL37: 0 | GM37: =$M37*GK37 -> 0 | GN37: =GN59 -> 0 | GO37: 0 | GP37: =$M37*GN37 -> 0 | GQ37: =GQ59 -> 0 | GR37: 0 | GS37: =$M37*GQ37 -> 0 | GT37: =GT59 -> 0 | GU37: 0 | GV37: =$M37*GT37 -> 0 | GW37: =GW59 -> 0 | GX37: 0 | GY37: =$M37*GW37 -> 0 | GZ37: =GZ59 -> 0 | HA37: 0 | HB37: =$M37*GZ37 -> 0 | HC37: =HC59 -> 0 | HD37: 0 | HE37: =$M37*HC37 -> 0 | HF37: =HF59 -> 0 | HG37: 0 | HH37: =$M37*HF37 -> 0 | HI37: =HI59 -> 0 | HJ37: 0 | HK37: =$M37*HI37 -> 0 | HL37: =HL59 -> 0 | HM37: 0 | HN37: =$M37*HL37 -> 0 | HO37: =HO59 -> 0 | HP37: 0 | HQ37: =$M37*HO37 -> 0 | HR37: =HR59 -> 0 | HS37: 0 | HT37: =$M37*HR37 -> 0 | HU37: =HU59 -> 0 | HV37: 0 | HW37: =$M37*HU37 -> 0 | HX37: =HX59 -> 0 | HY37: 0 | HZ37: =$M37*HX37 -> 0 | IA37: =IA59 -> 0 | IB37: 0 | IC37: =$M37*IA37 -> 0 | ID37: =ID59 -> 0 | IE37: 0 | IF37: =$M37*ID37 -> 0 | IG37: =IG59 -> 0 | IH37: 0 | II37: =$M37*IG37 -> 0 | IJ37: =IJ59 -> 0 | IK37: 0 | IL37: =$M37*IJ37 -> 0 | IM37: =IM59 -> 0 | IN37: 0 | IO37: =$M37*IM37 -> 0 | IP37: =IP59 -> 0 | IQ37: 0 | IR37: =$M37*IP37 -> 0 | IS37: =IS59 -> 0 | IT37: 0 | IU37: =$M37*IS37 -> 0 | IV37: =IV59 -> 0 | IW37: 0 | IX37: =$M37*IV37 -> 0 | IY37: =IY59 -> 0 | IZ37: 0 | JA37: =$M37*IY37 -> 0 | JB37: =JB59 -> 0 | JC37: 0 | JD37: =$M37*JB37 -> 0 | JE37: =JE59 -> 0 | JF37: 0 | JG37: =$M37*JE37 -> 0 | JH37: =JH59 -> 0 | JI37: 0 | JJ37: =$M37*JH37 -> 0 | JK37: =JK59 -> 0 | JL37: 0 | JM37: =$M37*JK37 -> 0 | JN37: =JN59 -> 0 | JO37: 0 | JP37: =$M37*JN37 -> 0 | JQ37: =JQ59 -> 0 | JR37: 0 | JS37: =$M37*JQ37 -> 0 | JT37: =JT59 -> 0 | JU37: 0 | JV37: =$M37*JT37 -> 0 | JW37: =JW59 -> 0 | JX37: 0 | JY37: =$M37*JW37 -> 0 | JZ37: =JZ59 -> 0 | KA37: 0 | KB37: =$M37*JZ37 -> 0 | KC37: =KC59 -> 0 | KD37: 0 | KE37: =$M37*KC37 -> 0 | KF37: =KF59 -> 0 | KG37: 0 | KH37: =$M37*KF37 -> 0 | KI37: =KI59 -> 0 | KJ37: 0 | KK37: =$M37*KI37 -> 0 | KL37: =KL59 -> 0 | KM37: 0 | KN37: =$M37*KL37 -> 0 | KO37: =KO59 -> 0 | KP37: 0 | KQ37: =$M37*KO37 -> 0 | KR37: =KR59 -> 0 | KS37: 0 | KT37: =$M37*KR37 -> 0 | KU37: =KU59 -> 0 | KV37: 0 | KW37: =$M37*KU37 -> 0 | KX37: =KX59 -> 0 | KY37: 0 | KZ37: =$M37*KX37 -> 0 | LA37: =LA59 -> 0 | LB37: 0 | LC37: =$M37*LA37 -> 0 | LD37: =LD59 -> 0 | LE37: 0 | LF37: =$M37*LD37 -> 0 | LG37: =LG59 -> 0 | LH37: 0 | LI37: =$M37*LG37 -> 0 | LJ37: =LJ59 -> 0 | LK37: 0 | LL37: =$M37*LJ37 -> 0 | LM37: =LM59 -> 0 | LN37: 0 | LO37: =$M37*LM37 -> 0 | LP37: =LP59 -> 0 | LQ37: 0 | LR37: =$M37*LP37 -> 0 | LS37: =LS59 -> 0 | LT37: 0 | LU37: =$M37*LS37 -> 0 | LV37: =LV59 -> 0 | LW37: 0 | LX37: =$M37*LV37 -> 0 | LY37: =LY59 -> 0 | LZ37: 0 | MA37: =$M37*LY37 -> 0 | MB37: =MB59 -> 0 | MC37: 0 | MD37: =$M37*MB37 -> 0 | ME37: =ME59 -> 0 | MF37: 0 | MG37: =$M37*ME37 -> 0 | MH37: =MH59 -> 0 | MI37: 0 | MJ37: =$M37*MH37 -> 0 | MK37: =MK59 -> 0 | ML37: 0 | MM37: =$M37*MK37 -> 0 | MN37: =MN59 -> 0 | MO37: 0 | MP37: =$M37*MN37 -> 0
A38: . lavabo (HE) = | B38: =B60 -> 90 | E38: 36 | H38: =H$60 -> 34 | I38: cps | J38: =(112*(0.25))/56 -> 0.5 | M38: =0.55*(15+19)/90 -> 0.2077777778 | N38: =M38*90 -> 18.7 | Q38: 18.7 | S38: =S60 -> 2 | T38: 1 | U38: =$M38*S38 -> 0.4155555556 | V38: =V60 -> 2 | W38: 1 | X38: =$M38*V38 -> 0.4155555556 | Y38: =Y60 -> 2 | Z38: 1 | AA38: =$M38*Y38 -> 0.4155555556 | AB38: =AB60 -> 2 | AC38: 1 | AD38: =$M38*AB38 -> 0.4155555556 | AE38: =AE60 -> 1 | AF38: 0.5 | AG38: =$M38*AE38 -> 0.2077777778 | AH38: =AH60 -> 0 | AI38: 0 | AJ38: =$M38*AH38 -> 0 | AK38: =AK60 -> 1 | AL38: 0.5 | AM38: =$M38*AK38 -> 0.2077777778 | AN38: =AN60 -> 0 | AO38: 0 | AP38: =$M38*AN38 -> 0 | AQ38: =AQ60 -> 0 | AR38: 0 | AS38: =$M38*AQ38 -> 0 | AT38: =AT60 -> 0 | AU38: 0 | AV38: =$M38*AT38 -> 0 | AW38: =AW60 -> 0 | AX38: 0 | AY38: =$M38*AW38 -> 0 | AZ38: =AZ60 -> 2 | BA38: 1 | BB38: =$M38*AZ38 -> 0.4155555556 | BC38: =BC60 -> 1 | BD38: 0.5 | BE38: =$M38*BC38 -> 0.2077777778 | BF38: =BF60 -> 1 | BG38: 0.5 | BH38: =$M38*BF38 -> 0.2077777778 | BI38: =BI60 -> 0 | BJ38: 0 | BK38: =$M38*BI38 -> 0 | BL38: =BL60 -> 0 | BM38: 0 | BN38: =$M38*BL38 -> 0 | BO38: =BO60 -> 0 | BP38: 0 | BQ38: =$M38*BO38 -> 0 | BR38: =BR60 -> 2 | BS38: 1 | BT38: =$M38*BR38 -> 0.4155555556 | BU38: =BU60 -> 1 | BV38: 0.5 | BW38: =$M38*BU38 -> 0.2077777778 | BX38: =BX60 -> 0 | BY38: 0 | BZ38: =$M38*BX38 -> 0 | CA38: =CA60 -> 2 | CB38: 1 | CC38: =$M38*CA38 -> 0.4155555556 | CD38: =CD60 -> 2 | CE38: 1 | CF38: =$M38*CD38 -> 0.4155555556 | CG38: =CG60 -> 1 | CH38: 0.5 | CI38: =$M38*CG38 -> 0.2077777778 | CJ38: =CJ60 -> 2 | CK38: 1 | CL38: =$M38*CJ38 -> 0.4155555556 | CM38: =CM60 -> 1 | CN38: 0.5 | CO38: =$M38*CM38 -> 0.2077777778 | CP38: =CP60 -> 0 | CQ38: 0 | CR38: =$M38*CP38 -> 0 | CS38: =CS60 -> 0 | CT38: 0 | CU38: =$M38*CS38 -> 0 | CV38: =CV60 -> 0 | CW38: 0 | CX38: =$M38*CV38 -> 0 | CY38: =CY60 -> 2 | CZ38: 1 | DA38: =$M38*CY38 -> 0.4155555556 | DB38: =DB60 -> 0 | DC38: 0 | DD38: =$M38*DB38 -> 0 | DE38: =DE60 -> 0 | DF38: 0 | DG38: =$M38*DE38 -> 0 | DH38: =DH60 -> 1 | DI38: 0.5 | DJ38: =$M38*DH38 -> 0.2077777778 | DK38: =DK60 -> 2 | DL38: 1 | DM38: =$M38*DK38 -> 0.4155555556 | DN38: =DN60 -> 1 | DO38: 0.5 | DP38: =$M38*DN38 -> 0.2077777778 | DQ38: =DQ60 -> 1 | DR38: 0.5 | DS38: =$M38*DQ38 -> 0.2077777778 | DT38: =DT60 -> 1 | DU38: 0.5 | DV38: =$M38*DT38 -> 0.2077777778 | DW38: =DW60 -> 0 | DX38: 0 | DY38: =$M38*DW38 -> 0 | DZ38: =DZ60 -> 0 | EA38: 0 | EB38: =$M38*DZ38 -> 0 | EC38: =EC60 -> 0 | ED38: 0 | EE38: =$M38*EC38 -> 0 | EF38: =EF60 -> 0 | EG38: 0 | EH38: =$M38*EF38 -> 0 | EI38: =EI60 -> 2 | EJ38: 1 | EK38: =$M38*EI38 -> 0.4155555556 | EL38: =EL60 -> 0 | EM38: 0 | EN38: =$M38*EL38 -> 0 | EO38: =EO60 -> 0 | EP38: 0 | EQ38: =$M38*EO38 -> 0 | ER38: =ER60 -> 0 | ES38: 0 | ET38: =$M38*ER38 -> 0 | EU38: =EU60 -> 0 | EV38: 0 | EW38: =$M38*EU38 -> 0 | EX38: =EX60 -> 0 | EY38: 0 | EZ38: =$M38*EX38 -> 0 | FA38: =FA60 -> 0 | FB38: 0 | FC38: =$M38*FA38 -> 0 | FD38: =FD60 -> 0 | FE38: 0 | FF38: =$M38*FD38 -> 0 | FG38: =FG60 -> 0 | FH38: 0 | FI38: =$M38*FG38 -> 0 | FJ38: =FJ60 -> 0 | FK38: 0 | FL38: =$M38*FJ38 -> 0 | FM38: =FM60 -> 0 | FN38: 0 | FO38: =$M38*FM38 -> 0 | FP38: =FP60 -> 0 | FQ38: 0 | FR38: =$M38*FP38 -> 0 | FS38: =FS60 -> 1 | FT38: 0.5 | FU38: =$M38*FS38 -> 0.2077777778 | FV38: =FV60 -> 0 | FW38: 0 | FX38: =$M38*FV38 -> 0 | FY38: =FY60 -> 0 | FZ38: 0 | GA38: =$M38*FY38 -> 0 | GB38: =GB60 -> 0 | GC38: 0 | GD38: =$M38*GB38 -> 0 | GE38: =GE60 -> 0 | GF38: 0 | GG38: =$M38*GE38 -> 0 | GH38: =GH60 -> 0 | GI38: 0 | GJ38: =$M38*GH38 -> 0 | GK38: =GK60 -> 0 | GL38: 0 | GM38: =$M38*GK38 -> 0 | GN38: =GN60 -> 0 | GO38: 0 | GP38: =$M38*GN38 -> 0 | GQ38: =GQ60 -> 0 | GR38: 0 | GS38: =$M38*GQ38 -> 0 | GT38: =GT60 -> 0 | GU38: 0 | GV38: =$M38*GT38 -> 0 | GW38: =GW60 -> 0 | GX38: 0 | GY38: =$M38*GW38 -> 0 | GZ38: =GZ60 -> 0 | HA38: 0 | HB38: =$M38*GZ38 -> 0 | HC38: =HC60 -> 0 | HD38: 0 | HE38: =$M38*HC38 -> 0 | HF38: =HF60 -> 0 | HG38: 0 | HH38: =$M38*HF38 -> 0 | HI38: =HI60 -> 0 | HJ38: 0 | HK38: =$M38*HI38 -> 0 | HL38: =HL60 -> 0 | HM38: 0 | HN38: =$M38*HL38 -> 0 | HO38: =HO60 -> 0 | HP38: 0 | HQ38: =$M38*HO38 -> 0 | HR38: =HR60 -> 0 | HS38: 0 | HT38: =$M38*HR38 -> 0 | HU38: =HU60 -> 0 | HV38: 0 | HW38: =$M38*HU38 -> 0 | HX38: =HX60 -> 0 | HY38: 0 | HZ38: =$M38*HX38 -> 0 | IA38: =IA60 -> 0 | IB38: 0 | IC38: =$M38*IA38 -> 0 | ID38: =ID60 -> 0 | IE38: 0 | IF38: =$M38*ID38 -> 0 | IG38: =IG60 -> 0 | IH38: 0 | II38: =$M38*IG38 -> 0 | IJ38: =IJ60 -> 0 | IK38: 0 | IL38: =$M38*IJ38 -> 0 | IM38: =IM60 -> 0 | IN38: 0 | IO38: =$M38*IM38 -> 0 | IP38: =IP60 -> 0 | IQ38: 0 | IR38: =$M38*IP38 -> 0 | IS38: =IS60 -> 0 | IT38: 0 | IU38: =$M38*IS38 -> 0 | IV38: =IV60 -> 0 | IW38: 0 | IX38: =$M38*IV38 -> 0 | IY38: =IY60 -> 0 | IZ38: 0 | JA38: =$M38*IY38 -> 0 | JB38: =JB60 -> 0 | JC38: 0 | JD38: =$M38*JB38 -> 0 | JE38: =JE60 -> 0 | JF38: 0 | JG38: =$M38*JE38 -> 0 | JH38: =JH60 -> 0 | JI38: 0 | JJ38: =$M38*JH38 -> 0 | JK38: =JK60 -> 0 | JL38: 0 | JM38: =$M38*JK38 -> 0 | JN38: =JN60 -> 0 | JO38: 0 | JP38: =$M38*JN38 -> 0 | JQ38: =JQ60 -> 0 | JR38: 0 | JS38: =$M38*JQ38 -> 0 | JT38: =JT60 -> 0 | JU38: 0 | JV38: =$M38*JT38 -> 0 | JW38: =JW60 -> 0 | JX38: 0 | JY38: =$M38*JW38 -> 0 | JZ38: =JZ60 -> 0 | KA38: 0 | KB38: =$M38*JZ38 -> 0 | KC38: =KC60 -> 0 | KD38: 0 | KE38: =$M38*KC38 -> 0 | KF38: =KF60 -> 0 | KG38: 0 | KH38: =$M38*KF38 -> 0 | KI38: =KI60 -> 0 | KJ38: 0 | KK38: =$M38*KI38 -> 0 | KL38: =KL60 -> 0 | KM38: 0 | KN38: =$M38*KL38 -> 0 | KO38: =KO60 -> 0 | KP38: 0 | KQ38: =$M38*KO38 -> 0 | KR38: =KR60 -> 0 | KS38: 0 | KT38: =$M38*KR38 -> 0 | KU38: =KU60 -> 0 | KV38: 0 | KW38: =$M38*KU38 -> 0 | KX38: =KX60 -> 0 | KY38: 0 | KZ38: =$M38*KX38 -> 0 | LA38: =LA60 -> 0 | LB38: 0 | LC38: =$M38*LA38 -> 0 | LD38: =LD60 -> 0 | LE38: 0 | LF38: =$M38*LD38 -> 0 | LG38: =LG60 -> 0 | LH38: 0 | LI38: =$M38*LG38 -> 0 | LJ38: =LJ60 -> 0 | LK38: 0 | LL38: =$M38*LJ38 -> 0 | LM38: =LM60 -> 0 | LN38: 0 | LO38: =$M38*LM38 -> 0 | LP38: =LP60 -> 0 | LQ38: 0 | LR38: =$M38*LP38 -> 0 | LS38: =LS60 -> 0 | LT38: 0 | LU38: =$M38*LS38 -> 0 | LV38: =LV60 -> 0 | LW38: 0 | LX38: =$M38*LV38 -> 0 | LY38: =LY60 -> 0 | LZ38: 0 | MA38: =$M38*LY38 -> 0 | MB38: =MB60 -> 0 | MC38: 0 | MD38: =$M38*MB38 -> 0 | ME38: =ME60 -> 0 | MF38: 0 | MG38: =$M38*ME38 -> 0 | MH38: =MH60 -> 0 | MI38: 0 | MJ38: =$M38*MH38 -> 0 | MK38: =MK60 -> 0 | ML38: 0 | MM38: =$M38*MK38 -> 0 | MN38: =MN60 -> 0 | MO38: 0 | MP38: =$M38*MN38 -> 0
A39: . baignoire (HE) = | B39: =B64 -> 25 | E39: 5 | H39: =H$64 -> 8 | I39: cps | J39: =(112*(0.08))/17 -> 0.5270588235 | M39: =0.55*8/25 -> 0.176 | N39: =M39*25 -> 4.4 | Q39: 4.4 | S39: =S64 -> 0 | T39: 0 | U39: =$M39*S39 -> 0 | V39: =V64 -> 0 | W39: 0 | X39: =$M39*V39 -> 0 | Y39: =Y64 -> 0 | Z39: 0 | AA39: =$M39*Y39 -> 0 | AB39: =AB64 -> 0 | AC39: 0 | AD39: =$M39*AB39 -> 0 | AE39: =AE64 -> 0 | AF39: 0 | AG39: =$M39*AE39 -> 0 | AH39: =AH64 -> 0 | AI39: 0 | AJ39: =$M39*AH39 -> 0 | AK39: =AK64 -> 0 | AL39: 0 | AM39: =$M39*AK39 -> 0 | AN39: =AN64 -> 1 | AO39: 0.5270588235 | AP39: =$M39*AN39 -> 0.176 | AQ39: =AQ64 -> 1 | AR39: 0.5270588235 | AS39: =$M39*AQ39 -> 0.176 | AT39: =AT64 -> 0 | AU39: 0 | AV39: =$M39*AT39 -> 0 | AW39: =AW64 -> 0 | AX39: 0 | AY39: =$M39*AW39 -> 0 | AZ39: =AZ64 -> 0 | BA39: 0 | BB39: =$M39*AZ39 -> 0 | BC39: =BC64 -> 0 | BD39: 0 | BE39: =$M39*BC39 -> 0 | BF39: =BF64 -> 1 | BG39: 0.5270588235 | BH39: =$M39*BF39 -> 0.176 | BI39: =BI64 -> 0 | BJ39: 0 | BK39: =$M39*BI39 -> 0 | BL39: =BL64 -> 0 | BM39: 0 | BN39: =$M39*BL39 -> 0 | BO39: =BO64 -> 0 | BP39: 0 | BQ39: =$M39*BO39 -> 0 | BR39: =BR64 -> 0 | BS39: 0 | BT39: =$M39*BR39 -> 0 | BU39: =BU64 -> 0 | BV39: 0 | BW39: =$M39*BU39 -> 0 | BX39: =BX64 -> 0 | BY39: 0 | BZ39: =$M39*BX39 -> 0 | CA39: =CA64 -> 0 | CB39: 0 | CC39: =$M39*CA39 -> 0 | CD39: =CD64 -> 1 | CE39: 0.5270588235 | CF39: =$M39*CD39 -> 0.176 | CG39: =CG64 -> 0 | CH39: 0 | CI39: =$M39*CG39 -> 0 | CJ39: =CJ64 -> 0 | CK39: 0 | CL39: =$M39*CJ39 -> 0 | CM39: =CM64 -> 0 | CN39: 0 | CO39: =$M39*CM39 -> 0 | CP39: =CP64 -> 0 | CQ39: 0 | CR39: =$M39*CP39 -> 0 | CS39: =CS64 -> 0 | CT39: 0 | CU39: =$M39*CS39 -> 0 | CV39: =CV64 -> 0 | CW39: 0 | CX39: =$M39*CV39 -> 0 | CY39: =CY64 -> 0 | CZ39: 0 | DA39: =$M39*CY39 -> 0 | DB39: =DB64 -> 0 | DC39: 0 | DD39: =$M39*DB39 -> 0 | DE39: =DE64 -> 0 | DF39: 0 | DG39: =$M39*DE39 -> 0 | DH39: =DH64 -> 0 | DI39: 0 | DJ39: =$M39*DH39 -> 0 | DK39: =DK64 -> 0 | DL39: 0 | DM39: =$M39*DK39 -> 0 | DN39: =DN64 -> 0 | DO39: 0 | DP39: =$M39*DN39 -> 0 | DQ39: =DQ64 -> 0 | DR39: 0 | DS39: =$M39*DQ39 -> 0 | DT39: =DT64 -> 0 | DU39: 0 | DV39: =$M39*DT39 -> 0 | DW39: =DW64 -> 0 | DX39: 0 | DY39: =$M39*DW39 -> 0 | DZ39: =DZ64 -> 0 | EA39: 0 | EB39: =$M39*DZ39 -> 0 | EC39: =EC64 -> 0 | ED39: 0 | EE39: =$M39*EC39 -> 0 | EF39: =EF64 -> 0 | EG39: 0 | EH39: =$M39*EF39 -> 0 | EI39: =EI64 -> 1 | EJ39: 0.5270588235 | EK39: =$M39*EI39 -> 0.176 | EL39: =EL64 -> 0 | EM39: 0 | EN39: =$M39*EL39 -> 0 | EO39: =EO64 -> 0 | EP39: 0 | EQ39: =$M39*EO39 -> 0 | ER39: =ER64 -> 0 | ES39: 0 | ET39: =$M39*ER39 -> 0 | EU39: =EU64 -> 0 | EV39: 0 | EW39: =$M39*EU39 -> 0 | EX39: =EX64 -> 0 | EY39: 0 | EZ39: =$M39*EX39 -> 0 | FA39: =FA64 -> 0 | FB39: 0 | FC39: =$M39*FA39 -> 0 | FD39: =FD64 -> 0 | FE39: 0 | FF39: =$M39*FD39 -> 0 | FG39: =FG64 -> 0 | FH39: 0 | FI39: =$M39*FG39 -> 0 | FJ39: =FJ64 -> 0 | FK39: 0 | FL39: =$M39*FJ39 -> 0 | FM39: =FM64 -> 0 | FN39: 0 | FO39: =$M39*FM39 -> 0 | FP39: =FP64 -> 0 | FQ39: 0 | FR39: =$M39*FP39 -> 0 | FS39: =FS64 -> 0 | FT39: 0 | FU39: =$M39*FS39 -> 0 | FV39: =FV64 -> 0 | FW39: 0 | FX39: =$M39*FV39 -> 0 | FY39: =FY64 -> 0 | FZ39: 0 | GA39: =$M39*FY39 -> 0 | GB39: =GB64 -> 0 | GC39: 0 | GD39: =$M39*GB39 -> 0 | GE39: =GE64 -> 0 | GF39: 0 | GG39: =$M39*GE39 -> 0 | GH39: =GH64 -> 0 | GI39: 0 | GJ39: =$M39*GH39 -> 0 | GK39: =GK64 -> 0 | GL39: 0 | GM39: =$M39*GK39 -> 0 | GN39: =GN64 -> 0 | GO39: 0 | GP39: =$M39*GN39 -> 0 | GQ39: =GQ64 -> 0 | GR39: 0 | GS39: =$M39*GQ39 -> 0 | GT39: =GT64 -> 0 | GU39: 0 | GV39: =$M39*GT39 -> 0 | GW39: =GW64 -> 0 | GX39: 0 | GY39: =$M39*GW39 -> 0 | GZ39: =GZ64 -> 0 | HA39: 0 | HB39: =$M39*GZ39 -> 0 | HC39: =HC64 -> 0 | HD39: 0 | HE39: =$M39*HC39 -> 0 | HF39: =HF64 -> 0 | HG39: 0 | HH39: =$M39*HF39 -> 0 | HI39: =HI64 -> 0 | HJ39: 0 | HK39: =$M39*HI39 -> 0 | HL39: =HL64 -> 0 | HM39: 0 | HN39: =$M39*HL39 -> 0 | HO39: =HO64 -> 0 | HP39: 0 | HQ39: =$M39*HO39 -> 0 | HR39: =HR64 -> 0 | HS39: 0 | HT39: =$M39*HR39 -> 0 | HU39: =HU64 -> 0 | HV39: 0 | HW39: =$M39*HU39 -> 0 | HX39: =HX64 -> 0 | HY39: 0 | HZ39: =$M39*HX39 -> 0 | IA39: =IA64 -> 0 | IB39: 0 | IC39: =$M39*IA39 -> 0 | ID39: =ID64 -> 0 | IE39: 0 | IF39: =$M39*ID39 -> 0 | IG39: =IG64 -> 0 | IH39: 0 | II39: =$M39*IG39 -> 0 | IJ39: =IJ64 -> 0 | IK39: 0 | IL39: =$M39*IJ39 -> 0 | IM39: =IM64 -> 0 | IN39: 0 | IO39: =$M39*IM39 -> 0 | IP39: =IP64 -> 0 | IQ39: 0 | IR39: =$M39*IP39 -> 0 | IS39: =IS64 -> 0 | IT39: 0 | IU39: =$M39*IS39 -> 0 | IV39: =IV64 -> 0 | IW39: 0 | IX39: =$M39*IV39 -> 0 | IY39: =IY64 -> 0 | IZ39: 0 | JA39: =$M39*IY39 -> 0 | JB39: =JB64 -> 0 | JC39: 0 | JD39: =$M39*JB39 -> 0 | JE39: =JE64 -> 0 | JF39: 0 | JG39: =$M39*JE39 -> 0 | JH39: =JH64 -> 0 | JI39: 0 | JJ39: =$M39*JH39 -> 0 | JK39: =JK64 -> 0 | JL39: 0 | JM39: =$M39*JK39 -> 0 | JN39: =JN64 -> 0 | JO39: 0 | JP39: =$M39*JN39 -> 0 | JQ39: =JQ64 -> 0 | JR39: 0 | JS39: =$M39*JQ39 -> 0 | JT39: =JT64 -> 0 | JU39: 0 | JV39: =$M39*JT39 -> 0 | JW39: =JW64 -> 0 | JX39: 0 | JY39: =$M39*JW39 -> 0 | JZ39: =JZ64 -> 0 | KA39: 0 | KB39: =$M39*JZ39 -> 0 | KC39: =KC64 -> 0 | KD39: 0 | KE39: =$M39*KC39 -> 0 | KF39: =KF64 -> 0 | KG39: 0 | KH39: =$M39*KF39 -> 0 | KI39: =KI64 -> 0 | KJ39: 0 | KK39: =$M39*KI39 -> 0 | KL39: =KL64 -> 0 | KM39: 0 | KN39: =$M39*KL39 -> 0 | KO39: =KO64 -> 0 | KP39: 0 | KQ39: =$M39*KO39 -> 0 | KR39: =KR64 -> 0 | KS39: 0 | KT39: =$M39*KR39 -> 0 | KU39: =KU64 -> 0 | KV39: 0 | KW39: =$M39*KU39 -> 0 | KX39: =KX64 -> 0 | KY39: 0 | KZ39: =$M39*KX39 -> 0 | LA39: =LA64 -> 0 | LB39: 0 | LC39: =$M39*LA39 -> 0 | LD39: =LD64 -> 0 | LE39: 0 | LF39: =$M39*LD39 -> 0 | LG39: =LG64 -> 0 | LH39: 0 | LI39: =$M39*LG39 -> 0 | LJ39: =LJ64 -> 0 | LK39: 0 | LL39: =$M39*LJ39 -> 0 | LM39: =LM64 -> 0 | LN39: 0 | LO39: =$M39*LM39 -> 0 | LP39: =LP64 -> 0 | LQ39: 0 | LR39: =$M39*LP39 -> 0 | LS39: =LS64 -> 0 | LT39: 0 | LU39: =$M39*LS39 -> 0 | LV39: =LV64 -> 0 | LW39: 0 | LX39: =$M39*LV39 -> 0 | LY39: =LY64 -> 0 | LZ39: 0 | MA39: =$M39*LY39 -> 0 | MB39: =MB64 -> 0 | MC39: 0 | MD39: =$M39*MB39 -> 0 | ME39: =ME64 -> 0 | MF39: 0 | MG39: =$M39*ME39 -> 0 | MH39: =MH64 -> 0 | MI39: 0 | MJ39: =$M39*MH39 -> 0 | MK39: =MK64 -> 0 | ML39: 0 | MM39: =$M39*MK39 -> 0 | MN39: =MN64 -> 0 | MO39: 0 | MP39: =$M39*MN39 -> 0
